Workbook

Sheet P1
D6: REM-P1. POBLACIÓN EN CONTROL PROGRAMA DE SALUD DE LA MUJER
B7: ATENCIÓN PRIMARIA DE SALUD
B8: SECCION A: POBLACIÓN EN CONTROL SEGÚN MÉTODO DE REGULACIÓN DE FERTILIDAD Y SALUD SEXUAL
B9: MÉTODOS | D9: TOTAL | E9: GRUPO DE EDAD (en años) | R9: Pueblos Originarios | S9: Migrantes | T9: PV-VIH (personas viviendo con VIH)
E10: Menor de 15 años | F10: 15 a 19 años | G10: 20 a 24 años | H10: 25 a 29 años | I10: 30 a 34 años | J10: 35 a 39 años | K10: 40 a 44 años | L10: 45 a 49 años | M10: 50 a 54 años | N10: 55 a 59 años | O10: 60 a 64 años | P10: 65 a 69 años | Q10: 70 y más años
A11: P1010100 | B11: D . I . U T con Cobre | D11: =SUM(E11:N11) -> 14049 | E11: =IFERROR(VLOOKUP($A11,Filtro!$A$5:$AW$651,3,FALSE),0) -> 2 | F11: =IFERROR(VLOOKUP($A11,Filtro!$A$5:$AW$651,4,FALSE),0) -> 96 | G11: =IFERROR(VLOOKUP($A11,Filtro!$A$5:$AW$651,5,FALSE),0) -> 840 | H11: =IFERROR(VLOOKUP($A11,Filtro!$A$5:$AW$651,6,FALSE),0) -> 2216 | I11: =IFERROR(VLOOKUP($A11,Filtro!$A$5:$AW$651,7,FALSE),0) -> 2964 | J11: =IFERROR(VLOOKUP($A11,Filtro!$A$5:$AW$651,8,FALSE),0) -> 2716 | K11: =IFERROR(VLOOKUP($A11,Filtro!$A$5:$AW$651,9,FALSE),0) -> 2262 | L11: =IFERROR(VLOOKUP($A11,Filtro!$A$5:$AW$651,10,FALSE),0) -> 1741 | M11: =IFERROR(VLOOKUP($A11,Filtro!$A$5:$AW$651,11,FALSE),0) -> 990 | N11: =IFERROR(VLOOKUP($A11,Filtro!$A$5:$AW$651,12,FALSE),0) -> 222 | O11: =IFERROR(VLOOKUP($A11,Filtro!$A$5:$AW$651,13,FALSE),0) -> 0 | P11: =IFERROR(VLOOKUP($A11,Filtro!$A$5:$AW$651,14,FALSE),0) -> 0 | Q11: =IFERROR(VLOOKUP($A11,Filtro!$A$5:$AW$651,15,FALSE),0) -> 0 | R11: =IFERROR(VLOOKUP($A11,Filtro!$A$5:$AW$651,16,FALSE),0) -> 183 | S11: =IFERROR(VLOOKUP($A11,Filtro!$A$5:$AW$651,17,FALSE),0) -> 510 | T11: =IFERROR(VLOOKUP($A11,Filtro!$A$5:$AW$651,18,FALSE),0) -> 13 | U11: =($CB11&CC11&CD11&CE11&CF11&CG11&CH11&CI11&CJ11) ->  | CB11: =IF($R11>$D11,"* La celda Pueblos Originarios debe ser menor o igual al Total de Métodos. ","") ->  | CC11: =IF($S11>$D11,"* La celda Población Migrantes debe ser menor o igual al Total de Métodos. ","") ->  | CD11: =IF($T11>$D11,"* La celda PV-VIH (Personas Viviendo con VIH) debe ser menor o igual al Total de Métodos. ","") ->  | CE11: =IF(AND($D11<>0,$R11=""),"* No olvide escribir en la celda de Pueblos Originarios (Digite CERO si no tiene). ","") ->  | CF11: =IF(AND($D11<>0,$S11=""),"* No olvide escribir en la celda Migrantes (Digite CERO si no tiene). ","") ->  | CG11: =IF(AND($D11<>0,$T11=""),"* No olvide escribir en la celda de PV-VIH (Personas Viviendo con VIH) (Digite CERO si no tiene). ","") ->  | CK11: =IF($R11>$D11,1,0) -> 0 | CL11: =IF($S11>$D11,1,0) -> 0 | CM11: =IF($T11>$D11,1,0) -> 0 | CN11: =IF(AND($D11<>0,$R11=""),1,0) -> 0 | CO11: =IF(AND($D11<>0,$S11=""),1,0) -> 0 | CP11: =IF(AND($D11<>0,$T11=""),1,0) -> 0
A12: P1060124 | B12: D . I . U con Levonorgestrel | D12: =SUM(E12:N12) -> 2718 | E12: =IFERROR(VLOOKUP($A12,Filtro!$A$5:$AW$651,3,FALSE),0) -> 5 | F12: =IFERROR(VLOOKUP($A12,Filtro!$A$5:$AW$651,4,FALSE),0) -> 79 | G12: =IFERROR(VLOOKUP($A12,Filtro!$A$5:$AW$651,5,FALSE),0) -> 342 | H12: =IFERROR(VLOOKUP($A12,Filtro!$A$5:$AW$651,6,FALSE),0) -> 666 | I12: =IFERROR(VLOOKUP($A12,Filtro!$A$5:$AW$651,7,FALSE),0) -> 713 | J12: =IFERROR(VLOOKUP($A12,Filtro!$A$5:$AW$651,8,FALSE),0) -> 459 | K12: =IFERROR(VLOOKUP($A12,Filtro!$A$5:$AW$651,9,FALSE),0) -> 304 | L12: =IFERROR(VLOOKUP($A12,Filtro!$A$5:$AW$651,10,FALSE),0) -> 127 | M12: =IFERROR(VLOOKUP($A12,Filtro!$A$5:$AW$651,11,FALSE),0) -> 18 | N12: =IFERROR(VLOOKUP($A12,Filtro!$A$5:$AW$651,12,FALSE),0) -> 5 | O12: =IFERROR(VLOOKUP($A12,Filtro!$A$5:$AW$651,13,FALSE),0) -> 0 | P12: =IFERROR(VLOOKUP($A12,Filtro!$A$5:$AW$651,14,FALSE),0) -> 0 | Q12: =IFERROR(VLOOKUP($A12,Filtro!$A$5:$AW$651,15,FALSE),0) -> 0 | R12: =IFERROR(VLOOKUP($A12,Filtro!$A$5:$AW$651,16,FALSE),0) -> 68 | S12: =IFERROR(VLOOKUP($A12,Filtro!$A$5:$AW$651,17,FALSE),0) -> 122 | T12: =IFERROR(VLOOKUP($A12,Filtro!$A$5:$AW$651,18,FALSE),0) -> 3 | U12: =($CB12&CC12&CD12&CE12&CF12&CG12&CH12&CI12&CJ12) ->  | CB12: =IF($R12>$D12,"* La celda Pueblos Originarios debe ser menor o igual al Total de Métodos. ","") ->  | CC12: =IF($S12>$D12,"* La celda Población Migrantes debe ser menor o igual al Total de Métodos. ","") ->  | CD12: =IF($T12>$D12,"* La celda PV-VIH (Personas Viviendo con VIH) debe ser menor o igual al Total de Métodos. ","") ->  | CE12: =IF(AND($D12<>0,$R12=""),"* No olvide escribir en la celda de Pueblos Originarios (Digite CERO si no tiene). ","") ->  | CF12: =IF(AND($D12<>0,$S12=""),"* No olvide escribir en la celda Migrantes (Digite CERO si no tiene). ","") ->  | CG12: =IF(AND($D12<>0,$T12=""),"* No olvide escribir en la celda de PV-VIH (Personas Viviendo con VIH) (Digite CERO si no tiene). ","") ->  | CK12: =IF($R12>$D12,1,0) -> 0 | CL12: 0 | CM12: 0 | CN12: 0 | CO12: 0 | CP12: =IF(AND($D12<>0,$T12=""),1,0) -> 0
A13: P1010201 | B13: HORMONAL | C13: Oral Combinado | D13: 27947 | E13: =IFERROR(VLOOKUP($A13,Filtro!$A$5:$AW$651,3,FALSE),0) -> 621 | F13: =IFERROR(VLOOKUP($A13,Filtro!$A$5:$AW$651,4,FALSE),0) -> 4489 | G13: =IFERROR(VLOOKUP($A13,Filtro!$A$5:$AW$651,5,FALSE),0) -> 5560 | H13: =IFERROR(VLOOKUP($A13,Filtro!$A$5:$AW$651,6,FALSE),0) -> 4728 | I13: =IFERROR(VLOOKUP($A13,Filtro!$A$5:$AW$651,7,FALSE),0) -> 4467 | J13: =IFERROR(VLOOKUP($A13,Filtro!$A$5:$AW$651,8,FALSE),0) -> 3794 | K13: =IFERROR(VLOOKUP($A13,Filtro!$A$5:$AW$651,9,FALSE),0) -> 2511 | L13: =IFERROR(VLOOKUP($A13,Filtro!$A$5:$AW$651,10,FALSE),0) -> 1401 | M13: =IFERROR(VLOOKUP($A13,Filtro!$A$5:$AW$651,11,FALSE),0) -> 342 | N13: =IFERROR(VLOOKUP($A13,Filtro!$A$5:$AW$651,12,FALSE),0) -> 34 | O13: =IFERROR(VLOOKUP($A13,Filtro!$A$5:$AW$651,13,FALSE),0) -> 0 | P13: =IFERROR(VLOOKUP($A13,Filtro!$A$5:$AW$651,14,FALSE),0) -> 0 | Q13: =IFERROR(VLOOKUP($A13,Filtro!$A$5:$AW$651,15,FALSE),0) -> 0 | R13: =IFERROR(VLOOKUP($A13,Filtro!$A$5:$AW$651,16,FALSE),0) -> 331 | S13: =IFERROR(VLOOKUP($A13,Filtro!$A$5:$AW$651,17,FALSE),0) -> 867 | T13: =IFERROR(VLOOKUP($A13,Filtro!$A$5:$AW$651,18,FALSE),0) -> 5 | CK13: 0 | CL13: 0 | CM13: 0 | CN13: 0 | CO13: 0 | CP13: 0
A14: P1010202 | C14: Oral Progestágeno | D14: 9685 | E14: =IFERROR(VLOOKUP($A14,Filtro!$A$5:$AW$651,3,FALSE),0) -> 37 | F14: =IFERROR(VLOOKUP($A14,Filtro!$A$5:$AW$651,4,FALSE),0) -> 332 | G14: =IFERROR(VLOOKUP($A14,Filtro!$A$5:$AW$651,5,FALSE),0) -> 644 | H14: =IFERROR(VLOOKUP($A14,Filtro!$A$5:$AW$651,6,FALSE),0) -> 1212 | I14: =IFERROR(VLOOKUP($A14,Filtro!$A$5:$AW$651,7,FALSE),0) -> 1469 | J14: =IFERROR(VLOOKUP($A14,Filtro!$A$5:$AW$651,8,FALSE),0) -> 1350 | K14: =IFERROR(VLOOKUP($A14,Filtro!$A$5:$AW$651,9,FALSE),0) -> 1634 | L14: =IFERROR(VLOOKUP($A14,Filtro!$A$5:$AW$651,10,FALSE),0) -> 2000 | M14: =IFERROR(VLOOKUP($A14,Filtro!$A$5:$AW$651,11,FALSE),0) -> 944 | N14: =IFERROR(VLOOKUP($A14,Filtro!$A$5:$AW$651,12,FALSE),0) -> 63 | O14: =IFERROR(VLOOKUP($A14,Filtro!$A$5:$AW$651,13,FALSE),0) -> 0 | P14: =IFERROR(VLOOKUP($A14,Filtro!$A$5:$AW$651,14,FALSE),0) -> 0 | Q14: =IFERROR(VLOOKUP($A14,Filtro!$A$5:$AW$651,15,FALSE),0) -> 0 | R14: =IFERROR(VLOOKUP($A14,Filtro!$A$5:$AW$651,16,FALSE),0) -> 114 | S14: =IFERROR(VLOOKUP($A14,Filtro!$A$5:$AW$651,17,FALSE),0) -> 334 | T14: =IFERROR(VLOOKUP($A14,Filtro!$A$5:$AW$651,18,FALSE),0) -> 1 | CK14: 0 | CL14: 0 | CM14: 0 | CN14: 0 | CO14: 0 | CP14: 0
A15: P1010203 | C15: Inyectable Combinado | D15: 13445 | E15: =IFERROR(VLOOKUP($A15,Filtro!$A$5:$AW$651,3,FALSE),0) -> 181 | F15: =IFERROR(VLOOKUP($A15,Filtro!$A$5:$AW$651,4,FALSE),0) -> 2018 | G15: =IFERROR(VLOOKUP($A15,Filtro!$A$5:$AW$651,5,FALSE),0) -> 3176 | H15: =IFERROR(VLOOKUP($A15,Filtro!$A$5:$AW$651,6,FALSE),0) -> 2860 | I15: =IFERROR(VLOOKUP($A15,Filtro!$A$5:$AW$651,7,FALSE),0) -> 2180 | J15: =IFERROR(VLOOKUP($A15,Filtro!$A$5:$AW$651,8,FALSE),0) -> 1569 | K15: =IFERROR(VLOOKUP($A15,Filtro!$A$5:$AW$651,9,FALSE),0) -> 925 | L15: =IFERROR(VLOOKUP($A15,Filtro!$A$5:$AW$651,10,FALSE),0) -> 441 | M15: =IFERROR(VLOOKUP($A15,Filtro!$A$5:$AW$651,11,FALSE),0) -> 86 | N15: =IFERROR(VLOOKUP($A15,Filtro!$A$5:$AW$651,12,FALSE),0) -> 9 | O15: =IFERROR(VLOOKUP($A15,Filtro!$A$5:$AW$651,13,FALSE),0) -> 0 | P15: =IFERROR(VLOOKUP($A15,Filtro!$A$5:$AW$651,14,FALSE),0) -> 0 | Q15: =IFERROR(VLOOKUP($A15,Filtro!$A$5:$AW$651,15,FALSE),0) -> 0 | R15: =IFERROR(VLOOKUP($A15,Filtro!$A$5:$AW$651,16,FALSE),0) -> 226 | S15: =IFERROR(VLOOKUP($A15,Filtro!$A$5:$AW$651,17,FALSE),0) -> 612 | T15: =IFERROR(VLOOKUP($A15,Filtro!$A$5:$AW$651,18,FALSE),0) -> 5 | CK15: 0 | CL15: 0 | CM15: 0 | CN15: 0 | CO15: 0 | CP15: 0
A16: P1040508 | C16: Inyectable Progestágeno | D16: 28031 | E16: =IFERROR(VLOOKUP($A16,Filtro!$A$5:$AW$651,3,FALSE),0) -> 334 | F16: =IFERROR(VLOOKUP($A16,Filtro!$A$5:$AW$651,4,FALSE),0) -> 2674 | G16: =IFERROR(VLOOKUP($A16,Filtro!$A$5:$AW$651,5,FALSE),0) -> 4608 | H16: =IFERROR(VLOOKUP($A16,Filtro!$A$5:$AW$651,6,FALSE),0) -> 5732 | I16: =IFERROR(VLOOKUP($A16,Filtro!$A$5:$AW$651,7,FALSE),0) -> 5191 | J16: =IFERROR(VLOOKUP($A16,Filtro!$A$5:$AW$651,8,FALSE),0) -> 3804 | K16: =IFERROR(VLOOKUP($A16,Filtro!$A$5:$AW$651,9,FALSE),0) -> 2730 | L16: =IFERROR(VLOOKUP($A16,Filtro!$A$5:$AW$651,10,FALSE),0) -> 2208 | M16: =IFERROR(VLOOKUP($A16,Filtro!$A$5:$AW$651,11,FALSE),0) -> 711 | N16: =IFERROR(VLOOKUP($A16,Filtro!$A$5:$AW$651,12,FALSE),0) -> 39 | O16: =IFERROR(VLOOKUP($A16,Filtro!$A$5:$AW$651,13,FALSE),0) -> 0 | P16: =IFERROR(VLOOKUP($A16,Filtro!$A$5:$AW$651,14,FALSE),0) -> 0 | Q16: =IFERROR(VLOOKUP($A16,Filtro!$A$5:$AW$651,15,FALSE),0) -> 0 | R16: =IFERROR(VLOOKUP($A16,Filtro!$A$5:$AW$651,16,FALSE),0) -> 439 | S16: =IFERROR(VLOOKUP($A16,Filtro!$A$5:$AW$651,17,FALSE),0) -> 1564 | T16: =IFERROR(VLOOKUP($A16,Filtro!$A$5:$AW$651,18,FALSE),0) -> 12 | CK16: 0 | CL16: 0 | CM16: 0 | CN16: 0 | CO16: 0 | CP16: 0
A17: P1040500 | C17: Implante Etonogestrel (3 años) | D17: 20431 | E17: =IFERROR(VLOOKUP($A17,Filtro!$A$5:$AW$651,3,FALSE),0) -> 411 | F17: =IFERROR(VLOOKUP($A17,Filtro!$A$5:$AW$651,4,FALSE),0) -> 3828 | G17: =IFERROR(VLOOKUP($A17,Filtro!$A$5:$AW$651,5,FALSE),0) -> 4707 | H17: =IFERROR(VLOOKUP($A17,Filtro!$A$5:$AW$651,6,FALSE),0) -> 4279 | I17: =IFERROR(VLOOKUP($A17,Filtro!$A$5:$AW$651,7,FALSE),0) -> 3366 | J17: =IFERROR(VLOOKUP($A17,Filtro!$A$5:$AW$651,8,FALSE),0) -> 2037 | K17: =IFERROR(VLOOKUP($A17,Filtro!$A$5:$AW$651,9,FALSE),0) -> 1196 | L17: =IFERROR(VLOOKUP($A17,Filtro!$A$5:$AW$651,10,FALSE),0) -> 514 | M17: =IFERROR(VLOOKUP($A17,Filtro!$A$5:$AW$651,11,FALSE),0) -> 90 | N17: =IFERROR(VLOOKUP($A17,Filtro!$A$5:$AW$651,12,FALSE),0) -> 3 | O17: =IFERROR(VLOOKUP($A17,Filtro!$A$5:$AW$651,13,FALSE),0) -> 0 | P17: =IFERROR(VLOOKUP($A17,Filtro!$A$5:$AW$651,14,FALSE),0) -> 0 | Q17: =IFERROR(VLOOKUP($A17,Filtro!$A$5:$AW$651,15,FALSE),0) -> 0 | R17: =IFERROR(VLOOKUP($A17,Filtro!$A$5:$AW$651,16,FALSE),0) -> 214 | S17: =IFERROR(VLOOKUP($A17,Filtro!$A$5:$AW$651,17,FALSE),0) -> 1630 | T17: =IFERROR(VLOOKUP($A17,Filtro!$A$5:$AW$651,18,FALSE),0) -> 11 | CK17: 0 | CL17: 0 | CM17: 0 | CN17: 0 | CO17: 0 | CP17: 0
A18: P1200190 | C18: Implante Levonorgestrel (5 años) | D18: 6354 | E18: =IFERROR(VLOOKUP($A18,Filtro!$A$5:$AW$651,3,FALSE),0) -> 145 | F18: =IFERROR(VLOOKUP($A18,Filtro!$A$5:$AW$651,4,FALSE),0) -> 1186 | G18: =IFERROR(VLOOKUP($A18,Filtro!$A$5:$AW$651,5,FALSE),0) -> 1496 | H18: =IFERROR(VLOOKUP($A18,Filtro!$A$5:$AW$651,6,FALSE),0) -> 1316 | I18: =IFERROR(VLOOKUP($A18,Filtro!$A$5:$AW$651,7,FALSE),0) -> 1076 | J18: =IFERROR(VLOOKUP($A18,Filtro!$A$5:$AW$651,8,FALSE),0) -> 644 | K18: =IFERROR(VLOOKUP($A18,Filtro!$A$5:$AW$651,9,FALSE),0) -> 353 | L18: =IFERROR(VLOOKUP($A18,Filtro!$A$5:$AW$651,10,FALSE),0) -> 122 | M18: =IFERROR(VLOOKUP($A18,Filtro!$A$5:$AW$651,11,FALSE),0) -> 16 | N18: =IFERROR(VLOOKUP($A18,Filtro!$A$5:$AW$651,12,FALSE),0) -> 0 | O18: =IFERROR(VLOOKUP($A18,Filtro!$A$5:$AW$651,13,FALSE),0) -> 0 | P18: =IFERROR(VLOOKUP($A18,Filtro!$A$5:$AW$651,14,FALSE),0) -> 0 | Q18: =IFERROR(VLOOKUP($A18,Filtro!$A$5:$AW$651,15,FALSE),0) -> 0 | R18: =IFERROR(VLOOKUP($A18,Filtro!$A$5:$AW$651,16,FALSE),0) -> 77 | S18: =IFERROR(VLOOKUP($A18,Filtro!$A$5:$AW$651,17,FALSE),0) -> 695 | T18: =IFERROR(VLOOKUP($A18,Filtro!$A$5:$AW$651,18,FALSE),0) -> 5 | CK18: 0 | CL18: 0 | CM18: 0 | CN18: 0 | CO18: 0 | CP18: 0
A19: P1600105 | C19: Anillo Vaginal | D19: =SUM(E19:N19) -> 576 | E19: =IFERROR(VLOOKUP($A19,Filtro!$A$5:$AW$651,3,FALSE),0) -> 1 | F19: =IFERROR(VLOOKUP($A19,Filtro!$A$5:$AW$651,4,FALSE),0) -> 48 | G19: =IFERROR(VLOOKUP($A19,Filtro!$A$5:$AW$651,5,FALSE),0) -> 112 | H19: =IFERROR(VLOOKUP($A19,Filtro!$A$5:$AW$651,6,FALSE),0) -> 130 | I19: =IFERROR(VLOOKUP($A19,Filtro!$A$5:$AW$651,7,FALSE),0) -> 131 | J19: =IFERROR(VLOOKUP($A19,Filtro!$A$5:$AW$651,8,FALSE),0) -> 89 | K19: =IFERROR(VLOOKUP($A19,Filtro!$A$5:$AW$651,9,FALSE),0) -> 43 | L19: =IFERROR(VLOOKUP($A19,Filtro!$A$5:$AW$651,10,FALSE),0) -> 16 | M19: =IFERROR(VLOOKUP($A19,Filtro!$A$5:$AW$651,11,FALSE),0) -> 6 | N19: =IFERROR(VLOOKUP($A19,Filtro!$A$5:$AW$651,12,FALSE),0) -> 0 | O19: =IFERROR(VLOOKUP($A19,Filtro!$A$5:$AW$651,13,FALSE),0) -> 0 | P19: =IFERROR(VLOOKUP($A19,Filtro!$A$5:$AW$651,14,FALSE),0) -> 0 | Q19: =IFERROR(VLOOKUP($A19,Filtro!$A$5:$AW$651,15,FALSE),0) -> 0 | R19: =IFERROR(VLOOKUP($A19,Filtro!$A$5:$AW$651,16,FALSE),0) -> 9 | S19: =IFERROR(VLOOKUP($A19,Filtro!$A$5:$AW$651,17,FALSE),0) -> 19 | T19: =IFERROR(VLOOKUP($A19,Filtro!$A$5:$AW$651,18,FALSE),0) -> 0 | CK19: 0 | CL19: 0 | CM19: 0 | CN19: 0 | CO19: 0 | CP19: 0
A20: P1010301 | B20: SÓLO PRESERVATIVO MAC | C20: Mujer | D20: =SUM(E20:Q20) -> 3556 | E20: =IFERROR(VLOOKUP($A20,Filtro!$A$5:$AW$651,3,FALSE),0) -> 70 | F20: =IFERROR(VLOOKUP($A20,Filtro!$A$5:$AW$651,4,FALSE),0) -> 473 | G20: =IFERROR(VLOOKUP($A20,Filtro!$A$5:$AW$651,5,FALSE),0) -> 410 | H20: =IFERROR(VLOOKUP($A20,Filtro!$A$5:$AW$651,6,FALSE),0) -> 514 | I20: =IFERROR(VLOOKUP($A20,Filtro!$A$5:$AW$651,7,FALSE),0) -> 562 | J20: =IFERROR(VLOOKUP($A20,Filtro!$A$5:$AW$651,8,FALSE),0) -> 475 | K20: =IFERROR(VLOOKUP($A20,Filtro!$A$5:$AW$651,9,FALSE),0) -> 479 | L20: =IFERROR(VLOOKUP($A20,Filtro!$A$5:$AW$651,10,FALSE),0) -> 295 | M20: =IFERROR(VLOOKUP($A20,Filtro!$A$5:$AW$651,11,FALSE),0) -> 209 | N20: =IFERROR(VLOOKUP($A20,Filtro!$A$5:$AW$651,12,FALSE),0) -> 69 | O20: =IFERROR(VLOOKUP($A20,Filtro!$A$5:$AW$651,13,FALSE),0) -> 0 | P20: =IFERROR(VLOOKUP($A20,Filtro!$A$5:$AW$651,14,FALSE),0) -> 0 | Q20: =IFERROR(VLOOKUP($A20,Filtro!$A$5:$AW$651,15,FALSE),0) -> 0 | R20: =IFERROR(VLOOKUP($A20,Filtro!$A$5:$AW$651,16,FALSE),0) -> 57 | S20: =IFERROR(VLOOKUP($A20,Filtro!$A$5:$AW$651,17,FALSE),0) -> 200 | T20: =IFERROR(VLOOKUP($A20,Filtro!$A$5:$AW$651,18,FALSE),0) -> 4 | CK20: 0 | CL20: 0 | CM20: 0 | CN20: 0 | CO20: 0 | CP20: 0
A21: P1010302 | C21: Hombres | D21: =SUM(E21:Q21) -> 1449 | E21: =IFERROR(VLOOKUP($A21,Filtro!$A$5:$AW$651,3,FALSE),0) -> 101 | F21: =IFERROR(VLOOKUP($A21,Filtro!$A$5:$AW$651,4,FALSE),0) -> 663 | G21: =IFERROR(VLOOKUP($A21,Filtro!$A$5:$AW$651,5,FALSE),0) -> 178 | H21: =IFERROR(VLOOKUP($A21,Filtro!$A$5:$AW$651,6,FALSE),0) -> 150 | I21: =IFERROR(VLOOKUP($A21,Filtro!$A$5:$AW$651,7,FALSE),0) -> 123 | J21: =IFERROR(VLOOKUP($A21,Filtro!$A$5:$AW$651,8,FALSE),0) -> 71 | K21: =IFERROR(VLOOKUP($A21,Filtro!$A$5:$AW$651,9,FALSE),0) -> 79 | L21: =IFERROR(VLOOKUP($A21,Filtro!$A$5:$AW$651,10,FALSE),0) -> 39 | M21: =IFERROR(VLOOKUP($A21,Filtro!$A$5:$AW$651,11,FALSE),0) -> 20 | N21: =IFERROR(VLOOKUP($A21,Filtro!$A$5:$AW$651,12,FALSE),0) -> 25 | O21: =IFERROR(VLOOKUP($A21,Filtro!$A$5:$AW$651,13,FALSE),0) -> 0 | P21: =IFERROR(VLOOKUP($A21,Filtro!$A$5:$AW$651,14,FALSE),0) -> 0 | Q21: =IFERROR(VLOOKUP($A21,Filtro!$A$5:$AW$651,15,FALSE),0) -> 0 | R21: =IFERROR(VLOOKUP($A21,Filtro!$A$5:$AW$651,16,FALSE),0) -> 5 | S21: =IFERROR(VLOOKUP($A21,Filtro!$A$5:$AW$651,17,FALSE),0) -> 80 | T21: =IFERROR(VLOOKUP($A21,Filtro!$A$5:$AW$651,18,FALSE),0) -> 6 | CK21: 0 | CL21: 0 | CM21: 0 | CN21: 0 | CO21: 0 | CP21: 0
A22: P1200240 | B22: ESTERILIZACIÓN QUIRURGICA | C22: Mujer | D22: =SUM(E22:N22) -> 5920 | E22: =IFERROR(VLOOKUP($A22,Filtro!$A$5:$AW$651,3,FALSE),0) -> 0 | F22: =IFERROR(VLOOKUP($A22,Filtro!$A$5:$AW$651,4,FALSE),0) -> 0 | G22: =IFERROR(VLOOKUP($A22,Filtro!$A$5:$AW$651,5,FALSE),0) -> 36 | H22: =IFERROR(VLOOKUP($A22,Filtro!$A$5:$AW$651,6,FALSE),0) -> 278 | I22: =IFERROR(VLOOKUP($A22,Filtro!$A$5:$AW$651,7,FALSE),0) -> 762 | J22: =IFERROR(VLOOKUP($A22,Filtro!$A$5:$AW$651,8,FALSE),0) -> 1301 | K22: =IFERROR(VLOOKUP($A22,Filtro!$A$5:$AW$651,9,FALSE),0) -> 1442 | L22: =IFERROR(VLOOKUP($A22,Filtro!$A$5:$AW$651,10,FALSE),0) -> 1118 | M22: =IFERROR(VLOOKUP($A22,Filtro!$A$5:$AW$651,11,FALSE),0) -> 626 | N22: =IFERROR(VLOOKUP($A22,Filtro!$A$5:$AW$651,12,FALSE),0) -> 357 | O22: =IFERROR(VLOOKUP($A22,Filtro!$A$5:$AW$651,13,FALSE),0) -> 0 | P22: =IFERROR(VLOOKUP($A22,Filtro!$A$5:$AW$651,14,FALSE),0) -> 0 | Q22: =IFERROR(VLOOKUP($A22,Filtro!$A$5:$AW$651,15,FALSE),0) -> 0 | R22: =IFERROR(VLOOKUP($A22,Filtro!$A$5:$AW$651,16,FALSE),0) -> 103 | S22: =IFERROR(VLOOKUP($A22,Filtro!$A$5:$AW$651,17,FALSE),0) -> 292 | T22: =IFERROR(VLOOKUP($A22,Filtro!$A$5:$AW$651,18,FALSE),0) -> 12 | CK22: 0 | CL22: 0 | CM22: 0 | CN22: 0 | CO22: 0 | CP22: 0
A23: P1200250 | C23: Hombres | D23: =SUM(E23:N23) -> 171 | E23: =IFERROR(VLOOKUP($A23,Filtro!$A$5:$AW$651,3,FALSE),0) -> 0 | F23: =IFERROR(VLOOKUP($A23,Filtro!$A$5:$AW$651,4,FALSE),0) -> 0 | G23: =IFERROR(VLOOKUP($A23,Filtro!$A$5:$AW$651,5,FALSE),0) -> 0 | H23: =IFERROR(VLOOKUP($A23,Filtro!$A$5:$AW$651,6,FALSE),0) -> 7 | I23: =IFERROR(VLOOKUP($A23,Filtro!$A$5:$AW$651,7,FALSE),0) -> 27 | J23: =IFERROR(VLOOKUP($A23,Filtro!$A$5:$AW$651,8,FALSE),0) -> 48 | K23: =IFERROR(VLOOKUP($A23,Filtro!$A$5:$AW$651,9,FALSE),0) -> 53 | L23: =IFERROR(VLOOKUP($A23,Filtro!$A$5:$AW$651,10,FALSE),0) -> 23 | M23: =IFERROR(VLOOKUP($A23,Filtro!$A$5:$AW$651,11,FALSE),0) -> 13 | N23: =IFERROR(VLOOKUP($A23,Filtro!$A$5:$AW$651,12,FALSE),0) -> 0 | O23: =IFERROR(VLOOKUP($A23,Filtro!$A$5:$AW$651,13,FALSE),0) -> 0 | P23: =IFERROR(VLOOKUP($A23,Filtro!$A$5:$AW$651,14,FALSE),0) -> 0 | Q23: =IFERROR(VLOOKUP($A23,Filtro!$A$5:$AW$651,15,FALSE),0) -> 0 | R23: =IFERROR(VLOOKUP($A23,Filtro!$A$5:$AW$651,16,FALSE),0) -> 0 | S23: =IFERROR(VLOOKUP($A23,Filtro!$A$5:$AW$651,17,FALSE),0) -> 9 | T23: =IFERROR(VLOOKUP($A23,Filtro!$A$5:$AW$651,18,FALSE),0) -> 0 | CK23: 0 | CL23: 0 | CM23: 0 | CN23: 0 | CO23: 0 | CP23: 0
B24: TOTAL | D24: =SUM(E24:Q24) -> 134332 | E24: =SUM(E11:E23) -> 1908 | F24: =SUM(F11:F23) -> 15886 | G24: =SUM(G11:G23) -> 22109 | H24: =SUM(H11:H23) -> 24088 | I24: 23031 | J24: 18357 | K24: 14011 | L24: 10045 | M24: 4071 | N24: 826 | R24: =SUM(R11:R23) -> 1826 | S24: 6934 | T24: 77
A25: P1060010 | B25: Mujeres en control con enfermedad cardiovascular (DM-HTA) | D25: =SUM(E25:Q25) -> 6645 | E25: =IFERROR(VLOOKUP($A25,Filtro!$A$5:$AW$651,3,FALSE),0) -> 0 | F25: =IFERROR(VLOOKUP($A25,Filtro!$A$5:$AW$651,4,FALSE),0) -> 36 | G25: =IFERROR(VLOOKUP($A25,Filtro!$A$5:$AW$651,5,FALSE),0) -> 178 | H25: =IFERROR(VLOOKUP($A25,Filtro!$A$5:$AW$651,6,FALSE),0) -> 388 | I25: =IFERROR(VLOOKUP($A25,Filtro!$A$5:$AW$651,7,FALSE),0) -> 625 | J25: =IFERROR(VLOOKUP($A25,Filtro!$A$5:$AW$651,8,FALSE),0) -> 1019 | K25: =IFERROR(VLOOKUP($A25,Filtro!$A$5:$AW$651,9,FALSE),0) -> 1407 | L25: =IFERROR(VLOOKUP($A25,Filtro!$A$5:$AW$651,10,FALSE),0) -> 1675 | M25: =IFERROR(VLOOKUP($A25,Filtro!$A$5:$AW$651,11,FALSE),0) -> 1036 | N25: =IFERROR(VLOOKUP($A25,Filtro!$A$5:$AW$651,12,FALSE),0) -> 281 | O25: =IFERROR(VLOOKUP($A25,Filtro!$A$5:$AW$651,13,FALSE),0) -> 0 | P25: =IFERROR(VLOOKUP($A25,Filtro!$A$5:$AW$651,14,FALSE),0) -> 0 | Q25: =IFERROR(VLOOKUP($A25,Filtro!$A$5:$AW$651,15,FALSE),0) -> 0 | R25: =IFERROR(VLOOKUP($A25,Filtro!$A$5:$AW$651,16,FALSE),0) -> 69 | S25: =IFERROR(VLOOKUP($A25,Filtro!$A$5:$AW$651,17,FALSE),0) -> 112 | T25: =IFERROR(VLOOKUP($A25,Filtro!$A$5:$AW$651,18,FALSE),0) -> 1 | CB25: =IF($R25>$D25,"* La celda Pueblos Originarios debe ser menor o igual al Total de Métodos. ","") ->  | CK25: =IF($R25>$D25,1,0) -> 0 | CL25: =IF($S25>$D25,1,0) -> 0 | CM25: =IF($T25>$D25,1,0) -> 0 | CN25: =IF(AND($D25<>0,$R25=""),1,0) -> 0 | CO25: =IF(AND($D25<>0,$S25=""),1,0) -> 0 | CP25: =IF(AND($D25<>0,$T25=""),1,0) -> 0
A26: P1600106 | B26: Mujeres con Retiro de Implante Anticipado en el semestre (antes de los 3 años) | C26: En APS | D26: =SUM(E26:N26) -> 416 | E26: =IFERROR(VLOOKUP($A26,Filtro!$A$5:$AW$651,3,FALSE),0) -> 5 | F26: =IFERROR(VLOOKUP($A26,Filtro!$A$5:$AW$651,4,FALSE),0) -> 72 | G26: =IFERROR(VLOOKUP($A26,Filtro!$A$5:$AW$651,5,FALSE),0) -> 115 | H26: =IFERROR(VLOOKUP($A26,Filtro!$A$5:$AW$651,6,FALSE),0) -> 96 | I26: =IFERROR(VLOOKUP($A26,Filtro!$A$5:$AW$651,7,FALSE),0) -> 74 | J26: =IFERROR(VLOOKUP($A26,Filtro!$A$5:$AW$651,8,FALSE),0) -> 29 | K26: =IFERROR(VLOOKUP($A26,Filtro!$A$5:$AW$651,9,FALSE),0) -> 19 | L26: =IFERROR(VLOOKUP($A26,Filtro!$A$5:$AW$651,10,FALSE),0) -> 6 | M26: =IFERROR(VLOOKUP($A26,Filtro!$A$5:$AW$651,11,FALSE),0) -> 0 | N26: =IFERROR(VLOOKUP($A26,Filtro!$A$5:$AW$651,12,FALSE),0) -> 0 | O26: =IFERROR(VLOOKUP($A26,Filtro!$A$5:$AW$651,13,FALSE),0) -> 0 | P26: =IFERROR(VLOOKUP($A26,Filtro!$A$5:$AW$651,14,FALSE),0) -> 0 | Q26: =IFERROR(VLOOKUP($A26,Filtro!$A$5:$AW$651,15,FALSE),0) -> 0 | R26: =IFERROR(VLOOKUP($A26,Filtro!$A$5:$AW$651,16,FALSE),0) -> 1 | S26: =IFERROR(VLOOKUP($A26,Filtro!$A$5:$AW$651,17,FALSE),0) -> 21 | T26: =IFERROR(VLOOKUP($A26,Filtro!$A$5:$AW$651,18,FALSE),0) -> 0 | CK26: 0 | CL26: 0 | CM26: 0 | CN26: 0 | CO26: 0 | CP26: 0
A27: P1600107 | C27: En Extrasistema | D27: =SUM(E27:N27) -> 14 | E27: =IFERROR(VLOOKUP($A27,Filtro!$A$5:$AW$651,3,FALSE),0) -> 0 | F27: =IFERROR(VLOOKUP($A27,Filtro!$A$5:$AW$651,4,FALSE),0) -> 2 | G27: =IFERROR(VLOOKUP($A27,Filtro!$A$5:$AW$651,5,FALSE),0) -> 4 | H27: =IFERROR(VLOOKUP($A27,Filtro!$A$5:$AW$651,6,FALSE),0) -> 5 | I27: =IFERROR(VLOOKUP($A27,Filtro!$A$5:$AW$651,7,FALSE),0) -> 1 | J27: =IFERROR(VLOOKUP($A27,Filtro!$A$5:$AW$651,8,FALSE),0) -> 2 | K27: =IFERROR(VLOOKUP($A27,Filtro!$A$5:$AW$651,9,FALSE),0) -> 0 | L27: =IFERROR(VLOOKUP($A27,Filtro!$A$5:$AW$651,10,FALSE),0) -> 0 | M27: =IFERROR(VLOOKUP($A27,Filtro!$A$5:$AW$651,11,FALSE),0) -> 0 | N27: =IFERROR(VLOOKUP($A27,Filtro!$A$5:$AW$651,12,FALSE),0) -> 0 | O27: =IFERROR(VLOOKUP($A27,Filtro!$A$5:$AW$651,13,FALSE),0) -> 0 | P27: =IFERROR(VLOOKUP($A27,Filtro!$A$5:$AW$651,14,FALSE),0) -> 0 | Q27: =IFERROR(VLOOKUP($A27,Filtro!$A$5:$AW$651,15,FALSE),0) -> 0 | R27: =IFERROR(VLOOKUP($A27,Filtro!$A$5:$AW$651,16,FALSE),0) -> 0 | S27: =IFERROR(VLOOKUP($A27,Filtro!$A$5:$AW$651,17,FALSE),0) -> 2 | T27: =IFERROR(VLOOKUP($A27,Filtro!$A$5:$AW$651,18,FALSE),0) -> 0
A28: P1600108 | B28: Mujeres con Retiro de Implante Anticipado en el semestre (antes de los 5 años) | C28: En APS | D28: 191 | E28: =IFERROR(VLOOKUP($A28,Filtro!$A$5:$AW$651,3,FALSE),0) -> 4 | F28: =IFERROR(VLOOKUP($A28,Filtro!$A$5:$AW$651,4,FALSE),0) -> 31 | G28: =IFERROR(VLOOKUP($A28,Filtro!$A$5:$AW$651,5,FALSE),0) -> 53 | H28: =IFERROR(VLOOKUP($A28,Filtro!$A$5:$AW$651,6,FALSE),0) -> 39 | I28: =IFERROR(VLOOKUP($A28,Filtro!$A$5:$AW$651,7,FALSE),0) -> 34 | J28: =IFERROR(VLOOKUP($A28,Filtro!$A$5:$AW$651,8,FALSE),0) -> 18 | K28: =IFERROR(VLOOKUP($A28,Filtro!$A$5:$AW$651,9,FALSE),0) -> 7 | L28: =IFERROR(VLOOKUP($A28,Filtro!$A$5:$AW$651,10,FALSE),0) -> 5 | M28: =IFERROR(VLOOKUP($A28,Filtro!$A$5:$AW$651,11,FALSE),0) -> 0 | N28: =IFERROR(VLOOKUP($A28,Filtro!$A$5:$AW$651,12,FALSE),0) -> 0 | O28: =IFERROR(VLOOKUP($A28,Filtro!$A$5:$AW$651,13,FALSE),0) -> 0 | P28: =IFERROR(VLOOKUP($A28,Filtro!$A$5:$AW$651,14,FALSE),0) -> 0 | Q28: =IFERROR(VLOOKUP($A28,Filtro!$A$5:$AW$651,15,FALSE),0) -> 0 | R28: =IFERROR(VLOOKUP($A28,Filtro!$A$5:$AW$651,16,FALSE),0) -> 0 | S28: =IFERROR(VLOOKUP($A28,Filtro!$A$5:$AW$651,17,FALSE),0) -> 15 | T28: =IFERROR(VLOOKUP($A28,Filtro!$A$5:$AW$651,18,FALSE),0) -> 2
A29: P1600109 | C29: En Extrasistema | D29: 8 | E29: =IFERROR(VLOOKUP($A29,Filtro!$A$5:$AW$651,3,FALSE),0) -> 0 | F29: =IFERROR(VLOOKUP($A29,Filtro!$A$5:$AW$651,4,FALSE),0) -> 0 | G29: =IFERROR(VLOOKUP($A29,Filtro!$A$5:$AW$651,5,FALSE),0) -> 3 | H29: =IFERROR(VLOOKUP($A29,Filtro!$A$5:$AW$651,6,FALSE),0) -> 2 | I29: =IFERROR(VLOOKUP($A29,Filtro!$A$5:$AW$651,7,FALSE),0) -> 2 | J29: =IFERROR(VLOOKUP($A29,Filtro!$A$5:$AW$651,8,FALSE),0) -> 1 | K29: =IFERROR(VLOOKUP($A29,Filtro!$A$5:$AW$651,9,FALSE),0) -> 0 | L29: =IFERROR(VLOOKUP($A29,Filtro!$A$5:$AW$651,10,FALSE),0) -> 0 | M29: =IFERROR(VLOOKUP($A29,Filtro!$A$5:$AW$651,11,FALSE),0) -> 0 | N29: =IFERROR(VLOOKUP($A29,Filtro!$A$5:$AW$651,12,FALSE),0) -> 0 | O29: =IFERROR(VLOOKUP($A29,Filtro!$A$5:$AW$651,13,FALSE),0) -> 0 | P29: =IFERROR(VLOOKUP($A29,Filtro!$A$5:$AW$651,14,FALSE),0) -> 0 | Q29: =IFERROR(VLOOKUP($A29,Filtro!$A$5:$AW$651,15,FALSE),0) -> 0 | R29: =IFERROR(VLOOKUP($A29,Filtro!$A$5:$AW$651,16,FALSE),0) -> 0 | S29: =IFERROR(VLOOKUP($A29,Filtro!$A$5:$AW$651,17,FALSE),0) -> 3 | T29: =IFERROR(VLOOKUP($A29,Filtro!$A$5:$AW$651,18,FALSE),0) -> 0 | CK29: 0 | CL29: 0 | CM29: 0 | CN29: 0 | CO29: 0 | CP29: 0
A30: P1060090 | B30: Método de Regulación de Fertilidad más Preservativo | D30: =SUM(E30:Q30) -> 11206 | E30: =IFERROR(VLOOKUP($A30,Filtro!$A$5:$AW$651,3,FALSE),0) -> 325 | F30: =IFERROR(VLOOKUP($A30,Filtro!$A$5:$AW$651,4,FALSE),0) -> 2847 | G30: =IFERROR(VLOOKUP($A30,Filtro!$A$5:$AW$651,5,FALSE),0) -> 2529 | H30: =IFERROR(VLOOKUP($A30,Filtro!$A$5:$AW$651,6,FALSE),0) -> 1864 | I30: =IFERROR(VLOOKUP($A30,Filtro!$A$5:$AW$651,7,FALSE),0) -> 1491 | J30: =IFERROR(VLOOKUP($A30,Filtro!$A$5:$AW$651,8,FALSE),0) -> 1015 | K30: =IFERROR(VLOOKUP($A30,Filtro!$A$5:$AW$651,9,FALSE),0) -> 608 | L30: =IFERROR(VLOOKUP($A30,Filtro!$A$5:$AW$651,10,FALSE),0) -> 370 | M30: =IFERROR(VLOOKUP($A30,Filtro!$A$5:$AW$651,11,FALSE),0) -> 146 | N30: =IFERROR(VLOOKUP($A30,Filtro!$A$5:$AW$651,12,FALSE),0) -> 11 | O30: =IFERROR(VLOOKUP($A30,Filtro!$A$5:$AW$651,13,FALSE),0) -> 0 | P30: =IFERROR(VLOOKUP($A30,Filtro!$A$5:$AW$651,14,FALSE),0) -> 0 | Q30: =IFERROR(VLOOKUP($A30,Filtro!$A$5:$AW$651,15,FALSE),0) -> 0 | R30: =IFERROR(VLOOKUP($A30,Filtro!$A$5:$AW$651,16,FALSE),0) -> 145 | S30: =IFERROR(VLOOKUP($A30,Filtro!$A$5:$AW$651,17,FALSE),0) -> 521 | T30: =IFERROR(VLOOKUP($A30,Filtro!$A$5:$AW$651,18,FALSE),0) -> 6 | CK30: 0 | CL30: 0 | CM30: 0 | CN30: 0 | CO30: 0 | CP30: 0
A31: P1200270 | B31: Gestantes que reciben preservativo | D31: =SUM(E31:N31) -> 606 | E31: =IFERROR(VLOOKUP($A31,Filtro!$A$5:$AW$651,3,FALSE),0) -> 6 | F31: =IFERROR(VLOOKUP($A31,Filtro!$A$5:$AW$651,4,FALSE),0) -> 64 | G31: =IFERROR(VLOOKUP($A31,Filtro!$A$5:$AW$651,5,FALSE),0) -> 154 | H31: =IFERROR(VLOOKUP($A31,Filtro!$A$5:$AW$651,6,FALSE),0) -> 167 | I31: =IFERROR(VLOOKUP($A31,Filtro!$A$5:$AW$651,7,FALSE),0) -> 103 | J31: =IFERROR(VLOOKUP($A31,Filtro!$A$5:$AW$651,8,FALSE),0) -> 77 | K31: =IFERROR(VLOOKUP($A31,Filtro!$A$5:$AW$651,9,FALSE),0) -> 28 | L31: =IFERROR(VLOOKUP($A31,Filtro!$A$5:$AW$651,10,FALSE),0) -> 7 | M31: =IFERROR(VLOOKUP($A31,Filtro!$A$5:$AW$651,11,FALSE),0) -> 0 | N31: =IFERROR(VLOOKUP($A31,Filtro!$A$5:$AW$651,12,FALSE),0) -> 0 | O31: =IFERROR(VLOOKUP($A31,Filtro!$A$5:$AW$651,13,FALSE),0) -> 0 | P31: =IFERROR(VLOOKUP($A31,Filtro!$A$5:$AW$651,14,FALSE),0) -> 0 | Q31: =IFERROR(VLOOKUP($A31,Filtro!$A$5:$AW$651,15,FALSE),0) -> 0 | R31: =IFERROR(VLOOKUP($A31,Filtro!$A$5:$AW$651,16,FALSE),0) -> 25 | S31: =IFERROR(VLOOKUP($A31,Filtro!$A$5:$AW$651,17,FALSE),0) -> 28 | T31: =IFERROR(VLOOKUP($A31,Filtro!$A$5:$AW$651,18,FALSE),0) -> 0 | CK31: 0 | CL31: 0 | CM31: 0 | CN31: 0 | CO31: 0 | CP31: 0
A32: P1200200 | B32: PRESERVATIVO/PRACTICA SEXUAL SEGURA | C32: Mujer | D32: =SUM(E32:Q32) -> 1869 | E32: =IFERROR(VLOOKUP($A32,Filtro!$A$5:$AW$651,3,FALSE),0) -> 37 | F32: =IFERROR(VLOOKUP($A32,Filtro!$A$5:$AW$651,4,FALSE),0) -> 397 | G32: =IFERROR(VLOOKUP($A32,Filtro!$A$5:$AW$651,5,FALSE),0) -> 357 | H32: =IFERROR(VLOOKUP($A32,Filtro!$A$5:$AW$651,6,FALSE),0) -> 362 | I32: =IFERROR(VLOOKUP($A32,Filtro!$A$5:$AW$651,7,FALSE),0) -> 273 | J32: =IFERROR(VLOOKUP($A32,Filtro!$A$5:$AW$651,8,FALSE),0) -> 160 | K32: =IFERROR(VLOOKUP($A32,Filtro!$A$5:$AW$651,9,FALSE),0) -> 117 | L32: =IFERROR(VLOOKUP($A32,Filtro!$A$5:$AW$651,10,FALSE),0) -> 68 | M32: =IFERROR(VLOOKUP($A32,Filtro!$A$5:$AW$651,11,FALSE),0) -> 63 | N32: =IFERROR(VLOOKUP($A32,Filtro!$A$5:$AW$651,12,FALSE),0) -> 26 | O32: =IFERROR(VLOOKUP($A32,Filtro!$A$5:$AW$651,13,FALSE),0) -> 4 | P32: =IFERROR(VLOOKUP($A32,Filtro!$A$5:$AW$651,14,FALSE),0) -> 3 | Q32: =IFERROR(VLOOKUP($A32,Filtro!$A$5:$AW$651,15,FALSE),0) -> 2 | R32: =IFERROR(VLOOKUP($A32,Filtro!$A$5:$AW$651,16,FALSE),0) -> 48 | S32: =IFERROR(VLOOKUP($A32,Filtro!$A$5:$AW$651,17,FALSE),0) -> 117 | T32: =IFERROR(VLOOKUP($A32,Filtro!$A$5:$AW$651,18,FALSE),0) -> 7 | CK32: 0 | CL32: 0 | CM32: 0 | CN32: 0 | CO32: 0 | CP32: 0
A33: P1200210 | C33: Hombres | D33: =SUM(E33:Q33) -> 142 | E33: =IFERROR(VLOOKUP($A33,Filtro!$A$5:$AW$651,3,FALSE),0) -> 11 | F33: =IFERROR(VLOOKUP($A33,Filtro!$A$5:$AW$651,4,FALSE),0) -> 59 | G33: =IFERROR(VLOOKUP($A33,Filtro!$A$5:$AW$651,5,FALSE),0) -> 13 | H33: =IFERROR(VLOOKUP($A33,Filtro!$A$5:$AW$651,6,FALSE),0) -> 21 | I33: =IFERROR(VLOOKUP($A33,Filtro!$A$5:$AW$651,7,FALSE),0) -> 10 | J33: =IFERROR(VLOOKUP($A33,Filtro!$A$5:$AW$651,8,FALSE),0) -> 6 | K33: =IFERROR(VLOOKUP($A33,Filtro!$A$5:$AW$651,9,FALSE),0) -> 3 | L33: =IFERROR(VLOOKUP($A33,Filtro!$A$5:$AW$651,10,FALSE),0) -> 4 | M33: =IFERROR(VLOOKUP($A33,Filtro!$A$5:$AW$651,11,FALSE),0) -> 5 | N33: =IFERROR(VLOOKUP($A33,Filtro!$A$5:$AW$651,12,FALSE),0) -> 5 | O33: =IFERROR(VLOOKUP($A33,Filtro!$A$5:$AW$651,13,FALSE),0) -> 3 | P33: =IFERROR(VLOOKUP($A33,Filtro!$A$5:$AW$651,14,FALSE),0) -> 2 | Q33: =IFERROR(VLOOKUP($A33,Filtro!$A$5:$AW$651,15,FALSE),0) -> 0 | R33: =IFERROR(VLOOKUP($A33,Filtro!$A$5:$AW$651,16,FALSE),0) -> 0 | S33: =IFERROR(VLOOKUP($A33,Filtro!$A$5:$AW$651,17,FALSE),0) -> 3 | T33: =IFERROR(VLOOKUP($A33,Filtro!$A$5:$AW$651,18,FALSE),0) -> 0 | CK33: 0 | CL33: 0 | CM33: 0 | CN33: 0 | CO33: 0 | CP33: 0
A34: P1200220 | B34: LUBRICANTES | C34: Mujer | D34: =SUM(E34:Q34) -> 2893 | E34: =IFERROR(VLOOKUP($A34,Filtro!$A$5:$AW$651,3,FALSE),0) -> 12 | F34: =IFERROR(VLOOKUP($A34,Filtro!$A$5:$AW$651,4,FALSE),0) -> 98 | G34: =IFERROR(VLOOKUP($A34,Filtro!$A$5:$AW$651,5,FALSE),0) -> 190 | H34: =IFERROR(VLOOKUP($A34,Filtro!$A$5:$AW$651,6,FALSE),0) -> 210 | I34: =IFERROR(VLOOKUP($A34,Filtro!$A$5:$AW$651,7,FALSE),0) -> 214 | J34: =IFERROR(VLOOKUP($A34,Filtro!$A$5:$AW$651,8,FALSE),0) -> 172 | K34: =IFERROR(VLOOKUP($A34,Filtro!$A$5:$AW$651,9,FALSE),0) -> 235 | L34: =IFERROR(VLOOKUP($A34,Filtro!$A$5:$AW$651,10,FALSE),0) -> 399 | M34: =IFERROR(VLOOKUP($A34,Filtro!$A$5:$AW$651,11,FALSE),0) -> 506 | N34: =IFERROR(VLOOKUP($A34,Filtro!$A$5:$AW$651,12,FALSE),0) -> 405 | O34: =IFERROR(VLOOKUP($A34,Filtro!$A$5:$AW$651,13,FALSE),0) -> 254 | P34: =IFERROR(VLOOKUP($A34,Filtro!$A$5:$AW$651,14,FALSE),0) -> 106 | Q34: =IFERROR(VLOOKUP($A34,Filtro!$A$5:$AW$651,15,FALSE),0) -> 92 | R34: =IFERROR(VLOOKUP($A34,Filtro!$A$5:$AW$651,16,FALSE),0) -> 21 | S34: =IFERROR(VLOOKUP($A34,Filtro!$A$5:$AW$651,17,FALSE),0) -> 80 | T34: =IFERROR(VLOOKUP($A34,Filtro!$A$5:$AW$651,18,FALSE),0) -> 2 | CK34: 0 | CL34: 0 | CM34: 0 | CN34: 0 | CO34: 0 | CP34: 0
A35: P1200230 | C35: Hombres | D35: =SUM(E35:Q35) -> 74 | E35: =IFERROR(VLOOKUP($A35,Filtro!$A$5:$AW$651,3,FALSE),0) -> 1 | F35: =IFERROR(VLOOKUP($A35,Filtro!$A$5:$AW$651,4,FALSE),0) -> 9 | G35: =IFERROR(VLOOKUP($A35,Filtro!$A$5:$AW$651,5,FALSE),0) -> 5 | H35: =IFERROR(VLOOKUP($A35,Filtro!$A$5:$AW$651,6,FALSE),0) -> 6 | I35: =IFERROR(VLOOKUP($A35,Filtro!$A$5:$AW$651,7,FALSE),0) -> 2 | J35: =IFERROR(VLOOKUP($A35,Filtro!$A$5:$AW$651,8,FALSE),0) -> 5 | K35: =IFERROR(VLOOKUP($A35,Filtro!$A$5:$AW$651,9,FALSE),0) -> 7 | L35: =IFERROR(VLOOKUP($A35,Filtro!$A$5:$AW$651,10,FALSE),0) -> 6 | M35: =IFERROR(VLOOKUP($A35,Filtro!$A$5:$AW$651,11,FALSE),0) -> 11 | N35: =IFERROR(VLOOKUP($A35,Filtro!$A$5:$AW$651,12,FALSE),0) -> 18 | O35: =IFERROR(VLOOKUP($A35,Filtro!$A$5:$AW$651,13,FALSE),0) -> 4 | P35: =IFERROR(VLOOKUP($A35,Filtro!$A$5:$AW$651,14,FALSE),0) -> 0 | Q35: =IFERROR(VLOOKUP($A35,Filtro!$A$5:$AW$651,15,FALSE),0) -> 0 | R35: =IFERROR(VLOOKUP($A35,Filtro!$A$5:$AW$651,16,FALSE),0) -> 0 | S35: =IFERROR(VLOOKUP($A35,Filtro!$A$5:$AW$651,17,FALSE),0) -> 1 | T35: =IFERROR(VLOOKUP($A35,Filtro!$A$5:$AW$651,18,FALSE),0) -> 0 | CK35: 0 | CL35: 0 | CM35: 0 | CN35: 0 | CO35: 0 | CP35: 0
A36: P1200350 | B36: CONDON FEMENINO | D36: =SUM(E36:Q36) -> 808 | E36: =IFERROR(VLOOKUP($A36,Filtro!$A$5:$AW$651,3,FALSE),0) -> 17 | F36: =IFERROR(VLOOKUP($A36,Filtro!$A$5:$AW$651,4,FALSE),0) -> 132 | G36: =IFERROR(VLOOKUP($A36,Filtro!$A$5:$AW$651,5,FALSE),0) -> 116 | H36: =IFERROR(VLOOKUP($A36,Filtro!$A$5:$AW$651,6,FALSE),0) -> 129 | I36: =IFERROR(VLOOKUP($A36,Filtro!$A$5:$AW$651,7,FALSE),0) -> 131 | J36: =IFERROR(VLOOKUP($A36,Filtro!$A$5:$AW$651,8,FALSE),0) -> 110 | K36: =IFERROR(VLOOKUP($A36,Filtro!$A$5:$AW$651,9,FALSE),0) -> 57 | L36: =IFERROR(VLOOKUP($A36,Filtro!$A$5:$AW$651,10,FALSE),0) -> 87 | M36: =IFERROR(VLOOKUP($A36,Filtro!$A$5:$AW$651,11,FALSE),0) -> 17 | N36: =IFERROR(VLOOKUP($A36,Filtro!$A$5:$AW$651,12,FALSE),0) -> 10 | O36: =IFERROR(VLOOKUP($A36,Filtro!$A$5:$AW$651,13,FALSE),0) -> 0 | P36: =IFERROR(VLOOKUP($A36,Filtro!$A$5:$AW$651,14,FALSE),0) -> 2 | Q36: =IFERROR(VLOOKUP($A36,Filtro!$A$5:$AW$651,15,FALSE),0) -> 0 | R36: =IFERROR(VLOOKUP($A36,Filtro!$A$5:$AW$651,16,FALSE),0) -> 2 | S36: =IFERROR(VLOOKUP($A36,Filtro!$A$5:$AW$651,17,FALSE),0) -> 17 | T36: =IFERROR(VLOOKUP($A36,Filtro!$A$5:$AW$651,18,FALSE),0) -> 0 | CK36: 0 | CL36: 0 | CM36: 0 | CN36: 0 | CO36: 0 | CP36: 0
B37: SECCION B: GESTANTES EN CONTROL CON EVALUACIÓN RIESGO BIOPSICOSOCIAL
B38: GRUPOS DE EDAD | C38: TOTAL DE GESTANTES EN CONTROL | D38: EN RIESGO PSICO- SOCIAL | E38: QUE PRESENTAN VIOLENCIA DE GÉNERO | F38: GESTANTES QUE PRESENTAN ARO | G38: MIGRANTES
A40: P1020100 | B40: Menos de 15 años | C40: =IFERROR(VLOOKUP($A40,Filtro!$A$5:$AW$651,2,FALSE),0) -> 12 | D40: =IFERROR(VLOOKUP($A40,Filtro!$A$5:$AW$651,3,FALSE),0) -> 12 | E40: =IFERROR(VLOOKUP($A40,Filtro!$A$5:$AW$651,4,FALSE),0) -> 2 | F40: =IFERROR(VLOOKUP($A40,Filtro!$A$5:$AW$651,5,FALSE),0) -> 10 | G40: =IFERROR(VLOOKUP($A40,Filtro!$A$5:$AW$651,6,FALSE),0) -> 2 | H40: =($CB40&$CC40&$CD40&$CE40&$CF40&$CG40) ->  | CB40: =IF($D40<$E40,"* Las Gestantes Menores de 15 años con violencia de género deben estar incluidas en las Gestantes con riesgo psicosocial. ","") ->  | CC40: =IF($C40<$D40,"* Las Gestantes Menores de 15 años con Riesgo Psicosocial deben estar incluidas en el Total de Gestantes en Control misma edad. ","") ->  | CD40: =IF($C40<$F40,"* Las Gestantes Menores de 15 años que presentan ARO deben estar incluidas en el Total de Gestantes en Control misma edad. ","") ->  | CE40: =IF($C40<$G40,"* Las Gestantes que pertenecen a 'Población Migrantes' no debe ser mayor al Total de Gestantes en Control misma edad. ","") ->  | CF40: =IF(AND(C40<>0,G40=""),"* No olvide escribir en la celda de 'Población Migrantes' (Digite CERO si no tiene). ","") ->  | CK40: =IF($D40<$E40,1,0) -> 0 | CL40: =IF($C40<$D40,1,0) -> 0 | CM40: =IF($C40<$F40,1,0) -> 0 | CN40: =IF($C40<$G40,1,0) -> 0 | CO40: =IF(AND(C40<>0,G40=""),1,0) -> 0
A41: P1020200 | B41: 15 a 19 años | C41: =IFERROR(VLOOKUP($A41,Filtro!$A$5:$AW$651,2,FALSE),0) -> 351 | D41: =IFERROR(VLOOKUP($A41,Filtro!$A$5:$AW$651,3,FALSE),0) -> 181 | E41: =IFERROR(VLOOKUP($A41,Filtro!$A$5:$AW$651,4,FALSE),0) -> 10 | F41: =IFERROR(VLOOKUP($A41,Filtro!$A$5:$AW$651,5,FALSE),0) -> 125 | G41: =IFERROR(VLOOKUP($A41,Filtro!$A$5:$AW$651,6,FALSE),0) -> 56 | H41: =($CB41&$CC41&$CD41&$CE41&$CF41&$CG41) ->  | CB41: =IF($D41<$E41,"* Las Gestantes de 15 a 19 años con violencia de género deben estar incluidas en las Gestantes con riesgo psicosocial. ","") ->  | CC41: =IF($C41<$D41,"* Las Gestantes de 15 a 19 años con Riesgo Psicosocial deben estar incluidas en el Total de Gestantes en Control misma edad. ","") ->  | CD41: =IF($C41<$F41,"* Las Gestantes de 15 a 19 años que presentan ARO deben estar incluidas en el Total de Gestantes en Control misma edad. ","") ->  | CE41: =IF($C41<$G41,"* Las Gestantes que pertenecen a 'Población Migrantes' no debe ser mayor al Total de Gestantes en Control misma edad. ","") ->  | CK41: =IF($D41<$E41,1,0) -> 0 | CL41: =IF($C41<$D41,1,0) -> 0 | CM41: =IF($C41<$F41,1,0) -> 0 | CN41: =IF($C41<$G41,1,0) -> 0 | CO41: 0
A42: P1040501 | B42: 20 a 24 años | C42: =IFERROR(VLOOKUP($A42,Filtro!$A$5:$AW$651,2,FALSE),0) -> 1469 | D42: =IFERROR(VLOOKUP($A42,Filtro!$A$5:$AW$651,3,FALSE),0) -> 390 | E42: =IFERROR(VLOOKUP($A42,Filtro!$A$5:$AW$651,4,FALSE),0) -> 28 | F42: =IFERROR(VLOOKUP($A42,Filtro!$A$5:$AW$651,5,FALSE),0) -> 412 | G42: =IFERROR(VLOOKUP($A42,Filtro!$A$5:$AW$651,6,FALSE),0) -> 202 | CB42: =IF($D42<$E42,"* Las Gestantes de 20 a 24 años con violencia de género deben estar incluidas en las Gestantes con riesgo psicosocial. ","") ->  | CC42: =IF($C42<$D42,"* Las Gestantes de 20 a 24 años con Riesgo Psicosocial deben estar incluidas en el Total de Gestantes en Control misma edad. ","") ->  | CD42: =IF($C42<$F42,"* Las Gestantes de 20 a 24 años que presentan ARO deben estar incluidas en el Total de Gestantes en Control misma edad. ","") ->  | CK42: 0 | CL42: 0 | CM42: 0 | CN42: 0 | CO42: 0
A43: P1060100 | B43: 25 a 29 años | C43: =IFERROR(VLOOKUP($A43,Filtro!$A$5:$AW$651,2,FALSE),0) -> 1938 | D43: =IFERROR(VLOOKUP($A43,Filtro!$A$5:$AW$651,3,FALSE),0) -> 434 | E43: =IFERROR(VLOOKUP($A43,Filtro!$A$5:$AW$651,4,FALSE),0) -> 35 | F43: =IFERROR(VLOOKUP($A43,Filtro!$A$5:$AW$651,5,FALSE),0) -> 702 | G43: =IFERROR(VLOOKUP($A43,Filtro!$A$5:$AW$651,6,FALSE),0) -> 239 | CB43: =IF($D43<$E43,"* Las Gestantes de 25 a 29 años con violencia de género deben estar incluidas en las Gestantes con riesgo psicosocial. ","") ->  | CC43: =IF($C43<$D43,"* Las Gestantes de 25 a 29 años con Riesgo Psicosocial deben estar incluidas en el Total de Gestantes en Control misma edad. ","") ->  | CD43: =IF($C43<$F43,"* Las Gestantes de 25 a 29 años que presentan ARO deben estar incluidas en el Total de Gestantes en Control misma edad. ","") ->  | CK43: 0 | CL43: 0 | CM43: 0 | CN43: 0 | CO43: 0
A44: P1060101 | B44: 30 a 34 años | C44: =IFERROR(VLOOKUP($A44,Filtro!$A$5:$AW$651,2,FALSE),0) -> 1700 | D44: =IFERROR(VLOOKUP($A44,Filtro!$A$5:$AW$651,3,FALSE),0) -> 331 | E44: =IFERROR(VLOOKUP($A44,Filtro!$A$5:$AW$651,4,FALSE),0) -> 26 | F44: =IFERROR(VLOOKUP($A44,Filtro!$A$5:$AW$651,5,FALSE),0) -> 730 | G44: =IFERROR(VLOOKUP($A44,Filtro!$A$5:$AW$651,6,FALSE),0) -> 187 | CB44: =IF($D44<$E44,"* Las Gestantes de 30 a 34 años con violencia de género deben estar incluidas en las Gestantes con riesgo psicosocial. ","") ->  | CC44: =IF($C44<$D44,"* Las Gestantes de 30 a 34 años con Riesgo Psicosocial deben estar incluidas en el Total de Gestantes en Control misma edad. ","") ->  | CD44: =IF($C44<$F44,"* Las Gestantes de 30 a 34 años que presentan ARO deben estar incluidas en el Total de Gestantes en Control misma edad. ","") ->  | CK44: 0 | CL44: 0 | CM44: 0 | CN44: 0 | CO44: 0
A45: P1060102 | B45: 35 a 39 años | C45: =IFERROR(VLOOKUP($A45,Filtro!$A$5:$AW$651,2,FALSE),0) -> 875 | D45: =IFERROR(VLOOKUP($A45,Filtro!$A$5:$AW$651,3,FALSE),0) -> 172 | E45: =IFERROR(VLOOKUP($A45,Filtro!$A$5:$AW$651,4,FALSE),0) -> 14 | F45: =IFERROR(VLOOKUP($A45,Filtro!$A$5:$AW$651,5,FALSE),0) -> 440 | G45: =IFERROR(VLOOKUP($A45,Filtro!$A$5:$AW$651,6,FALSE),0) -> 107 | CB45: =IF($D45<$E45,"* Las Gestantes de 35 a 39 años con violencia de género deben estar incluidas en las Gestantes con riesgo psicosocial. ","") ->  | CC45: =IF($C45<$D45,"* Las Gestantes de 35 a 39 años con Riesgo Psicosocial deben estar incluidas en el Total de Gestantes en Control misma edad. ","") ->  | CD45: =IF($C45<$F45,"* Las Gestantes de 35 a 39 años que presentan ARO deben estar incluidas en el Total de Gestantes en Control misma edad. ","") ->  | CK45: 0 | CL45: 0 | CM45: 0 | CN45: 0 | CO45: 0
A46: P1060103 | B46: 40 a 44 años | C46: =IFERROR(VLOOKUP($A46,Filtro!$A$5:$AW$651,2,FALSE),0) -> 213 | D46: =IFERROR(VLOOKUP($A46,Filtro!$A$5:$AW$651,3,FALSE),0) -> 56 | E46: =IFERROR(VLOOKUP($A46,Filtro!$A$5:$AW$651,4,FALSE),0) -> 4 | F46: =IFERROR(VLOOKUP($A46,Filtro!$A$5:$AW$651,5,FALSE),0) -> 150 | G46: =IFERROR(VLOOKUP($A46,Filtro!$A$5:$AW$651,6,FALSE),0) -> 22 | CB46: =IF($D46<$E46,"* Las Gestantes de 40 a 44 años con violencia de género deben estar incluidas en las Gestantes con riesgo psicosocial. ","") ->  | CC46: =IF($C46<$D46,"* Las Gestantes de 40 a 44 años con Riesgo Psicosocial deben estar incluidas en el Total de Gestantes en Control misma edad. ","") ->  | CD46: =IF($C46<$F46,"* Las Gestantes de 40 a 44 años que presentan ARO deben estar incluidas en el Total de Gestantes en Control misma edad. ","") ->  | CK46: 0 | CL46: 0 | CM46: 0 | CN46: 0 | CO46: 0
A47: P1060104 | B47: 45 a 49 años | C47: =IFERROR(VLOOKUP($A47,Filtro!$A$5:$AW$651,2,FALSE),0) -> 9 | D47: =IFERROR(VLOOKUP($A47,Filtro!$A$5:$AW$651,3,FALSE),0) -> 1 | E47: =IFERROR(VLOOKUP($A47,Filtro!$A$5:$AW$651,4,FALSE),0) -> 0 | F47: =IFERROR(VLOOKUP($A47,Filtro!$A$5:$AW$651,5,FALSE),0) -> 6 | G47: =IFERROR(VLOOKUP($A47,Filtro!$A$5:$AW$651,6,FALSE),0) -> 0 | CB47: =IF($D47<$E47,"* Las Gestantes de 45 a 49 años con violencia de género deben estar incluidas en las Gestantes con riesgo psicosocial. ","") ->  | CC47: =IF($C47<$D47,"* Las Gestantes de 45 a 49 años con Riesgo Psicosocial deben estar incluidas en el Total de Gestantes en Control misma edad. ","") ->  | CD47: =IF($C47<$F47,"* Las Gestantes de 45 a 49 años que presentan ARO deben estar incluidas en el Total de Gestantes en Control misma edad. ","") ->  | CK47: 0 | CL47: 0 | CM47: 0 | CN47: 0 | CO47: 0
A48: P1060105 | B48: 50 a 54 años | C48: =IFERROR(VLOOKUP($A48,Filtro!$A$5:$AW$651,2,FALSE),0) -> 0 | D48: =IFERROR(VLOOKUP($A48,Filtro!$A$5:$AW$651,3,FALSE),0) -> 0 | E48: =IFERROR(VLOOKUP($A48,Filtro!$A$5:$AW$651,4,FALSE),0) -> 0 | F48: =IFERROR(VLOOKUP($A48,Filtro!$A$5:$AW$651,5,FALSE),0) -> 0 | G48: =IFERROR(VLOOKUP($A48,Filtro!$A$5:$AW$651,6,FALSE),0) -> 0 | CB48: =IF($D48<$E48,"* Las Gestantes de 50 a 54 años con violencia de género deben estar incluidas en las Gestantes con riesgo psicosocial. ","") ->  | CC48: =IF($C48<$D48,"* Las Gestantes de 50 a 54 años con Riesgo Psicosocial deben estar incluidas en el Total de Gestantes en Control misma edad. ","") ->  | CD48: =IF($C48<$F48,"* Las Gestantes de 50 a 54 años que presentan ARO deben estar incluidas en el Total de Gestantes en Control misma edad. ","") ->  | CK48: 0 | CL48: 0 | CM48: 0 | CN48: 0 | CO48: 0
B49: TOTAL | C49: =SUM(C40:C48) -> 6567 | D49: =SUM(D40:D48) -> 1577 | E49: =SUM(E40:E48) -> 119 | F49: =SUM(F40:F48) -> 2575 | G49: =SUM(G40:G48) -> 815
B50: SECCION C: GESTANTES EN RIESGO PSICOSOCIAL CON VISITA DOMICILIARIA INTEGRAL REALIZADA EN EL SEMESTRE
B51: N° VDI | C51: N° Gestantes con VDI | D51: TOTAL de Visitas
A53: P1040502 | B53: 1 Visita | C53: =IFERROR(VLOOKUP($A53,Filtro!$A$5:$AW$651,2,FALSE),0) -> 669 | D53: =C53*1 -> 669 | E53: =($CB53&$CC53&$CD53&$CE53&$CF53&$CG53&$CH53&$CI53&$CJ53) ->  | CB53: =IF($D$53<>$C$53*1,"* NO ALTERE LAS FÓRMULAS, el Total de Visitas equivale a 1 visita por gestante. ","") ->  | CK53: =IF($D$53<>$C$53*1,1,0) -> 0
A54: P1040503 | B54: 2 Visitas | C54: =IFERROR(VLOOKUP($A54,Filtro!$A$5:$AW$651,2,FALSE),0) -> 220 | D54: =C54*2 -> 440 | E54: =($CB54&$CC54&$CD54&$CE54&$CF54&$CG54&$CH54&$CI54&$CJ54) ->  | CB54: =IF($D$54<>$C$54*2,"* NO ALTERE LAS FÓRMULAS, el Total de Visitas equivale a 2 visitas por gestante. ","") ->  | CK54: =IF($D$54<>$C$54*2,1,0) -> 0
A55: P1040504 | B55: 3 Visitas | C55: =IFERROR(VLOOKUP($A55,Filtro!$A$5:$AW$651,2,FALSE),0) -> 130 | D55: =C55*3 -> 390 | E55: =($CB55&$CC55&$CD55&$CE55&$CF55&$CG55&$CH55&$CI55&$CJ55) ->  | CB55: =IF($D$55<>$C$55*3,"* NO ALTERE LAS FÓRMULAS, el Total de Visitas equivale a 3 visitas por gestante. ","") ->  | CK55: =IF($D$55<>$C$55*3,1,0) -> 0
A56: P1040505 | B56: 4 y más Visitas | C56: =IFERROR(VLOOKUP($A56,Filtro!$A$5:$AW$651,2,FALSE),0) -> 80 | D56: =IFERROR(VLOOKUP($A56,Filtro!$A$5:$AW$651,3,FALSE),0) -> 211 | E56: =($CB56&$CC56&$CD56&$CE56&$CF56&$CG56&$CH56&$CI56&$CJ56) -> 
B57: TOTAL | C57: =SUM(C53:C56) -> 1099 | D57: =SUM(D53:D56) -> 1710
B58: SECCION D: GESTANTES Y MUJERES DE 8° MES POST-PARTO EN CONTROL, SEGÚN ESTADO NUTRICIONAL
B59: POBLACION | C59: ESTADO NUTRICIONAL | D59: TOTAL | E59: GRUPOS DE EDAD (en años)
E60: Menos 15 años | F60: 15 a 19 años | G60: 20 a 24 años | H60: 25 a 29 años | I60: 30 a 34 años | J60: 35 a 39 años | K60: 40 a 44 años | L60: 45 a 49 años | M60: 50 a 54 años
A61: P1030101 | B61: GESTANTES EN CONTROL (Información a la fecha de corte) | C61: OBESA | D61: =SUM(E61:M61) -> 2571 | E61: =IFERROR(VLOOKUP($A61,Filtro!$A$5:$AW$651,3,FALSE),0) -> 2 | F61: =IFERROR(VLOOKUP($A61,Filtro!$A$5:$AW$651,4,FALSE),0) -> 81 | G61: =IFERROR(VLOOKUP($A61,Filtro!$A$5:$AW$651,5,FALSE),0) -> 517 | H61: =IFERROR(VLOOKUP($A61,Filtro!$A$5:$AW$651,6,FALSE),0) -> 745 | I61: =IFERROR(VLOOKUP($A61,Filtro!$A$5:$AW$651,7,FALSE),0) -> 728 | J61: =IFERROR(VLOOKUP($A61,Filtro!$A$5:$AW$651,8,FALSE),0) -> 398 | K61: =IFERROR(VLOOKUP($A61,Filtro!$A$5:$AW$651,9,FALSE),0) -> 95 | L61: =IFERROR(VLOOKUP($A61,Filtro!$A$5:$AW$651,10,FALSE),0) -> 5 | M61: =IFERROR(VLOOKUP($A61,Filtro!$A$5:$AW$651,11,FALSE),0) -> 0
A62: P1030102 | C62: SOBREPESO | D62: =SUM(E62:M62) -> 2178 | E62: =IFERROR(VLOOKUP($A62,Filtro!$A$5:$AW$651,3,FALSE),0) -> 2 | F62: =IFERROR(VLOOKUP($A62,Filtro!$A$5:$AW$651,4,FALSE),0) -> 97 | G62: =IFERROR(VLOOKUP($A62,Filtro!$A$5:$AW$651,5,FALSE),0) -> 450 | H62: =IFERROR(VLOOKUP($A62,Filtro!$A$5:$AW$651,6,FALSE),0) -> 674 | I62: =IFERROR(VLOOKUP($A62,Filtro!$A$5:$AW$651,7,FALSE),0) -> 577 | J62: =IFERROR(VLOOKUP($A62,Filtro!$A$5:$AW$651,8,FALSE),0) -> 296 | K62: =IFERROR(VLOOKUP($A62,Filtro!$A$5:$AW$651,9,FALSE),0) -> 79 | L62: =IFERROR(VLOOKUP($A62,Filtro!$A$5:$AW$651,10,FALSE),0) -> 3 | M62: =IFERROR(VLOOKUP($A62,Filtro!$A$5:$AW$651,11,FALSE),0) -> 0
A63: P1030103 | C63: NORMAL | D63: =SUM(E63:M63) -> 1655 | E63: =IFERROR(VLOOKUP($A63,Filtro!$A$5:$AW$651,3,FALSE),0) -> 5 | F63: =IFERROR(VLOOKUP($A63,Filtro!$A$5:$AW$651,4,FALSE),0) -> 140 | G63: =IFERROR(VLOOKUP($A63,Filtro!$A$5:$AW$651,5,FALSE),0) -> 458 | H63: =IFERROR(VLOOKUP($A63,Filtro!$A$5:$AW$651,6,FALSE),0) -> 477 | I63: =IFERROR(VLOOKUP($A63,Filtro!$A$5:$AW$651,7,FALSE),0) -> 365 | J63: =IFERROR(VLOOKUP($A63,Filtro!$A$5:$AW$651,8,FALSE),0) -> 171 | K63: =IFERROR(VLOOKUP($A63,Filtro!$A$5:$AW$651,9,FALSE),0) -> 38 | L63: =IFERROR(VLOOKUP($A63,Filtro!$A$5:$AW$651,10,FALSE),0) -> 1 | M63: =IFERROR(VLOOKUP($A63,Filtro!$A$5:$AW$651,11,FALSE),0) -> 0
A64: P1030104 | C64: BAJO PESO | D64: =SUM(E64:M64) -> 161 | E64: 0 | F64: =IFERROR(VLOOKUP($A64,Filtro!$A$5:$AW$651,4,FALSE),0) -> 33 | G64: =IFERROR(VLOOKUP($A64,Filtro!$A$5:$AW$651,5,FALSE),0) -> 44 | H64: =IFERROR(VLOOKUP($A64,Filtro!$A$5:$AW$651,6,FALSE),0) -> 42 | I64: =IFERROR(VLOOKUP($A64,Filtro!$A$5:$AW$651,7,FALSE),0) -> 30 | J64: =IFERROR(VLOOKUP($A64,Filtro!$A$5:$AW$651,8,FALSE),0) -> 11 | K64: =IFERROR(VLOOKUP($A64,Filtro!$A$5:$AW$651,9,FALSE),0) -> 1 | L64: =IFERROR(VLOOKUP($A64,Filtro!$A$5:$AW$651,10,FALSE),0) -> 0 | M64: =IFERROR(VLOOKUP($A64,Filtro!$A$5:$AW$651,11,FALSE),0) -> 0
C65: TOTAL | D65: =SUM(E65:M65) -> 6565 | E65: =SUM(E61:E64) -> 9 | F65: =SUM(F61:F64) -> 351 | G65: 1469 | H65: 1938 | I65: 1700 | J65: 876 | K65: 213 | L65: 9 | M65: 0 | N65: =CB65 & CC65 & CD65 & CE65 & CF65 & CG65 & CH65 &CI65&CJ65 -> * Las Gestantes Menores de 15 años, según Estado Nutricional debe ser igual al Total de gestantes en Control de esa edad en Sección B. * Las gestantes 35-39 años, según Estado Nutricional debe ser igual al Total de gestantes en Control de esa edad en Sección B. | CB65: =IF($C$40<>$E65,"* Las Gestantes Menores de 15 años, según Estado Nutricional debe ser igual al Total de gestantes en Control de esa edad en Sección B. ","") -> * Las Gestantes Menores de 15 años, según Estado Nutricional debe ser igual al Total de gestantes en Control de esa edad en Sección B. | CC65: =IF($C$41<>$F65,"* Las gestantes 15-19 años, según Estado Nutricional debe ser igual al Total de gestantes en Control de esa edad en Sección B. ","") ->  | CD65: =IF($C$42<>$G65,"* Las gestantes20-24 años, según Estado Nutricional debe ser igual al Total de gestantes en Control de esa edad en Sección B. ","") ->  | CE65: =IF($C$43<>$H65,"* Las gestantes 25-29 años, según Estado Nutricional debe ser igual al Total de gestantes en Control de esa edad en Sección B. ","") ->  | CF65: =IF($C$44<>$I65,"* Las gestantes30-34 años, según Estado Nutricional debe ser igual al Total de gestantes en Control de esa edad en Sección B. ","") ->  | CG65: =IF($C$45<>$J65,"* Las gestantes 35-39 años, según Estado Nutricional debe ser igual al Total de gestantes en Control de esa edad en Sección B. ","") -> * Las gestantes 35-39 años, según Estado Nutricional debe ser igual al Total de gestantes en Control de esa edad en Sección B. | CH65: =IF($C$46<>$K65,"* Las gestantes 40-44 años, según Estado Nutricional debe ser igual al Total de gestantes en Control de esa edad en Sección B. ","") ->  | CI65: =IF($C$47<>$L65,"* Las gestantes 45-49 años, según Estado Nutricional debe ser igual al Total de gestantes en Control de esa edad en Sección B. ","") ->  | CJ65: =IF($C$48<>$M65,"* Las gestantes 50-54 años, según Estado Nutricional debe ser igual al Total de gestantes en Control de esa edad en Sección B. ","") ->  | CK65: =IF($C$40<>$E65,1,0) -> 1 | CL65: =IF($C$41<>$F65,1,0) -> 0 | CM65: =IF($C$42<>$G65,1,0) -> 0 | CN65: =IF($C$43<>$H65,1,0) -> 0 | CO65: =IF($C$44<>$I65,1,0) -> 0 | CP65: =IF($C$45<>$J65,1,0) -> 1 | CQ65: =IF($C$46<>$K65,1,0) -> 0 | CR65: =IF($C$47<>$L65,1,0) -> 0 | CS65: =IF($C$48<>$M65,1,0) -> 0
A66: P1030201 | B66: CONTROL AL 8º MES POST-PARTO (Información del semestre) | C66: OBESA | D66: =SUM(E66:M66) -> 427 | E66: =IFERROR(VLOOKUP($A66,Filtro!$A$5:$AW$651,3,FALSE),0) -> 2 | F66: =IFERROR(VLOOKUP($A66,Filtro!$A$5:$AW$651,4,FALSE),0) -> 23 | G66: =IFERROR(VLOOKUP($A66,Filtro!$A$5:$AW$651,5,FALSE),0) -> 88 | H66: =IFERROR(VLOOKUP($A66,Filtro!$A$5:$AW$651,6,FALSE),0) -> 113 | I66: =IFERROR(VLOOKUP($A66,Filtro!$A$5:$AW$651,7,FALSE),0) -> 118 | J66: =IFERROR(VLOOKUP($A66,Filtro!$A$5:$AW$651,8,FALSE),0) -> 69 | K66: =IFERROR(VLOOKUP($A66,Filtro!$A$5:$AW$651,9,FALSE),0) -> 14 | L66: =IFERROR(VLOOKUP($A66,Filtro!$A$5:$AW$651,10,FALSE),0) -> 0 | M66: =IFERROR(VLOOKUP($A66,Filtro!$A$5:$AW$651,11,FALSE),0) -> 0
A67: P1030202 | C67: SOBREPESO | D67: 367 | E67: =IFERROR(VLOOKUP($A67,Filtro!$A$5:$AW$651,3,FALSE),0) -> 1 | F67: =IFERROR(VLOOKUP($A67,Filtro!$A$5:$AW$651,4,FALSE),0) -> 16 | G67: =IFERROR(VLOOKUP($A67,Filtro!$A$5:$AW$651,5,FALSE),0) -> 86 | H67: =IFERROR(VLOOKUP($A67,Filtro!$A$5:$AW$651,6,FALSE),0) -> 109 | I67: =IFERROR(VLOOKUP($A67,Filtro!$A$5:$AW$651,7,FALSE),0) -> 104 | J67: =IFERROR(VLOOKUP($A67,Filtro!$A$5:$AW$651,8,FALSE),0) -> 35 | K67: =IFERROR(VLOOKUP($A67,Filtro!$A$5:$AW$651,9,FALSE),0) -> 14 | L67: =IFERROR(VLOOKUP($A67,Filtro!$A$5:$AW$651,10,FALSE),0) -> 2 | M67: =IFERROR(VLOOKUP($A67,Filtro!$A$5:$AW$651,11,FALSE),0) -> 0
A68: P1030203 | C68: NORMAL | D68: 266 | E68: =IFERROR(VLOOKUP($A68,Filtro!$A$5:$AW$651,3,FALSE),0) -> 1 | F68: =IFERROR(VLOOKUP($A68,Filtro!$A$5:$AW$651,4,FALSE),0) -> 30 | G68: =IFERROR(VLOOKUP($A68,Filtro!$A$5:$AW$651,5,FALSE),0) -> 74 | H68: =IFERROR(VLOOKUP($A68,Filtro!$A$5:$AW$651,6,FALSE),0) -> 94 | I68: =IFERROR(VLOOKUP($A68,Filtro!$A$5:$AW$651,7,FALSE),0) -> 54 | J68: =IFERROR(VLOOKUP($A68,Filtro!$A$5:$AW$651,8,FALSE),0) -> 9 | K68: =IFERROR(VLOOKUP($A68,Filtro!$A$5:$AW$651,9,FALSE),0) -> 3 | L68: =IFERROR(VLOOKUP($A68,Filtro!$A$5:$AW$651,10,FALSE),0) -> 1 | M68: =IFERROR(VLOOKUP($A68,Filtro!$A$5:$AW$651,11,FALSE),0) -> 0
A69: P1030204 | C69: BAJO PESO | D69: 12 | E69: =IFERROR(VLOOKUP($A69,Filtro!$A$5:$AW$651,3,FALSE),0) -> 0 | F69: =IFERROR(VLOOKUP($A69,Filtro!$A$5:$AW$651,4,FALSE),0) -> 5 | G69: =IFERROR(VLOOKUP($A69,Filtro!$A$5:$AW$651,5,FALSE),0) -> 1 | H69: =IFERROR(VLOOKUP($A69,Filtro!$A$5:$AW$651,6,FALSE),0) -> 3 | I69: =IFERROR(VLOOKUP($A69,Filtro!$A$5:$AW$651,7,FALSE),0) -> 2 | J69: =IFERROR(VLOOKUP($A69,Filtro!$A$5:$AW$651,8,FALSE),0) -> 1 | K69: =IFERROR(VLOOKUP($A69,Filtro!$A$5:$AW$651,9,FALSE),0) -> 0 | L69: =IFERROR(VLOOKUP($A69,Filtro!$A$5:$AW$651,10,FALSE),0) -> 0 | M69: =IFERROR(VLOOKUP($A69,Filtro!$A$5:$AW$651,11,FALSE),0) -> 0
C70: TOTAL | D70: =SUM(E70:M70) -> 1072 | E70: =SUM(E66:E69) -> 4 | F70: =SUM(F66:F69) -> 74 | G70: =SUM(G66:G69) -> 249 | H70: =SUM(H66:H69) -> 319 | I70: 278 | J70: 114 | K70: =SUM(K66:K69) -> 31 | L70: 3 | M70: 0
B71: SECCION E: MUJERES Y GESTANTES EN CONTROL CON CONSULTA NUTRICIONAL
B72: MUJERES | C72: TOTAL
A73: P1050100 | B73: Gestantes con malnutrición por déficit (bajo peso) | C73: =IFERROR(VLOOKUP($A73,Filtro!$A$5:$AW$651,2,FALSE),0) -> 57 | CB73: =IF($C$73<=$D$64,"","* Gestantes malnutricion no debe ser mayor que Gestantes en Control Bajo Peso (Seccion D). ") ->  | CK73: =IF($C$73<=$D$64,0,1) -> 0
A74: P1050101 | B74: Gestantes con malnutrición por exceso - Obesa | C74: =IFERROR(VLOOKUP($A74,Filtro!$A$5:$AW$651,2,FALSE),0) -> 1354 | CB74: =IF($C$74<=$D$61,"","* Gestantes malnutricion por exceso - Obesa no debe ser mayor que Gestantes en Control Obesa (Seccion D). ") ->  | CK74: =IF($C$74<=$D$61,0,1) -> 0
A75: P1050102 | B75: Gestantes con malnutrición por exceso - Sobrepeso | C75: =IFERROR(VLOOKUP($A75,Filtro!$A$5:$AW$651,2,FALSE),0) -> 1135 | CB75: =IF($C$75<=$D$62,"","* Gestantes malnutricion por exceso - Sobrepeso no debe ser mayor que Gestantes en Control Sobrepeso (Seccion D). ") ->  | CK75: =IF($C$75<=$D$62,0,1) -> 0
A76: P1050103 | B76: En 3º mes post parto | C76: =IFERROR(VLOOKUP($A76,Filtro!$A$5:$AW$651,2,FALSE),0) -> 131
A77: P1050104 | B77: En 6º mes post parto | C77: =IFERROR(VLOOKUP($A77,Filtro!$A$5:$AW$651,2,FALSE),0) -> 329
B78: SECCION F: MUJERES EN CONTROL DE CLIMATERIO
B79: Población | C79: 45 a 64 años
A80: P1030301 | B80: Población en Control | C80: =IFERROR(VLOOKUP($A80,Filtro!$A$5:$AW$651,2,FALSE),0) -> 7464
A81: P1060040 | B81: Mujeres con pauta aplicada MRS* | C81: =IFERROR(VLOOKUP($A81,Filtro!$A$5:$AW$651,2,FALSE),0) -> 5334 | CB81: =IF($C81>$C80,"* El Nº de mujeres con pauta aplicada MRS* no debe ser mayor a la población de mujeres en control de climaterio. ","") ->  | CK81: =IF($C81>$C80,1,0) -> 0
A82: P1060050 | B82: Mujeres con MRS elevado* | C82: =IFERROR(VLOOKUP($A82,Filtro!$A$5:$AW$651,2,FALSE),0) -> 2407 | CB82: =IF($C82>$C81,"* El Nº de Mujeres con MRS elevado* no debe ser mayor al Nº de Mujeres con pauta aplicada MRS*. ","") ->  | CK82: =IF($C82>$C81,1,0) -> 0
A83: P1060060 | B83: Mujeres con aplicación de terapia hormonal de la menopausia según MRS* | C83: =IFERROR(VLOOKUP($A83,Filtro!$A$5:$AW$651,2,FALSE),0) -> 1122 | CB83: =IF($C83>$C82,"* El Nº de Mujeres con aplicación de terapia hormonal de la menopausia según MRS* no debe ser mayor que el numero de Mujeres con MRS elevado*. ","") ->  | CK83: =IF($C83>$C82,1,0) -> 0
A84: P1200340 | B84: Mujeres que asisten a Talleres Educativos | C84: =IFERROR(VLOOKUP($A84,Filtro!$A$5:$AW$651,2,FALSE),0) -> 95
B85: * MRS: Menopause Rating Scale
B86: SECCION F.1: POBLACIÓN EN CONTROL CLIMATERIO SEGÚN TIPO TERAPIA REEMPLAZO HORMONAL
B87: MÉTODOS | D87: TOTAL | E87: GRUPO DE EDAD (en años) | J87: Pueblos Originarios | K87: Migrantes
E88: Menor de 45 años | F88: 45 a 49 años | G88: 50 a 54 años | H88: 55 a 60 años | I88: 60 a 64 años
A89: P1200280 | B89: Estradiol Micronizado 1mg | D89: =SUM(E89:I89) -> 142 | E89: =IFERROR(VLOOKUP($A89,Filtro!$A$5:$AW$651,3,FALSE),0) -> 7 | F89: =IFERROR(VLOOKUP($A89,Filtro!$A$5:$AW$651,4,FALSE),0) -> 40 | G89: =IFERROR(VLOOKUP($A89,Filtro!$A$5:$AW$651,5,FALSE),0) -> 54 | H89: =IFERROR(VLOOKUP($A89,Filtro!$A$5:$AW$651,6,FALSE),0) -> 30 | I89: =IFERROR(VLOOKUP($A89,Filtro!$A$5:$AW$651,7,FALSE),0) -> 11 | J89: =IFERROR(VLOOKUP($A89,Filtro!$A$5:$AW$651,8,FALSE),0) -> 0 | K89: =IFERROR(VLOOKUP($A89,Filtro!$A$5:$AW$651,9,FALSE),0) -> 4 | L89: =($CB89&$CC89&$CD89&$CE89&$CF89&$CG89&$CH89&$CI89&$CJ89) ->  | CB89: =IF($J89>$D89,"* La celda 'Pueblos Originarios' debe ser menor o igual al Total en control. ","") ->  | CC89: =IF($K89>$D89,"* La celda 'Población Migrantes' debe ser menor o igual al Total en control. ","") ->  | CD89: =IF(AND($D89<>0,$J89=""),"* No olvide escribir en la celda de 'Pueblos Originarios' (Digite CERO si no tiene). ","") ->  | CE89: =IF(AND($D89<>0,$K89=""),"* No olvide escribir en la celda de 'Población Migrantes' (Digite CERO si no tiene). ","") ->  | CK89: =IF($J89>$D89,1,0) -> 0 | CL89: =IF($K89>$D89,1,0) -> 0 | CM89: =IF(AND($D89<>0,$J89=""),1,0) -> 0 | CN89: =IF(AND($D89<>0,$K89=""),1,0) -> 0
A90: P1200290 | B90: Estradiol Gel | D90: =SUM(E90:I90) -> 282 | E90: =IFERROR(VLOOKUP($A90,Filtro!$A$5:$AW$651,3,FALSE),0) -> 6 | F90: =IFERROR(VLOOKUP($A90,Filtro!$A$5:$AW$651,4,FALSE),0) -> 42 | G90: =IFERROR(VLOOKUP($A90,Filtro!$A$5:$AW$651,5,FALSE),0) -> 114 | H90: =IFERROR(VLOOKUP($A90,Filtro!$A$5:$AW$651,6,FALSE),0) -> 87 | I90: =IFERROR(VLOOKUP($A90,Filtro!$A$5:$AW$651,7,FALSE),0) -> 33 | J90: =IFERROR(VLOOKUP($A90,Filtro!$A$5:$AW$651,8,FALSE),0) -> 4 | K90: =IFERROR(VLOOKUP($A90,Filtro!$A$5:$AW$651,9,FALSE),0) -> 9 | L90: =($CB90&$CC90&$CD90&$CE90&$CF90&$CG90&$CH90&$CI90&$CJ90) ->  | CK90: 0 | CL90: 0 | CM90: 0 | CN90: 0
A91: P1200300 | B91: Progesterona Micronizada 100mg | D91: 68 | E91: =IFERROR(VLOOKUP($A91,Filtro!$A$5:$AW$651,3,FALSE),0) -> 1 | F91: =IFERROR(VLOOKUP($A91,Filtro!$A$5:$AW$651,4,FALSE),0) -> 4 | G91: =IFERROR(VLOOKUP($A91,Filtro!$A$5:$AW$651,5,FALSE),0) -> 30 | H91: =IFERROR(VLOOKUP($A91,Filtro!$A$5:$AW$651,6,FALSE),0) -> 25 | I91: =IFERROR(VLOOKUP($A91,Filtro!$A$5:$AW$651,7,FALSE),0) -> 8 | J91: =IFERROR(VLOOKUP($A91,Filtro!$A$5:$AW$651,8,FALSE),0) -> 0 | K91: =IFERROR(VLOOKUP($A91,Filtro!$A$5:$AW$651,9,FALSE),0) -> 3 | CK91: 0 | CL91: 0 | CM91: 0 | CN91: 0
A92: P1200310 | B92: Progesterona Micronizada 200mg | D92: 102 | E92: =IFERROR(VLOOKUP($A92,Filtro!$A$5:$AW$651,3,FALSE),0) -> 38 | F92: =IFERROR(VLOOKUP($A92,Filtro!$A$5:$AW$651,4,FALSE),0) -> 12 | G92: =IFERROR(VLOOKUP($A92,Filtro!$A$5:$AW$651,5,FALSE),0) -> 30 | H92: =IFERROR(VLOOKUP($A92,Filtro!$A$5:$AW$651,6,FALSE),0) -> 18 | I92: =IFERROR(VLOOKUP($A92,Filtro!$A$5:$AW$651,7,FALSE),0) -> 4 | J92: =IFERROR(VLOOKUP($A92,Filtro!$A$5:$AW$651,8,FALSE),0) -> 0 | K92: =IFERROR(VLOOKUP($A92,Filtro!$A$5:$AW$651,9,FALSE),0) -> 0 | CK92: 0 | CL92: 0 | CM92: 0 | CN92: 0
A93: P1200320 | B93: Nomegestrol 5mg comp. | D93: 32 | E93: =IFERROR(VLOOKUP($A93,Filtro!$A$5:$AW$651,3,FALSE),0) -> 0 | F93: =IFERROR(VLOOKUP($A93,Filtro!$A$5:$AW$651,4,FALSE),0) -> 16 | G93: =IFERROR(VLOOKUP($A93,Filtro!$A$5:$AW$651,5,FALSE),0) -> 12 | H93: =IFERROR(VLOOKUP($A93,Filtro!$A$5:$AW$651,6,FALSE),0) -> 2 | I93: =IFERROR(VLOOKUP($A93,Filtro!$A$5:$AW$651,7,FALSE),0) -> 2 | J93: =IFERROR(VLOOKUP($A93,Filtro!$A$5:$AW$651,8,FALSE),0) -> 0 | K93: =IFERROR(VLOOKUP($A93,Filtro!$A$5:$AW$651,9,FALSE),0) -> 2 | CK93: 0 | CL93: 0 | CM93: =IF(AND($D93<>0,$J93=""),1,0) -> 0 | CN93: 0
A94: P1200330 | B94: Tibolona 2,5mg comp. | D94: 969 | E94: =IFERROR(VLOOKUP($A94,Filtro!$A$5:$AW$651,3,FALSE),0) -> 26 | F94: =IFERROR(VLOOKUP($A94,Filtro!$A$5:$AW$651,4,FALSE),0) -> 168 | G94: =IFERROR(VLOOKUP($A94,Filtro!$A$5:$AW$651,5,FALSE),0) -> 414 | H94: =IFERROR(VLOOKUP($A94,Filtro!$A$5:$AW$651,6,FALSE),0) -> 294 | I94: =IFERROR(VLOOKUP($A94,Filtro!$A$5:$AW$651,7,FALSE),0) -> 67 | J94: =IFERROR(VLOOKUP($A94,Filtro!$A$5:$AW$651,8,FALSE),0) -> 6 | K94: =IFERROR(VLOOKUP($A94,Filtro!$A$5:$AW$651,9,FALSE),0) -> 24 | CK94: 0 | CL94: 0 | CM94: 0 | CN94: 0
A95: P1600110 | B95: Terapia Dual | D95: 130 | E95: =IFERROR(VLOOKUP($A95,Filtro!$A$5:$AW$651,3,FALSE),0) -> 7 | F95: =IFERROR(VLOOKUP($A95,Filtro!$A$5:$AW$651,4,FALSE),0) -> 16 | G95: =IFERROR(VLOOKUP($A95,Filtro!$A$5:$AW$651,5,FALSE),0) -> 58 | H95: =IFERROR(VLOOKUP($A95,Filtro!$A$5:$AW$651,6,FALSE),0) -> 36 | I95: =IFERROR(VLOOKUP($A95,Filtro!$A$5:$AW$651,7,FALSE),0) -> 13 | J95: =IFERROR(VLOOKUP($A95,Filtro!$A$5:$AW$651,8,FALSE),0) -> 0 | K95: =IFERROR(VLOOKUP($A95,Filtro!$A$5:$AW$651,9,FALSE),0) -> 3 | CK95: 0 | CL95: 0 | CM95: 0 | CN95: 0
B96: SECCION G: GESTANTES EN CONTROL CON ECOGRAFÍA POR TRIMESTRE DE GESTACION (EN EL SEMESTRE)
B97: Población | C97: Primer trimestre | E97: Segundo trimestre 22-24 semanas | F97: Tercer trimestre 30-34 semanas
C98: <11 semanas | D98: 11- 13+6 semanas
A99: P1060106 | B99: Menor de 15 | C99: =IFERROR(VLOOKUP($A99,Filtro!$A$5:$AW$651,2,FALSE),0) -> 6 | D99: =IFERROR(VLOOKUP($A99,Filtro!$A$5:$AW$651,3,FALSE),0) -> 8 | E99: =IFERROR(VLOOKUP($A99,Filtro!$A$5:$AW$651,4,FALSE),0) -> 5 | F99: =IFERROR(VLOOKUP($A99,Filtro!$A$5:$AW$651,5,FALSE),0) -> 2
A100: P1060107 | B100: 15 - 19 | C100: =IFERROR(VLOOKUP($A100,Filtro!$A$5:$AW$651,2,FALSE),0) -> 149 | D100: =IFERROR(VLOOKUP($A100,Filtro!$A$5:$AW$651,3,FALSE),0) -> 246 | E100: =IFERROR(VLOOKUP($A100,Filtro!$A$5:$AW$651,4,FALSE),0) -> 177 | F100: =IFERROR(VLOOKUP($A100,Filtro!$A$5:$AW$651,5,FALSE),0) -> 102
A101: P1060108 | B101: 20 - 24 | C101: =IFERROR(VLOOKUP($A101,Filtro!$A$5:$AW$651,2,FALSE),0) -> 710 | D101: =IFERROR(VLOOKUP($A101,Filtro!$A$5:$AW$651,3,FALSE),0) -> 867 | E101: =IFERROR(VLOOKUP($A101,Filtro!$A$5:$AW$651,4,FALSE),0) -> 630 | F101: =IFERROR(VLOOKUP($A101,Filtro!$A$5:$AW$651,5,FALSE),0) -> 269
A102: P1060109 | B102: 25 - 29 | C102: =IFERROR(VLOOKUP($A102,Filtro!$A$5:$AW$651,2,FALSE),0) -> 950 | D102: =IFERROR(VLOOKUP($A102,Filtro!$A$5:$AW$651,3,FALSE),0) -> 1235 | E102: =IFERROR(VLOOKUP($A102,Filtro!$A$5:$AW$651,4,FALSE),0) -> 909 | F102: =IFERROR(VLOOKUP($A102,Filtro!$A$5:$AW$651,5,FALSE),0) -> 397
A103: P1060110 | B103: 30 - 34 | C103: =IFERROR(VLOOKUP($A103,Filtro!$A$5:$AW$651,2,FALSE),0) -> 871 | D103: =IFERROR(VLOOKUP($A103,Filtro!$A$5:$AW$651,3,FALSE),0) -> 1072 | E103: =IFERROR(VLOOKUP($A103,Filtro!$A$5:$AW$651,4,FALSE),0) -> 777 | F103: =IFERROR(VLOOKUP($A103,Filtro!$A$5:$AW$651,5,FALSE),0) -> 325
A104: P1060111 | B104: 35 - 39 | C104: =IFERROR(VLOOKUP($A104,Filtro!$A$5:$AW$651,2,FALSE),0) -> 400 | D104: =IFERROR(VLOOKUP($A104,Filtro!$A$5:$AW$651,3,FALSE),0) -> 557 | E104: =IFERROR(VLOOKUP($A104,Filtro!$A$5:$AW$651,4,FALSE),0) -> 411 | F104: =IFERROR(VLOOKUP($A104,Filtro!$A$5:$AW$651,5,FALSE),0) -> 203
A105: P1060112 | B105: 40 - 44 | C105: =IFERROR(VLOOKUP($A105,Filtro!$A$5:$AW$651,2,FALSE),0) -> 105 | D105: =IFERROR(VLOOKUP($A105,Filtro!$A$5:$AW$651,3,FALSE),0) -> 132 | E105: =IFERROR(VLOOKUP($A105,Filtro!$A$5:$AW$651,4,FALSE),0) -> 99 | F105: =IFERROR(VLOOKUP($A105,Filtro!$A$5:$AW$651,5,FALSE),0) -> 42
A106: P1060113 | B106: 45 - 49 | C106: =IFERROR(VLOOKUP($A106,Filtro!$A$5:$AW$651,2,FALSE),0) -> 6 | D106: =IFERROR(VLOOKUP($A106,Filtro!$A$5:$AW$651,3,FALSE),0) -> 7 | E106: =IFERROR(VLOOKUP($A106,Filtro!$A$5:$AW$651,4,FALSE),0) -> 5 | F106: =IFERROR(VLOOKUP($A106,Filtro!$A$5:$AW$651,5,FALSE),0) -> 3
A107: P1060114 | B107: 50 - 54 | C107: =IFERROR(VLOOKUP($A107,Filtro!$A$5:$AW$651,2,FALSE),0) -> 0 | D107: =IFERROR(VLOOKUP($A107,Filtro!$A$5:$AW$651,3,FALSE),0) -> 0 | E107: =IFERROR(VLOOKUP($A107,Filtro!$A$5:$AW$651,4,FALSE),0) -> 0 | F107: =IFERROR(VLOOKUP($A107,Filtro!$A$5:$AW$651,5,FALSE),0) -> 0
B108: TOTAL | C108: =SUM(C99:C107) -> 3197 | D108: =SUM(D99:D107) -> 4124 | E108: =SUM(E99:E107) -> 3013 | F108: =SUM(F99:F107) -> 1343
B109: SECCION H: MUJERES BAJO CONTROL DE REGULACIÓN DE FERTILIDAD SEGÚN ESTADO NUTRICIONAL
B110: POBLACION | C110: ESTADO NUTRICIONAL | D110: TOTAL | E110: GRUPOS DE EDAD (en años)
E111: Menos 15 años | F111: 15 a 19 años | G111: 20 a 24 años | H111: 25 a 29 años | I111: 30 a 34 años | J111: 35 a 39 años | K111: 40 a 44 años | L111: 45 a 49 años | M111: 50 a 54 años
A112: P1600100 | B112: MUJERES BAJO CONTROL DE REGULACIÓN DE FERTILIDAD SEGÚN ESTADO NUTRICIONAL | C112: OBESA | D112: =SUM(E112:M112) -> 42753 | E112: =IFERROR(VLOOKUP($A112,Filtro!$A$5:$AW$651,3,FALSE),0) -> 266 | F112: =IFERROR(VLOOKUP($A112,Filtro!$A$5:$AW$651,4,FALSE),0) -> 2889 | G112: =IFERROR(VLOOKUP($A112,Filtro!$A$5:$AW$651,5,FALSE),0) -> 5910 | H112: =IFERROR(VLOOKUP($A112,Filtro!$A$5:$AW$651,6,FALSE),0) -> 7915 | I112: =IFERROR(VLOOKUP($A112,Filtro!$A$5:$AW$651,7,FALSE),0) -> 8036 | J112: =IFERROR(VLOOKUP($A112,Filtro!$A$5:$AW$651,8,FALSE),0) -> 6822 | K112: =IFERROR(VLOOKUP($A112,Filtro!$A$5:$AW$651,9,FALSE),0) -> 5310 | L112: =IFERROR(VLOOKUP($A112,Filtro!$A$5:$AW$651,10,FALSE),0) -> 3937 | M112: =IFERROR(VLOOKUP($A112,Filtro!$A$5:$AW$651,11,FALSE),0) -> 1668
A113: P1600101 | C113: SOBREPESO | D113: =SUM(E113:M113) -> 41199 | E113: =IFERROR(VLOOKUP($A113,Filtro!$A$5:$AW$651,3,FALSE),0) -> 482 | F113: =IFERROR(VLOOKUP($A113,Filtro!$A$5:$AW$651,4,FALSE),0) -> 4041 | G113: =IFERROR(VLOOKUP($A113,Filtro!$A$5:$AW$651,5,FALSE),0) -> 6265 | H113: =IFERROR(VLOOKUP($A113,Filtro!$A$5:$AW$651,6,FALSE),0) -> 7423 | I113: =IFERROR(VLOOKUP($A113,Filtro!$A$5:$AW$651,7,FALSE),0) -> 7386 | J113: =IFERROR(VLOOKUP($A113,Filtro!$A$5:$AW$651,8,FALSE),0) -> 6227 | K113: =IFERROR(VLOOKUP($A113,Filtro!$A$5:$AW$651,9,FALSE),0) -> 4596 | L113: =IFERROR(VLOOKUP($A113,Filtro!$A$5:$AW$651,10,FALSE),0) -> 3295 | M113: =IFERROR(VLOOKUP($A113,Filtro!$A$5:$AW$651,11,FALSE),0) -> 1484
A114: P1600102 | C114: NORMAL | D114: =SUM(E114:M114) -> 33937 | E114: =IFERROR(VLOOKUP($A114,Filtro!$A$5:$AW$651,3,FALSE),0) -> 835 | F114: =IFERROR(VLOOKUP($A114,Filtro!$A$5:$AW$651,4,FALSE),0) -> 6383 | G114: =IFERROR(VLOOKUP($A114,Filtro!$A$5:$AW$651,5,FALSE),0) -> 7137 | H114: =IFERROR(VLOOKUP($A114,Filtro!$A$5:$AW$651,6,FALSE),0) -> 6153 | I114: =IFERROR(VLOOKUP($A114,Filtro!$A$5:$AW$651,7,FALSE),0) -> 5228 | J114: =IFERROR(VLOOKUP($A114,Filtro!$A$5:$AW$651,8,FALSE),0) -> 3492 | K114: =IFERROR(VLOOKUP($A114,Filtro!$A$5:$AW$651,9,FALSE),0) -> 2412 | L114: =IFERROR(VLOOKUP($A114,Filtro!$A$5:$AW$651,10,FALSE),0) -> 1662 | M114: =IFERROR(VLOOKUP($A114,Filtro!$A$5:$AW$651,11,FALSE),0) -> 635
A115: P1600103 | C115: BAJO PESO | D115: =SUM(E115:M115) -> 2026 | E115: =IFERROR(VLOOKUP($A115,Filtro!$A$5:$AW$651,3,FALSE),0) -> 103 | F115: =IFERROR(VLOOKUP($A115,Filtro!$A$5:$AW$651,4,FALSE),0) -> 631 | G115: =IFERROR(VLOOKUP($A115,Filtro!$A$5:$AW$651,5,FALSE),0) -> 499 | H115: =IFERROR(VLOOKUP($A115,Filtro!$A$5:$AW$651,6,FALSE),0) -> 358 | I115: =IFERROR(VLOOKUP($A115,Filtro!$A$5:$AW$651,7,FALSE),0) -> 202 | J115: =IFERROR(VLOOKUP($A115,Filtro!$A$5:$AW$651,8,FALSE),0) -> 117 | K115: =IFERROR(VLOOKUP($A115,Filtro!$A$5:$AW$651,9,FALSE),0) -> 60 | L115: =IFERROR(VLOOKUP($A115,Filtro!$A$5:$AW$651,10,FALSE),0) -> 46 | M115: =IFERROR(VLOOKUP($A115,Filtro!$A$5:$AW$651,11,FALSE),0) -> 10
C116: TOTAL | D116: =SUM(E116:M116) -> 119915 | E116: =SUM(E112:E115) -> 1686 | F116: =SUM(F112:F115) -> 13944 | G116: 19811 | H116: 21849 | I116: 20852 | J116: 16658 | K116: 12378 | L116: 8940 | M116: 3797
B117: SECCION I: GESTANTES EN CONTROL CON TEST DE VIH/SIFILIS TOMADO (EN EL SEMESTRE, RED PÚBLICA O EXTRASISTEMA)
B118: Población | C118: TOTAL GESTANTES BAJO CONTROL | D118: GESTANTES EN CONTROL CON RESULTADO 1° VIH | E118: GESTANTES EN CONTROL CON RESULTADO 1° TAMIZAJE SIFILIS | F118: TOTAL GESTANTES EN CONTROL >34 SEM | G118: GESTANTES EN CONTROL CON RESULTADO 2° VIH | H118: GESTANTES EN CONTROL CON RESULTADO TAMIZAJE SIFILIS 3° TRIMESTRE GESTACION
A119: P1600111 | B119: Menor de 15 | C119: =IFERROR(VLOOKUP($A119,Filtro!$A$5:$AW$651,2,FALSE),0) -> 10 | D119: =IFERROR(VLOOKUP($A119,Filtro!$A$5:$AW$651,3,FALSE),0) -> 10 | E119: =IFERROR(VLOOKUP($A119,Filtro!$A$5:$AW$651,4,FALSE),0) -> 8 | F119: =IFERROR(VLOOKUP($A119,Filtro!$A$5:$AW$651,5,FALSE),0) -> 7 | G119: =IFERROR(VLOOKUP($A119,Filtro!$A$5:$AW$651,6,FALSE),0) -> 7 | H119: =IFERROR(VLOOKUP($A119,Filtro!$A$5:$AW$651,7,FALSE),0) -> 7
A120: P1600112 | B120: 15 - 19 | C120: =IFERROR(VLOOKUP($A120,Filtro!$A$5:$AW$651,2,FALSE),0) -> 330 | D120: =IFERROR(VLOOKUP($A120,Filtro!$A$5:$AW$651,3,FALSE),0) -> 318 | E120: =IFERROR(VLOOKUP($A120,Filtro!$A$5:$AW$651,4,FALSE),0) -> 307 | F120: =IFERROR(VLOOKUP($A120,Filtro!$A$5:$AW$651,5,FALSE),0) -> 96 | G120: =IFERROR(VLOOKUP($A120,Filtro!$A$5:$AW$651,6,FALSE),0) -> 88 | H120: =IFERROR(VLOOKUP($A120,Filtro!$A$5:$AW$651,7,FALSE),0) -> 87
A121: P1600113 | B121: 20 - 24 | C121: =IFERROR(VLOOKUP($A121,Filtro!$A$5:$AW$651,2,FALSE),0) -> 1414 | D121: =IFERROR(VLOOKUP($A121,Filtro!$A$5:$AW$651,3,FALSE),0) -> 1323 | E121: =IFERROR(VLOOKUP($A121,Filtro!$A$5:$AW$651,4,FALSE),0) -> 1287 | F121: =IFERROR(VLOOKUP($A121,Filtro!$A$5:$AW$651,5,FALSE),0) -> 300 | G121: =IFERROR(VLOOKUP($A121,Filtro!$A$5:$AW$651,6,FALSE),0) -> 277 | H121: =IFERROR(VLOOKUP($A121,Filtro!$A$5:$AW$651,7,FALSE),0) -> 266
A122: P1600114 | B122: 25 - 29 | C122: =IFERROR(VLOOKUP($A122,Filtro!$A$5:$AW$651,2,FALSE),0) -> 1834 | D122: =IFERROR(VLOOKUP($A122,Filtro!$A$5:$AW$651,3,FALSE),0) -> 1753 | E122: =IFERROR(VLOOKUP($A122,Filtro!$A$5:$AW$651,4,FALSE),0) -> 1721 | F122: =IFERROR(VLOOKUP($A122,Filtro!$A$5:$AW$651,5,FALSE),0) -> 408 | G122: =IFERROR(VLOOKUP($A122,Filtro!$A$5:$AW$651,6,FALSE),0) -> 373 | H122: =IFERROR(VLOOKUP($A122,Filtro!$A$5:$AW$651,7,FALSE),0) -> 345
A123: P1600115 | B123: 30 - 34 | C123: =IFERROR(VLOOKUP($A123,Filtro!$A$5:$AW$651,2,FALSE),0) -> 1614 | D123: =IFERROR(VLOOKUP($A123,Filtro!$A$5:$AW$651,3,FALSE),0) -> 1511 | E123: =IFERROR(VLOOKUP($A123,Filtro!$A$5:$AW$651,4,FALSE),0) -> 1489 | F123: =IFERROR(VLOOKUP($A123,Filtro!$A$5:$AW$651,5,FALSE),0) -> 357 | G123: =IFERROR(VLOOKUP($A123,Filtro!$A$5:$AW$651,6,FALSE),0) -> 312 | H123: =IFERROR(VLOOKUP($A123,Filtro!$A$5:$AW$651,7,FALSE),0) -> 305
A124: P1600116 | B124: 35 - 39 | C124: =IFERROR(VLOOKUP($A124,Filtro!$A$5:$AW$651,2,FALSE),0) -> 817 | D124: =IFERROR(VLOOKUP($A124,Filtro!$A$5:$AW$651,3,FALSE),0) -> 776 | E124: =IFERROR(VLOOKUP($A124,Filtro!$A$5:$AW$651,4,FALSE),0) -> 765 | F124: =IFERROR(VLOOKUP($A124,Filtro!$A$5:$AW$651,5,FALSE),0) -> 199 | G124: =IFERROR(VLOOKUP($A124,Filtro!$A$5:$AW$651,6,FALSE),0) -> 182 | H124: =IFERROR(VLOOKUP($A124,Filtro!$A$5:$AW$651,7,FALSE),0) -> 172
A125: P1600117 | B125: 40 - 44 | C125: =IFERROR(VLOOKUP($A125,Filtro!$A$5:$AW$651,2,FALSE),0) -> 193 | D125: =IFERROR(VLOOKUP($A125,Filtro!$A$5:$AW$651,3,FALSE),0) -> 185 | E125: =IFERROR(VLOOKUP($A125,Filtro!$A$5:$AW$651,4,FALSE),0) -> 180 | F125: =IFERROR(VLOOKUP($A125,Filtro!$A$5:$AW$651,5,FALSE),0) -> 47 | G125: =IFERROR(VLOOKUP($A125,Filtro!$A$5:$AW$651,6,FALSE),0) -> 37 | H125: =IFERROR(VLOOKUP($A125,Filtro!$A$5:$AW$651,7,FALSE),0) -> 37
A126: P1600118 | B126: 45 - 49 | C126: =IFERROR(VLOOKUP($A126,Filtro!$A$5:$AW$651,2,FALSE),0) -> 9 | D126: =IFERROR(VLOOKUP($A126,Filtro!$A$5:$AW$651,3,FALSE),0) -> 9 | E126: =IFERROR(VLOOKUP($A126,Filtro!$A$5:$AW$651,4,FALSE),0) -> 8 | F126: =IFERROR(VLOOKUP($A126,Filtro!$A$5:$AW$651,5,FALSE),0) -> 2 | G126: =IFERROR(VLOOKUP($A126,Filtro!$A$5:$AW$651,6,FALSE),0) -> 2 | H126: =IFERROR(VLOOKUP($A126,Filtro!$A$5:$AW$651,7,FALSE),0) -> 2
A127: P1600119 | B127: 50 - 54 | C127: =IFERROR(VLOOKUP($A127,Filtro!$A$5:$AW$651,2,FALSE),0) -> 0 | D127: =IFERROR(VLOOKUP($A127,Filtro!$A$5:$AW$651,3,FALSE),0) -> 0 | E127: =IFERROR(VLOOKUP($A127,Filtro!$A$5:$AW$651,4,FALSE),0) -> 0 | F127: =IFERROR(VLOOKUP($A127,Filtro!$A$5:$AW$651,5,FALSE),0) -> 0 | G127: =IFERROR(VLOOKUP($A127,Filtro!$A$5:$AW$651,6,FALSE),0) -> 0 | H127: =IFERROR(VLOOKUP($A127,Filtro!$A$5:$AW$651,7,FALSE),0) -> 0
B128: TOTAL | C128: =SUM(C119:C127) -> 6221 | D128: 5885 | E128: 5765 | F128: 1416 | G128: 1278 | H128: 1221
A129: P1600120 | B129: Gestantes con Tamizajes resultado pendiente | C129: =IFERROR(VLOOKUP($A129,Filtro!$A$5:$AW$651,2,FALSE),0) -> 0 | D129: =IFERROR(VLOOKUP($A129,Filtro!$A$5:$AW$651,3,FALSE),0) -> 227 | E129: =IFERROR(VLOOKUP($A129,Filtro!$A$5:$AW$651,4,FALSE),0) -> 257 | F129: =IFERROR(VLOOKUP($A129,Filtro!$A$5:$AW$651,5,FALSE),0) -> 0 | G129: =IFERROR(VLOOKUP($A129,Filtro!$A$5:$AW$651,6,FALSE),0) -> 371 | H129: =IFERROR(VLOOKUP($A129,Filtro!$A$5:$AW$651,7,FALSE),0) -> 445
B130: NIVEL SECUNDARIO
B131: SECCIÓN J: POBLACIÓN EN CONTROL POR PATOLOGÍAS DE ALTO RIESGO OBSTÉTRICO
B132: PATOLOGÍA | C132: TOTAL
A133: P1030303 | B133: Preeclampsia (PE) | C133: =IFERROR(VLOOKUP($A133,Filtro!$A$5:$AW$651,2,FALSE),0) -> 18
A134: P1060070 | B134: Sindrome Hipertensivo del Embarazo (SHE) | C134: =IFERROR(VLOOKUP($A134,Filtro!$A$5:$AW$651,2,FALSE),0) -> 92
A135: P1030304 | B135: Factores de riesgo y condicionantes de Parto Prematuro | C135: =IFERROR(VLOOKUP($A135,Filtro!$A$5:$AW$651,2,FALSE),0) -> 194
A136: P1030401 | B136: Retardo Crecimiento Intrauterino (RCIU) | C136: =IFERROR(VLOOKUP($A136,Filtro!$A$5:$AW$651,2,FALSE),0) -> 98
A137: P1040506 | B137: Sífilis | C137: =IFERROR(VLOOKUP($A137,Filtro!$A$5:$AW$651,2,FALSE),0) -> 56
A138: P1040507 | B138: VIH | C138: =IFERROR(VLOOKUP($A138,Filtro!$A$5:$AW$651,2,FALSE),0) -> 19
A139: P1060115 | B139: Diabetes Pre Gestacional | C139: =IFERROR(VLOOKUP($A139,Filtro!$A$5:$AW$651,2,FALSE),0) -> 220
A140: P1060116 | B140: Diabetes Gestacional | C140: =IFERROR(VLOOKUP($A140,Filtro!$A$5:$AW$651,2,FALSE),0) -> 383
A141: P1030403 | B141: Cesárea anterior | C141: =IFERROR(VLOOKUP($A141,Filtro!$A$5:$AW$651,2,FALSE),0) -> 762
A142: P1060080 | B142: Malformación Congénita | C142: =IFERROR(VLOOKUP($A142,Filtro!$A$5:$AW$651,2,FALSE),0) -> 44
A143: P1060117 | B143: Anemia | C143: =IFERROR(VLOOKUP($A143,Filtro!$A$5:$AW$651,2,FALSE),0) -> 80
A144: P1060118 | B144: Cardiopatías | C144: =IFERROR(VLOOKUP($A144,Filtro!$A$5:$AW$651,2,FALSE),0) -> 27
A145: P1060119 | B145: Pielonefritis | C145: =IFERROR(VLOOKUP($A145,Filtro!$A$5:$AW$651,2,FALSE),0) -> 32
A146: P1060120 | B146: Rh(-) sensibilizada | C146: =IFERROR(VLOOKUP($A146,Filtro!$A$5:$AW$651,2,FALSE),0) -> 43
A147: P1060121 | B147: Placenta previa | C147: =IFERROR(VLOOKUP($A147,Filtro!$A$5:$AW$651,2,FALSE),0) -> 36
A148: P1060122 | B148: Chagas | C148: =IFERROR(VLOOKUP($A148,Filtro!$A$5:$AW$651,2,FALSE),0) -> 54
A149: P1060123 | B149: Colestasia Intrahépatica de Embarazo | C149: =IFERROR(VLOOKUP($A149,Filtro!$A$5:$AW$651,2,FALSE),0) -> 33
A150: P1030404 | B150: Otras patologías del embarazo | C150: =IFERROR(VLOOKUP($A150,Filtro!$A$5:$AW$651,2,FALSE),0) -> 1780
B151: TOTAL | C151: =SUM(C133:C150) -> 3971
B163: =SUM(D11:D36,C49:G49,C57:D57,D61:D70,C73:C77,C80:C84,D89:D95,C108:F108,D112:D116,C128:H129,C133:C151) -> 626960 | C163: datos
B164: =SUM(CK11:CS95) -> 2 | C164: errores

Sheet P2
B6: REM-P2. POBLACIÓN EN CONTROL PROGRAMA NACIONAL DE SALUD DE LA INFANCIA
B7: SECCION A: POBLACIÓN EN CONTROL, SEGÚN ESTADO NUTRICIONAL PARA NIÑOS MENOR DE UN MES- 59 MESES
B8: INDICADOR NUTRICIONAL Y PARÁMETROS DE MEDICIÓN | D8: TOTAL | G8: GRUPOS DE EDAD (en meses) Y SEXO | AI8: Pueblos Originarios | AK8: Migrantes
G9: Menor de 1 mes | I9: 1 mes | K9: 2 meses | M9: 3 meses | O9: 4 meses | Q9: 5 meses | S9: 6 meses | U9: 7 a 11 meses | W9: 12 a 17 meses | Y9: 18 a 23 meses | AA9: 24 a 35 meses | AC9: 36 a 41 meses | AE9: 42 a 47 meses | AG9: 48 a 59 meses
D10: Ambos sexos | E10: Hombres | F10: Mujeres | G10: Hombres | H10: Mujeres | I10: Hombres | J10: Mujeres | K10: Hombres | L10: Mujeres | M10: Hombres | N10: Mujeres | O10: Hombres | P10: Mujeres | Q10: Hombres | R10: Mujeres | S10: Hombres | T10: Mujeres | U10: Hombres | V10: Mujeres | W10: Hombres | X10: Mujeres | Y10: Hombres | Z10: Mujeres | AA10: Hombres | AB10: Mujeres | AC10: Hombres | AD10: Mujeres | AE10: Hombres | AF10: Mujeres | AG10: Hombres | AH10: Mujeres | AI10: Hombres | AJ10: Mujeres | AK10: Hombres | AL10: Mujeres
A11: P2060000 | B11: TOTAL DE NIÑOS/AS EN CONTROL | D11: =SUM(E11:F11) -> 54335 | E11: =+G11+I11+K11+M11+O11+Q11+S11+U11+W11+Y11+AA11+AC11+AE11 -> 27547 | F11: =+H11+J11+L11+N11+P11+R11+T11+V11+X11+Z11+AB11+AD11+AF11 -> 26788 | G11: =IFERROR(VLOOKUP($A11,Filtro!$A$5:$AW$651,5,FALSE),0) -> 299 | H11: =IFERROR(VLOOKUP($A11,Filtro!$A$5:$AW$651,6,FALSE),0) -> 298 | I11: =IFERROR(VLOOKUP($A11,Filtro!$A$5:$AW$651,7,FALSE),0) -> 509 | J11: =IFERROR(VLOOKUP($A11,Filtro!$A$5:$AW$651,8,FALSE),0) -> 481 | K11: =IFERROR(VLOOKUP($A11,Filtro!$A$5:$AW$651,9,FALSE),0) -> 616 | L11: =IFERROR(VLOOKUP($A11,Filtro!$A$5:$AW$651,10,FALSE),0) -> 595 | M11: =IFERROR(VLOOKUP($A11,Filtro!$A$5:$AW$651,11,FALSE),0) -> 571 | N11: =IFERROR(VLOOKUP($A11,Filtro!$A$5:$AW$651,12,FALSE),0) -> 524 | O11: =IFERROR(VLOOKUP($A11,Filtro!$A$5:$AW$651,13,FALSE),0) -> 607 | P11: =IFERROR(VLOOKUP($A11,Filtro!$A$5:$AW$651,14,FALSE),0) -> 609 | Q11: =IFERROR(VLOOKUP($A11,Filtro!$A$5:$AW$651,15,FALSE),0) -> 571 | R11: =IFERROR(VLOOKUP($A11,Filtro!$A$5:$AW$651,16,FALSE),0) -> 615 | S11: =IFERROR(VLOOKUP($A11,Filtro!$A$5:$AW$651,17,FALSE),0) -> 771 | T11: =IFERROR(VLOOKUP($A11,Filtro!$A$5:$AW$651,18,FALSE),0) -> 744 | U11: =IFERROR(VLOOKUP($A11,Filtro!$A$5:$AW$651,19,FALSE),0) -> 2516 | V11: =IFERROR(VLOOKUP($A11,Filtro!$A$5:$AW$651,20,FALSE),0) -> 2576 | W11: =IFERROR(VLOOKUP($A11,Filtro!$A$5:$AW$651,21,FALSE),0) -> 3295 | X11: =IFERROR(VLOOKUP($A11,Filtro!$A$5:$AW$651,22,FALSE),0) -> 3242 | Y11: =IFERROR(VLOOKUP($A11,Filtro!$A$5:$AW$651,23,FALSE),0) -> 3209 | Z11: =IFERROR(VLOOKUP($A11,Filtro!$A$5:$AW$651,24,FALSE),0) -> 3040 | AA11: =IFERROR(VLOOKUP($A11,Filtro!$A$5:$AW$651,25,FALSE),0) -> 5647 | AB11: =IFERROR(VLOOKUP($A11,Filtro!$A$5:$AW$651,26,FALSE),0) -> 5541 | AC11: =IFERROR(VLOOKUP($A11,Filtro!$A$5:$AW$651,27,FALSE),0) -> 4718 | AD11: =IFERROR(VLOOKUP($A11,Filtro!$A$5:$AW$651,28,FALSE),0) -> 4517 | AE11: =IFERROR(VLOOKUP($A11,Filtro!$A$5:$AW$651,29,FALSE),0) -> 4218 | AF11: =IFERROR(VLOOKUP($A11,Filtro!$A$5:$AW$651,30,FALSE),0) -> 4006 | AG11: =IFERROR(VLOOKUP($A11,Filtro!$A$5:$AW$651,31,FALSE),0) -> 2967 | AH11: =IFERROR(VLOOKUP($A11,Filtro!$A$5:$AW$651,32,FALSE),0) -> 2934 | AI11: =IFERROR(VLOOKUP($A11,Filtro!$A$5:$AW$651,33,FALSE),0) -> 493 | AJ11: =IFERROR(VLOOKUP($A11,Filtro!$A$5:$AW$651,34,FALSE),0) -> 502 | AK11: =IFERROR(VLOOKUP($A11,Filtro!$A$5:$AW$651,35,FALSE),0) -> 261 | AL11: =IFERROR(VLOOKUP($A11,Filtro!$A$5:$AW$651,36,FALSE),0) -> 261 | AM11: =($CE11&CF11&CG11&CH11&CI11&CJ11&CK11&CL11&CM11&CN11&CO11&CP11&CQ11&CR11&CS11&CT11&CU11&CV11&CW11&CX11&CY11&CZ11&DA11) -> * El Total de niños (as) en Control de 1 mes debe ser igual al Total de niños (as) según Diagnóstico Nutricional Integrado. * El Total de niños (as) en Control de 2 meses debe ser igual al Total de niños (as) según Diagnóstico Nutricional Integrado. * El Total de niños (as) en Control de 3 meses debe ser igual al Total de niños (as) según Diagnóstico Nutricional Integrado. * El Total de niños (as) en Control de 4 meses debe ser igual al Total de niños (as) según Diagnóstico Nutricional Integrado. * El Total de niños (as) en Control de 6 meses debe ser igual al Total de niños (as) según Diagnóstico Nutricional Integrado. * El Total de niños (as) en Control de 7 a 11 meses debe ser igual al Total de niños (as) según Diagnóstico Nutricional Integrado. * El Total de niños (as) en Control de 12 a 17 meses debe ser igual al Total de niños (as) según Diagnóstico Nutricional Integrado. * El Total de niños (as) en Control de 18 a 23 meses debe ser igual al Total de niños (as) según Diagnóstico Nutricional Integrado. * El Total de niños (as) en Control de 24 a 35 meses debe ser igual al Total de niños (as) según Diagnóstico Nutricional Integrado. * El Total de niños (as) en Control de 36 a 41 meses debe ser igual al Total de niños (as) según Diagnóstico Nutricional Integrado. * El Total de niños (as) en Control de 42 a 47 meses debe ser igual al Total de niños (as) según Diagnóstico Nutricional Integrado. * El Total de niños (as) en Control de 48 a 59 meses debe ser igual al Total de niños (as) según Diagnóstico Nutricional Integrado. * El Total de niños (as) en Control de Pueblos Originarios debe ser igual al Total de niños (as) según Diagnóstico Nutricional Integrado. * El Total de niños (as) en Control de Población Migrantes debe ser igual al Total de niños (as) según Diagnóstico Nutricional Integrado. | CE11: =IF(I11+J11<>I38+J38,"* El Total de niños (as) en Control de 1 mes debe ser igual al Total de niños (as) según Diagnóstico Nutricional Integrado. ","") -> * El Total de niños (as) en Control de 1 mes debe ser igual al Total de niños (as) según Diagnóstico Nutricional Integrado. | CF11: =IF(K11+L11<>K38+L38,"* El Total de niños (as) en Control de 2 meses debe ser igual al Total de niños (as) según Diagnóstico Nutricional Integrado. ","") -> * El Total de niños (as) en Control de 2 meses debe ser igual al Total de niños (as) según Diagnóstico Nutricional Integrado. | CG11: =IF(M11+N11<>M38+N38,"* El Total de niños (as) en Control de 3 meses debe ser igual al Total de niños (as) según Diagnóstico Nutricional Integrado. ","") -> * El Total de niños (as) en Control de 3 meses debe ser igual al Total de niños (as) según Diagnóstico Nutricional Integrado. | CH11: =IF(O11+P11<>O38+P38,"* El Total de niños (as) en Control de 4 meses debe ser igual al Total de niños (as) según Diagnóstico Nutricional Integrado. ","") -> * El Total de niños (as) en Control de 4 meses debe ser igual al Total de niños (as) según Diagnóstico Nutricional Integrado. | CI11: =IF(Q11+R11<>Q38+R38,"* El Total de niños (as) en Control de 5 meses debe ser igual al Total de niños (as) según Diagnóstico Nutricional Integrado. ","") ->  | CJ11: =IF($S$11+$T$11<>$S$38+$T$38,"* El Total de niños (as) en Control de 6 meses debe ser igual al Total de niños (as) según Diagnóstico Nutricional Integrado. ","") -> * El Total de niños (as) en Control de 6 meses debe ser igual al Total de niños (as) según Diagnóstico Nutricional Integrado. | CK11: =IF($U$11+$V$11<>$U$38+$V$38,"* El Total de niños (as) en Control de 7 a 11 meses debe ser igual al Total de niños (as) según Diagnóstico Nutricional Integrado. ","") -> * El Total de niños (as) en Control de 7 a 11 meses debe ser igual al Total de niños (as) según Diagnóstico Nutricional Integrado. | CL11: =IF($W$11+$X$11<>$W$38+$X$38,"* El Total de niños (as) en Control de 12 a 17 meses debe ser igual al Total de niños (as) según Diagnóstico Nutricional Integrado. ","") -> * El Total de niños (as) en Control de 12 a 17 meses debe ser igual al Total de niños (as) según Diagnóstico Nutricional Integrado. | CM11: =IF($Y$11+$Z$11<>$Y$38+$Z$38,"* El Total de niños (as) en Control de 18 a 23 meses debe ser igual al Total de niños (as) según Diagnóstico Nutricional Integrado. ","") -> * El Total de niños (as) en Control de 18 a 23 meses debe ser igual al Total de niños (as) según Diagnóstico Nutricional Integrado. | CN11: =IF($AA$11+$AB$11<>$AA$38+$AB$38,"* El Total de niños (as) en Control de 24 a 35 meses debe ser igual al Total de niños (as) según Diagnóstico Nutricional Integrado. ","") -> * El Total de niños (as) en Control de 24 a 35 meses debe ser igual al Total de niños (as) según Diagnóstico Nutricional Integrado. | CO11: =IF($AC$11+$AD$11<>$AC$38+$AD$38,"* El Total de niños (as) en Control de 36 a 41 meses debe ser igual al Total de niños (as) según Diagnóstico Nutricional Integrado. ","") -> * El Total de niños (as) en Control de 36 a 41 meses debe ser igual al Total de niños (as) según Diagnóstico Nutricional Integrado. | CP11: =IF($AE$11+$AF$11<>$AE$38+$AF$38,"* El Total de niños (as) en Control de 42 a 47 meses debe ser igual al Total de niños (as) según Diagnóstico Nutricional Integrado. ","") -> * El Total de niños (as) en Control de 42 a 47 meses debe ser igual al Total de niños (as) según Diagnóstico Nutricional Integrado. | CQ11: =IF($AG$11+$AH$11<>$AG$38+$AH$38,"* El Total de niños (as) en Control de 48 a 59 meses debe ser igual al Total de niños (as) según Diagnóstico Nutricional Integrado. ","") -> * El Total de niños (as) en Control de 48 a 59 meses debe ser igual al Total de niños (as) según Diagnóstico Nutricional Integrado. | CR11: =IF($D11>=$AI11+$AJ11,"","* El Total de Pueblos Originarios no debe ser mayor al Total de niños (as) en control. ") ->  | CS11: =IF($D11>=$AK11+$AL11,"","* El Total de Población Migrantes no debe ser mayor al Total de niños (as) en control. ") ->  | CT11: =IF($AI$11+$AJ$11<>$AI$38+$AJ$38,"* El Total de niños (as) en Control de Pueblos Originarios debe ser igual al Total de niños (as) según Diagnóstico Nutricional Integrado. ","") -> * El Total de niños (as) en Control de Pueblos Originarios debe ser igual al Total de niños (as) según Diagnóstico Nutricional Integrado. | CU11: =IF($AK$11+$AL$11<>$AK$38+$AL$38,"* El Total de niños (as) en Control de Población Migrantes debe ser igual al Total de niños (as) según Diagnóstico Nutricional Integrado. ","") ->  | CV11: =IF(AND(E11>0,OR(AI11=""))," * No olvide digitar la variable Pueblos Originarios Hombres (Digite Cero si no tiene).",IF(AI11>E11," * La variable Pueblos Originarios Hombres no puede ser Mayor al Total.","")) ->  | CW11: =IF(AND(F11>0,OR(AJ11=""))," * No olvide digitar la variable Pueblos Originarios Mujeres (Digite Cero si no tiene).",IF(AJ11>F11," * La variable Pueblos Originarios Mujeres no puede ser Mayor al Total.","")) ->  | CX11: =IF(AND(E11>0,OR(AK11=""))," * No olvide digitar la variable Migrantes Hombres (Digite Cero si no tiene).",IF(AK11>E11," * La variable Migrantes Hombres no puede ser Mayor al Total.","")) ->  | CY11: =IF(AND(F11>0,OR(AL11=""))," * No olvide digitar la variable Migrantes Mujeres (Digite Cero si no tiene).",IF(AL11>F11," * La variable Migrantes Mujeres no puede ser Mayor al Total.","")) ->  | CZ11: =IF($AI$11+$AJ$11<>$AI$38+$AJ$38,"* El Total de niños (as) en Control de Población Migrantes debe ser igual al Total de niños (as) según Diagnóstico Nutricional Integrado. ","") -> * El Total de niños (as) en Control de Población Migrantes debe ser igual al Total de niños (as) según Diagnóstico Nutricional Integrado. | DA11: =IF($AK$11+$AL$11<>$AK$38+$AL$38,"* El Total de niños (as) en Control de Población Migrantes debe ser igual al Total de niños (as) según Diagnóstico Nutricional Integrado. ","") ->  | DE11: =IF($I$11+$J$11<>$I$38+$J$38,1,0) -> 1 | DF11: =IF($K$11+$L$11<>$K$38+$L$38,1,0) -> 1 | DG11: =IF($M$11+$N$11<>$M$38+$N$38,1,0) -> 1 | DH11: =IF($O$11+$P$11<>$O$38+$P$38,1,0) -> 1 | DI11: =IF($Q$11+$R$11<>$Q$38+$R$38,1,0) -> 0 | DJ11: =IF($S$11+$T$11<>$S$38+$T$38,1,0) -> 1 | DK11: =IF($U$11+$V$11<>$U$38+$V$38,1,0) -> 1 | DL11: =IF($W$11+$X$11<>$W$38+$X$38,1,0) -> 1 | DM11: =IF($Y$11+$Z$11<>$Y$38+$Z$38,1,0) -> 1 | DN11: =IF($AA$11+$AB$11<>$AA$38+$AB$38,1,0) -> 1 | DO11: =IF($AC$11+$AD$11<>$AC$38+$AD$38,1,0) -> 1 | DP11: =IF($AE$11+$AF$11<>$AE$38+$AF$38,1,0) -> 1 | DQ11: =IF($AG$11+$AH$11<>$AG$38+$AH$38,1,0) -> 1 | DR11: =IF(AI11>=E11,0,1) -> 1 | DS11: =IF(AJ11>=F11,0,1) -> 1 | DT11: =IF(AK11>=E11,0,1) -> 1 | DU11: =IF(AL11>=F11,0,1) -> 1 | DV11: =IF($AI$11+$AJ$11<>$AI$38+$AJ$38,1,0) -> 1 | DW11: =IF($AK$11+$AL$11<>$AK$38+$AL$38,1,0) -> 0
A12: P2400100 | B12: INDICADOR PESO/EDAD | C12: + 2 D.S. (>= +2.0) | D12: 4507 | E12: =+G12+I12+K12+M12+O12+Q12+S12+U12+W12+Y12+AA12+AC12+AE12 -> 2388 | F12: 2119 | G12: =IFERROR(VLOOKUP($A12,Filtro!$A$5:$AW$651,5,FALSE),0) -> 22 | H12: =IFERROR(VLOOKUP($A12,Filtro!$A$5:$AW$651,6,FALSE),0) -> 14 | I12: =IFERROR(VLOOKUP($A12,Filtro!$A$5:$AW$651,7,FALSE),0) -> 15 | J12: =IFERROR(VLOOKUP($A12,Filtro!$A$5:$AW$651,8,FALSE),0) -> 7 | K12: =IFERROR(VLOOKUP($A12,Filtro!$A$5:$AW$651,9,FALSE),0) -> 17 | L12: =IFERROR(VLOOKUP($A12,Filtro!$A$5:$AW$651,10,FALSE),0) -> 12 | M12: =IFERROR(VLOOKUP($A12,Filtro!$A$5:$AW$651,11,FALSE),0) -> 24 | N12: =IFERROR(VLOOKUP($A12,Filtro!$A$5:$AW$651,12,FALSE),0) -> 28 | O12: =IFERROR(VLOOKUP($A12,Filtro!$A$5:$AW$651,13,FALSE),0) -> 51 | P12: =IFERROR(VLOOKUP($A12,Filtro!$A$5:$AW$651,14,FALSE),0) -> 40 | Q12: =IFERROR(VLOOKUP($A12,Filtro!$A$5:$AW$651,15,FALSE),0) -> 34 | R12: =IFERROR(VLOOKUP($A12,Filtro!$A$5:$AW$651,16,FALSE),0) -> 44 | S12: =IFERROR(VLOOKUP($A12,Filtro!$A$5:$AW$651,17,FALSE),0) -> 63 | T12: =IFERROR(VLOOKUP($A12,Filtro!$A$5:$AW$651,18,FALSE),0) -> 44 | U12: =IFERROR(VLOOKUP($A12,Filtro!$A$5:$AW$651,19,FALSE),0) -> 203 | V12: =IFERROR(VLOOKUP($A12,Filtro!$A$5:$AW$651,20,FALSE),0) -> 198 | W12: =IFERROR(VLOOKUP($A12,Filtro!$A$5:$AW$651,21,FALSE),0) -> 269 | X12: =IFERROR(VLOOKUP($A12,Filtro!$A$5:$AW$651,22,FALSE),0) -> 246 | Y12: =IFERROR(VLOOKUP($A12,Filtro!$A$5:$AW$651,23,FALSE),0) -> 234 | Z12: =IFERROR(VLOOKUP($A12,Filtro!$A$5:$AW$651,24,FALSE),0) -> 226 | AA12: =IFERROR(VLOOKUP($A12,Filtro!$A$5:$AW$651,25,FALSE),0) -> 422 | AB12: =IFERROR(VLOOKUP($A12,Filtro!$A$5:$AW$651,26,FALSE),0) -> 415 | AC12: =IFERROR(VLOOKUP($A12,Filtro!$A$5:$AW$651,27,FALSE),0) -> 536 | AD12: =IFERROR(VLOOKUP($A12,Filtro!$A$5:$AW$651,28,FALSE),0) -> 433 | AE12: =IFERROR(VLOOKUP($A12,Filtro!$A$5:$AW$651,29,FALSE),0) -> 498 | AF12: =IFERROR(VLOOKUP($A12,Filtro!$A$5:$AW$651,30,FALSE),0) -> 412 | AG12: =IFERROR(VLOOKUP($A12,Filtro!$A$5:$AW$651,31,FALSE),0) -> 366 | AH12: =IFERROR(VLOOKUP($A12,Filtro!$A$5:$AW$651,32,FALSE),0) -> 315 | AI12: =IFERROR(VLOOKUP($A12,Filtro!$A$5:$AW$651,33,FALSE),0) -> 29 | AJ12: =IFERROR(VLOOKUP($A12,Filtro!$A$5:$AW$651,34,FALSE),0) -> 25 | AK12: =IFERROR(VLOOKUP($A12,Filtro!$A$5:$AW$651,35,FALSE),0) -> 10 | AL12: =IFERROR(VLOOKUP($A12,Filtro!$A$5:$AW$651,36,FALSE),0) -> 7 | AM12: =($CV12&CW12&CX12&CY12) ->  | CV12: =IF(AND(E12>0,OR(AI12=""))," * No olvide digitar la variable Pueblos Originarios Hombres (Digite Cero si no tiene).",IF(AI12>E12," * La variable Pueblos Originarios Hombres no puede ser Mayor al Total.","")) ->  | CW12: =IF(AND(F12>0,OR(AJ12=""))," * No olvide digitar la variable Pueblos Originarios Mujeres (Digite Cero si no tiene).",IF(AJ12>F12," * La variable Pueblos Originarios Mujeres no puede ser Mayor al Total.","")) ->  | CX12: =IF(AND(E12>0,OR(AK12=""))," * No olvide digitar la variable Migrantes Hombres (Digite Cero si no tiene).",IF(AK12>E12," * La variable Migrantes Hombres no puede ser Mayor al Total.","")) ->  | CY12: =IF(AND(F12>0,OR(AL12=""))," * No olvide digitar la variable Migrantes Mujeres (Digite Cero si no tiene).",IF(AL12>F12," * La variable Migrantes Mujeres no puede ser Mayor al Total.","")) ->  | DR12: =IF($E12>=$AI12,0,1) -> 0 | DS12: =IF($F12>=$AJ12,0,1) -> 0 | DT12: =IF($E12>=$AK12,0,1) -> 0 | DU12: =IF($F12>=$AL12,0,1) -> 0
A13: P2400110 | C13: + 1 D.S. (+1.0 a +1.9) | D13: 10657 | E13: 5164 | F13: 5493 | G13: =IFERROR(VLOOKUP($A13,Filtro!$A$5:$AW$651,5,FALSE),0) -> 16 | H13: =IFERROR(VLOOKUP($A13,Filtro!$A$5:$AW$651,6,FALSE),0) -> 21 | I13: =IFERROR(VLOOKUP($A13,Filtro!$A$5:$AW$651,7,FALSE),0) -> 55 | J13: =IFERROR(VLOOKUP($A13,Filtro!$A$5:$AW$651,8,FALSE),0) -> 46 | K13: =IFERROR(VLOOKUP($A13,Filtro!$A$5:$AW$651,9,FALSE),0) -> 99 | L13: =IFERROR(VLOOKUP($A13,Filtro!$A$5:$AW$651,10,FALSE),0) -> 79 | M13: =IFERROR(VLOOKUP($A13,Filtro!$A$5:$AW$651,11,FALSE),0) -> 100 | N13: =IFERROR(VLOOKUP($A13,Filtro!$A$5:$AW$651,12,FALSE),0) -> 85 | O13: =IFERROR(VLOOKUP($A13,Filtro!$A$5:$AW$651,13,FALSE),0) -> 113 | P13: =IFERROR(VLOOKUP($A13,Filtro!$A$5:$AW$651,14,FALSE),0) -> 82 | Q13: =IFERROR(VLOOKUP($A13,Filtro!$A$5:$AW$651,15,FALSE),0) -> 118 | R13: =IFERROR(VLOOKUP($A13,Filtro!$A$5:$AW$651,16,FALSE),0) -> 124 | S13: =IFERROR(VLOOKUP($A13,Filtro!$A$5:$AW$651,17,FALSE),0) -> 162 | T13: =IFERROR(VLOOKUP($A13,Filtro!$A$5:$AW$651,18,FALSE),0) -> 174 | U13: =IFERROR(VLOOKUP($A13,Filtro!$A$5:$AW$651,19,FALSE),0) -> 553 | V13: =IFERROR(VLOOKUP($A13,Filtro!$A$5:$AW$651,20,FALSE),0) -> 628 | W13: =IFERROR(VLOOKUP($A13,Filtro!$A$5:$AW$651,21,FALSE),0) -> 677 | X13: =IFERROR(VLOOKUP($A13,Filtro!$A$5:$AW$651,22,FALSE),0) -> 748 | Y13: =IFERROR(VLOOKUP($A13,Filtro!$A$5:$AW$651,23,FALSE),0) -> 618 | Z13: =IFERROR(VLOOKUP($A13,Filtro!$A$5:$AW$651,24,FALSE),0) -> 673 | AA13: =IFERROR(VLOOKUP($A13,Filtro!$A$5:$AW$651,25,FALSE),0) -> 1020 | AB13: =IFERROR(VLOOKUP($A13,Filtro!$A$5:$AW$651,26,FALSE),0) -> 1200 | AC13: =IFERROR(VLOOKUP($A13,Filtro!$A$5:$AW$651,27,FALSE),0) -> 865 | AD13: =IFERROR(VLOOKUP($A13,Filtro!$A$5:$AW$651,28,FALSE),0) -> 921 | AE13: =IFERROR(VLOOKUP($A13,Filtro!$A$5:$AW$651,29,FALSE),0) -> 768 | AF13: =IFERROR(VLOOKUP($A13,Filtro!$A$5:$AW$651,30,FALSE),0) -> 712 | AG13: =IFERROR(VLOOKUP($A13,Filtro!$A$5:$AW$651,31,FALSE),0) -> 552 | AH13: =IFERROR(VLOOKUP($A13,Filtro!$A$5:$AW$651,32,FALSE),0) -> 528 | AI13: =IFERROR(VLOOKUP($A13,Filtro!$A$5:$AW$651,33,FALSE),0) -> 56 | AJ13: =IFERROR(VLOOKUP($A13,Filtro!$A$5:$AW$651,34,FALSE),0) -> 56 | AK13: =IFERROR(VLOOKUP($A13,Filtro!$A$5:$AW$651,35,FALSE),0) -> 20 | AL13: =IFERROR(VLOOKUP($A13,Filtro!$A$5:$AW$651,36,FALSE),0) -> 28 | AM13: =($CV13&CW13&CX13&CY13) ->  | CV13: =IF(AND(E13>0,OR(AI13=""))," * No olvide digitar la variable Pueblos Originarios Hombres (Digite Cero si no tiene).",IF(AI13>E13," * La variable Pueblos Originarios Hombres no puede ser Mayor al Total.","")) ->  | CW13: =IF(AND(F13>0,OR(AJ13=""))," * No olvide digitar la variable Pueblos Originarios Mujeres (Digite Cero si no tiene).",IF(AJ13>F13," * La variable Pueblos Originarios Mujeres no puede ser Mayor al Total.","")) ->  | CX13: =IF(AND(E13>0,OR(AK13=""))," * No olvide digitar la variable Migrantes Hombres (Digite Cero si no tiene).",IF(AK13>E13," * La variable Migrantes Hombres no puede ser Mayor al Total.","")) ->  | CY13: =IF(AND(F13>0,OR(AL13=""))," * No olvide digitar la variable Migrantes Mujeres (Digite Cero si no tiene).",IF(AL13>F13," * La variable Migrantes Mujeres no puede ser Mayor al Total.","")) ->  | DR13: =IF($E13>=$AI13,0,1) -> 0 | DS13: =IF($F13>=$AJ13,0,1) -> 0 | DT13: =IF($E13>=$AK13,0,1) -> 0 | DU13: =IF($F13>=$AL13,0,1) -> 0
C14: TOTAL | D14: 15164 | E14: =+G14+I14+K14+M14+O14+Q14+S14+U14+W14+Y14+AA14+AC14+AE14 -> 7552 | F14: =+H14+J14+L14+N14+P14+R14+T14+V14+X14+Z14+AB14+AD14+AF14 -> 7612 | G14: =+SUM(G12:G13) -> 38 | H14: =+SUM(H12:H13) -> 35 | I14: =+SUM(I12:I13) -> 70 | J14: =+SUM(J12:J13) -> 53 | K14: 116 | L14: 91 | M14: 124 | N14: 113 | O14: 164 | P14: 122 | Q14: 152 | R14: 168 | S14: 225 | T14: 218 | U14: 756 | V14: =+SUM(V12:V13) -> 826 | W14: =SUM(W12:W13) -> 946 | X14: =SUM(X12:X13) -> 994 | Y14: =SUM(Y12:Y13) -> 852 | Z14: 899 | AA14: 1442 | AB14: 1615 | AC14: 1401 | AD14: 1354 | AE14: 1266 | AF14: 1124 | AG14: =+SUM(AG12:AG13) -> 918 | AH14: 843 | AI14: 85 | AJ14: 81 | AK14: 30 | AL14: 35 | AM14: =($CE14&CF14) -> 
A15: P2070101 | C15: - 1 D.S. (-1.0 a -1.9) | D15: 3028 | E15: =+G15+I15+K15+M15+O15+Q15+S15+U15+W15+Y15+AA15+AC15+AE15 -> 1703 | F15: 1325 | G15: =IFERROR(VLOOKUP($A15,Filtro!$A$5:$AW$651,5,FALSE),0) -> 17 | H15: =IFERROR(VLOOKUP($A15,Filtro!$A$5:$AW$651,6,FALSE),0) -> 22 | I15: =IFERROR(VLOOKUP($A15,Filtro!$A$5:$AW$651,7,FALSE),0) -> 43 | J15: =IFERROR(VLOOKUP($A15,Filtro!$A$5:$AW$651,8,FALSE),0) -> 45 | K15: =IFERROR(VLOOKUP($A15,Filtro!$A$5:$AW$651,9,FALSE),0) -> 50 | L15: =IFERROR(VLOOKUP($A15,Filtro!$A$5:$AW$651,10,FALSE),0) -> 44 | M15: =IFERROR(VLOOKUP($A15,Filtro!$A$5:$AW$651,11,FALSE),0) -> 34 | N15: =IFERROR(VLOOKUP($A15,Filtro!$A$5:$AW$651,12,FALSE),0) -> 30 | O15: =IFERROR(VLOOKUP($A15,Filtro!$A$5:$AW$651,13,FALSE),0) -> 26 | P15: =IFERROR(VLOOKUP($A15,Filtro!$A$5:$AW$651,14,FALSE),0) -> 34 | Q15: =IFERROR(VLOOKUP($A15,Filtro!$A$5:$AW$651,15,FALSE),0) -> 26 | R15: =IFERROR(VLOOKUP($A15,Filtro!$A$5:$AW$651,16,FALSE),0) -> 22 | S15: =IFERROR(VLOOKUP($A15,Filtro!$A$5:$AW$651,17,FALSE),0) -> 48 | T15: =IFERROR(VLOOKUP($A15,Filtro!$A$5:$AW$651,18,FALSE),0) -> 31 | U15: =IFERROR(VLOOKUP($A15,Filtro!$A$5:$AW$651,19,FALSE),0) -> 131 | V15: =IFERROR(VLOOKUP($A15,Filtro!$A$5:$AW$651,20,FALSE),0) -> 104 | W15: =IFERROR(VLOOKUP($A15,Filtro!$A$5:$AW$651,21,FALSE),0) -> 229 | X15: =IFERROR(VLOOKUP($A15,Filtro!$A$5:$AW$651,22,FALSE),0) -> 134 | Y15: =IFERROR(VLOOKUP($A15,Filtro!$A$5:$AW$651,23,FALSE),0) -> 239 | Z15: =IFERROR(VLOOKUP($A15,Filtro!$A$5:$AW$651,24,FALSE),0) -> 128 | AA15: =IFERROR(VLOOKUP($A15,Filtro!$A$5:$AW$651,25,FALSE),0) -> 360 | AB15: =IFERROR(VLOOKUP($A15,Filtro!$A$5:$AW$651,26,FALSE),0) -> 259 | AC15: =IFERROR(VLOOKUP($A15,Filtro!$A$5:$AW$651,27,FALSE),0) -> 275 | AD15: =IFERROR(VLOOKUP($A15,Filtro!$A$5:$AW$651,28,FALSE),0) -> 252 | AE15: =IFERROR(VLOOKUP($A15,Filtro!$A$5:$AW$651,29,FALSE),0) -> 225 | AF15: =IFERROR(VLOOKUP($A15,Filtro!$A$5:$AW$651,30,FALSE),0) -> 220 | AG15: =IFERROR(VLOOKUP($A15,Filtro!$A$5:$AW$651,31,FALSE),0) -> 145 | AH15: =IFERROR(VLOOKUP($A15,Filtro!$A$5:$AW$651,32,FALSE),0) -> 141 | AI15: =IFERROR(VLOOKUP($A15,Filtro!$A$5:$AW$651,33,FALSE),0) -> 27 | AJ15: =IFERROR(VLOOKUP($A15,Filtro!$A$5:$AW$651,34,FALSE),0) -> 36 | AK15: =IFERROR(VLOOKUP($A15,Filtro!$A$5:$AW$651,35,FALSE),0) -> 19 | AL15: =IFERROR(VLOOKUP($A15,Filtro!$A$5:$AW$651,36,FALSE),0) -> 20 | AM15: =($CV15&CW15&CX15&CY15) ->  | CV15: =IF(AND(E15>0,OR(AI15=""))," * No olvide digitar la variable Pueblos Originarios Hombres (Digite Cero si no tiene).",IF(AI15>E15," * La variable Pueblos Originarios Hombres no puede ser Mayor al Total.","")) ->  | CW15: =IF(AND(F15>0,OR(AJ15=""))," * No olvide digitar la variable Pueblos Originarios Mujeres (Digite Cero si no tiene).",IF(AJ15>F15," * La variable Pueblos Originarios Mujeres no puede ser Mayor al Total.","")) ->  | CX15: =IF(AND(E15>0,OR(AK15=""))," * No olvide digitar la variable Migrantes Hombres (Digite Cero si no tiene).",IF(AK15>E15," * La variable Migrantes Hombres no puede ser Mayor al Total.","")) ->  | CY15: =IF(AND(F15>0,OR(AL15=""))," * No olvide digitar la variable Migrantes Mujeres (Digite Cero si no tiene).",IF(AL15>F15," * La variable Migrantes Mujeres no puede ser Mayor al Total.","")) ->  | DR15: =IF($E15>=$AI15,0,1) -> 0 | DS15: =IF($F15>=$AJ15,0,1) -> 0 | DT15: =IF($E15>=$AK15,0,1) -> 0 | DU15: =IF($F15>=$AL15,0,1) -> 0
A16: P2070102 | C16: - 2 D.S. (<= -2.0) | D16: 407 | E16: 249 | F16: =+H16+J16+L16+N16+P16+R16+T16+V16+X16+Z16+AB16+AD16+AF16 -> 158 | G16: =IFERROR(VLOOKUP($A16,Filtro!$A$5:$AW$651,5,FALSE),0) -> 10 | H16: =IFERROR(VLOOKUP($A16,Filtro!$A$5:$AW$651,6,FALSE),0) -> 4 | I16: =IFERROR(VLOOKUP($A16,Filtro!$A$5:$AW$651,7,FALSE),0) -> 8 | J16: =IFERROR(VLOOKUP($A16,Filtro!$A$5:$AW$651,8,FALSE),0) -> 13 | K16: =IFERROR(VLOOKUP($A16,Filtro!$A$5:$AW$651,9,FALSE),0) -> 8 | L16: =IFERROR(VLOOKUP($A16,Filtro!$A$5:$AW$651,10,FALSE),0) -> 10 | M16: =IFERROR(VLOOKUP($A16,Filtro!$A$5:$AW$651,11,FALSE),0) -> 13 | N16: =IFERROR(VLOOKUP($A16,Filtro!$A$5:$AW$651,12,FALSE),0) -> 2 | O16: =IFERROR(VLOOKUP($A16,Filtro!$A$5:$AW$651,13,FALSE),0) -> 4 | P16: =IFERROR(VLOOKUP($A16,Filtro!$A$5:$AW$651,14,FALSE),0) -> 5 | Q16: =IFERROR(VLOOKUP($A16,Filtro!$A$5:$AW$651,15,FALSE),0) -> 10 | R16: =IFERROR(VLOOKUP($A16,Filtro!$A$5:$AW$651,16,FALSE),0) -> 4 | S16: =IFERROR(VLOOKUP($A16,Filtro!$A$5:$AW$651,17,FALSE),0) -> 6 | T16: =IFERROR(VLOOKUP($A16,Filtro!$A$5:$AW$651,18,FALSE),0) -> 1 | U16: =IFERROR(VLOOKUP($A16,Filtro!$A$5:$AW$651,19,FALSE),0) -> 19 | V16: =IFERROR(VLOOKUP($A16,Filtro!$A$5:$AW$651,20,FALSE),0) -> 7 | W16: =IFERROR(VLOOKUP($A16,Filtro!$A$5:$AW$651,21,FALSE),0) -> 31 | X16: =IFERROR(VLOOKUP($A16,Filtro!$A$5:$AW$651,22,FALSE),0) -> 15 | Y16: =IFERROR(VLOOKUP($A16,Filtro!$A$5:$AW$651,23,FALSE),0) -> 35 | Z16: =IFERROR(VLOOKUP($A16,Filtro!$A$5:$AW$651,24,FALSE),0) -> 17 | AA16: =IFERROR(VLOOKUP($A16,Filtro!$A$5:$AW$651,25,FALSE),0) -> 48 | AB16: =IFERROR(VLOOKUP($A16,Filtro!$A$5:$AW$651,26,FALSE),0) -> 35 | AC16: =IFERROR(VLOOKUP($A16,Filtro!$A$5:$AW$651,27,FALSE),0) -> 31 | AD16: =IFERROR(VLOOKUP($A16,Filtro!$A$5:$AW$651,28,FALSE),0) -> 23 | AE16: =IFERROR(VLOOKUP($A16,Filtro!$A$5:$AW$651,29,FALSE),0) -> 26 | AF16: =IFERROR(VLOOKUP($A16,Filtro!$A$5:$AW$651,30,FALSE),0) -> 22 | AG16: =IFERROR(VLOOKUP($A16,Filtro!$A$5:$AW$651,31,FALSE),0) -> 13 | AH16: =IFERROR(VLOOKUP($A16,Filtro!$A$5:$AW$651,32,FALSE),0) -> 18 | AI16: =IFERROR(VLOOKUP($A16,Filtro!$A$5:$AW$651,33,FALSE),0) -> 4 | AJ16: =IFERROR(VLOOKUP($A16,Filtro!$A$5:$AW$651,34,FALSE),0) -> 5 | AK16: =IFERROR(VLOOKUP($A16,Filtro!$A$5:$AW$651,35,FALSE),0) -> 1 | AL16: =IFERROR(VLOOKUP($A16,Filtro!$A$5:$AW$651,36,FALSE),0) -> 1 | AM16: =($CV16&CW16&CX16&CY16) ->  | CV16: =IF(AND(E16>0,OR(AI16=""))," * No olvide digitar la variable Pueblos Originarios Hombres (Digite Cero si no tiene).",IF(AI16>E16," * La variable Pueblos Originarios Hombres no puede ser Mayor al Total.","")) ->  | CW16: =IF(AND(F16>0,OR(AJ16=""))," * No olvide digitar la variable Pueblos Originarios Mujeres (Digite Cero si no tiene).",IF(AJ16>F16," * La variable Pueblos Originarios Mujeres no puede ser Mayor al Total.","")) ->  | CX16: =IF(AND(E16>0,OR(AK16=""))," * No olvide digitar la variable Migrantes Hombres (Digite Cero si no tiene).",IF(AK16>E16," * La variable Migrantes Hombres no puede ser Mayor al Total.","")) ->  | CY16: =IF(AND(F16>0,OR(AL16=""))," * No olvide digitar la variable Migrantes Mujeres (Digite Cero si no tiene).",IF(AL16>F16," * La variable Migrantes Mujeres no puede ser Mayor al Total.","")) ->  | DR16: =IF($E16>=$AI16,0,1) -> 0 | DS16: =IF($F16>=$AJ16,0,1) -> 0 | DT16: =IF($E16>=$AK16,0,1) -> 0 | DU16: =IF($F16>=$AL16,0,1) -> 0
C17: TOTAL | D17: 3435 | E17: =+G17+I17+K17+M17+O17+Q17+S17+U17+W17+Y17+AA17+AC17+AE17 -> 1952 | F17: =+H17+J17+L17+N17+P17+R17+T17+V17+X17+Z17+AB17+AD17+AF17 -> 1483 | G17: =+SUM(G15:G16) -> 27 | H17: 26 | I17: =SUM(I15:I16) -> 51 | J17: =SUM(J15:J16) -> 58 | K17: 58 | L17: 54 | M17: 47 | N17: 32 | O17: 30 | P17: 39 | Q17: 36 | R17: 26 | S17: 54 | T17: 32 | U17: 150 | V17: 111 | W17: =SUM(W15:W16) -> 260 | X17: =SUM(X15:X16) -> 149 | Y17: 274 | Z17: 145 | AA17: 408 | AB17: 294 | AC17: 306 | AD17: 275 | AE17: 251 | AF17: 242 | AG17: =SUM(AG15:AG16) -> 158 | AH17: 159 | AI17: 31 | AJ17: 41 | AK17: 20 | AL17: 21 | AM17: =($CE17&CF17) -> 
A18: P2070201 | B18: INDICADOR PESO/TALLA | C18: + 2 D.S. (>= +2.0) | D18: 6487 | E18: =+G18+I18+K18+M18+O18+Q18+S18+U18+W18+Y18+AA18+AC18+AE18 -> 3386 | F18: 3101 | G18: =IFERROR(VLOOKUP($A18,Filtro!$A$5:$AW$651,5,FALSE),0) -> 23 | H18: =IFERROR(VLOOKUP($A18,Filtro!$A$5:$AW$651,6,FALSE),0) -> 9 | I18: =IFERROR(VLOOKUP($A18,Filtro!$A$5:$AW$651,7,FALSE),0) -> 21 | J18: =IFERROR(VLOOKUP($A18,Filtro!$A$5:$AW$651,8,FALSE),0) -> 25 | K18: =IFERROR(VLOOKUP($A18,Filtro!$A$5:$AW$651,9,FALSE),0) -> 36 | L18: =IFERROR(VLOOKUP($A18,Filtro!$A$5:$AW$651,10,FALSE),0) -> 29 | M18: =IFERROR(VLOOKUP($A18,Filtro!$A$5:$AW$651,11,FALSE),0) -> 49 | N18: =IFERROR(VLOOKUP($A18,Filtro!$A$5:$AW$651,12,FALSE),0) -> 43 | O18: =IFERROR(VLOOKUP($A18,Filtro!$A$5:$AW$651,13,FALSE),0) -> 60 | P18: =IFERROR(VLOOKUP($A18,Filtro!$A$5:$AW$651,14,FALSE),0) -> 42 | Q18: =IFERROR(VLOOKUP($A18,Filtro!$A$5:$AW$651,15,FALSE),0) -> 60 | R18: =IFERROR(VLOOKUP($A18,Filtro!$A$5:$AW$651,16,FALSE),0) -> 50 | S18: =IFERROR(VLOOKUP($A18,Filtro!$A$5:$AW$651,17,FALSE),0) -> 90 | T18: =IFERROR(VLOOKUP($A18,Filtro!$A$5:$AW$651,18,FALSE),0) -> 64 | U18: =IFERROR(VLOOKUP($A18,Filtro!$A$5:$AW$651,19,FALSE),0) -> 340 | V18: =IFERROR(VLOOKUP($A18,Filtro!$A$5:$AW$651,20,FALSE),0) -> 296 | W18: =IFERROR(VLOOKUP($A18,Filtro!$A$5:$AW$651,21,FALSE),0) -> 429 | X18: =IFERROR(VLOOKUP($A18,Filtro!$A$5:$AW$651,22,FALSE),0) -> 419 | Y18: =IFERROR(VLOOKUP($A18,Filtro!$A$5:$AW$651,23,FALSE),0) -> 362 | Z18: =IFERROR(VLOOKUP($A18,Filtro!$A$5:$AW$651,24,FALSE),0) -> 354 | AA18: =IFERROR(VLOOKUP($A18,Filtro!$A$5:$AW$651,25,FALSE),0) -> 585 | AB18: =IFERROR(VLOOKUP($A18,Filtro!$A$5:$AW$651,26,FALSE),0) -> 575 | AC18: =IFERROR(VLOOKUP($A18,Filtro!$A$5:$AW$651,27,FALSE),0) -> 678 | AD18: =IFERROR(VLOOKUP($A18,Filtro!$A$5:$AW$651,28,FALSE),0) -> 589 | AE18: =IFERROR(VLOOKUP($A18,Filtro!$A$5:$AW$651,29,FALSE),0) -> 653 | AF18: =IFERROR(VLOOKUP($A18,Filtro!$A$5:$AW$651,30,FALSE),0) -> 606 | AG18: =IFERROR(VLOOKUP($A18,Filtro!$A$5:$AW$651,31,FALSE),0) -> 471 | AH18: =IFERROR(VLOOKUP($A18,Filtro!$A$5:$AW$651,32,FALSE),0) -> 461 | AI18: =IFERROR(VLOOKUP($A18,Filtro!$A$5:$AW$651,33,FALSE),0) -> 24 | AJ18: =IFERROR(VLOOKUP($A18,Filtro!$A$5:$AW$651,34,FALSE),0) -> 24 | AK18: =IFERROR(VLOOKUP($A18,Filtro!$A$5:$AW$651,35,FALSE),0) -> 12 | AL18: =IFERROR(VLOOKUP($A18,Filtro!$A$5:$AW$651,36,FALSE),0) -> 13 | AM18: =($CV18&CW18&CX18&CY18) ->  | CV18: =IF(AND(E18>0,OR(AI18=""))," * No olvide digitar la variable Pueblos Originarios Hombres (Digite Cero si no tiene).",IF(AI18>E18," * La variable Pueblos Originarios Hombres no puede ser Mayor al Total.","")) ->  | CW18: =IF(AND(F18>0,OR(AJ18=""))," * No olvide digitar la variable Pueblos Originarios Mujeres (Digite Cero si no tiene).",IF(AJ18>F18," * La variable Pueblos Originarios Mujeres no puede ser Mayor al Total.","")) ->  | CX18: =IF(AND(E18>0,OR(AK18=""))," * No olvide digitar la variable Migrantes Hombres (Digite Cero si no tiene).",IF(AK18>E18," * La variable Migrantes Hombres no puede ser Mayor al Total.","")) ->  | CY18: =IF(AND(F18>0,OR(AL18=""))," * No olvide digitar la variable Migrantes Mujeres (Digite Cero si no tiene).",IF(AL18>F18," * La variable Migrantes Mujeres no puede ser Mayor al Total.","")) ->  | DR18: =IF($E18>=$AI18,0,1) -> 0 | DS18: =IF($F18>=$AJ18,0,1) -> 0 | DT18: =IF($E18>=$AK18,0,1) -> 0 | DU18: =IF($F18>=$AL18,0,1) -> 0
A19: P2070202 | C19: + 1 D.S. (+1.0 a +1.9) | D19: 12613 | E19: 6339 | F19: 6274 | G19: =IFERROR(VLOOKUP($A19,Filtro!$A$5:$AW$651,5,FALSE),0) -> 19 | H19: =IFERROR(VLOOKUP($A19,Filtro!$A$5:$AW$651,6,FALSE),0) -> 17 | I19: =IFERROR(VLOOKUP($A19,Filtro!$A$5:$AW$651,7,FALSE),0) -> 64 | J19: =IFERROR(VLOOKUP($A19,Filtro!$A$5:$AW$651,8,FALSE),0) -> 55 | K19: =IFERROR(VLOOKUP($A19,Filtro!$A$5:$AW$651,9,FALSE),0) -> 132 | L19: =IFERROR(VLOOKUP($A19,Filtro!$A$5:$AW$651,10,FALSE),0) -> 119 | M19: =IFERROR(VLOOKUP($A19,Filtro!$A$5:$AW$651,11,FALSE),0) -> 114 | N19: =IFERROR(VLOOKUP($A19,Filtro!$A$5:$AW$651,12,FALSE),0) -> 89 | O19: =IFERROR(VLOOKUP($A19,Filtro!$A$5:$AW$651,13,FALSE),0) -> 145 | P19: =IFERROR(VLOOKUP($A19,Filtro!$A$5:$AW$651,14,FALSE),0) -> 137 | Q19: =IFERROR(VLOOKUP($A19,Filtro!$A$5:$AW$651,15,FALSE),0) -> 143 | R19: =IFERROR(VLOOKUP($A19,Filtro!$A$5:$AW$651,16,FALSE),0) -> 159 | S19: =IFERROR(VLOOKUP($A19,Filtro!$A$5:$AW$651,17,FALSE),0) -> 202 | T19: =IFERROR(VLOOKUP($A19,Filtro!$A$5:$AW$651,18,FALSE),0) -> 224 | U19: =IFERROR(VLOOKUP($A19,Filtro!$A$5:$AW$651,19,FALSE),0) -> 708 | V19: =IFERROR(VLOOKUP($A19,Filtro!$A$5:$AW$651,20,FALSE),0) -> 716 | W19: =IFERROR(VLOOKUP($A19,Filtro!$A$5:$AW$651,21,FALSE),0) -> 930 | X19: =IFERROR(VLOOKUP($A19,Filtro!$A$5:$AW$651,22,FALSE),0) -> 920 | Y19: =IFERROR(VLOOKUP($A19,Filtro!$A$5:$AW$651,23,FALSE),0) -> 753 | Z19: =IFERROR(VLOOKUP($A19,Filtro!$A$5:$AW$651,24,FALSE),0) -> 794 | AA19: =IFERROR(VLOOKUP($A19,Filtro!$A$5:$AW$651,25,FALSE),0) -> 1230 | AB19: =IFERROR(VLOOKUP($A19,Filtro!$A$5:$AW$651,26,FALSE),0) -> 1199 | AC19: =IFERROR(VLOOKUP($A19,Filtro!$A$5:$AW$651,27,FALSE),0) -> 1017 | AD19: =IFERROR(VLOOKUP($A19,Filtro!$A$5:$AW$651,28,FALSE),0) -> 1010 | AE19: =IFERROR(VLOOKUP($A19,Filtro!$A$5:$AW$651,29,FALSE),0) -> 882 | AF19: =IFERROR(VLOOKUP($A19,Filtro!$A$5:$AW$651,30,FALSE),0) -> 835 | AG19: =IFERROR(VLOOKUP($A19,Filtro!$A$5:$AW$651,31,FALSE),0) -> 631 | AH19: =IFERROR(VLOOKUP($A19,Filtro!$A$5:$AW$651,32,FALSE),0) -> 594 | AI19: =IFERROR(VLOOKUP($A19,Filtro!$A$5:$AW$651,33,FALSE),0) -> 46 | AJ19: =IFERROR(VLOOKUP($A19,Filtro!$A$5:$AW$651,34,FALSE),0) -> 48 | AK19: =IFERROR(VLOOKUP($A19,Filtro!$A$5:$AW$651,35,FALSE),0) -> 30 | AL19: =IFERROR(VLOOKUP($A19,Filtro!$A$5:$AW$651,36,FALSE),0) -> 31 | AM19: =($CV19&CW19&CX19&CY19) ->  | CV19: =IF(AND(E19>0,OR(AI19=""))," * No olvide digitar la variable Pueblos Originarios Hombres (Digite Cero si no tiene).",IF(AI19>E19," * La variable Pueblos Originarios Hombres no puede ser Mayor al Total.","")) ->  | CW19: =IF(AND(F19>0,OR(AJ19=""))," * No olvide digitar la variable Pueblos Originarios Mujeres (Digite Cero si no tiene).",IF(AJ19>F19," * La variable Pueblos Originarios Mujeres no puede ser Mayor al Total.","")) ->  | CX19: =IF(AND(E19>0,OR(AK19=""))," * No olvide digitar la variable Migrantes Hombres (Digite Cero si no tiene).",IF(AK19>E19," * La variable Migrantes Hombres no puede ser Mayor al Total.","")) ->  | CY19: =IF(AND(F19>0,OR(AL19=""))," * No olvide digitar la variable Migrantes Mujeres (Digite Cero si no tiene).",IF(AL19>F19," * La variable Migrantes Mujeres no puede ser Mayor al Total.","")) ->  | DR19: 0 | DS19: 0 | DT19: 0 | DU19: 0
C20: TOTAL | D20: 19100 | E20: =+G20+I20+K20+M20+O20+Q20+S20+U20+W20+Y20+AA20+AC20+AE20 -> 9725 | F20: =+H20+J20+L20+N20+P20+R20+T20+V20+X20+Z20+AB20+AD20+AF20 -> 9375 | G20: =SUM(G18:G19) -> 42 | H20: =SUM(H18:H19) -> 26 | I20: =+SUM(I18:I19) -> 85 | J20: =+SUM(J18:J19) -> 80 | K20: =+SUM(K18:K19) -> 168 | L20: 148 | M20: 163 | N20: 132 | O20: 205 | P20: 179 | Q20: 203 | R20: 209 | S20: 292 | T20: 288 | U20: 1048 | V20: 1012 | W20: 1359 | X20: 1339 | Y20: 1115 | Z20: 1148 | AA20: 1815 | AB20: 1774 | AC20: 1695 | AD20: 1599 | AE20: 1535 | AF20: 1441 | AG20: 1102 | AH20: 1055 | AI20: 70 | AJ20: 72 | AK20: =+SUM(AK18:AK19) -> 42 | AL20: 44 | AM20: =($CE20&CF20) -> 
A21: P2070301 | C21: - 1 D.S. (-1.0 a -1.9) | D21: 1723 | E21: =+G21+I21+K21+M21+O21+Q21+S21+U21+W21+Y21+AA21+AC21+AE21 -> 974 | F21: 749 | G21: =IFERROR(VLOOKUP($A21,Filtro!$A$5:$AW$651,5,FALSE),0) -> 20 | H21: =IFERROR(VLOOKUP($A21,Filtro!$A$5:$AW$651,6,FALSE),0) -> 28 | I21: =IFERROR(VLOOKUP($A21,Filtro!$A$5:$AW$651,7,FALSE),0) -> 24 | J21: =IFERROR(VLOOKUP($A21,Filtro!$A$5:$AW$651,8,FALSE),0) -> 34 | K21: =IFERROR(VLOOKUP($A21,Filtro!$A$5:$AW$651,9,FALSE),0) -> 32 | L21: =IFERROR(VLOOKUP($A21,Filtro!$A$5:$AW$651,10,FALSE),0) -> 31 | M21: =IFERROR(VLOOKUP($A21,Filtro!$A$5:$AW$651,11,FALSE),0) -> 29 | N21: =IFERROR(VLOOKUP($A21,Filtro!$A$5:$AW$651,12,FALSE),0) -> 13 | O21: =IFERROR(VLOOKUP($A21,Filtro!$A$5:$AW$651,13,FALSE),0) -> 23 | P21: =IFERROR(VLOOKUP($A21,Filtro!$A$5:$AW$651,14,FALSE),0) -> 20 | Q21: =IFERROR(VLOOKUP($A21,Filtro!$A$5:$AW$651,15,FALSE),0) -> 26 | R21: =IFERROR(VLOOKUP($A21,Filtro!$A$5:$AW$651,16,FALSE),0) -> 15 | S21: =IFERROR(VLOOKUP($A21,Filtro!$A$5:$AW$651,17,FALSE),0) -> 28 | T21: =IFERROR(VLOOKUP($A21,Filtro!$A$5:$AW$651,18,FALSE),0) -> 25 | U21: =IFERROR(VLOOKUP($A21,Filtro!$A$5:$AW$651,19,FALSE),0) -> 92 | V21: =IFERROR(VLOOKUP($A21,Filtro!$A$5:$AW$651,20,FALSE),0) -> 61 | W21: =IFERROR(VLOOKUP($A21,Filtro!$A$5:$AW$651,21,FALSE),0) -> 85 | X21: =IFERROR(VLOOKUP($A21,Filtro!$A$5:$AW$651,22,FALSE),0) -> 54 | Y21: =IFERROR(VLOOKUP($A21,Filtro!$A$5:$AW$651,23,FALSE),0) -> 101 | Z21: =IFERROR(VLOOKUP($A21,Filtro!$A$5:$AW$651,24,FALSE),0) -> 70 | AA21: =IFERROR(VLOOKUP($A21,Filtro!$A$5:$AW$651,25,FALSE),0) -> 219 | AB21: =IFERROR(VLOOKUP($A21,Filtro!$A$5:$AW$651,26,FALSE),0) -> 150 | AC21: =IFERROR(VLOOKUP($A21,Filtro!$A$5:$AW$651,27,FALSE),0) -> 175 | AD21: =IFERROR(VLOOKUP($A21,Filtro!$A$5:$AW$651,28,FALSE),0) -> 141 | AE21: =IFERROR(VLOOKUP($A21,Filtro!$A$5:$AW$651,29,FALSE),0) -> 120 | AF21: =IFERROR(VLOOKUP($A21,Filtro!$A$5:$AW$651,30,FALSE),0) -> 107 | AG21: =IFERROR(VLOOKUP($A21,Filtro!$A$5:$AW$651,31,FALSE),0) -> 81 | AH21: =IFERROR(VLOOKUP($A21,Filtro!$A$5:$AW$651,32,FALSE),0) -> 97 | AI21: =IFERROR(VLOOKUP($A21,Filtro!$A$5:$AW$651,33,FALSE),0) -> 15 | AJ21: =IFERROR(VLOOKUP($A21,Filtro!$A$5:$AW$651,34,FALSE),0) -> 17 | AK21: =IFERROR(VLOOKUP($A21,Filtro!$A$5:$AW$651,35,FALSE),0) -> 12 | AL21: =IFERROR(VLOOKUP($A21,Filtro!$A$5:$AW$651,36,FALSE),0) -> 12 | AM21: =($CV21&CW21&CX21&CY21) ->  | CV21: =IF(AND(E21>0,OR(AI21=""))," * No olvide digitar la variable Pueblos Originarios Hombres (Digite Cero si no tiene).",IF(AI21>E21," * La variable Pueblos Originarios Hombres no puede ser Mayor al Total.","")) ->  | CW21: =IF(AND(F21>0,OR(AJ21=""))," * No olvide digitar la variable Pueblos Originarios Mujeres (Digite Cero si no tiene).",IF(AJ21>F21," * La variable Pueblos Originarios Mujeres no puede ser Mayor al Total.","")) ->  | CX21: =IF(AND(E21>0,OR(AK21=""))," * No olvide digitar la variable Migrantes Hombres (Digite Cero si no tiene).",IF(AK21>E21," * La variable Migrantes Hombres no puede ser Mayor al Total.","")) ->  | CY21: =IF(AND(F21>0,OR(AL21=""))," * No olvide digitar la variable Migrantes Mujeres (Digite Cero si no tiene).",IF(AL21>F21," * La variable Migrantes Mujeres no puede ser Mayor al Total.","")) ->  | DR21: 0 | DS21: 0 | DT21: 0 | DU21: 0
A22: P2070302 | C22: - 2 D.S. (<= -2.0) | D22: 267 | E22: 156 | F22: 111 | G22: =IFERROR(VLOOKUP($A22,Filtro!$A$5:$AW$651,5,FALSE),0) -> 7 | H22: =IFERROR(VLOOKUP($A22,Filtro!$A$5:$AW$651,6,FALSE),0) -> 7 | I22: =IFERROR(VLOOKUP($A22,Filtro!$A$5:$AW$651,7,FALSE),0) -> 5 | J22: =IFERROR(VLOOKUP($A22,Filtro!$A$5:$AW$651,8,FALSE),0) -> 12 | K22: =IFERROR(VLOOKUP($A22,Filtro!$A$5:$AW$651,9,FALSE),0) -> 6 | L22: =IFERROR(VLOOKUP($A22,Filtro!$A$5:$AW$651,10,FALSE),0) -> 8 | M22: =IFERROR(VLOOKUP($A22,Filtro!$A$5:$AW$651,11,FALSE),0) -> 7 | N22: =IFERROR(VLOOKUP($A22,Filtro!$A$5:$AW$651,12,FALSE),0) -> 1 | O22: =IFERROR(VLOOKUP($A22,Filtro!$A$5:$AW$651,13,FALSE),0) -> 1 | P22: =IFERROR(VLOOKUP($A22,Filtro!$A$5:$AW$651,14,FALSE),0) -> 2 | Q22: =IFERROR(VLOOKUP($A22,Filtro!$A$5:$AW$651,15,FALSE),0) -> 6 | R22: =IFERROR(VLOOKUP($A22,Filtro!$A$5:$AW$651,16,FALSE),0) -> 3 | S22: =IFERROR(VLOOKUP($A22,Filtro!$A$5:$AW$651,17,FALSE),0) -> 2 | T22: =IFERROR(VLOOKUP($A22,Filtro!$A$5:$AW$651,18,FALSE),0) -> 1 | U22: =IFERROR(VLOOKUP($A22,Filtro!$A$5:$AW$651,19,FALSE),0) -> 10 | V22: =IFERROR(VLOOKUP($A22,Filtro!$A$5:$AW$651,20,FALSE),0) -> 9 | W22: =IFERROR(VLOOKUP($A22,Filtro!$A$5:$AW$651,21,FALSE),0) -> 28 | X22: =IFERROR(VLOOKUP($A22,Filtro!$A$5:$AW$651,22,FALSE),0) -> 11 | Y22: =IFERROR(VLOOKUP($A22,Filtro!$A$5:$AW$651,23,FALSE),0) -> 12 | Z22: =IFERROR(VLOOKUP($A22,Filtro!$A$5:$AW$651,24,FALSE),0) -> 4 | AA22: =IFERROR(VLOOKUP($A22,Filtro!$A$5:$AW$651,25,FALSE),0) -> 26 | AB22: =IFERROR(VLOOKUP($A22,Filtro!$A$5:$AW$651,26,FALSE),0) -> 26 | AC22: =IFERROR(VLOOKUP($A22,Filtro!$A$5:$AW$651,27,FALSE),0) -> 30 | AD22: =IFERROR(VLOOKUP($A22,Filtro!$A$5:$AW$651,28,FALSE),0) -> 13 | AE22: =IFERROR(VLOOKUP($A22,Filtro!$A$5:$AW$651,29,FALSE),0) -> 16 | AF22: =IFERROR(VLOOKUP($A22,Filtro!$A$5:$AW$651,30,FALSE),0) -> 14 | AG22: =IFERROR(VLOOKUP($A22,Filtro!$A$5:$AW$651,31,FALSE),0) -> 10 | AH22: =IFERROR(VLOOKUP($A22,Filtro!$A$5:$AW$651,32,FALSE),0) -> 9 | AI22: =IFERROR(VLOOKUP($A22,Filtro!$A$5:$AW$651,33,FALSE),0) -> 1 | AJ22: =IFERROR(VLOOKUP($A22,Filtro!$A$5:$AW$651,34,FALSE),0) -> 13 | AK22: =IFERROR(VLOOKUP($A22,Filtro!$A$5:$AW$651,35,FALSE),0) -> 0 | AL22: =IFERROR(VLOOKUP($A22,Filtro!$A$5:$AW$651,36,FALSE),0) -> 0 | AM22: =($CV22&CW22&CX22&CY22) ->  | CV22: =IF(AND(E22>0,OR(AI22=""))," * No olvide digitar la variable Pueblos Originarios Hombres (Digite Cero si no tiene).",IF(AI22>E22," * La variable Pueblos Originarios Hombres no puede ser Mayor al Total.","")) ->  | CW22: =IF(AND(F22>0,OR(AJ22=""))," * No olvide digitar la variable Pueblos Originarios Mujeres (Digite Cero si no tiene).",IF(AJ22>F22," * La variable Pueblos Originarios Mujeres no puede ser Mayor al Total.","")) ->  | CX22: =IF(AND(E22>0,OR(AK22=""))," * No olvide digitar la variable Migrantes Hombres (Digite Cero si no tiene).",IF(AK22>E22," * La variable Migrantes Hombres no puede ser Mayor al Total.","")) ->  | CY22: =IF(AND(F22>0,OR(AL22=""))," * No olvide digitar la variable Migrantes Mujeres (Digite Cero si no tiene).",IF(AL22>F22," * La variable Migrantes Mujeres no puede ser Mayor al Total.","")) ->  | DR22: 0 | DS22: 0 | DT22: 0 | DU22: 0
C23: TOTAL | D23: 1990 | E23: =+G23+I23+K23+M23+O23+Q23+S23+U23+W23+Y23+AA23+AC23+AE23 -> 1130 | F23: =+H23+J23+L23+N23+P23+R23+T23+V23+X23+Z23+AB23+AD23+AF23 -> 860 | G23: =SUM(G21:G22) -> 27 | H23: 35 | I23: =SUM(I21:I22) -> 29 | J23: =SUM(J21:J22) -> 46 | K23: =SUM(K21:K22) -> 38 | L23: 39 | M23: 36 | N23: 14 | O23: 24 | P23: 22 | Q23: 32 | R23: 18 | S23: 30 | T23: 26 | U23: 102 | V23: 70 | W23: 113 | X23: 65 | Y23: 113 | Z23: 74 | AA23: 245 | AB23: 176 | AC23: 205 | AD23: 154 | AE23: 136 | AF23: 121 | AG23: 91 | AH23: 106 | AI23: 16 | AJ23: =SUM(AJ21:AJ22) -> 30 | AK23: =SUM(AK21:AK22) -> 12 | AL23: =SUM(AL21:AL22) -> 12 | AM23: =($CE23&CF23) -> 
A24: P2400120 | B24: INDICADOR TALLA/EDAD | C24: + 2 D.S. (>= +2.0) | D24: 1333 | E24: =+G24+I24+K24+M24+O24+Q24+S24+U24+W24+Y24+AA24+AC24+AE24 -> 777 | F24: 556 | G24: =IFERROR(VLOOKUP($A24,Filtro!$A$5:$AW$651,5,FALSE),0) -> 6 | H24: =IFERROR(VLOOKUP($A24,Filtro!$A$5:$AW$651,6,FALSE),0) -> 9 | I24: =IFERROR(VLOOKUP($A24,Filtro!$A$5:$AW$651,7,FALSE),0) -> 11 | J24: =IFERROR(VLOOKUP($A24,Filtro!$A$5:$AW$651,8,FALSE),0) -> 10 | K24: =IFERROR(VLOOKUP($A24,Filtro!$A$5:$AW$651,9,FALSE),0) -> 9 | L24: =IFERROR(VLOOKUP($A24,Filtro!$A$5:$AW$651,10,FALSE),0) -> 5 | M24: =IFERROR(VLOOKUP($A24,Filtro!$A$5:$AW$651,11,FALSE),0) -> 10 | N24: =IFERROR(VLOOKUP($A24,Filtro!$A$5:$AW$651,12,FALSE),0) -> 9 | O24: =IFERROR(VLOOKUP($A24,Filtro!$A$5:$AW$651,13,FALSE),0) -> 15 | P24: =IFERROR(VLOOKUP($A24,Filtro!$A$5:$AW$651,14,FALSE),0) -> 10 | Q24: =IFERROR(VLOOKUP($A24,Filtro!$A$5:$AW$651,15,FALSE),0) -> 14 | R24: =IFERROR(VLOOKUP($A24,Filtro!$A$5:$AW$651,16,FALSE),0) -> 11 | S24: =IFERROR(VLOOKUP($A24,Filtro!$A$5:$AW$651,17,FALSE),0) -> 25 | T24: =IFERROR(VLOOKUP($A24,Filtro!$A$5:$AW$651,18,FALSE),0) -> 10 | U24: =IFERROR(VLOOKUP($A24,Filtro!$A$5:$AW$651,19,FALSE),0) -> 83 | V24: =IFERROR(VLOOKUP($A24,Filtro!$A$5:$AW$651,20,FALSE),0) -> 55 | W24: =IFERROR(VLOOKUP($A24,Filtro!$A$5:$AW$651,21,FALSE),0) -> 68 | X24: =IFERROR(VLOOKUP($A24,Filtro!$A$5:$AW$651,22,FALSE),0) -> 53 | Y24: =IFERROR(VLOOKUP($A24,Filtro!$A$5:$AW$651,23,FALSE),0) -> 70 | Z24: =IFERROR(VLOOKUP($A24,Filtro!$A$5:$AW$651,24,FALSE),0) -> 54 | AA24: =IFERROR(VLOOKUP($A24,Filtro!$A$5:$AW$651,25,FALSE),0) -> 152 | AB24: =IFERROR(VLOOKUP($A24,Filtro!$A$5:$AW$651,26,FALSE),0) -> 122 | AC24: =IFERROR(VLOOKUP($A24,Filtro!$A$5:$AW$651,27,FALSE),0) -> 148 | AD24: =IFERROR(VLOOKUP($A24,Filtro!$A$5:$AW$651,28,FALSE),0) -> 111 | AE24: =IFERROR(VLOOKUP($A24,Filtro!$A$5:$AW$651,29,FALSE),0) -> 166 | AF24: =IFERROR(VLOOKUP($A24,Filtro!$A$5:$AW$651,30,FALSE),0) -> 97 | AG24: =IFERROR(VLOOKUP($A24,Filtro!$A$5:$AW$651,31,FALSE),0) -> 101 | AH24: =IFERROR(VLOOKUP($A24,Filtro!$A$5:$AW$651,32,FALSE),0) -> 84 | AI24: =IFERROR(VLOOKUP($A24,Filtro!$A$5:$AW$651,33,FALSE),0) -> 10 | AJ24: =IFERROR(VLOOKUP($A24,Filtro!$A$5:$AW$651,34,FALSE),0) -> 13 | AK24: =IFERROR(VLOOKUP($A24,Filtro!$A$5:$AW$651,35,FALSE),0) -> 3 | AL24: =IFERROR(VLOOKUP($A24,Filtro!$A$5:$AW$651,36,FALSE),0) -> 3 | AM24: =($CV24&CW24&CX24&CY24) ->  | CV24: =IF(AND(E24>0,OR(AI24=""))," * No olvide digitar la variable Pueblos Originarios Hombres (Digite Cero si no tiene).",IF(AI24>E24," * La variable Pueblos Originarios Hombres no puede ser Mayor al Total.","")) ->  | CW24: =IF(AND(F24>0,OR(AJ24=""))," * No olvide digitar la variable Pueblos Originarios Mujeres (Digite Cero si no tiene).",IF(AJ24>F24," * La variable Pueblos Originarios Mujeres no puede ser Mayor al Total.","")) ->  | CX24: =IF(AND(E24>0,OR(AK24=""))," * No olvide digitar la variable Migrantes Hombres (Digite Cero si no tiene).",IF(AK24>E24," * La variable Migrantes Hombres no puede ser Mayor al Total.","")) ->  | CY24: =IF(AND(F24>0,OR(AL24=""))," * No olvide digitar la variable Migrantes Mujeres (Digite Cero si no tiene).",IF(AL24>F24," * La variable Migrantes Mujeres no puede ser Mayor al Total.","")) ->  | DR24: 0 | DS24: 0 | DT24: 0 | DU24: 0
A25: P2400130 | C25: + 1 D.S. (+1.0 a +1.9) | D25: 5990 | E25: 2958 | F25: 3032 | G25: =IFERROR(VLOOKUP($A25,Filtro!$A$5:$AW$651,5,FALSE),0) -> 26 | H25: =IFERROR(VLOOKUP($A25,Filtro!$A$5:$AW$651,6,FALSE),0) -> 37 | I25: =IFERROR(VLOOKUP($A25,Filtro!$A$5:$AW$651,7,FALSE),0) -> 47 | J25: =IFERROR(VLOOKUP($A25,Filtro!$A$5:$AW$651,8,FALSE),0) -> 29 | K25: =IFERROR(VLOOKUP($A25,Filtro!$A$5:$AW$651,9,FALSE),0) -> 45 | L25: =IFERROR(VLOOKUP($A25,Filtro!$A$5:$AW$651,10,FALSE),0) -> 57 | M25: =IFERROR(VLOOKUP($A25,Filtro!$A$5:$AW$651,11,FALSE),0) -> 48 | N25: =IFERROR(VLOOKUP($A25,Filtro!$A$5:$AW$651,12,FALSE),0) -> 51 | O25: =IFERROR(VLOOKUP($A25,Filtro!$A$5:$AW$651,13,FALSE),0) -> 63 | P25: =IFERROR(VLOOKUP($A25,Filtro!$A$5:$AW$651,14,FALSE),0) -> 61 | Q25: =IFERROR(VLOOKUP($A25,Filtro!$A$5:$AW$651,15,FALSE),0) -> 55 | R25: =IFERROR(VLOOKUP($A25,Filtro!$A$5:$AW$651,16,FALSE),0) -> 65 | S25: =IFERROR(VLOOKUP($A25,Filtro!$A$5:$AW$651,17,FALSE),0) -> 83 | T25: =IFERROR(VLOOKUP($A25,Filtro!$A$5:$AW$651,18,FALSE),0) -> 76 | U25: =IFERROR(VLOOKUP($A25,Filtro!$A$5:$AW$651,19,FALSE),0) -> 242 | V25: =IFERROR(VLOOKUP($A25,Filtro!$A$5:$AW$651,20,FALSE),0) -> 295 | W25: =IFERROR(VLOOKUP($A25,Filtro!$A$5:$AW$651,21,FALSE),0) -> 311 | X25: =IFERROR(VLOOKUP($A25,Filtro!$A$5:$AW$651,22,FALSE),0) -> 335 | Y25: =IFERROR(VLOOKUP($A25,Filtro!$A$5:$AW$651,23,FALSE),0) -> 328 | Z25: =IFERROR(VLOOKUP($A25,Filtro!$A$5:$AW$651,24,FALSE),0) -> 295 | AA25: =IFERROR(VLOOKUP($A25,Filtro!$A$5:$AW$651,25,FALSE),0) -> 575 | AB25: =IFERROR(VLOOKUP($A25,Filtro!$A$5:$AW$651,26,FALSE),0) -> 724 | AC25: =IFERROR(VLOOKUP($A25,Filtro!$A$5:$AW$651,27,FALSE),0) -> 600 | AD25: =IFERROR(VLOOKUP($A25,Filtro!$A$5:$AW$651,28,FALSE),0) -> 582 | AE25: =IFERROR(VLOOKUP($A25,Filtro!$A$5:$AW$651,29,FALSE),0) -> 535 | AF25: =IFERROR(VLOOKUP($A25,Filtro!$A$5:$AW$651,30,FALSE),0) -> 425 | AG25: =IFERROR(VLOOKUP($A25,Filtro!$A$5:$AW$651,31,FALSE),0) -> 362 | AH25: =IFERROR(VLOOKUP($A25,Filtro!$A$5:$AW$651,32,FALSE),0) -> 319 | AI25: =IFERROR(VLOOKUP($A25,Filtro!$A$5:$AW$651,33,FALSE),0) -> 39 | AJ25: =IFERROR(VLOOKUP($A25,Filtro!$A$5:$AW$651,34,FALSE),0) -> 28 | AK25: =IFERROR(VLOOKUP($A25,Filtro!$A$5:$AW$651,35,FALSE),0) -> 19 | AL25: =IFERROR(VLOOKUP($A25,Filtro!$A$5:$AW$651,36,FALSE),0) -> 24 | AM25: =($CV25&CW25&CX25&CY25) ->  | CV25: =IF(AND(E25>0,OR(AI25=""))," * No olvide digitar la variable Pueblos Originarios Hombres (Digite Cero si no tiene).",IF(AI25>E25," * La variable Pueblos Originarios Hombres no puede ser Mayor al Total.","")) ->  | CW25: =IF(AND(F25>0,OR(AJ25=""))," * No olvide digitar la variable Pueblos Originarios Mujeres (Digite Cero si no tiene).",IF(AJ25>F25," * La variable Pueblos Originarios Mujeres no puede ser Mayor al Total.","")) ->  | CX25: =IF(AND(E25>0,OR(AK25=""))," * No olvide digitar la variable Migrantes Hombres (Digite Cero si no tiene).",IF(AK25>E25," * La variable Migrantes Hombres no puede ser Mayor al Total.","")) ->  | CY25: =IF(AND(F25>0,OR(AL25=""))," * No olvide digitar la variable Migrantes Mujeres (Digite Cero si no tiene).",IF(AL25>F25," * La variable Migrantes Mujeres no puede ser Mayor al Total.","")) ->  | DR25: 0 | DS25: 0 | DT25: 0 | DU25: 0
C26: TOTAL | D26: 7323 | E26: =+G26+I26+K26+M26+O26+Q26+S26+U26+W26+Y26+AA26+AC26+AE26 -> 3735 | F26: =+H26+J26+L26+N26+P26+R26+T26+V26+X26+Z26+AB26+AD26+AF26 -> 3588 | G26: =SUM(G24:G25) -> 32 | H26: 46 | I26: =SUM(I24:I25) -> 58 | J26: =SUM(J24:J25) -> 39 | K26: 54 | L26: 62 | M26: 58 | N26: 60 | O26: 78 | P26: 71 | Q26: 69 | R26: 76 | S26: 108 | T26: 86 | U26: 325 | V26: 350 | W26: 379 | X26: 388 | Y26: 398 | Z26: 349 | AA26: 727 | AB26: 846 | AC26: 748 | AD26: 693 | AE26: 701 | AF26: 522 | AG26: 463 | AH26: 403 | AI26: 49 | AJ26: 41 | AK26: =SUM(AK24:AK25) -> 22 | AL26: 27 | AM26: =($CE26&CF26) -> 
A27: P2070401 | C27: - 1 D.S. (-1.0 a -1.9) | D27: 7164 | E27: =+G27+I27+K27+M27+O27+Q27+S27+U27+W27+Y27+AA27+AC27+AE27 -> 3822 | F27: =+H27+J27+L27+N27+P27+R27+T27+V27+X27+Z27+AB27+AD27+AF27 -> 3342 | G27: =IFERROR(VLOOKUP($A27,Filtro!$A$5:$AW$651,5,FALSE),0) -> 18 | H27: =IFERROR(VLOOKUP($A27,Filtro!$A$5:$AW$651,6,FALSE),0) -> 18 | I27: =IFERROR(VLOOKUP($A27,Filtro!$A$5:$AW$651,7,FALSE),0) -> 49 | J27: =IFERROR(VLOOKUP($A27,Filtro!$A$5:$AW$651,8,FALSE),0) -> 58 | K27: =IFERROR(VLOOKUP($A27,Filtro!$A$5:$AW$651,9,FALSE),0) -> 102 | L27: =IFERROR(VLOOKUP($A27,Filtro!$A$5:$AW$651,10,FALSE),0) -> 83 | M27: =IFERROR(VLOOKUP($A27,Filtro!$A$5:$AW$651,11,FALSE),0) -> 82 | N27: =IFERROR(VLOOKUP($A27,Filtro!$A$5:$AW$651,12,FALSE),0) -> 48 | O27: =IFERROR(VLOOKUP($A27,Filtro!$A$5:$AW$651,13,FALSE),0) -> 73 | P27: =IFERROR(VLOOKUP($A27,Filtro!$A$5:$AW$651,14,FALSE),0) -> 51 | Q27: =IFERROR(VLOOKUP($A27,Filtro!$A$5:$AW$651,15,FALSE),0) -> 67 | R27: =IFERROR(VLOOKUP($A27,Filtro!$A$5:$AW$651,16,FALSE),0) -> 58 | S27: =IFERROR(VLOOKUP($A27,Filtro!$A$5:$AW$651,17,FALSE),0) -> 112 | T27: =IFERROR(VLOOKUP($A27,Filtro!$A$5:$AW$651,18,FALSE),0) -> 84 | U27: =IFERROR(VLOOKUP($A27,Filtro!$A$5:$AW$651,19,FALSE),0) -> 400 | V27: =IFERROR(VLOOKUP($A27,Filtro!$A$5:$AW$651,20,FALSE),0) -> 345 | W27: =IFERROR(VLOOKUP($A27,Filtro!$A$5:$AW$651,21,FALSE),0) -> 576 | X27: =IFERROR(VLOOKUP($A27,Filtro!$A$5:$AW$651,22,FALSE),0) -> 459 | Y27: =IFERROR(VLOOKUP($A27,Filtro!$A$5:$AW$651,23,FALSE),0) -> 545 | Z27: =IFERROR(VLOOKUP($A27,Filtro!$A$5:$AW$651,24,FALSE),0) -> 427 | AA27: =IFERROR(VLOOKUP($A27,Filtro!$A$5:$AW$651,25,FALSE),0) -> 753 | AB27: =IFERROR(VLOOKUP($A27,Filtro!$A$5:$AW$651,26,FALSE),0) -> 694 | AC27: =IFERROR(VLOOKUP($A27,Filtro!$A$5:$AW$651,27,FALSE),0) -> 576 | AD27: =IFERROR(VLOOKUP($A27,Filtro!$A$5:$AW$651,28,FALSE),0) -> 542 | AE27: =IFERROR(VLOOKUP($A27,Filtro!$A$5:$AW$651,29,FALSE),0) -> 469 | AF27: =IFERROR(VLOOKUP($A27,Filtro!$A$5:$AW$651,30,FALSE),0) -> 475 | AG27: =IFERROR(VLOOKUP($A27,Filtro!$A$5:$AW$651,31,FALSE),0) -> 305 | AH27: =IFERROR(VLOOKUP($A27,Filtro!$A$5:$AW$651,32,FALSE),0) -> 324 | AI27: =IFERROR(VLOOKUP($A27,Filtro!$A$5:$AW$651,33,FALSE),0) -> 51 | AJ27: =IFERROR(VLOOKUP($A27,Filtro!$A$5:$AW$651,34,FALSE),0) -> 76 | AK27: =IFERROR(VLOOKUP($A27,Filtro!$A$5:$AW$651,35,FALSE),0) -> 42 | AL27: =IFERROR(VLOOKUP($A27,Filtro!$A$5:$AW$651,36,FALSE),0) -> 42 | AM27: =($CV27&CW27&CX27&CY27) ->  | CV27: =IF(AND(E27>0,OR(AI27=""))," * No olvide digitar la variable Pueblos Originarios Hombres (Digite Cero si no tiene).",IF(AI27>E27," * La variable Pueblos Originarios Hombres no puede ser Mayor al Total.","")) ->  | CW27: =IF(AND(F27>0,OR(AJ27=""))," * No olvide digitar la variable Pueblos Originarios Mujeres (Digite Cero si no tiene).",IF(AJ27>F27," * La variable Pueblos Originarios Mujeres no puede ser Mayor al Total.","")) ->  | CX27: =IF(AND(E27>0,OR(AK27=""))," * No olvide digitar la variable Migrantes Hombres (Digite Cero si no tiene).",IF(AK27>E27," * La variable Migrantes Hombres no puede ser Mayor al Total.","")) ->  | CY27: =IF(AND(F27>0,OR(AL27=""))," * No olvide digitar la variable Migrantes Mujeres (Digite Cero si no tiene).",IF(AL27>F27," * La variable Migrantes Mujeres no puede ser Mayor al Total.","")) ->  | DR27: 0 | DS27: 0 | DT27: 0 | DU27: 0
A28: P2070402 | C28: - 2 D.S. (<= -2.0) | D28: 1311 | E28: 785 | F28: 526 | G28: =IFERROR(VLOOKUP($A28,Filtro!$A$5:$AW$651,5,FALSE),0) -> 13 | H28: =IFERROR(VLOOKUP($A28,Filtro!$A$5:$AW$651,6,FALSE),0) -> 5 | I28: =IFERROR(VLOOKUP($A28,Filtro!$A$5:$AW$651,7,FALSE),0) -> 18 | J28: =IFERROR(VLOOKUP($A28,Filtro!$A$5:$AW$651,8,FALSE),0) -> 15 | K28: =IFERROR(VLOOKUP($A28,Filtro!$A$5:$AW$651,9,FALSE),0) -> 27 | L28: =IFERROR(VLOOKUP($A28,Filtro!$A$5:$AW$651,10,FALSE),0) -> 19 | M28: =IFERROR(VLOOKUP($A28,Filtro!$A$5:$AW$651,11,FALSE),0) -> 21 | N28: =IFERROR(VLOOKUP($A28,Filtro!$A$5:$AW$651,12,FALSE),0) -> 9 | O28: =IFERROR(VLOOKUP($A28,Filtro!$A$5:$AW$651,13,FALSE),0) -> 19 | P28: =IFERROR(VLOOKUP($A28,Filtro!$A$5:$AW$651,14,FALSE),0) -> 9 | Q28: =IFERROR(VLOOKUP($A28,Filtro!$A$5:$AW$651,15,FALSE),0) -> 17 | R28: =IFERROR(VLOOKUP($A28,Filtro!$A$5:$AW$651,16,FALSE),0) -> 13 | S28: =IFERROR(VLOOKUP($A28,Filtro!$A$5:$AW$651,17,FALSE),0) -> 24 | T28: =IFERROR(VLOOKUP($A28,Filtro!$A$5:$AW$651,18,FALSE),0) -> 5 | U28: =IFERROR(VLOOKUP($A28,Filtro!$A$5:$AW$651,19,FALSE),0) -> 90 | V28: =IFERROR(VLOOKUP($A28,Filtro!$A$5:$AW$651,20,FALSE),0) -> 49 | W28: =IFERROR(VLOOKUP($A28,Filtro!$A$5:$AW$651,21,FALSE),0) -> 166 | X28: =IFERROR(VLOOKUP($A28,Filtro!$A$5:$AW$651,22,FALSE),0) -> 85 | Y28: =IFERROR(VLOOKUP($A28,Filtro!$A$5:$AW$651,23,FALSE),0) -> 118 | Z28: =IFERROR(VLOOKUP($A28,Filtro!$A$5:$AW$651,24,FALSE),0) -> 68 | AA28: =IFERROR(VLOOKUP($A28,Filtro!$A$5:$AW$651,25,FALSE),0) -> 148 | AB28: =IFERROR(VLOOKUP($A28,Filtro!$A$5:$AW$651,26,FALSE),0) -> 107 | AC28: =IFERROR(VLOOKUP($A28,Filtro!$A$5:$AW$651,27,FALSE),0) -> 69 | AD28: =IFERROR(VLOOKUP($A28,Filtro!$A$5:$AW$651,28,FALSE),0) -> 79 | AE28: =IFERROR(VLOOKUP($A28,Filtro!$A$5:$AW$651,29,FALSE),0) -> 55 | AF28: =IFERROR(VLOOKUP($A28,Filtro!$A$5:$AW$651,30,FALSE),0) -> 63 | AG28: =IFERROR(VLOOKUP($A28,Filtro!$A$5:$AW$651,31,FALSE),0) -> 35 | AH28: =IFERROR(VLOOKUP($A28,Filtro!$A$5:$AW$651,32,FALSE),0) -> 52 | AI28: =IFERROR(VLOOKUP($A28,Filtro!$A$5:$AW$651,33,FALSE),0) -> 14 | AJ28: =IFERROR(VLOOKUP($A28,Filtro!$A$5:$AW$651,34,FALSE),0) -> 9 | AK28: =IFERROR(VLOOKUP($A28,Filtro!$A$5:$AW$651,35,FALSE),0) -> 5 | AL28: =IFERROR(VLOOKUP($A28,Filtro!$A$5:$AW$651,36,FALSE),0) -> 3 | AM28: =($CV28&CW28&CX28&CY28) ->  | CV28: =IF(AND(E28>0,OR(AI28=""))," * No olvide digitar la variable Pueblos Originarios Hombres (Digite Cero si no tiene).",IF(AI28>E28," * La variable Pueblos Originarios Hombres no puede ser Mayor al Total.","")) ->  | CW28: =IF(AND(F28>0,OR(AJ28=""))," * No olvide digitar la variable Pueblos Originarios Mujeres (Digite Cero si no tiene).",IF(AJ28>F28," * La variable Pueblos Originarios Mujeres no puede ser Mayor al Total.","")) ->  | CX28: =IF(AND(E28>0,OR(AK28=""))," * No olvide digitar la variable Migrantes Hombres (Digite Cero si no tiene).",IF(AK28>E28," * La variable Migrantes Hombres no puede ser Mayor al Total.","")) ->  | CY28: =IF(AND(F28>0,OR(AL28=""))," * No olvide digitar la variable Migrantes Mujeres (Digite Cero si no tiene).",IF(AL28>F28," * La variable Migrantes Mujeres no puede ser Mayor al Total.","")) ->  | DR28: 0 | DS28: 0 | DT28: 0 | DU28: 0
C29: TOTAL | D29: =SUM(E29:F29) -> 8475 | E29: =+G29+I29+K29+M29+O29+Q29+S29+U29+W29+Y29+AA29+AC29+AE29 -> 4607 | F29: =+H29+J29+L29+N29+P29+R29+T29+V29+X29+Z29+AB29+AD29+AF29 -> 3868 | G29: =SUM(G27:G28) -> 31 | H29: =SUM(H27:H28) -> 23 | I29: =SUM(I27:I28) -> 67 | J29: =SUM(J27:J28) -> 73 | K29: 129 | L29: 102 | M29: 103 | N29: 57 | O29: 92 | P29: 60 | Q29: 84 | R29: 71 | S29: 136 | T29: 89 | U29: 490 | V29: 394 | W29: 742 | X29: 544 | Y29: 663 | Z29: 495 | AA29: 901 | AB29: 801 | AC29: 645 | AD29: 621 | AE29: 524 | AF29: 538 | AG29: 340 | AH29: 376 | AI29: 65 | AJ29: 85 | AK29: =SUM(AK27:AK28) -> 47 | AL29: 45 | AM29: =($CE29&CF29) -> 
A30: P2400140 | C30: PROMEDIO (-0,9 A + 0,9) | D30: 30913 | E30: =+G30+I30+K30+M30+O30+Q30+S30+U30+W30+Y30+AA30+AC30+AE30 -> 15485 | F30: =+H30+J30+L30+N30+P30+R30+T30+V30+X30+Z30+AB30+AD30+AF30 -> 15428 | G30: =IFERROR(VLOOKUP($A30,Filtro!$A$5:$AW$651,5,FALSE),0) -> 135 | H30: =IFERROR(VLOOKUP($A30,Filtro!$A$5:$AW$651,6,FALSE),0) -> 132 | I30: =IFERROR(VLOOKUP($A30,Filtro!$A$5:$AW$651,7,FALSE),0) -> 276 | J30: =IFERROR(VLOOKUP($A30,Filtro!$A$5:$AW$651,8,FALSE),0) -> 274 | K30: =IFERROR(VLOOKUP($A30,Filtro!$A$5:$AW$651,9,FALSE),0) -> 303 | L30: =IFERROR(VLOOKUP($A30,Filtro!$A$5:$AW$651,10,FALSE),0) -> 329 | M30: =IFERROR(VLOOKUP($A30,Filtro!$A$5:$AW$651,11,FALSE),0) -> 283 | N30: =IFERROR(VLOOKUP($A30,Filtro!$A$5:$AW$651,12,FALSE),0) -> 306 | O30: =IFERROR(VLOOKUP($A30,Filtro!$A$5:$AW$651,13,FALSE),0) -> 330 | P30: =IFERROR(VLOOKUP($A30,Filtro!$A$5:$AW$651,14,FALSE),0) -> 360 | Q30: =IFERROR(VLOOKUP($A30,Filtro!$A$5:$AW$651,15,FALSE),0) -> 319 | R30: =IFERROR(VLOOKUP($A30,Filtro!$A$5:$AW$651,16,FALSE),0) -> 360 | S30: =IFERROR(VLOOKUP($A30,Filtro!$A$5:$AW$651,17,FALSE),0) -> 401 | T30: =IFERROR(VLOOKUP($A30,Filtro!$A$5:$AW$651,18,FALSE),0) -> 436 | U30: =IFERROR(VLOOKUP($A30,Filtro!$A$5:$AW$651,19,FALSE),0) -> 1372 | V30: =IFERROR(VLOOKUP($A30,Filtro!$A$5:$AW$651,20,FALSE),0) -> 1452 | W30: =IFERROR(VLOOKUP($A30,Filtro!$A$5:$AW$651,21,FALSE),0) -> 1795 | X30: =IFERROR(VLOOKUP($A30,Filtro!$A$5:$AW$651,22,FALSE),0) -> 1826 | Y30: =IFERROR(VLOOKUP($A30,Filtro!$A$5:$AW$651,23,FALSE),0) -> 1722 | Z30: =IFERROR(VLOOKUP($A30,Filtro!$A$5:$AW$651,24,FALSE),0) -> 1743 | AA30: =IFERROR(VLOOKUP($A30,Filtro!$A$5:$AW$651,25,FALSE),0) -> 3294 | AB30: =IFERROR(VLOOKUP($A30,Filtro!$A$5:$AW$651,26,FALSE),0) -> 3152 | AC30: =IFERROR(VLOOKUP($A30,Filtro!$A$5:$AW$651,27,FALSE),0) -> 2818 | AD30: =IFERROR(VLOOKUP($A30,Filtro!$A$5:$AW$651,28,FALSE),0) -> 2691 | AE30: =IFERROR(VLOOKUP($A30,Filtro!$A$5:$AW$651,29,FALSE),0) -> 2437 | AF30: =IFERROR(VLOOKUP($A30,Filtro!$A$5:$AW$651,30,FALSE),0) -> 2367 | AG30: =IFERROR(VLOOKUP($A30,Filtro!$A$5:$AW$651,31,FALSE),0) -> 1684 | AH30: =IFERROR(VLOOKUP($A30,Filtro!$A$5:$AW$651,32,FALSE),0) -> 1561 | AI30: =IFERROR(VLOOKUP($A30,Filtro!$A$5:$AW$651,33,FALSE),0) -> 225 | AJ30: =IFERROR(VLOOKUP($A30,Filtro!$A$5:$AW$651,34,FALSE),0) -> 201 | AK30: =IFERROR(VLOOKUP($A30,Filtro!$A$5:$AW$651,35,FALSE),0) -> 155 | AL30: =IFERROR(VLOOKUP($A30,Filtro!$A$5:$AW$651,36,FALSE),0) -> 149 | AM30: =($CV30&CW30&CX30&CY30) ->  | CV30: =IF(AND(E30>0,OR(AI30=""))," * No olvide digitar la variable Pueblos Originarios Hombres (Digite Cero si no tiene).",IF(AI30>E30," * La variable Pueblos Originarios Hombres no puede ser Mayor al Total.","")) ->  | CW30: =IF(AND(F30>0,OR(AJ30=""))," * No olvide digitar la variable Pueblos Originarios Mujeres (Digite Cero si no tiene).",IF(AJ30>F30," * La variable Pueblos Originarios Mujeres no puede ser Mayor al Total.","")) ->  | CX30: =IF(AND(E30>0,OR(AK30=""))," * No olvide digitar la variable Migrantes Hombres (Digite Cero si no tiene).",IF(AK30>E30," * La variable Migrantes Hombres no puede ser Mayor al Total.","")) ->  | CY30: =IF(AND(F30>0,OR(AL30=""))," * No olvide digitar la variable Migrantes Mujeres (Digite Cero si no tiene).",IF(AL30>F30," * La variable Migrantes Mujeres no puede ser Mayor al Total.","")) ->  | DR30: 0 | DS30: 0 | DT30: 0 | DU30: 0
A31: P2070501 | B31: DIAGNOSTICO NUTRICIONAL INTEGRADO | C31: RIESGO DE DESNUTRIR/ DEFICIT PONDERAL* | D31: 1761 | E31: =+I31+K31+M31+O31+Q31+S31+U31+W31+Y31+AA31+AC31+AE31 -> 1003 | F31: =+J31+L31+N31+P31+R31+T31+V31+X31+Z31+AB31+AD31+AF31 -> 758 | G31: =IFERROR(VLOOKUP($A31,Filtro!$A$5:$AW$651,5,FALSE),0) -> 0 | H31: =IFERROR(VLOOKUP($A31,Filtro!$A$5:$AW$651,6,FALSE),0) -> 0 | I31: =IFERROR(VLOOKUP($A31,Filtro!$A$5:$AW$651,7,FALSE),0) -> 38 | J31: =IFERROR(VLOOKUP($A31,Filtro!$A$5:$AW$651,8,FALSE),0) -> 39 | K31: =IFERROR(VLOOKUP($A31,Filtro!$A$5:$AW$651,9,FALSE),0) -> 40 | L31: =IFERROR(VLOOKUP($A31,Filtro!$A$5:$AW$651,10,FALSE),0) -> 35 | M31: =IFERROR(VLOOKUP($A31,Filtro!$A$5:$AW$651,11,FALSE),0) -> 33 | N31: =IFERROR(VLOOKUP($A31,Filtro!$A$5:$AW$651,12,FALSE),0) -> 26 | O31: =IFERROR(VLOOKUP($A31,Filtro!$A$5:$AW$651,13,FALSE),0) -> 20 | P31: =IFERROR(VLOOKUP($A31,Filtro!$A$5:$AW$651,14,FALSE),0) -> 27 | Q31: =IFERROR(VLOOKUP($A31,Filtro!$A$5:$AW$651,15,FALSE),0) -> 24 | R31: =IFERROR(VLOOKUP($A31,Filtro!$A$5:$AW$651,16,FALSE),0) -> 24 | S31: =IFERROR(VLOOKUP($A31,Filtro!$A$5:$AW$651,17,FALSE),0) -> 39 | T31: =IFERROR(VLOOKUP($A31,Filtro!$A$5:$AW$651,18,FALSE),0) -> 30 | U31: =IFERROR(VLOOKUP($A31,Filtro!$A$5:$AW$651,19,FALSE),0) -> 124 | V31: =IFERROR(VLOOKUP($A31,Filtro!$A$5:$AW$651,20,FALSE),0) -> 81 | W31: =IFERROR(VLOOKUP($A31,Filtro!$A$5:$AW$651,21,FALSE),0) -> 86 | X31: =IFERROR(VLOOKUP($A31,Filtro!$A$5:$AW$651,22,FALSE),0) -> 57 | Y31: =IFERROR(VLOOKUP($A31,Filtro!$A$5:$AW$651,23,FALSE),0) -> 104 | Z31: =IFERROR(VLOOKUP($A31,Filtro!$A$5:$AW$651,24,FALSE),0) -> 59 | AA31: =IFERROR(VLOOKUP($A31,Filtro!$A$5:$AW$651,25,FALSE),0) -> 211 | AB31: =IFERROR(VLOOKUP($A31,Filtro!$A$5:$AW$651,26,FALSE),0) -> 134 | AC31: =IFERROR(VLOOKUP($A31,Filtro!$A$5:$AW$651,27,FALSE),0) -> 171 | AD31: =IFERROR(VLOOKUP($A31,Filtro!$A$5:$AW$651,28,FALSE),0) -> 140 | AE31: =IFERROR(VLOOKUP($A31,Filtro!$A$5:$AW$651,29,FALSE),0) -> 113 | AF31: =IFERROR(VLOOKUP($A31,Filtro!$A$5:$AW$651,30,FALSE),0) -> 106 | AG31: =IFERROR(VLOOKUP($A31,Filtro!$A$5:$AW$651,31,FALSE),0) -> 79 | AH31: =IFERROR(VLOOKUP($A31,Filtro!$A$5:$AW$651,32,FALSE),0) -> 87 | AI31: =IFERROR(VLOOKUP($A31,Filtro!$A$5:$AW$651,33,FALSE),0) -> 22 | AJ31: =IFERROR(VLOOKUP($A31,Filtro!$A$5:$AW$651,34,FALSE),0) -> 22 | AK31: =IFERROR(VLOOKUP($A31,Filtro!$A$5:$AW$651,35,FALSE),0) -> 13 | AL31: =IFERROR(VLOOKUP($A31,Filtro!$A$5:$AW$651,36,FALSE),0) -> 14 | DR31: 0 | DS31: 0 | DT31: 0 | DU31: 0
A32: P2070502 | C32: DESNUTRIDO | D32: 193 | E32: =+I32+K32+M32+O32+Q32+S32+U32+W32+Y32+AA32+AC32+AE32 -> 129 | F32: 64 | G32: =IFERROR(VLOOKUP($A32,Filtro!$A$5:$AW$651,5,FALSE),0) -> 0 | H32: =IFERROR(VLOOKUP($A32,Filtro!$A$5:$AW$651,6,FALSE),0) -> 0 | I32: =IFERROR(VLOOKUP($A32,Filtro!$A$5:$AW$651,7,FALSE),0) -> 4 | J32: =IFERROR(VLOOKUP($A32,Filtro!$A$5:$AW$651,8,FALSE),0) -> 9 | K32: =IFERROR(VLOOKUP($A32,Filtro!$A$5:$AW$651,9,FALSE),0) -> 9 | L32: =IFERROR(VLOOKUP($A32,Filtro!$A$5:$AW$651,10,FALSE),0) -> 7 | M32: =IFERROR(VLOOKUP($A32,Filtro!$A$5:$AW$651,11,FALSE),0) -> 12 | N32: =IFERROR(VLOOKUP($A32,Filtro!$A$5:$AW$651,12,FALSE),0) -> 1 | O32: =IFERROR(VLOOKUP($A32,Filtro!$A$5:$AW$651,13,FALSE),0) -> 1 | P32: =IFERROR(VLOOKUP($A32,Filtro!$A$5:$AW$651,14,FALSE),0) -> 4 | Q32: =IFERROR(VLOOKUP($A32,Filtro!$A$5:$AW$651,15,FALSE),0) -> 10 | R32: =IFERROR(VLOOKUP($A32,Filtro!$A$5:$AW$651,16,FALSE),0) -> 4 | S32: =IFERROR(VLOOKUP($A32,Filtro!$A$5:$AW$651,17,FALSE),0) -> 5 | T32: =IFERROR(VLOOKUP($A32,Filtro!$A$5:$AW$651,18,FALSE),0) -> 0 | U32: =IFERROR(VLOOKUP($A32,Filtro!$A$5:$AW$651,19,FALSE),0) -> 7 | V32: =IFERROR(VLOOKUP($A32,Filtro!$A$5:$AW$651,20,FALSE),0) -> 2 | W32: =IFERROR(VLOOKUP($A32,Filtro!$A$5:$AW$651,21,FALSE),0) -> 18 | X32: =IFERROR(VLOOKUP($A32,Filtro!$A$5:$AW$651,22,FALSE),0) -> 5 | Y32: =IFERROR(VLOOKUP($A32,Filtro!$A$5:$AW$651,23,FALSE),0) -> 10 | Z32: =IFERROR(VLOOKUP($A32,Filtro!$A$5:$AW$651,24,FALSE),0) -> 3 | AA32: =IFERROR(VLOOKUP($A32,Filtro!$A$5:$AW$651,25,FALSE),0) -> 17 | AB32: =IFERROR(VLOOKUP($A32,Filtro!$A$5:$AW$651,26,FALSE),0) -> 15 | AC32: =IFERROR(VLOOKUP($A32,Filtro!$A$5:$AW$651,27,FALSE),0) -> 24 | AD32: =IFERROR(VLOOKUP($A32,Filtro!$A$5:$AW$651,28,FALSE),0) -> 8 | AE32: =IFERROR(VLOOKUP($A32,Filtro!$A$5:$AW$651,29,FALSE),0) -> 12 | AF32: =IFERROR(VLOOKUP($A32,Filtro!$A$5:$AW$651,30,FALSE),0) -> 6 | AG32: =IFERROR(VLOOKUP($A32,Filtro!$A$5:$AW$651,31,FALSE),0) -> 6 | AH32: =IFERROR(VLOOKUP($A32,Filtro!$A$5:$AW$651,32,FALSE),0) -> 7 | AI32: =IFERROR(VLOOKUP($A32,Filtro!$A$5:$AW$651,33,FALSE),0) -> 1 | AJ32: =IFERROR(VLOOKUP($A32,Filtro!$A$5:$AW$651,34,FALSE),0) -> 3 | AK32: =IFERROR(VLOOKUP($A32,Filtro!$A$5:$AW$651,35,FALSE),0) -> 1 | AL32: =IFERROR(VLOOKUP($A32,Filtro!$A$5:$AW$651,36,FALSE),0) -> 0 | DR32: =IF($E32>=$AI32,0,1) -> 0 | DS32: 0 | DT32: 0 | DU32: 0
A33: P2070503 | C33: SOBREPESO / RIESGO OBESIDAD | D33: 13067 | E33: 6528 | F33: 6539 | G33: =IFERROR(VLOOKUP($A33,Filtro!$A$5:$AW$651,5,FALSE),0) -> 0 | H33: =IFERROR(VLOOKUP($A33,Filtro!$A$5:$AW$651,6,FALSE),0) -> 0 | I33: =IFERROR(VLOOKUP($A33,Filtro!$A$5:$AW$651,7,FALSE),0) -> 67 | J33: =IFERROR(VLOOKUP($A33,Filtro!$A$5:$AW$651,8,FALSE),0) -> 53 | K33: =IFERROR(VLOOKUP($A33,Filtro!$A$5:$AW$651,9,FALSE),0) -> 133 | L33: =IFERROR(VLOOKUP($A33,Filtro!$A$5:$AW$651,10,FALSE),0) -> 122 | M33: =IFERROR(VLOOKUP($A33,Filtro!$A$5:$AW$651,11,FALSE),0) -> 119 | N33: =IFERROR(VLOOKUP($A33,Filtro!$A$5:$AW$651,12,FALSE),0) -> 93 | O33: =IFERROR(VLOOKUP($A33,Filtro!$A$5:$AW$651,13,FALSE),0) -> 152 | P33: =IFERROR(VLOOKUP($A33,Filtro!$A$5:$AW$651,14,FALSE),0) -> 141 | Q33: =IFERROR(VLOOKUP($A33,Filtro!$A$5:$AW$651,15,FALSE),0) -> 155 | R33: =IFERROR(VLOOKUP($A33,Filtro!$A$5:$AW$651,16,FALSE),0) -> 168 | S33: =IFERROR(VLOOKUP($A33,Filtro!$A$5:$AW$651,17,FALSE),0) -> 210 | T33: =IFERROR(VLOOKUP($A33,Filtro!$A$5:$AW$651,18,FALSE),0) -> 234 | U33: =IFERROR(VLOOKUP($A33,Filtro!$A$5:$AW$651,19,FALSE),0) -> 743 | V33: =IFERROR(VLOOKUP($A33,Filtro!$A$5:$AW$651,20,FALSE),0) -> 765 | W33: =IFERROR(VLOOKUP($A33,Filtro!$A$5:$AW$651,21,FALSE),0) -> 951 | X33: =IFERROR(VLOOKUP($A33,Filtro!$A$5:$AW$651,22,FALSE),0) -> 947 | Y33: =IFERROR(VLOOKUP($A33,Filtro!$A$5:$AW$651,23,FALSE),0) -> 769 | Z33: =IFERROR(VLOOKUP($A33,Filtro!$A$5:$AW$651,24,FALSE),0) -> 822 | AA33: =IFERROR(VLOOKUP($A33,Filtro!$A$5:$AW$651,25,FALSE),0) -> 1256 | AB33: =IFERROR(VLOOKUP($A33,Filtro!$A$5:$AW$651,26,FALSE),0) -> 1239 | AC33: =IFERROR(VLOOKUP($A33,Filtro!$A$5:$AW$651,27,FALSE),0) -> 1037 | AD33: =IFERROR(VLOOKUP($A33,Filtro!$A$5:$AW$651,28,FALSE),0) -> 1078 | AE33: =IFERROR(VLOOKUP($A33,Filtro!$A$5:$AW$651,29,FALSE),0) -> 936 | AF33: =IFERROR(VLOOKUP($A33,Filtro!$A$5:$AW$651,30,FALSE),0) -> 877 | AG33: =IFERROR(VLOOKUP($A33,Filtro!$A$5:$AW$651,31,FALSE),0) -> 650 | AH33: =IFERROR(VLOOKUP($A33,Filtro!$A$5:$AW$651,32,FALSE),0) -> 630 | AI33: =IFERROR(VLOOKUP($A33,Filtro!$A$5:$AW$651,33,FALSE),0) -> 95 | AJ33: =IFERROR(VLOOKUP($A33,Filtro!$A$5:$AW$651,34,FALSE),0) -> 95 | AK33: =IFERROR(VLOOKUP($A33,Filtro!$A$5:$AW$651,35,FALSE),0) -> 49 | AL33: =IFERROR(VLOOKUP($A33,Filtro!$A$5:$AW$651,36,FALSE),0) -> 46 | DR33: 0 | DS33: 0 | DT33: 0 | DU33: 0
A34: P2070504 | C34: OBESO | D34: 6670 | E34: 3457 | F34: 3213 | G34: =IFERROR(VLOOKUP($A34,Filtro!$A$5:$AW$651,5,FALSE),0) -> 0 | H34: =IFERROR(VLOOKUP($A34,Filtro!$A$5:$AW$651,6,FALSE),0) -> 0 | I34: =IFERROR(VLOOKUP($A34,Filtro!$A$5:$AW$651,7,FALSE),0) -> 24 | J34: =IFERROR(VLOOKUP($A34,Filtro!$A$5:$AW$651,8,FALSE),0) -> 15 | K34: =IFERROR(VLOOKUP($A34,Filtro!$A$5:$AW$651,9,FALSE),0) -> 34 | L34: =IFERROR(VLOOKUP($A34,Filtro!$A$5:$AW$651,10,FALSE),0) -> 28 | M34: =IFERROR(VLOOKUP($A34,Filtro!$A$5:$AW$651,11,FALSE),0) -> 46 | N34: =IFERROR(VLOOKUP($A34,Filtro!$A$5:$AW$651,12,FALSE),0) -> 44 | O34: =IFERROR(VLOOKUP($A34,Filtro!$A$5:$AW$651,13,FALSE),0) -> 68 | P34: =IFERROR(VLOOKUP($A34,Filtro!$A$5:$AW$651,14,FALSE),0) -> 45 | Q34: =IFERROR(VLOOKUP($A34,Filtro!$A$5:$AW$651,15,FALSE),0) -> 58 | R34: =IFERROR(VLOOKUP($A34,Filtro!$A$5:$AW$651,16,FALSE),0) -> 54 | S34: =IFERROR(VLOOKUP($A34,Filtro!$A$5:$AW$651,17,FALSE),0) -> 99 | T34: =IFERROR(VLOOKUP($A34,Filtro!$A$5:$AW$651,18,FALSE),0) -> 67 | U34: =IFERROR(VLOOKUP($A34,Filtro!$A$5:$AW$651,19,FALSE),0) -> 353 | V34: =IFERROR(VLOOKUP($A34,Filtro!$A$5:$AW$651,20,FALSE),0) -> 308 | W34: =IFERROR(VLOOKUP($A34,Filtro!$A$5:$AW$651,21,FALSE),0) -> 440 | X34: =IFERROR(VLOOKUP($A34,Filtro!$A$5:$AW$651,22,FALSE),0) -> 426 | Y34: =IFERROR(VLOOKUP($A34,Filtro!$A$5:$AW$651,23,FALSE),0) -> 371 | Z34: =IFERROR(VLOOKUP($A34,Filtro!$A$5:$AW$651,24,FALSE),0) -> 356 | AA34: =IFERROR(VLOOKUP($A34,Filtro!$A$5:$AW$651,25,FALSE),0) -> 603 | AB34: =IFERROR(VLOOKUP($A34,Filtro!$A$5:$AW$651,26,FALSE),0) -> 587 | AC34: =IFERROR(VLOOKUP($A34,Filtro!$A$5:$AW$651,27,FALSE),0) -> 688 | AD34: =IFERROR(VLOOKUP($A34,Filtro!$A$5:$AW$651,28,FALSE),0) -> 638 | AE34: =IFERROR(VLOOKUP($A34,Filtro!$A$5:$AW$651,29,FALSE),0) -> 673 | AF34: =IFERROR(VLOOKUP($A34,Filtro!$A$5:$AW$651,30,FALSE),0) -> 645 | AG34: =IFERROR(VLOOKUP($A34,Filtro!$A$5:$AW$651,31,FALSE),0) -> 483 | AH34: =IFERROR(VLOOKUP($A34,Filtro!$A$5:$AW$651,32,FALSE),0) -> 467 | AI34: =IFERROR(VLOOKUP($A34,Filtro!$A$5:$AW$651,33,FALSE),0) -> 48 | AJ34: =IFERROR(VLOOKUP($A34,Filtro!$A$5:$AW$651,34,FALSE),0) -> 31 | AK34: =IFERROR(VLOOKUP($A34,Filtro!$A$5:$AW$651,35,FALSE),0) -> 16 | AL34: =IFERROR(VLOOKUP($A34,Filtro!$A$5:$AW$651,36,FALSE),0) -> 14 | DR34: 0 | DS34: 0 | DT34: 0 | DU34: 0
A35: P2070505 | C35: NORMAL | D35: 32486 | E35: 16314 | F35: 16172 | G35: =IFERROR(VLOOKUP($A35,Filtro!$A$5:$AW$651,5,FALSE),0) -> 0 | H35: =IFERROR(VLOOKUP($A35,Filtro!$A$5:$AW$651,6,FALSE),0) -> 0 | I35: =IFERROR(VLOOKUP($A35,Filtro!$A$5:$AW$651,7,FALSE),0) -> 375 | J35: =IFERROR(VLOOKUP($A35,Filtro!$A$5:$AW$651,8,FALSE),0) -> 373 | K35: =IFERROR(VLOOKUP($A35,Filtro!$A$5:$AW$651,9,FALSE),0) -> 400 | L35: =IFERROR(VLOOKUP($A35,Filtro!$A$5:$AW$651,10,FALSE),0) -> 401 | M35: =IFERROR(VLOOKUP($A35,Filtro!$A$5:$AW$651,11,FALSE),0) -> 360 | N35: =IFERROR(VLOOKUP($A35,Filtro!$A$5:$AW$651,12,FALSE),0) -> 360 | O35: =IFERROR(VLOOKUP($A35,Filtro!$A$5:$AW$651,13,FALSE),0) -> 364 | P35: =IFERROR(VLOOKUP($A35,Filtro!$A$5:$AW$651,14,FALSE),0) -> 391 | Q35: =IFERROR(VLOOKUP($A35,Filtro!$A$5:$AW$651,15,FALSE),0) -> 325 | R35: =IFERROR(VLOOKUP($A35,Filtro!$A$5:$AW$651,16,FALSE),0) -> 364 | S35: =IFERROR(VLOOKUP($A35,Filtro!$A$5:$AW$651,17,FALSE),0) -> 419 | T35: =IFERROR(VLOOKUP($A35,Filtro!$A$5:$AW$651,18,FALSE),0) -> 411 | U35: =IFERROR(VLOOKUP($A35,Filtro!$A$5:$AW$651,19,FALSE),0) -> 1284 | V35: =IFERROR(VLOOKUP($A35,Filtro!$A$5:$AW$651,20,FALSE),0) -> 1415 | W35: =IFERROR(VLOOKUP($A35,Filtro!$A$5:$AW$651,21,FALSE),0) -> 1800 | X35: =IFERROR(VLOOKUP($A35,Filtro!$A$5:$AW$651,22,FALSE),0) -> 1802 | Y35: =IFERROR(VLOOKUP($A35,Filtro!$A$5:$AW$651,23,FALSE),0) -> 1951 | Z35: =IFERROR(VLOOKUP($A35,Filtro!$A$5:$AW$651,24,FALSE),0) -> 1801 | AA35: =IFERROR(VLOOKUP($A35,Filtro!$A$5:$AW$651,25,FALSE),0) -> 3556 | AB35: =IFERROR(VLOOKUP($A35,Filtro!$A$5:$AW$651,26,FALSE),0) -> 3556 | AC35: =IFERROR(VLOOKUP($A35,Filtro!$A$5:$AW$651,27,FALSE),0) -> 2903 | AD35: =IFERROR(VLOOKUP($A35,Filtro!$A$5:$AW$651,28,FALSE),0) -> 2815 | AE35: =IFERROR(VLOOKUP($A35,Filtro!$A$5:$AW$651,29,FALSE),0) -> 2577 | AF35: =IFERROR(VLOOKUP($A35,Filtro!$A$5:$AW$651,30,FALSE),0) -> 2483 | AG35: =IFERROR(VLOOKUP($A35,Filtro!$A$5:$AW$651,31,FALSE),0) -> 1746 | AH35: =IFERROR(VLOOKUP($A35,Filtro!$A$5:$AW$651,32,FALSE),0) -> 1710 | AI35: =IFERROR(VLOOKUP($A35,Filtro!$A$5:$AW$651,33,FALSE),0) -> 308 | AJ35: =IFERROR(VLOOKUP($A35,Filtro!$A$5:$AW$651,34,FALSE),0) -> 330 | AK35: =IFERROR(VLOOKUP($A35,Filtro!$A$5:$AW$651,35,FALSE),0) -> 181 | AL35: =IFERROR(VLOOKUP($A35,Filtro!$A$5:$AW$651,36,FALSE),0) -> 186 | DR35: 0 | DS35: 0 | DT35: 0 | DU35: 0
C36: SUBTOTAL | D36: =SUM(E36:F36) -> 54177 | E36: 27431 | F36: 26746 | I36: =SUM(I31:I35) -> 508 | J36: 489 | K36: 616 | L36: 593 | M36: 570 | N36: 524 | O36: 605 | P36: 608 | Q36: 572 | R36: 614 | S36: 772 | T36: 742 | U36: 2511 | V36: 2571 | W36: 3295 | X36: 3237 | Y36: 3205 | Z36: 3041 | AA36: 5643 | AB36: 5531 | AC36: 4823 | AD36: 4679 | AE36: 4311 | AF36: 4117 | AG36: 2964 | AH36: 2901 | AI36: 474 | AJ36: 481 | AK36: =SUM(AK31:AK35) -> 260 | AL36: 260 | AM36: =($CE36&CF36) -> 
A37: P2070506 | C37: DESNUTRICIÓN SECUNDARIA | D37: =SUM(E37:F37) -> 27 | E37: 14 | F37: 13 | G37: =IFERROR(VLOOKUP($A37,Filtro!$A$5:$AW$651,5,FALSE),0) -> 0 | H37: =IFERROR(VLOOKUP($A37,Filtro!$A$5:$AW$651,6,FALSE),0) -> 0 | I37: =IFERROR(VLOOKUP($A37,Filtro!$A$5:$AW$651,7,FALSE),0) -> 1 | J37: =IFERROR(VLOOKUP($A37,Filtro!$A$5:$AW$651,8,FALSE),0) -> 1 | K37: =IFERROR(VLOOKUP($A37,Filtro!$A$5:$AW$651,9,FALSE),0) -> 0 | L37: =IFERROR(VLOOKUP($A37,Filtro!$A$5:$AW$651,10,FALSE),0) -> 0 | M37: =IFERROR(VLOOKUP($A37,Filtro!$A$5:$AW$651,11,FALSE),0) -> 0 | N37: =IFERROR(VLOOKUP($A37,Filtro!$A$5:$AW$651,12,FALSE),0) -> 0 | O37: =IFERROR(VLOOKUP($A37,Filtro!$A$5:$AW$651,13,FALSE),0) -> 1 | P37: =IFERROR(VLOOKUP($A37,Filtro!$A$5:$AW$651,14,FALSE),0) -> 0 | Q37: =IFERROR(VLOOKUP($A37,Filtro!$A$5:$AW$651,15,FALSE),0) -> 0 | R37: =IFERROR(VLOOKUP($A37,Filtro!$A$5:$AW$651,16,FALSE),0) -> 0 | S37: =IFERROR(VLOOKUP($A37,Filtro!$A$5:$AW$651,17,FALSE),0) -> 0 | T37: =IFERROR(VLOOKUP($A37,Filtro!$A$5:$AW$651,18,FALSE),0) -> 0 | U37: =IFERROR(VLOOKUP($A37,Filtro!$A$5:$AW$651,19,FALSE),0) -> 3 | V37: =IFERROR(VLOOKUP($A37,Filtro!$A$5:$AW$651,20,FALSE),0) -> 2 | W37: =IFERROR(VLOOKUP($A37,Filtro!$A$5:$AW$651,21,FALSE),0) -> 3 | X37: =IFERROR(VLOOKUP($A37,Filtro!$A$5:$AW$651,22,FALSE),0) -> 1 | Y37: =IFERROR(VLOOKUP($A37,Filtro!$A$5:$AW$651,23,FALSE),0) -> 0 | Z37: =IFERROR(VLOOKUP($A37,Filtro!$A$5:$AW$651,24,FALSE),0) -> 1 | AA37: =IFERROR(VLOOKUP($A37,Filtro!$A$5:$AW$651,25,FALSE),0) -> 3 | AB37: =IFERROR(VLOOKUP($A37,Filtro!$A$5:$AW$651,26,FALSE),0) -> 3 | AC37: =IFERROR(VLOOKUP($A37,Filtro!$A$5:$AW$651,27,FALSE),0) -> 2 | AD37: =IFERROR(VLOOKUP($A37,Filtro!$A$5:$AW$651,28,FALSE),0) -> 3 | AE37: =IFERROR(VLOOKUP($A37,Filtro!$A$5:$AW$651,29,FALSE),0) -> 1 | AF37: =IFERROR(VLOOKUP($A37,Filtro!$A$5:$AW$651,30,FALSE),0) -> 2 | AG37: =IFERROR(VLOOKUP($A37,Filtro!$A$5:$AW$651,31,FALSE),0) -> 0 | AH37: =IFERROR(VLOOKUP($A37,Filtro!$A$5:$AW$651,32,FALSE),0) -> 0 | AI37: =IFERROR(VLOOKUP($A37,Filtro!$A$5:$AW$651,33,FALSE),0) -> 2 | AJ37: =IFERROR(VLOOKUP($A37,Filtro!$A$5:$AW$651,34,FALSE),0) -> 1 | AK37: =IFERROR(VLOOKUP($A37,Filtro!$A$5:$AW$651,35,FALSE),0) -> 1 | AL37: =IFERROR(VLOOKUP($A37,Filtro!$A$5:$AW$651,36,FALSE),0) -> 1 | AM37: =($CV37&CW37&CX37&CY37) ->  | CV37: =IF(AND(E37>0,OR(AI37=""))," * No olvide digitar la variable Pueblos Originarios Hombres (Digite Cero si no tiene).",IF(AI37>E37," * La variable Pueblos Originarios Hombres no puede ser Mayor al Total.","")) ->  | CW37: =IF(AND(F37>0,OR(AJ37=""))," * No olvide digitar la variable Pueblos Originarios Mujeres (Digite Cero si no tiene).",IF(AJ37>F37," * La variable Pueblos Originarios Mujeres no puede ser Mayor al Total.","")) ->  | CX37: =IF(AND(E37>0,OR(AK37=""))," * No olvide digitar la variable Migrantes Hombres (Digite Cero si no tiene).",IF(AK37>E37," * La variable Migrantes Hombres no puede ser Mayor al Total.","")) ->  | CY37: =IF(AND(F37>0,OR(AL37=""))," * No olvide digitar la variable Migrantes Mujeres (Digite Cero si no tiene).",IF(AL37>F37," * La variable Migrantes Mujeres no puede ser Mayor al Total.","")) ->  | DR37: 0 | DS37: =IF($F37>=$AJ37,0,1) -> 0 | DT37: 0 | DU37: 0
C38: TOTAL | D38: 54204 | E38: 27445 | F38: 26759 | I38: =SUM(I31:I35)+I37 -> 509 | J38: 490 | K38: 616 | L38: 593 | M38: 570 | N38: 524 | O38: 606 | P38: 608 | Q38: 572 | R38: 614 | S38: 772 | T38: 742 | U38: 2514 | V38: 2573 | W38: 3298 | X38: 3238 | Y38: 3205 | Z38: 3042 | AA38: 5646 | AB38: 5534 | AC38: 4825 | AD38: 4682 | AE38: 4312 | AF38: 4119 | AG38: 2964 | AH38: 2901 | AI38: 476 | AJ38: 482 | AK38: =SUM(AK31:AK35)+AK37 -> 261 | AL38: 261 | AM38: =($CE38&CF38) -> 
A39: P2501800 | B39: NIÑOS SIN EVALUACIÓN NUTRICIONAL POR CURSO DE VIDA (RECIÉN NACIDOS) O POR CONDICIÓN ESPECIAL DE SALUD | D39: =SUM(E39:F39) -> 256 | E39: =+G39+I39+K39+M39+O39+Q39+S39+U39+W39+Y39+AA39+AC39+AE39 -> 133 | F39: =+H39+J39+L39+N39+P39+R39+T39+V39+X39+Z39+AB39+AD39+AF39 -> 123 | G39: =IFERROR(VLOOKUP($A39,Filtro!$A$5:$AW$651,5,FALSE),0) -> 123 | H39: =IFERROR(VLOOKUP($A39,Filtro!$A$5:$AW$651,6,FALSE),0) -> 116 | I39: =IFERROR(VLOOKUP($A39,Filtro!$A$5:$AW$651,7,FALSE),0) -> 1 | J39: =IFERROR(VLOOKUP($A39,Filtro!$A$5:$AW$651,8,FALSE),0) -> 0 | K39: =IFERROR(VLOOKUP($A39,Filtro!$A$5:$AW$651,9,FALSE),0) -> 0 | L39: =IFERROR(VLOOKUP($A39,Filtro!$A$5:$AW$651,10,FALSE),0) -> 0 | M39: =IFERROR(VLOOKUP($A39,Filtro!$A$5:$AW$651,11,FALSE),0) -> 0 | N39: =IFERROR(VLOOKUP($A39,Filtro!$A$5:$AW$651,12,FALSE),0) -> 0 | O39: =IFERROR(VLOOKUP($A39,Filtro!$A$5:$AW$651,13,FALSE),0) -> 0 | P39: =IFERROR(VLOOKUP($A39,Filtro!$A$5:$AW$651,14,FALSE),0) -> 0 | Q39: =IFERROR(VLOOKUP($A39,Filtro!$A$5:$AW$651,15,FALSE),0) -> 0 | R39: =IFERROR(VLOOKUP($A39,Filtro!$A$5:$AW$651,16,FALSE),0) -> 0 | S39: =IFERROR(VLOOKUP($A39,Filtro!$A$5:$AW$651,17,FALSE),0) -> 0 | T39: =IFERROR(VLOOKUP($A39,Filtro!$A$5:$AW$651,18,FALSE),0) -> 0 | U39: =IFERROR(VLOOKUP($A39,Filtro!$A$5:$AW$651,19,FALSE),0) -> 0 | V39: =IFERROR(VLOOKUP($A39,Filtro!$A$5:$AW$651,20,FALSE),0) -> 0 | W39: =IFERROR(VLOOKUP($A39,Filtro!$A$5:$AW$651,21,FALSE),0) -> 0 | X39: =IFERROR(VLOOKUP($A39,Filtro!$A$5:$AW$651,22,FALSE),0) -> 2 | Y39: =IFERROR(VLOOKUP($A39,Filtro!$A$5:$AW$651,23,FALSE),0) -> 0 | Z39: =IFERROR(VLOOKUP($A39,Filtro!$A$5:$AW$651,24,FALSE),0) -> 3 | AA39: =IFERROR(VLOOKUP($A39,Filtro!$A$5:$AW$651,25,FALSE),0) -> 2 | AB39: =IFERROR(VLOOKUP($A39,Filtro!$A$5:$AW$651,26,FALSE),0) -> 0 | AC39: =IFERROR(VLOOKUP($A39,Filtro!$A$5:$AW$651,27,FALSE),0) -> 3 | AD39: =IFERROR(VLOOKUP($A39,Filtro!$A$5:$AW$651,28,FALSE),0) -> 0 | AE39: =IFERROR(VLOOKUP($A39,Filtro!$A$5:$AW$651,29,FALSE),0) -> 4 | AF39: =IFERROR(VLOOKUP($A39,Filtro!$A$5:$AW$651,30,FALSE),0) -> 2 | AG39: =IFERROR(VLOOKUP($A39,Filtro!$A$5:$AW$651,31,FALSE),0) -> 0 | AH39: =IFERROR(VLOOKUP($A39,Filtro!$A$5:$AW$651,32,FALSE),0) -> 1 | AI39: =IFERROR(VLOOKUP($A39,Filtro!$A$5:$AW$651,33,FALSE),0) -> 0 | AJ39: =IFERROR(VLOOKUP($A39,Filtro!$A$5:$AW$651,34,FALSE),0) -> 0 | AK39: =IFERROR(VLOOKUP($A39,Filtro!$A$5:$AW$651,35,FALSE),0) -> 0 | AL39: =IFERROR(VLOOKUP($A39,Filtro!$A$5:$AW$651,36,FALSE),0) -> 0 | AM39: =($CV39&CW39&CX39&CY39) ->  | CV39: =IF(AND(E39>0,OR(AI39=""))," * No olvide digitar la variable Pueblos Originarios Hombres (Digite Cero si no tiene).",IF(AI39>E39," * La variable Pueblos Originarios Hombres no puede ser Mayor al Total.","")) ->  | CW39: =IF(AND(F39>0,OR(AJ39=""))," * No olvide digitar la variable Pueblos Originarios Mujeres (Digite Cero si no tiene).",IF(AJ39>F39," * La variable Pueblos Originarios Mujeres no puede ser Mayor al Total.","")) ->  | CX39: =IF(AND(E39>0,OR(AK39=""))," * No olvide digitar la variable Migrantes Hombres (Digite Cero si no tiene).",IF(AK39>E39," * La variable Migrantes Hombres no puede ser Mayor al Total.","")) ->  | CY39: =IF(AND(F39>0,OR(AL39=""))," * No olvide digitar la variable Migrantes Mujeres (Digite Cero si no tiene).",IF(AL39>F39," * La variable Migrantes Mujeres no puede ser Mayor al Total.","")) ->  | DR39: =IF($E39>=$AI39,0,1) -> 0 | DS39: 0 | DT39: 0 | DU39: 0
B40: SECCION A.1: POBLACIÓN EN CONTROL, SEGÚN ESTADO NUTRICIONAL PARA NIÑOS AS DE 60 MESES - 9 AÑOS 11 MESES
B41: INDICADOR NUTRICIONAL Y PARÁMETROS DE MEDICIÓN | D41: TOTAL | G41: GRUPOS DE EDAD (en meses - años) Y SEXO
G42: 60 a 71 meses | I42: 6 a 6 años 11 meses | K42: 7 a 7 años 11 meses | M42: 8 a 8 años 11 meses | O42: 9 a 9 años 11 meses | Q42: Pueblos Originarios | S42: Migrantes
D43: Ambos sexos | E43: Hombres | F43: Mujeres | G43: Hombres | H43: Mujeres | I43: Hombres | J43: Mujeres | K43: Hombres | L43: Mujeres | M43: Hombres | N43: Mujeres | O43: Hombres | P43: Mujeres | Q43: Hombres | R43: Mujeres | S43: Hombres | T43: Mujeres
A44: P2400150 | B44: TOTAL DE NIÑOS EN CONTROL | D44: =+E44+F44 -> 36703 | E44: =+G44+I44+K44+M44+O44 -> 18554 | F44: =+H44+J44+L44+N44+P44 -> 18149 | G44: =IFERROR(VLOOKUP($A44,Filtro!$A$5:$AW$651,5,FALSE),0) -> 5356 | H44: =IFERROR(VLOOKUP($A44,Filtro!$A$5:$AW$651,6,FALSE),0) -> 5227 | I44: =IFERROR(VLOOKUP($A44,Filtro!$A$5:$AW$651,7,FALSE),0) -> 4368 | J44: =IFERROR(VLOOKUP($A44,Filtro!$A$5:$AW$651,8,FALSE),0) -> 4191 | K44: =IFERROR(VLOOKUP($A44,Filtro!$A$5:$AW$651,9,FALSE),0) -> 3584 | L44: =IFERROR(VLOOKUP($A44,Filtro!$A$5:$AW$651,10,FALSE),0) -> 3531 | M44: =IFERROR(VLOOKUP($A44,Filtro!$A$5:$AW$651,11,FALSE),0) -> 2983 | N44: =IFERROR(VLOOKUP($A44,Filtro!$A$5:$AW$651,12,FALSE),0) -> 2983 | O44: =IFERROR(VLOOKUP($A44,Filtro!$A$5:$AW$651,13,FALSE),0) -> 2263 | P44: =IFERROR(VLOOKUP($A44,Filtro!$A$5:$AW$651,14,FALSE),0) -> 2217 | Q44: =IFERROR(VLOOKUP($A44,Filtro!$A$5:$AW$651,15,FALSE),0) -> 258 | R44: =IFERROR(VLOOKUP($A44,Filtro!$A$5:$AW$651,16,FALSE),0) -> 258 | S44: =IFERROR(VLOOKUP($A44,Filtro!$A$5:$AW$651,17,FALSE),0) -> 583 | T44: =IFERROR(VLOOKUP($A44,Filtro!$A$5:$AW$651,18,FALSE),0) -> 580 | U44: =CC44 & CD44 & CE44 & CF44 & CG44 & CH44 & CI44& CJ44 & CK44 -> * El Total de niños en control de 60 a 71 meses no debe ser distinto al total del Diagnóstico Nutricional Integrado. * El Total de niñas en control de 6 a 6 años 11 meses no debe ser distinto al total del Diagnóstico Nutricional Integrado. * El Total de niños en control de 7 a 7 años 11 meses no debe ser distinto al total del Diagnóstico Nutricional Integrado. * El Total de niñas en control de 8 a 8 años 11 meses no debe ser distinto al total del Diagnóstico Nutricional Integrado. * El Total de niñas en control de 9 a 9 años 11 meses no debe ser distinto al total del Diagnóstico Nutricional Integrado. | CC44: =IF(G44+H44<>G72+H72,"* El Total de niños en control de 60 a 71 meses no debe ser distinto al total del Diagnóstico Nutricional Integrado. ","") -> * El Total de niños en control de 60 a 71 meses no debe ser distinto al total del Diagnóstico Nutricional Integrado. | CD44: =IF(I44+J44<>I72+J72,"* El Total de niñas en control de 6 a 6 años 11 meses no debe ser distinto al total del Diagnóstico Nutricional Integrado. ","") -> * El Total de niñas en control de 6 a 6 años 11 meses no debe ser distinto al total del Diagnóstico Nutricional Integrado. | CE44: =IF(K44+L44<>K72+L72,"* El Total de niños en control de 7 a 7 años 11 meses no debe ser distinto al total del Diagnóstico Nutricional Integrado. ","") -> * El Total de niños en control de 7 a 7 años 11 meses no debe ser distinto al total del Diagnóstico Nutricional Integrado. | CF44: =IF(M44+N44<>M72+N72,"* El Total de niñas en control de 8 a 8 años 11 meses no debe ser distinto al total del Diagnóstico Nutricional Integrado. ","") -> * El Total de niñas en control de 8 a 8 años 11 meses no debe ser distinto al total del Diagnóstico Nutricional Integrado. | CG44: =IF(O44+P44<>O72+P72,"* El Total de niñas en control de 9 a 9 años 11 meses no debe ser distinto al total del Diagnóstico Nutricional Integrado. ","") -> * El Total de niñas en control de 9 a 9 años 11 meses no debe ser distinto al total del Diagnóstico Nutricional Integrado. | CH44: =IF(AND(E44>0,OR(Q44=""))," * No olvide digitar la variable Pueblos Originarios Hombres (Digite Cero si no tiene).",IF(Q44>E44," * La variable Pueblos Originarios Hombres no puede ser Mayor al Total.","")) ->  | CI44: =IF(AND(F44>0,OR(R44=""))," * No olvide digitar la variable Pueblos Originarios Mujeres (Digite Cero si no tiene).",IF(R44>F44," * La variable Pueblos Originarios Mujeres no puede ser Mayor al Total.","")) ->  | CJ44: =IF(AND(E44>0,OR(S44=""))," * No olvide digitar la variable Migrantes Hombres (Digite Cero si no tiene).",IF(S44>E44," * La variable Migrantes Hombres no puede ser Mayor al Total.","")) ->  | CK44: =IF(AND(F44>0,OR(T44=""))," * No olvide digitar la variable Migrantes Mujeres (Digite Cero si no tiene).",IF(T44>F44," * La variable Migrantes Mujeres no puede ser Mayor al Total.","")) ->  | CL44: =IF($Q$44+$R$44<>$Q$72+$R$72,"* El Total de niños (as) en Control de Población Migrantes debe ser igual al Total de niños (as) según Diagnóstico Nutricional Integrado. ","") -> * El Total de niños (as) en Control de Población Migrantes debe ser igual al Total de niños (as) según Diagnóstico Nutricional Integrado. | CM44: =IF($S$44+$T$44<>$S$72+$T$72,"* El Total de niños (as) en Control de Población Migrantes debe ser igual al Total de niños (as) según Diagnóstico Nutricional Integrado. ","") -> * El Total de niños (as) en Control de Población Migrantes debe ser igual al Total de niños (as) según Diagnóstico Nutricional Integrado. | DE44: =IF(G44+H44<>G72+H72,1,0) -> 1 | DF44: =IF(I44+J44<>I72+J72,1,0) -> 1 | DG44: =IF(K44+L44<>K72+L72,1,0) -> 1 | DH44: =IF(M44+N44<>M72+N72,1,0) -> 1 | DI44: =IF(O44+P44<>O72+P72,1,0) -> 1 | DJ44: =IF(AND(E44>0,OR(Q44="")),1,IF(Q44>E44,1,0)) -> 0 | DK44: 0 | DL44: =IF(AND(E44>0,OR(S44="")),1,IF(S44>E44,1,0)) -> 0 | DM44: 0 | DN44: =IF($Q$44+$R$44<>$Q$72+$R$72,1,0) -> 1 | DO44: =IF($S$44+$T$44<>$S$72+$T$72,1,0) -> 1
A45: P2400160 | B45: INDICADOR IMC / EDAD | C45: + 3 D.S. (>= 3 ) | D45: =+E45+F45 -> 3208 | E45: =+G45+I45+K45+M45+O45 -> 2094 | F45: 1114 | G45: =IFERROR(VLOOKUP($A45,Filtro!$A$5:$AW$651,5,FALSE),0) -> 357 | H45: =IFERROR(VLOOKUP($A45,Filtro!$A$5:$AW$651,6,FALSE),0) -> 183 | I45: =IFERROR(VLOOKUP($A45,Filtro!$A$5:$AW$651,7,FALSE),0) -> 506 | J45: =IFERROR(VLOOKUP($A45,Filtro!$A$5:$AW$651,8,FALSE),0) -> 277 | K45: =IFERROR(VLOOKUP($A45,Filtro!$A$5:$AW$651,9,FALSE),0) -> 477 | L45: =IFERROR(VLOOKUP($A45,Filtro!$A$5:$AW$651,10,FALSE),0) -> 270 | M45: =IFERROR(VLOOKUP($A45,Filtro!$A$5:$AW$651,11,FALSE),0) -> 443 | N45: =IFERROR(VLOOKUP($A45,Filtro!$A$5:$AW$651,12,FALSE),0) -> 239 | O45: =IFERROR(VLOOKUP($A45,Filtro!$A$5:$AW$651,13,FALSE),0) -> 311 | P45: =IFERROR(VLOOKUP($A45,Filtro!$A$5:$AW$651,14,FALSE),0) -> 145 | Q45: =IFERROR(VLOOKUP($A45,Filtro!$A$5:$AW$651,15,FALSE),0) -> 7 | R45: =IFERROR(VLOOKUP($A45,Filtro!$A$5:$AW$651,16,FALSE),0) -> 10 | S45: =IFERROR(VLOOKUP($A45,Filtro!$A$5:$AW$651,17,FALSE),0) -> 9 | T45: =IFERROR(VLOOKUP($A45,Filtro!$A$5:$AW$651,18,FALSE),0) -> 10 | U45: =CC45 & CD45 & CE45 & CF45 & CG45 & CH45 & CI45& CJ45 & CK45 ->  | CH45: =IF(AND(E45>0,OR(Q45=""))," * No olvide digitar la variable Pueblos Originarios Hombres (Digite Cero si no tiene).",IF(Q45>E45," * La variable Pueblos Originarios Hombres no puede ser Mayor al Total.","")) ->  | CI45: =IF(AND(F45>0,OR(R45=""))," * No olvide digitar la variable Pueblos Originarios Mujeres (Digite Cero si no tiene).",IF(R45>F45," * La variable Pueblos Originarios Mujeres no puede ser Mayor al Total.","")) ->  | CJ45: =IF(AND(E45>0,OR(S45=""))," * No olvide digitar la variable Migrantes Hombres (Digite Cero si no tiene).",IF(S45>E45," * La variable Migrantes Hombres no puede ser Mayor al Total.","")) ->  | CK45: =IF(AND(F45>0,OR(T45=""))," * No olvide digitar la variable Migrantes Mujeres (Digite Cero si no tiene).",IF(T45>F45," * La variable Migrantes Mujeres no puede ser Mayor al Total.","")) ->  | DJ45: 0 | DK45: 0 | DL45: 0 | DM45: 0
A46: P2400170 | C46: + 2 D.S. (>= +2.0 a +2.9) | D46: =+E46+F46 -> 6354 | E46: 3141 | F46: 3213 | G46: =IFERROR(VLOOKUP($A46,Filtro!$A$5:$AW$651,5,FALSE),0) -> 795 | H46: =IFERROR(VLOOKUP($A46,Filtro!$A$5:$AW$651,6,FALSE),0) -> 741 | I46: =IFERROR(VLOOKUP($A46,Filtro!$A$5:$AW$651,7,FALSE),0) -> 600 | J46: =IFERROR(VLOOKUP($A46,Filtro!$A$5:$AW$651,8,FALSE),0) -> 680 | K46: =IFERROR(VLOOKUP($A46,Filtro!$A$5:$AW$651,9,FALSE),0) -> 600 | L46: =IFERROR(VLOOKUP($A46,Filtro!$A$5:$AW$651,10,FALSE),0) -> 633 | M46: =IFERROR(VLOOKUP($A46,Filtro!$A$5:$AW$651,11,FALSE),0) -> 585 | N46: =IFERROR(VLOOKUP($A46,Filtro!$A$5:$AW$651,12,FALSE),0) -> 662 | O46: =IFERROR(VLOOKUP($A46,Filtro!$A$5:$AW$651,13,FALSE),0) -> 561 | P46: =IFERROR(VLOOKUP($A46,Filtro!$A$5:$AW$651,14,FALSE),0) -> 497 | Q46: =IFERROR(VLOOKUP($A46,Filtro!$A$5:$AW$651,15,FALSE),0) -> 26 | R46: =IFERROR(VLOOKUP($A46,Filtro!$A$5:$AW$651,16,FALSE),0) -> 17 | S46: =IFERROR(VLOOKUP($A46,Filtro!$A$5:$AW$651,17,FALSE),0) -> 29 | T46: =IFERROR(VLOOKUP($A46,Filtro!$A$5:$AW$651,18,FALSE),0) -> 33 | CH46: =IF(AND(E46>0,OR(Q46=""))," * No olvide digitar la variable Pueblos Originarios Hombres (Digite Cero si no tiene).",IF(Q46>E46," * La variable Pueblos Originarios Hombres no puede ser Mayor al Total.","")) ->  | CI46: =IF(AND(F46>0,OR(R46=""))," * No olvide digitar la variable Pueblos Originarios Mujeres (Digite Cero si no tiene).",IF(R46>F46," * La variable Pueblos Originarios Mujeres no puede ser Mayor al Total.","")) ->  | CJ46: =IF(AND(E46>0,OR(S46=""))," * No olvide digitar la variable Migrantes Hombres (Digite Cero si no tiene).",IF(S46>E46," * La variable Migrantes Hombres no puede ser Mayor al Total.","")) ->  | CK46: =IF(AND(F46>0,OR(T46=""))," * No olvide digitar la variable Migrantes Mujeres (Digite Cero si no tiene).",IF(T46>F46," * La variable Migrantes Mujeres no puede ser Mayor al Total.","")) ->  | DJ46: 0 | DK46: 0 | DL46: 0 | DM46: 0
A47: P2400180 | C47: + 1 D.S. (>= +1.0 a +1.9) | D47: 7533 | E47: 3647 | F47: 3886 | G47: =IFERROR(VLOOKUP($A47,Filtro!$A$5:$AW$651,5,FALSE),0) -> 991 | H47: =IFERROR(VLOOKUP($A47,Filtro!$A$5:$AW$651,6,FALSE),0) -> 975 | I47: =IFERROR(VLOOKUP($A47,Filtro!$A$5:$AW$651,7,FALSE),0) -> 801 | J47: =IFERROR(VLOOKUP($A47,Filtro!$A$5:$AW$651,8,FALSE),0) -> 854 | K47: =IFERROR(VLOOKUP($A47,Filtro!$A$5:$AW$651,9,FALSE),0) -> 726 | L47: =IFERROR(VLOOKUP($A47,Filtro!$A$5:$AW$651,10,FALSE),0) -> 795 | M47: =IFERROR(VLOOKUP($A47,Filtro!$A$5:$AW$651,11,FALSE),0) -> 633 | N47: =IFERROR(VLOOKUP($A47,Filtro!$A$5:$AW$651,12,FALSE),0) -> 696 | O47: =IFERROR(VLOOKUP($A47,Filtro!$A$5:$AW$651,13,FALSE),0) -> 496 | P47: =IFERROR(VLOOKUP($A47,Filtro!$A$5:$AW$651,14,FALSE),0) -> 566 | Q47: =IFERROR(VLOOKUP($A47,Filtro!$A$5:$AW$651,15,FALSE),0) -> 32 | R47: =IFERROR(VLOOKUP($A47,Filtro!$A$5:$AW$651,16,FALSE),0) -> 16 | S47: =IFERROR(VLOOKUP($A47,Filtro!$A$5:$AW$651,17,FALSE),0) -> 70 | T47: =IFERROR(VLOOKUP($A47,Filtro!$A$5:$AW$651,18,FALSE),0) -> 50 | CH47: =IF(AND(E47>0,OR(Q47=""))," * No olvide digitar la variable Pueblos Originarios Hombres (Digite Cero si no tiene).",IF(Q47>E47," * La variable Pueblos Originarios Hombres no puede ser Mayor al Total.","")) ->  | CI47: =IF(AND(F47>0,OR(R47=""))," * No olvide digitar la variable Pueblos Originarios Mujeres (Digite Cero si no tiene).",IF(R47>F47," * La variable Pueblos Originarios Mujeres no puede ser Mayor al Total.","")) ->  | CJ47: =IF(AND(E47>0,OR(S47=""))," * No olvide digitar la variable Migrantes Hombres (Digite Cero si no tiene).",IF(S47>E47," * La variable Migrantes Hombres no puede ser Mayor al Total.","")) ->  | CK47: =IF(AND(F47>0,OR(T47=""))," * No olvide digitar la variable Migrantes Mujeres (Digite Cero si no tiene).",IF(T47>F47," * La variable Migrantes Mujeres no puede ser Mayor al Total.","")) ->  | DJ47: 0 | DK47: 0 | DL47: 0 | DM47: 0
C48: TOTAL | D48: 17095 | E48: =+G48+I48+K48+M48+O48 -> 8882 | F48: =+H48+J48+L48+N48+P48 -> 8213 | G48: =SUM(G45:G47) -> 2143 | H48: =SUM(H45:H47) -> 1899 | I48: 1907 | J48: 1811 | K48: 1803 | L48: 1698 | M48: 1661 | N48: 1597 | O48: 1368 | P48: 1208 | Q48: 65 | R48: 43 | S48: 108 | T48: 93
A49: P2400190 | C49: - 1 D.S. (<= -1.0 a -1.9) | D49: 1275 | E49: =+G49+I49+K49+M49+O49 -> 683 | F49: =+H49+J49+L49+N49+P49 -> 592 | G49: =IFERROR(VLOOKUP($A49,Filtro!$A$5:$AW$651,5,FALSE),0) -> 184 | H49: =IFERROR(VLOOKUP($A49,Filtro!$A$5:$AW$651,6,FALSE),0) -> 169 | I49: =IFERROR(VLOOKUP($A49,Filtro!$A$5:$AW$651,7,FALSE),0) -> 191 | J49: =IFERROR(VLOOKUP($A49,Filtro!$A$5:$AW$651,8,FALSE),0) -> 132 | K49: =IFERROR(VLOOKUP($A49,Filtro!$A$5:$AW$651,9,FALSE),0) -> 152 | L49: =IFERROR(VLOOKUP($A49,Filtro!$A$5:$AW$651,10,FALSE),0) -> 111 | M49: =IFERROR(VLOOKUP($A49,Filtro!$A$5:$AW$651,11,FALSE),0) -> 100 | N49: =IFERROR(VLOOKUP($A49,Filtro!$A$5:$AW$651,12,FALSE),0) -> 106 | O49: =IFERROR(VLOOKUP($A49,Filtro!$A$5:$AW$651,13,FALSE),0) -> 56 | P49: =IFERROR(VLOOKUP($A49,Filtro!$A$5:$AW$651,14,FALSE),0) -> 74 | Q49: =IFERROR(VLOOKUP($A49,Filtro!$A$5:$AW$651,15,FALSE),0) -> 4 | R49: =IFERROR(VLOOKUP($A49,Filtro!$A$5:$AW$651,16,FALSE),0) -> 7 | S49: =IFERROR(VLOOKUP($A49,Filtro!$A$5:$AW$651,17,FALSE),0) -> 27 | T49: =IFERROR(VLOOKUP($A49,Filtro!$A$5:$AW$651,18,FALSE),0) -> 30 | CH49: =IF(AND(E49>0,OR(Q49=""))," * No olvide digitar la variable Pueblos Originarios Hombres (Digite Cero si no tiene).",IF(Q49>E49," * La variable Pueblos Originarios Hombres no puede ser Mayor al Total.","")) ->  | CI49: =IF(AND(F49>0,OR(R49=""))," * No olvide digitar la variable Pueblos Originarios Mujeres (Digite Cero si no tiene).",IF(R49>F49," * La variable Pueblos Originarios Mujeres no puede ser Mayor al Total.","")) ->  | CJ49: =IF(AND(E49>0,OR(S49=""))," * No olvide digitar la variable Migrantes Hombres (Digite Cero si no tiene).",IF(S49>E49," * La variable Migrantes Hombres no puede ser Mayor al Total.","")) ->  | CK49: =IF(AND(F49>0,OR(T49=""))," * No olvide digitar la variable Migrantes Mujeres (Digite Cero si no tiene).",IF(T49>F49," * La variable Migrantes Mujeres no puede ser Mayor al Total.","")) ->  | DJ49: =IF(AND(E49>0,OR(Q49="")),1,IF(Q49>E49,1,0)) -> 0 | DK49: =IF(AND(F49>0,OR(R49="")),1,IF(R49>F49,1,0)) -> 0 | DL49: =IF(AND(E49>0,OR(S49="")),1,IF(S49>E49,1,0)) -> 0 | DM49: =IF(AND(F49>0,OR(T49="")),1,IF(T49>F49,1,0)) -> 0
A50: P2400200 | C50: - 2 D.S. (<= -2.0) | D50: =+E50+F50 -> 146 | E50: 73 | F50: 73 | G50: =IFERROR(VLOOKUP($A50,Filtro!$A$5:$AW$651,5,FALSE),0) -> 22 | H50: =IFERROR(VLOOKUP($A50,Filtro!$A$5:$AW$651,6,FALSE),0) -> 22 | I50: =IFERROR(VLOOKUP($A50,Filtro!$A$5:$AW$651,7,FALSE),0) -> 16 | J50: =IFERROR(VLOOKUP($A50,Filtro!$A$5:$AW$651,8,FALSE),0) -> 12 | K50: =IFERROR(VLOOKUP($A50,Filtro!$A$5:$AW$651,9,FALSE),0) -> 17 | L50: =IFERROR(VLOOKUP($A50,Filtro!$A$5:$AW$651,10,FALSE),0) -> 17 | M50: =IFERROR(VLOOKUP($A50,Filtro!$A$5:$AW$651,11,FALSE),0) -> 14 | N50: =IFERROR(VLOOKUP($A50,Filtro!$A$5:$AW$651,12,FALSE),0) -> 12 | O50: =IFERROR(VLOOKUP($A50,Filtro!$A$5:$AW$651,13,FALSE),0) -> 4 | P50: =IFERROR(VLOOKUP($A50,Filtro!$A$5:$AW$651,14,FALSE),0) -> 10 | Q50: =IFERROR(VLOOKUP($A50,Filtro!$A$5:$AW$651,15,FALSE),0) -> 1 | R50: =IFERROR(VLOOKUP($A50,Filtro!$A$5:$AW$651,16,FALSE),0) -> 2 | S50: =IFERROR(VLOOKUP($A50,Filtro!$A$5:$AW$651,17,FALSE),0) -> 2 | T50: =IFERROR(VLOOKUP($A50,Filtro!$A$5:$AW$651,18,FALSE),0) -> 5 | CH50: =IF(AND(E50>0,OR(Q50=""))," * No olvide digitar la variable Pueblos Originarios Hombres (Digite Cero si no tiene).",IF(Q50>E50," * La variable Pueblos Originarios Hombres no puede ser Mayor al Total.","")) ->  | CI50: =IF(AND(F50>0,OR(R50=""))," * No olvide digitar la variable Pueblos Originarios Mujeres (Digite Cero si no tiene).",IF(R50>F50," * La variable Pueblos Originarios Mujeres no puede ser Mayor al Total.","")) ->  | CJ50: =IF(AND(E50>0,OR(S50=""))," * No olvide digitar la variable Migrantes Hombres (Digite Cero si no tiene).",IF(S50>E50," * La variable Migrantes Hombres no puede ser Mayor al Total.","")) ->  | CK50: =IF(AND(F50>0,OR(T50=""))," * No olvide digitar la variable Migrantes Mujeres (Digite Cero si no tiene).",IF(T50>F50," * La variable Migrantes Mujeres no puede ser Mayor al Total.","")) ->  | DJ50: =IF(AND(E50>0,OR(Q50="")),1,IF(Q50>E50,1,0)) -> 0 | DK50: =IF(AND(F50>0,OR(R50="")),1,IF(R50>F50,1,0)) -> 0 | DL50: =IF(AND(E50>0,OR(S50="")),1,IF(S50>E50,1,0)) -> 0 | DM50: =IF(AND(F50>0,OR(T50="")),1,IF(T50>F50,1,0)) -> 0
C51: TOTAL | D51: 1421 | E51: =+G51+I51+K51+M51+O51 -> 756 | F51: =+H51+J51+L51+N51+P51 -> 665 | G51: =SUM(G49:G50) -> 206 | H51: =SUM(H49:H50) -> 191 | I51: 207 | J51: 144 | K51: 169 | L51: 128 | M51: 114 | N51: 118 | O51: 60 | P51: 84 | Q51: =SUM(Q49:Q50) -> 5 | R51: =SUM(R49:R50) -> 9 | S51: =SUM(S49:S50) -> 29 | T51: =SUM(T49:T50) -> 35
A52: P2400210 | C52: PROMEDIO (-0,9 A + 0,9) | D52: 14565 | E52: =+G52+I52+K52+M52+O52 -> 7142 | F52: =+H52+J52+L52+N52+P52 -> 7423 | G52: =IFERROR(VLOOKUP($A52,Filtro!$A$5:$AW$651,5,FALSE),0) -> 2368 | H52: =IFERROR(VLOOKUP($A52,Filtro!$A$5:$AW$651,6,FALSE),0) -> 2474 | I52: =IFERROR(VLOOKUP($A52,Filtro!$A$5:$AW$651,7,FALSE),0) -> 1894 | J52: =IFERROR(VLOOKUP($A52,Filtro!$A$5:$AW$651,8,FALSE),0) -> 1821 | K52: =IFERROR(VLOOKUP($A52,Filtro!$A$5:$AW$651,9,FALSE),0) -> 1259 | L52: =IFERROR(VLOOKUP($A52,Filtro!$A$5:$AW$651,10,FALSE),0) -> 1348 | M52: =IFERROR(VLOOKUP($A52,Filtro!$A$5:$AW$651,11,FALSE),0) -> 942 | N52: =IFERROR(VLOOKUP($A52,Filtro!$A$5:$AW$651,12,FALSE),0) -> 1011 | O52: =IFERROR(VLOOKUP($A52,Filtro!$A$5:$AW$651,13,FALSE),0) -> 679 | P52: =IFERROR(VLOOKUP($A52,Filtro!$A$5:$AW$651,14,FALSE),0) -> 769 | Q52: =IFERROR(VLOOKUP($A52,Filtro!$A$5:$AW$651,15,FALSE),0) -> 86 | R52: =IFERROR(VLOOKUP($A52,Filtro!$A$5:$AW$651,16,FALSE),0) -> 99 | S52: =IFERROR(VLOOKUP($A52,Filtro!$A$5:$AW$651,17,FALSE),0) -> 230 | T52: =IFERROR(VLOOKUP($A52,Filtro!$A$5:$AW$651,18,FALSE),0) -> 280 | CH52: =IF(AND(E52>0,OR(Q52=""))," * No olvide digitar la variable Pueblos Originarios Hombres (Digite Cero si no tiene).",IF(Q52>E52," * La variable Pueblos Originarios Hombres no puede ser Mayor al Total.","")) ->  | CI52: =IF(AND(F52>0,OR(R52=""))," * No olvide digitar la variable Pueblos Originarios Mujeres (Digite Cero si no tiene).",IF(R52>F52," * La variable Pueblos Originarios Mujeres no puede ser Mayor al Total.","")) ->  | CJ52: =IF(AND(E52>0,OR(S52=""))," * No olvide digitar la variable Migrantes Hombres (Digite Cero si no tiene).",IF(S52>E52," * La variable Migrantes Hombres no puede ser Mayor al Total.","")) ->  | CK52: =IF(AND(F52>0,OR(T52=""))," * No olvide digitar la variable Migrantes Mujeres (Digite Cero si no tiene).",IF(T52>F52," * La variable Migrantes Mujeres no puede ser Mayor al Total.","")) ->  | DJ52: =IF(AND(E52>0,OR(Q52="")),1,IF(Q52>E52,1,0)) -> 0 | DK52: 0 | DL52: =IF(AND(E52>0,OR(S52="")),1,IF(S52>E52,1,0)) -> 0 | DM52: 0
A53: P2400220 | B53: INDICADOR TALLA/EDAD | C53: + 2 D.S. (>= +2.0) | D53: 1822 | E53: =+G53+I53+K53+M53+O53 -> 914 | F53: 908 | G53: =IFERROR(VLOOKUP($A53,Filtro!$A$5:$AW$651,5,FALSE),0) -> 238 | H53: =IFERROR(VLOOKUP($A53,Filtro!$A$5:$AW$651,6,FALSE),0) -> 216 | I53: =IFERROR(VLOOKUP($A53,Filtro!$A$5:$AW$651,7,FALSE),0) -> 232 | J53: =IFERROR(VLOOKUP($A53,Filtro!$A$5:$AW$651,8,FALSE),0) -> 189 | K53: =IFERROR(VLOOKUP($A53,Filtro!$A$5:$AW$651,9,FALSE),0) -> 177 | L53: =IFERROR(VLOOKUP($A53,Filtro!$A$5:$AW$651,10,FALSE),0) -> 190 | M53: =IFERROR(VLOOKUP($A53,Filtro!$A$5:$AW$651,11,FALSE),0) -> 138 | N53: =IFERROR(VLOOKUP($A53,Filtro!$A$5:$AW$651,12,FALSE),0) -> 191 | O53: =IFERROR(VLOOKUP($A53,Filtro!$A$5:$AW$651,13,FALSE),0) -> 129 | P53: =IFERROR(VLOOKUP($A53,Filtro!$A$5:$AW$651,14,FALSE),0) -> 122 | Q53: =IFERROR(VLOOKUP($A53,Filtro!$A$5:$AW$651,15,FALSE),0) -> 13 | R53: =IFERROR(VLOOKUP($A53,Filtro!$A$5:$AW$651,16,FALSE),0) -> 17 | S53: =IFERROR(VLOOKUP($A53,Filtro!$A$5:$AW$651,17,FALSE),0) -> 11 | T53: =IFERROR(VLOOKUP($A53,Filtro!$A$5:$AW$651,18,FALSE),0) -> 20 | CH53: =IF(AND(E53>0,OR(Q53=""))," * No olvide digitar la variable Pueblos Originarios Hombres (Digite Cero si no tiene).",IF(Q53>E53," * La variable Pueblos Originarios Hombres no puede ser Mayor al Total.","")) ->  | CI53: =IF(AND(F53>0,OR(R53=""))," * No olvide digitar la variable Pueblos Originarios Mujeres (Digite Cero si no tiene).",IF(R53>F53," * La variable Pueblos Originarios Mujeres no puede ser Mayor al Total.","")) ->  | CJ53: =IF(AND(E53>0,OR(S53=""))," * No olvide digitar la variable Migrantes Hombres (Digite Cero si no tiene).",IF(S53>E53," * La variable Migrantes Hombres no puede ser Mayor al Total.","")) ->  | CK53: =IF(AND(F53>0,OR(T53=""))," * No olvide digitar la variable Migrantes Mujeres (Digite Cero si no tiene).",IF(T53>F53," * La variable Migrantes Mujeres no puede ser Mayor al Total.","")) ->  | DJ53: 0 | DK53: 0 | DL53: 0 | DM53: 0
A54: P2400230 | C54: + 1 D.S. (+1.0 a +1.9) | D54: 6082 | E54: 3110 | F54: 2972 | G54: =IFERROR(VLOOKUP($A54,Filtro!$A$5:$AW$651,5,FALSE),0) -> 826 | H54: =IFERROR(VLOOKUP($A54,Filtro!$A$5:$AW$651,6,FALSE),0) -> 682 | I54: =IFERROR(VLOOKUP($A54,Filtro!$A$5:$AW$651,7,FALSE),0) -> 688 | J54: =IFERROR(VLOOKUP($A54,Filtro!$A$5:$AW$651,8,FALSE),0) -> 690 | K54: =IFERROR(VLOOKUP($A54,Filtro!$A$5:$AW$651,9,FALSE),0) -> 633 | L54: =IFERROR(VLOOKUP($A54,Filtro!$A$5:$AW$651,10,FALSE),0) -> 601 | M54: =IFERROR(VLOOKUP($A54,Filtro!$A$5:$AW$651,11,FALSE),0) -> 540 | N54: =IFERROR(VLOOKUP($A54,Filtro!$A$5:$AW$651,12,FALSE),0) -> 546 | O54: =IFERROR(VLOOKUP($A54,Filtro!$A$5:$AW$651,13,FALSE),0) -> 423 | P54: =IFERROR(VLOOKUP($A54,Filtro!$A$5:$AW$651,14,FALSE),0) -> 453 | Q54: =IFERROR(VLOOKUP($A54,Filtro!$A$5:$AW$651,15,FALSE),0) -> 26 | R54: =IFERROR(VLOOKUP($A54,Filtro!$A$5:$AW$651,16,FALSE),0) -> 22 | S54: =IFERROR(VLOOKUP($A54,Filtro!$A$5:$AW$651,17,FALSE),0) -> 54 | T54: =IFERROR(VLOOKUP($A54,Filtro!$A$5:$AW$651,18,FALSE),0) -> 54 | CH54: =IF(AND(E54>0,OR(Q54=""))," * No olvide digitar la variable Pueblos Originarios Hombres (Digite Cero si no tiene).",IF(Q54>E54," * La variable Pueblos Originarios Hombres no puede ser Mayor al Total.","")) ->  | CI54: =IF(AND(F54>0,OR(R54=""))," * No olvide digitar la variable Pueblos Originarios Mujeres (Digite Cero si no tiene).",IF(R54>F54," * La variable Pueblos Originarios Mujeres no puede ser Mayor al Total.","")) ->  | CJ54: =IF(AND(E54>0,OR(S54=""))," * No olvide digitar la variable Migrantes Hombres (Digite Cero si no tiene).",IF(S54>E54," * La variable Migrantes Hombres no puede ser Mayor al Total.","")) ->  | CK54: =IF(AND(F54>0,OR(T54=""))," * No olvide digitar la variable Migrantes Mujeres (Digite Cero si no tiene).",IF(T54>F54," * La variable Migrantes Mujeres no puede ser Mayor al Total.","")) ->  | DJ54: 0 | DK54: 0 | DL54: 0 | DM54: 0
C55: TOTAL | D55: 7904 | E55: =+G55+I55+K55+M55+O55 -> 4024 | F55: =+H55+J55+L55+N55+P55 -> 3880 | G55: =SUM(G53:G54) -> 1064 | H55: =SUM(H53:H54) -> 898 | I55: 920 | J55: 879 | K55: 810 | L55: 791 | M55: 678 | N55: 737 | O55: 552 | P55: 575 | Q55: 39 | R55: 39 | S55: 65 | T55: 74
A56: P2400240 | C56: - 1 D.S. (-1.0 a -1.9) | D56: 3080 | E56: =+G56+I56+K56+M56+O56 -> 1567 | F56: 1513 | G56: =IFERROR(VLOOKUP($A56,Filtro!$A$5:$AW$651,5,FALSE),0) -> 523 | H56: =IFERROR(VLOOKUP($A56,Filtro!$A$5:$AW$651,6,FALSE),0) -> 532 | I56: =IFERROR(VLOOKUP($A56,Filtro!$A$5:$AW$651,7,FALSE),0) -> 371 | J56: =IFERROR(VLOOKUP($A56,Filtro!$A$5:$AW$651,8,FALSE),0) -> 318 | K56: =IFERROR(VLOOKUP($A56,Filtro!$A$5:$AW$651,9,FALSE),0) -> 284 | L56: =IFERROR(VLOOKUP($A56,Filtro!$A$5:$AW$651,10,FALSE),0) -> 303 | M56: =IFERROR(VLOOKUP($A56,Filtro!$A$5:$AW$651,11,FALSE),0) -> 225 | N56: =IFERROR(VLOOKUP($A56,Filtro!$A$5:$AW$651,12,FALSE),0) -> 205 | O56: =IFERROR(VLOOKUP($A56,Filtro!$A$5:$AW$651,13,FALSE),0) -> 164 | P56: =IFERROR(VLOOKUP($A56,Filtro!$A$5:$AW$651,14,FALSE),0) -> 155 | Q56: =IFERROR(VLOOKUP($A56,Filtro!$A$5:$AW$651,15,FALSE),0) -> 14 | R56: =IFERROR(VLOOKUP($A56,Filtro!$A$5:$AW$651,16,FALSE),0) -> 24 | S56: =IFERROR(VLOOKUP($A56,Filtro!$A$5:$AW$651,17,FALSE),0) -> 76 | T56: =IFERROR(VLOOKUP($A56,Filtro!$A$5:$AW$651,18,FALSE),0) -> 65 | CH56: =IF(AND(E56>0,OR(Q56=""))," * No olvide digitar la variable Pueblos Originarios Hombres (Digite Cero si no tiene).",IF(Q56>E56," * La variable Pueblos Originarios Hombres no puede ser Mayor al Total.","")) ->  | CI56: =IF(AND(F56>0,OR(R56=""))," * No olvide digitar la variable Pueblos Originarios Mujeres (Digite Cero si no tiene).",IF(R56>F56," * La variable Pueblos Originarios Mujeres no puede ser Mayor al Total.","")) ->  | CJ56: =IF(AND(E56>0,OR(S56=""))," * No olvide digitar la variable Migrantes Hombres (Digite Cero si no tiene).",IF(S56>E56," * La variable Migrantes Hombres no puede ser Mayor al Total.","")) ->  | CK56: =IF(AND(F56>0,OR(T56=""))," * No olvide digitar la variable Migrantes Mujeres (Digite Cero si no tiene).",IF(T56>F56," * La variable Migrantes Mujeres no puede ser Mayor al Total.","")) ->  | DJ56: =IF(AND(E56>0,OR(Q56="")),1,IF(Q56>E56,1,0)) -> 0 | DK56: =IF(AND(F56>0,OR(R56="")),1,IF(R56>F56,1,0)) -> 0 | DL56: =IF(AND(E56>0,OR(S56="")),1,IF(S56>E56,1,0)) -> 0 | DM56: =IF(AND(F56>0,OR(T56="")),1,IF(T56>F56,1,0)) -> 0
A57: P2400250 | C57: - 2 D.S. (<= -2.0) | D57: 438 | E57: 246 | F57: 192 | G57: =IFERROR(VLOOKUP($A57,Filtro!$A$5:$AW$651,5,FALSE),0) -> 72 | H57: =IFERROR(VLOOKUP($A57,Filtro!$A$5:$AW$651,6,FALSE),0) -> 70 | I57: =IFERROR(VLOOKUP($A57,Filtro!$A$5:$AW$651,7,FALSE),0) -> 61 | J57: =IFERROR(VLOOKUP($A57,Filtro!$A$5:$AW$651,8,FALSE),0) -> 32 | K57: =IFERROR(VLOOKUP($A57,Filtro!$A$5:$AW$651,9,FALSE),0) -> 31 | L57: =IFERROR(VLOOKUP($A57,Filtro!$A$5:$AW$651,10,FALSE),0) -> 39 | M57: =IFERROR(VLOOKUP($A57,Filtro!$A$5:$AW$651,11,FALSE),0) -> 34 | N57: =IFERROR(VLOOKUP($A57,Filtro!$A$5:$AW$651,12,FALSE),0) -> 27 | O57: =IFERROR(VLOOKUP($A57,Filtro!$A$5:$AW$651,13,FALSE),0) -> 48 | P57: =IFERROR(VLOOKUP($A57,Filtro!$A$5:$AW$651,14,FALSE),0) -> 24 | Q57: =IFERROR(VLOOKUP($A57,Filtro!$A$5:$AW$651,15,FALSE),0) -> 7 | R57: =IFERROR(VLOOKUP($A57,Filtro!$A$5:$AW$651,16,FALSE),0) -> 5 | S57: =IFERROR(VLOOKUP($A57,Filtro!$A$5:$AW$651,17,FALSE),0) -> 14 | T57: =IFERROR(VLOOKUP($A57,Filtro!$A$5:$AW$651,18,FALSE),0) -> 2 | CH57: =IF(AND(E57>0,OR(Q57=""))," * No olvide digitar la variable Pueblos Originarios Hombres (Digite Cero si no tiene).",IF(Q57>E57," * La variable Pueblos Originarios Hombres no puede ser Mayor al Total.","")) ->  | CI57: =IF(AND(F57>0,OR(R57=""))," * No olvide digitar la variable Pueblos Originarios Mujeres (Digite Cero si no tiene).",IF(R57>F57," * La variable Pueblos Originarios Mujeres no puede ser Mayor al Total.","")) ->  | CJ57: =IF(AND(E57>0,OR(S57=""))," * No olvide digitar la variable Migrantes Hombres (Digite Cero si no tiene).",IF(S57>E57," * La variable Migrantes Hombres no puede ser Mayor al Total.","")) ->  | CK57: =IF(AND(F57>0,OR(T57=""))," * No olvide digitar la variable Migrantes Mujeres (Digite Cero si no tiene).",IF(T57>F57," * La variable Migrantes Mujeres no puede ser Mayor al Total.","")) ->  | DJ57: =IF(AND(E57>0,OR(Q57="")),1,IF(Q57>E57,1,0)) -> 0 | DK57: =IF(AND(F57>0,OR(R57="")),1,IF(R57>F57,1,0)) -> 0 | DL57: =IF(AND(E57>0,OR(S57="")),1,IF(S57>E57,1,0)) -> 0 | DM57: =IF(AND(F57>0,OR(T57="")),1,IF(T57>F57,1,0)) -> 0
C58: TOTAL | D58: 3518 | E58: =+G58+I58+K58+M58+O58 -> 1813 | F58: =+H58+J58+L58+N58+P58 -> 1705 | G58: =SUM(G56:G57) -> 595 | H58: =SUM(H56:H57) -> 602 | I58: 432 | J58: 350 | K58: 315 | L58: 342 | M58: 259 | N58: 232 | O58: 212 | P58: 179 | Q58: =SUM(Q56:Q57) -> 21 | R58: 29 | S58: 90 | T58: 67
A59: P2400260 | C59: PROMEDIO (-0,9 A + 0,9) | D59: 20384 | E59: =+G59+I59+K59+M59+O59 -> 10276 | F59: 10108 | G59: =IFERROR(VLOOKUP($A59,Filtro!$A$5:$AW$651,5,FALSE),0) -> 2988 | H59: =IFERROR(VLOOKUP($A59,Filtro!$A$5:$AW$651,6,FALSE),0) -> 3005 | I59: =IFERROR(VLOOKUP($A59,Filtro!$A$5:$AW$651,7,FALSE),0) -> 2474 | J59: =IFERROR(VLOOKUP($A59,Filtro!$A$5:$AW$651,8,FALSE),0) -> 2393 | K59: =IFERROR(VLOOKUP($A59,Filtro!$A$5:$AW$651,9,FALSE),0) -> 1928 | L59: =IFERROR(VLOOKUP($A59,Filtro!$A$5:$AW$651,10,FALSE),0) -> 1890 | M59: =IFERROR(VLOOKUP($A59,Filtro!$A$5:$AW$651,11,FALSE),0) -> 1646 | N59: =IFERROR(VLOOKUP($A59,Filtro!$A$5:$AW$651,12,FALSE),0) -> 1613 | O59: =IFERROR(VLOOKUP($A59,Filtro!$A$5:$AW$651,13,FALSE),0) -> 1240 | P59: =IFERROR(VLOOKUP($A59,Filtro!$A$5:$AW$651,14,FALSE),0) -> 1207 | Q59: =IFERROR(VLOOKUP($A59,Filtro!$A$5:$AW$651,15,FALSE),0) -> 130 | R59: =IFERROR(VLOOKUP($A59,Filtro!$A$5:$AW$651,16,FALSE),0) -> 124 | S59: =IFERROR(VLOOKUP($A59,Filtro!$A$5:$AW$651,17,FALSE),0) -> 287 | T59: =IFERROR(VLOOKUP($A59,Filtro!$A$5:$AW$651,18,FALSE),0) -> 303 | CH59: =IF(AND(E59>0,OR(Q59=""))," * No olvide digitar la variable Pueblos Originarios Hombres (Digite Cero si no tiene).",IF(Q59>E59," * La variable Pueblos Originarios Hombres no puede ser Mayor al Total.","")) ->  | CI59: =IF(AND(F59>0,OR(R59=""))," * No olvide digitar la variable Pueblos Originarios Mujeres (Digite Cero si no tiene).",IF(R59>F59," * La variable Pueblos Originarios Mujeres no puede ser Mayor al Total.","")) ->  | CJ59: =IF(AND(E59>0,OR(S59=""))," * No olvide digitar la variable Migrantes Hombres (Digite Cero si no tiene).",IF(S59>E59," * La variable Migrantes Hombres no puede ser Mayor al Total.","")) ->  | CK59: =IF(AND(F59>0,OR(T59=""))," * No olvide digitar la variable Migrantes Mujeres (Digite Cero si no tiene).",IF(T59>F59," * La variable Migrantes Mujeres no puede ser Mayor al Total.","")) ->  | DJ59: =IF(AND(E59>0,OR(Q59="")),1,IF(Q59>E59,1,0)) -> 0 | DK59: 0 | DL59: =IF(AND(E59>0,OR(S59="")),1,IF(S59>E59,1,0)) -> 0 | DM59: 0
A60: P2400270 | B60: INDICADOR PERIMETRO DE CINTURA / EDAD | C60: NORMAL (<p75) | D60: 17098 | E60: 8490 | F60: 8608 | G60: =IFERROR(VLOOKUP($A60,Filtro!$A$5:$AW$651,5,FALSE),0) -> 2541 | H60: =IFERROR(VLOOKUP($A60,Filtro!$A$5:$AW$651,6,FALSE),0) -> 2565 | I60: =IFERROR(VLOOKUP($A60,Filtro!$A$5:$AW$651,7,FALSE),0) -> 2068 | J60: =IFERROR(VLOOKUP($A60,Filtro!$A$5:$AW$651,8,FALSE),0) -> 2047 | K60: =IFERROR(VLOOKUP($A60,Filtro!$A$5:$AW$651,9,FALSE),0) -> 1680 | L60: =IFERROR(VLOOKUP($A60,Filtro!$A$5:$AW$651,10,FALSE),0) -> 1671 | M60: =IFERROR(VLOOKUP($A60,Filtro!$A$5:$AW$651,11,FALSE),0) -> 1338 | N60: =IFERROR(VLOOKUP($A60,Filtro!$A$5:$AW$651,12,FALSE),0) -> 1336 | O60: =IFERROR(VLOOKUP($A60,Filtro!$A$5:$AW$651,13,FALSE),0) -> 863 | P60: =IFERROR(VLOOKUP($A60,Filtro!$A$5:$AW$651,14,FALSE),0) -> 989 | Q60: =IFERROR(VLOOKUP($A60,Filtro!$A$5:$AW$651,15,FALSE),0) -> 69 | R60: =IFERROR(VLOOKUP($A60,Filtro!$A$5:$AW$651,16,FALSE),0) -> 75 | S60: =IFERROR(VLOOKUP($A60,Filtro!$A$5:$AW$651,17,FALSE),0) -> 224 | T60: =IFERROR(VLOOKUP($A60,Filtro!$A$5:$AW$651,18,FALSE),0) -> 243 | CH60: =IF(AND(E60>0,OR(Q60=""))," * No olvide digitar la variable Pueblos Originarios Hombres (Digite Cero si no tiene).",IF(Q60>E60," * La variable Pueblos Originarios Hombres no puede ser Mayor al Total.","")) ->  | CI60: =IF(AND(F60>0,OR(R60=""))," * No olvide digitar la variable Pueblos Originarios Mujeres (Digite Cero si no tiene).",IF(R60>F60," * La variable Pueblos Originarios Mujeres no puede ser Mayor al Total.","")) ->  | CJ60: =IF(AND(E60>0,OR(S60=""))," * No olvide digitar la variable Migrantes Hombres (Digite Cero si no tiene).",IF(S60>E60," * La variable Migrantes Hombres no puede ser Mayor al Total.","")) ->  | CK60: =IF(AND(F60>0,OR(T60=""))," * No olvide digitar la variable Migrantes Mujeres (Digite Cero si no tiene).",IF(T60>F60," * La variable Migrantes Mujeres no puede ser Mayor al Total.","")) ->  | DJ60: 0 | DK60: 0 | DL60: 0 | DM60: 0
A61: P2400280 | C61: RIESGO DE OBESIDAD ABDOMINAL (75<p<90) | D61: 5781 | E61: 2881 | F61: 2900 | G61: =IFERROR(VLOOKUP($A61,Filtro!$A$5:$AW$651,5,FALSE),0) -> 730 | H61: =IFERROR(VLOOKUP($A61,Filtro!$A$5:$AW$651,6,FALSE),0) -> 710 | I61: =IFERROR(VLOOKUP($A61,Filtro!$A$5:$AW$651,7,FALSE),0) -> 659 | J61: =IFERROR(VLOOKUP($A61,Filtro!$A$5:$AW$651,8,FALSE),0) -> 611 | K61: =IFERROR(VLOOKUP($A61,Filtro!$A$5:$AW$651,9,FALSE),0) -> 558 | L61: =IFERROR(VLOOKUP($A61,Filtro!$A$5:$AW$651,10,FALSE),0) -> 605 | M61: =IFERROR(VLOOKUP($A61,Filtro!$A$5:$AW$651,11,FALSE),0) -> 491 | N61: =IFERROR(VLOOKUP($A61,Filtro!$A$5:$AW$651,12,FALSE),0) -> 534 | O61: =IFERROR(VLOOKUP($A61,Filtro!$A$5:$AW$651,13,FALSE),0) -> 443 | P61: =IFERROR(VLOOKUP($A61,Filtro!$A$5:$AW$651,14,FALSE),0) -> 440 | Q61: =IFERROR(VLOOKUP($A61,Filtro!$A$5:$AW$651,15,FALSE),0) -> 31 | R61: =IFERROR(VLOOKUP($A61,Filtro!$A$5:$AW$651,16,FALSE),0) -> 18 | S61: =IFERROR(VLOOKUP($A61,Filtro!$A$5:$AW$651,17,FALSE),0) -> 42 | T61: =IFERROR(VLOOKUP($A61,Filtro!$A$5:$AW$651,18,FALSE),0) -> 37 | CH61: =IF(AND(E61>0,OR(Q61=""))," * No olvide digitar la variable Pueblos Originarios Hombres (Digite Cero si no tiene).",IF(Q61>E61," * La variable Pueblos Originarios Hombres no puede ser Mayor al Total.","")) ->  | CI61: =IF(AND(F61>0,OR(R61=""))," * No olvide digitar la variable Pueblos Originarios Mujeres (Digite Cero si no tiene).",IF(R61>F61," * La variable Pueblos Originarios Mujeres no puede ser Mayor al Total.","")) ->  | CJ61: =IF(AND(E61>0,OR(S61=""))," * No olvide digitar la variable Migrantes Hombres (Digite Cero si no tiene).",IF(S61>E61," * La variable Migrantes Hombres no puede ser Mayor al Total.","")) ->  | CK61: =IF(AND(F61>0,OR(T61=""))," * No olvide digitar la variable Migrantes Mujeres (Digite Cero si no tiene).",IF(T61>F61," * La variable Migrantes Mujeres no puede ser Mayor al Total.","")) ->  | DJ61: 0 | DK61: 0 | DL61: 0 | DM61: 0
A62: P2400290 | C62: OBESIDAD ABDOMINAL (>p90) | D62: 6692 | E62: 3526 | F62: 3166 | G62: =IFERROR(VLOOKUP($A62,Filtro!$A$5:$AW$651,5,FALSE),0) -> 758 | H62: =IFERROR(VLOOKUP($A62,Filtro!$A$5:$AW$651,6,FALSE),0) -> 618 | I62: =IFERROR(VLOOKUP($A62,Filtro!$A$5:$AW$651,7,FALSE),0) -> 699 | J62: =IFERROR(VLOOKUP($A62,Filtro!$A$5:$AW$651,8,FALSE),0) -> 673 | K62: =IFERROR(VLOOKUP($A62,Filtro!$A$5:$AW$651,9,FALSE),0) -> 767 | L62: =IFERROR(VLOOKUP($A62,Filtro!$A$5:$AW$651,10,FALSE),0) -> 692 | M62: =IFERROR(VLOOKUP($A62,Filtro!$A$5:$AW$651,11,FALSE),0) -> 720 | N62: =IFERROR(VLOOKUP($A62,Filtro!$A$5:$AW$651,12,FALSE),0) -> 678 | O62: =IFERROR(VLOOKUP($A62,Filtro!$A$5:$AW$651,13,FALSE),0) -> 582 | P62: =IFERROR(VLOOKUP($A62,Filtro!$A$5:$AW$651,14,FALSE),0) -> 505 | Q62: =IFERROR(VLOOKUP($A62,Filtro!$A$5:$AW$651,15,FALSE),0) -> 30 | R62: =IFERROR(VLOOKUP($A62,Filtro!$A$5:$AW$651,16,FALSE),0) -> 18 | S62: =IFERROR(VLOOKUP($A62,Filtro!$A$5:$AW$651,17,FALSE),0) -> 40 | T62: =IFERROR(VLOOKUP($A62,Filtro!$A$5:$AW$651,18,FALSE),0) -> 30 | CH62: =IF(AND(E62>0,OR(Q62=""))," * No olvide digitar la variable Pueblos Originarios Hombres (Digite Cero si no tiene).",IF(Q62>E62," * La variable Pueblos Originarios Hombres no puede ser Mayor al Total.","")) ->  | CI62: =IF(AND(F62>0,OR(R62=""))," * No olvide digitar la variable Pueblos Originarios Mujeres (Digite Cero si no tiene).",IF(R62>F62," * La variable Pueblos Originarios Mujeres no puede ser Mayor al Total.","")) ->  | CJ62: =IF(AND(E62>0,OR(S62=""))," * No olvide digitar la variable Migrantes Hombres (Digite Cero si no tiene).",IF(S62>E62," * La variable Migrantes Hombres no puede ser Mayor al Total.","")) ->  | CK62: =IF(AND(F62>0,OR(T62=""))," * No olvide digitar la variable Migrantes Mujeres (Digite Cero si no tiene).",IF(T62>F62," * La variable Migrantes Mujeres no puede ser Mayor al Total.","")) ->  | DJ62: 0 | DK62: 0 | DL62: 0 | DM62: 0
C63: TOTAL | D63: =+E63+F63 -> 29571 | E63: =+G63+I63+K63+M63+O63 -> 14897 | F63: =+H63+J63+L63+N63+P63 -> 14674 | G63: =SUM(G60:G62) -> 4029 | H63: =SUM(H60:H62) -> 3893 | I63: 3426 | J63: 3331 | K63: 3005 | L63: 2968 | M63: 2549 | N63: 2548 | O63: 1888 | P63: 1934 | Q63: =SUM(Q60:Q62) -> 130 | R63: 111 | S63: 306 | T63: =SUM(T60:T62) -> 310
A64: P2400300 | B64: DIAGNOSTICO NUTRICIONAL INTEGRADO | C64: RIESGO DE DESNUTRIR/ DEFICIT PONDERAL* | D64: 1240 | E64: =+G64+I64+K64+M64+O64 -> 668 | F64: 572 | G64: =IFERROR(VLOOKUP($A64,Filtro!$A$5:$AW$651,5,FALSE),0) -> 168 | H64: =IFERROR(VLOOKUP($A64,Filtro!$A$5:$AW$651,6,FALSE),0) -> 167 | I64: =IFERROR(VLOOKUP($A64,Filtro!$A$5:$AW$651,7,FALSE),0) -> 183 | J64: =IFERROR(VLOOKUP($A64,Filtro!$A$5:$AW$651,8,FALSE),0) -> 127 | K64: =IFERROR(VLOOKUP($A64,Filtro!$A$5:$AW$651,9,FALSE),0) -> 146 | L64: =IFERROR(VLOOKUP($A64,Filtro!$A$5:$AW$651,10,FALSE),0) -> 106 | M64: =IFERROR(VLOOKUP($A64,Filtro!$A$5:$AW$651,11,FALSE),0) -> 111 | N64: =IFERROR(VLOOKUP($A64,Filtro!$A$5:$AW$651,12,FALSE),0) -> 103 | O64: =IFERROR(VLOOKUP($A64,Filtro!$A$5:$AW$651,13,FALSE),0) -> 60 | P64: =IFERROR(VLOOKUP($A64,Filtro!$A$5:$AW$651,14,FALSE),0) -> 69 | Q64: =IFERROR(VLOOKUP($A64,Filtro!$A$5:$AW$651,15,FALSE),0) -> 8 | R64: =IFERROR(VLOOKUP($A64,Filtro!$A$5:$AW$651,16,FALSE),0) -> 7 | S64: =IFERROR(VLOOKUP($A64,Filtro!$A$5:$AW$651,17,FALSE),0) -> 24 | T64: =IFERROR(VLOOKUP($A64,Filtro!$A$5:$AW$651,18,FALSE),0) -> 29 | CH64: =IF(AND(E64>0,OR(Q64=""))," * No olvide digitar la variable Pueblos Originarios Hombres (Digite Cero si no tiene).",IF(Q64>E64," * La variable Pueblos Originarios Hombres no puede ser Mayor al Total.","")) ->  | CI64: =IF(AND(F64>0,OR(R64=""))," * No olvide digitar la variable Pueblos Originarios Mujeres (Digite Cero si no tiene).",IF(R64>F64," * La variable Pueblos Originarios Mujeres no puede ser Mayor al Total.","")) ->  | CJ64: =IF(AND(E64>0,OR(S64=""))," * No olvide digitar la variable Migrantes Hombres (Digite Cero si no tiene).",IF(S64>E64," * La variable Migrantes Hombres no puede ser Mayor al Total.","")) ->  | CK64: =IF(AND(F64>0,OR(T64=""))," * No olvide digitar la variable Migrantes Mujeres (Digite Cero si no tiene).",IF(T64>F64," * La variable Migrantes Mujeres no puede ser Mayor al Total.","")) ->  | DJ64: =IF(AND(E64>0,OR(Q64="")),1,IF(Q64>E64,1,0)) -> 0 | DK64: =IF(AND(F64>0,OR(R64="")),1,IF(R64>F64,1,0)) -> 0 | DL64: =IF(AND(E64>0,OR(S64="")),1,IF(S64>E64,1,0)) -> 0 | DM64: =IF(AND(F64>0,OR(T64="")),1,IF(T64>F64,1,0)) -> 0
A65: P2400310 | C65: DESNUTRIDO | D65: 124 | E65: 65 | F65: 59 | G65: =IFERROR(VLOOKUP($A65,Filtro!$A$5:$AW$651,5,FALSE),0) -> 19 | H65: =IFERROR(VLOOKUP($A65,Filtro!$A$5:$AW$651,6,FALSE),0) -> 18 | I65: =IFERROR(VLOOKUP($A65,Filtro!$A$5:$AW$651,7,FALSE),0) -> 13 | J65: =IFERROR(VLOOKUP($A65,Filtro!$A$5:$AW$651,8,FALSE),0) -> 8 | K65: =IFERROR(VLOOKUP($A65,Filtro!$A$5:$AW$651,9,FALSE),0) -> 15 | L65: =IFERROR(VLOOKUP($A65,Filtro!$A$5:$AW$651,10,FALSE),0) -> 18 | M65: =IFERROR(VLOOKUP($A65,Filtro!$A$5:$AW$651,11,FALSE),0) -> 14 | N65: =IFERROR(VLOOKUP($A65,Filtro!$A$5:$AW$651,12,FALSE),0) -> 9 | O65: =IFERROR(VLOOKUP($A65,Filtro!$A$5:$AW$651,13,FALSE),0) -> 4 | P65: =IFERROR(VLOOKUP($A65,Filtro!$A$5:$AW$651,14,FALSE),0) -> 6 | Q65: =IFERROR(VLOOKUP($A65,Filtro!$A$5:$AW$651,15,FALSE),0) -> 0 | R65: =IFERROR(VLOOKUP($A65,Filtro!$A$5:$AW$651,16,FALSE),0) -> 0 | S65: =IFERROR(VLOOKUP($A65,Filtro!$A$5:$AW$651,17,FALSE),0) -> 2 | T65: =IFERROR(VLOOKUP($A65,Filtro!$A$5:$AW$651,18,FALSE),0) -> 4 | DJ65: 0 | DK65: 0 | DL65: 0 | DM65: 0
A66: P2400320 | C66: SOBREPESO / RIESGO OBESIDAD | D66: 7589 | E66: 3695 | F66: 3894 | G66: =IFERROR(VLOOKUP($A66,Filtro!$A$5:$AW$651,5,FALSE),0) -> 1033 | H66: =IFERROR(VLOOKUP($A66,Filtro!$A$5:$AW$651,6,FALSE),0) -> 983 | I66: =IFERROR(VLOOKUP($A66,Filtro!$A$5:$AW$651,7,FALSE),0) -> 803 | J66: =IFERROR(VLOOKUP($A66,Filtro!$A$5:$AW$651,8,FALSE),0) -> 863 | K66: =IFERROR(VLOOKUP($A66,Filtro!$A$5:$AW$651,9,FALSE),0) -> 725 | L66: =IFERROR(VLOOKUP($A66,Filtro!$A$5:$AW$651,10,FALSE),0) -> 790 | M66: =IFERROR(VLOOKUP($A66,Filtro!$A$5:$AW$651,11,FALSE),0) -> 626 | N66: =IFERROR(VLOOKUP($A66,Filtro!$A$5:$AW$651,12,FALSE),0) -> 688 | O66: =IFERROR(VLOOKUP($A66,Filtro!$A$5:$AW$651,13,FALSE),0) -> 508 | P66: =IFERROR(VLOOKUP($A66,Filtro!$A$5:$AW$651,14,FALSE),0) -> 570 | Q66: =IFERROR(VLOOKUP($A66,Filtro!$A$5:$AW$651,15,FALSE),0) -> 52 | R66: =IFERROR(VLOOKUP($A66,Filtro!$A$5:$AW$651,16,FALSE),0) -> 38 | S66: =IFERROR(VLOOKUP($A66,Filtro!$A$5:$AW$651,17,FALSE),0) -> 105 | T66: =IFERROR(VLOOKUP($A66,Filtro!$A$5:$AW$651,18,FALSE),0) -> 74 | DJ66: 0 | DK66: 0 | DL66: 0 | DM66: 0
A67: P2400330 | C67: OBESO | D67: 6531 | E67: 3263 | F67: 3268 | G67: =IFERROR(VLOOKUP($A67,Filtro!$A$5:$AW$651,5,FALSE),0) -> 841 | H67: =IFERROR(VLOOKUP($A67,Filtro!$A$5:$AW$651,6,FALSE),0) -> 759 | I67: =IFERROR(VLOOKUP($A67,Filtro!$A$5:$AW$651,7,FALSE),0) -> 615 | J67: =IFERROR(VLOOKUP($A67,Filtro!$A$5:$AW$651,8,FALSE),0) -> 678 | K67: =IFERROR(VLOOKUP($A67,Filtro!$A$5:$AW$651,9,FALSE),0) -> 627 | L67: =IFERROR(VLOOKUP($A67,Filtro!$A$5:$AW$651,10,FALSE),0) -> 643 | M67: =IFERROR(VLOOKUP($A67,Filtro!$A$5:$AW$651,11,FALSE),0) -> 608 | N67: =IFERROR(VLOOKUP($A67,Filtro!$A$5:$AW$651,12,FALSE),0) -> 680 | O67: =IFERROR(VLOOKUP($A67,Filtro!$A$5:$AW$651,13,FALSE),0) -> 572 | P67: =IFERROR(VLOOKUP($A67,Filtro!$A$5:$AW$651,14,FALSE),0) -> 508 | Q67: =IFERROR(VLOOKUP($A67,Filtro!$A$5:$AW$651,15,FALSE),0) -> 35 | R67: =IFERROR(VLOOKUP($A67,Filtro!$A$5:$AW$651,16,FALSE),0) -> 27 | S67: =IFERROR(VLOOKUP($A67,Filtro!$A$5:$AW$651,17,FALSE),0) -> 34 | T67: =IFERROR(VLOOKUP($A67,Filtro!$A$5:$AW$651,18,FALSE),0) -> 45 | DJ67: 0 | DK67: 0 | DL67: 0 | DM67: 0
A68: P2400340 | C68: OBESO SEVERO | D68: 3090 | E68: 2014 | F68: 1076 | G68: =IFERROR(VLOOKUP($A68,Filtro!$A$5:$AW$651,5,FALSE),0) -> 346 | H68: =IFERROR(VLOOKUP($A68,Filtro!$A$5:$AW$651,6,FALSE),0) -> 177 | I68: =IFERROR(VLOOKUP($A68,Filtro!$A$5:$AW$651,7,FALSE),0) -> 491 | J68: =IFERROR(VLOOKUP($A68,Filtro!$A$5:$AW$651,8,FALSE),0) -> 274 | K68: =IFERROR(VLOOKUP($A68,Filtro!$A$5:$AW$651,9,FALSE),0) -> 453 | L68: =IFERROR(VLOOKUP($A68,Filtro!$A$5:$AW$651,10,FALSE),0) -> 262 | M68: =IFERROR(VLOOKUP($A68,Filtro!$A$5:$AW$651,11,FALSE),0) -> 419 | N68: =IFERROR(VLOOKUP($A68,Filtro!$A$5:$AW$651,12,FALSE),0) -> 225 | O68: =IFERROR(VLOOKUP($A68,Filtro!$A$5:$AW$651,13,FALSE),0) -> 305 | P68: =IFERROR(VLOOKUP($A68,Filtro!$A$5:$AW$651,14,FALSE),0) -> 138 | Q68: =IFERROR(VLOOKUP($A68,Filtro!$A$5:$AW$651,15,FALSE),0) -> 12 | R68: =IFERROR(VLOOKUP($A68,Filtro!$A$5:$AW$651,16,FALSE),0) -> 5 | S68: =IFERROR(VLOOKUP($A68,Filtro!$A$5:$AW$651,17,FALSE),0) -> 22 | T68: =IFERROR(VLOOKUP($A68,Filtro!$A$5:$AW$651,18,FALSE),0) -> 10 | DJ68: 0 | DK68: 0 | DL68: 0 | DM68: 0
A69: P2400350 | C69: NORMAL | D69: 18160 | E69: 8884 | F69: =+H69+J69+L69+N69+P69 -> 9276 | G69: =IFERROR(VLOOKUP($A69,Filtro!$A$5:$AW$651,5,FALSE),0) -> 2992 | H69: =IFERROR(VLOOKUP($A69,Filtro!$A$5:$AW$651,6,FALSE),0) -> 3118 | I69: =IFERROR(VLOOKUP($A69,Filtro!$A$5:$AW$651,7,FALSE),0) -> 2258 | J69: =IFERROR(VLOOKUP($A69,Filtro!$A$5:$AW$651,8,FALSE),0) -> 2239 | K69: =IFERROR(VLOOKUP($A69,Filtro!$A$5:$AW$651,9,FALSE),0) -> 1615 | L69: =IFERROR(VLOOKUP($A69,Filtro!$A$5:$AW$651,10,FALSE),0) -> 1713 | M69: =IFERROR(VLOOKUP($A69,Filtro!$A$5:$AW$651,11,FALSE),0) -> 1203 | N69: =IFERROR(VLOOKUP($A69,Filtro!$A$5:$AW$651,12,FALSE),0) -> 1279 | O69: =IFERROR(VLOOKUP($A69,Filtro!$A$5:$AW$651,13,FALSE),0) -> 816 | P69: =IFERROR(VLOOKUP($A69,Filtro!$A$5:$AW$651,14,FALSE),0) -> 927 | Q69: =IFERROR(VLOOKUP($A69,Filtro!$A$5:$AW$651,15,FALSE),0) -> 111 | R69: =IFERROR(VLOOKUP($A69,Filtro!$A$5:$AW$651,16,FALSE),0) -> 134 | S69: =IFERROR(VLOOKUP($A69,Filtro!$A$5:$AW$651,17,FALSE),0) -> 335 | T69: =IFERROR(VLOOKUP($A69,Filtro!$A$5:$AW$651,18,FALSE),0) -> 353 | DJ69: 0 | DK69: 0 | DL69: 0 | DM69: 0
C70: SUBTOTAL | D70: =+E70+F70 -> 36734 | E70: =+G70+I70+K70+M70+O70 -> 18589 | F70: =+H70+J70+L70+N70+P70 -> 18145 | G70: =SUM(G64:G69) -> 5399 | H70: =SUM(H64:H69) -> 5222 | I70: 4363 | J70: 4189 | K70: 3581 | L70: 3532 | M70: 2981 | N70: 2984 | O70: 2265 | P70: 2218 | Q70: 218 | R70: 211 | S70: 522 | T70: 515
A71: P2400360 | C71: DESNUTRICIÓN SECUNDARIA | D71: 20 | E71: =+G71+I71+K71+M71+O71 -> 13 | F71: =+H71+J71+L71+N71+P71 -> 7 | G71: =IFERROR(VLOOKUP($A71,Filtro!$A$5:$AW$651,5,FALSE),0) -> 4 | H71: =IFERROR(VLOOKUP($A71,Filtro!$A$5:$AW$651,6,FALSE),0) -> 3 | I71: =IFERROR(VLOOKUP($A71,Filtro!$A$5:$AW$651,7,FALSE),0) -> 4 | J71: =IFERROR(VLOOKUP($A71,Filtro!$A$5:$AW$651,8,FALSE),0) -> 2 | K71: =IFERROR(VLOOKUP($A71,Filtro!$A$5:$AW$651,9,FALSE),0) -> 2 | L71: =IFERROR(VLOOKUP($A71,Filtro!$A$5:$AW$651,10,FALSE),0) -> 1 | M71: =IFERROR(VLOOKUP($A71,Filtro!$A$5:$AW$651,11,FALSE),0) -> 1 | N71: =IFERROR(VLOOKUP($A71,Filtro!$A$5:$AW$651,12,FALSE),0) -> 1 | O71: =IFERROR(VLOOKUP($A71,Filtro!$A$5:$AW$651,13,FALSE),0) -> 2 | P71: =IFERROR(VLOOKUP($A71,Filtro!$A$5:$AW$651,14,FALSE),0) -> 0 | Q71: =IFERROR(VLOOKUP($A71,Filtro!$A$5:$AW$651,15,FALSE),0) -> 0 | R71: =IFERROR(VLOOKUP($A71,Filtro!$A$5:$AW$651,16,FALSE),0) -> 1 | S71: =IFERROR(VLOOKUP($A71,Filtro!$A$5:$AW$651,17,FALSE),0) -> 2 | T71: =IFERROR(VLOOKUP($A71,Filtro!$A$5:$AW$651,18,FALSE),0) -> 0 | CH71: =IF(AND(E71>0,OR(Q71=""))," * No olvide digitar la variable Pueblos Originarios Hombres (Digite Cero si no tiene).",IF(Q71>E71," * La variable Pueblos Originarios Hombres no puede ser Mayor al Total.","")) ->  | CI71: =IF(AND(F71>0,OR(R71=""))," * No olvide digitar la variable Pueblos Originarios Mujeres (Digite Cero si no tiene).",IF(R71>F71," * La variable Pueblos Originarios Mujeres no puede ser Mayor al Total.","")) ->  | CJ71: =IF(AND(E71>0,OR(S71=""))," * No olvide digitar la variable Migrantes Hombres (Digite Cero si no tiene).",IF(S71>E71," * La variable Migrantes Hombres no puede ser Mayor al Total.","")) ->  | CK71: =IF(AND(F71>0,OR(T71=""))," * No olvide digitar la variable Migrantes Mujeres (Digite Cero si no tiene).",IF(T71>F71," * La variable Migrantes Mujeres no puede ser Mayor al Total.","")) ->  | DJ71: =IF(AND(E71>0,OR(Q71="")),1,IF(Q71>E71,1,0)) -> 0 | DK71: =IF(AND(F71>0,OR(R71="")),1,IF(R71>F71,1,0)) -> 0 | DL71: =IF(AND(E71>0,OR(S71="")),1,IF(S71>E71,1,0)) -> 0 | DM71: =IF(AND(F71>0,OR(T71="")),1,IF(T71>F71,1,0)) -> 0
C72: T O T A L | D72: =SUM(E72:F72) -> 36754 | E72: =SUM(E64:E69)+E71 -> 18602 | F72: 18152 | G72: 5403 | H72: 5225 | I72: 4367 | J72: 4191 | K72: 3583 | L72: 3533 | M72: 2982 | N72: 2985 | O72: 2267 | P72: 2218 | Q72: 218 | R72: 212 | S72: 524 | T72: 515
A73: P2501801 | B73: NIÑOS SIN EVALUACIÓN NUTRICIONAL POR CURSO DE VIDA (RECIÉN NACIDOS) O POR CONDICIÓN ESPECIAL DE SALUD | D73: =SUM(E73:F73) -> 27 | E73: =+G73+I73+K73+M73+O73 -> 14 | F73: =+H73+J73+L73+N73+P73 -> 13 | G73: =IFERROR(VLOOKUP($A73,Filtro!$A$5:$AW$651,5,FALSE),0) -> 4 | H73: =IFERROR(VLOOKUP($A73,Filtro!$A$5:$AW$651,6,FALSE),0) -> 3 | I73: =IFERROR(VLOOKUP($A73,Filtro!$A$5:$AW$651,7,FALSE),0) -> 2 | J73: =IFERROR(VLOOKUP($A73,Filtro!$A$5:$AW$651,8,FALSE),0) -> 4 | K73: =IFERROR(VLOOKUP($A73,Filtro!$A$5:$AW$651,9,FALSE),0) -> 4 | L73: =IFERROR(VLOOKUP($A73,Filtro!$A$5:$AW$651,10,FALSE),0) -> 1 | M73: =IFERROR(VLOOKUP($A73,Filtro!$A$5:$AW$651,11,FALSE),0) -> 1 | N73: =IFERROR(VLOOKUP($A73,Filtro!$A$5:$AW$651,12,FALSE),0) -> 2 | O73: =IFERROR(VLOOKUP($A73,Filtro!$A$5:$AW$651,13,FALSE),0) -> 3 | P73: =IFERROR(VLOOKUP($A73,Filtro!$A$5:$AW$651,14,FALSE),0) -> 3 | Q73: =IFERROR(VLOOKUP($A73,Filtro!$A$5:$AW$651,15,FALSE),0) -> 0 | R73: =IFERROR(VLOOKUP($A73,Filtro!$A$5:$AW$651,16,FALSE),0) -> 0 | S73: =IFERROR(VLOOKUP($A73,Filtro!$A$5:$AW$651,17,FALSE),0) -> 1 | T73: =IFERROR(VLOOKUP($A73,Filtro!$A$5:$AW$651,18,FALSE),0) -> 0 | CH73: =IF(AND(E73>0,OR(Q73=""))," * No olvide digitar la variable Pueblos Originarios Hombres (Digite Cero si no tiene).",IF(Q73>E73," * La variable Pueblos Originarios Hombres no puede ser Mayor al Total.","")) ->  | CI73: =IF(AND(F73>0,OR(R73=""))," * No olvide digitar la variable Pueblos Originarios Mujeres (Digite Cero si no tiene).",IF(R73>F73," * La variable Pueblos Originarios Mujeres no puede ser Mayor al Total.","")) ->  | CJ73: =IF(AND(E73>0,OR(S73=""))," * No olvide digitar la variable Migrantes Hombres (Digite Cero si no tiene).",IF(S73>E73," * La variable Migrantes Hombres no puede ser Mayor al Total.","")) ->  | CK73: =IF(AND(F73>0,OR(T73=""))," * No olvide digitar la variable Migrantes Mujeres (Digite Cero si no tiene).",IF(T73>F73," * La variable Migrantes Mujeres no puede ser Mayor al Total.","")) ->  | DJ73: =IF(AND(E73>0,OR(Q73="")),1,IF(Q73>E73,1,0)) -> 0 | DK73: =IF(AND(F73>0,OR(R73="")),1,IF(R73>F73,1,0)) -> 0 | DL73: =IF(AND(E73>0,OR(S73="")),1,IF(S73>E73,1,0)) -> 0 | DM73: =IF(AND(F73>0,OR(T73="")),1,IF(T73>F73,1,0)) -> 0
B74: NOTA(*): El Diagnóstico Nutricional Integrado de Déficit para los niños (as) 5 años y más denomina Déficit Ponderal al Riesgo de Desnutrir.
B75: SECCION B: POBLACION EN CONTROL SEGÚN RESULTADO DE EVALUACIÓN DEL DESARROLLO PSICOMOTOR
B76: RESULTADO Y GRUPOS DE EDAD | D76: TOTAL | E76: Hombres | F76: Mujeres | G76: Pueblos Originarios | H76: Migrantes
A77: P2501802 | B77: NORMAL | C77: Menor de 12 meses | D77: =SUM(E77:F77) -> 4796 | E77: =IFERROR(VLOOKUP($A77,Filtro!$A$5:$AW$651,3,FALSE),0) -> 2369 | F77: =IFERROR(VLOOKUP($A77,Filtro!$A$5:$AW$651,4,FALSE),0) -> 2427 | G77: =IFERROR(VLOOKUP($A77,Filtro!$A$5:$AW$651,5,FALSE),0) -> 43 | H77: =IFERROR(VLOOKUP($A77,Filtro!$A$5:$AW$651,6,FALSE),0) -> 13 | I77: =CG77&CH77&CI77&CJ77&CK77&CL77 ->  | CG77: =IF(SUM(G11,I11,K11,M11,O11,Q11,S11,U11)<SUM(E77,E84,E91,E98),"* La suma de Población Hombre Menor de 12 meses según resultado de Evaluación no puede ser mayor que la Población Hombres bajo control de la sección A. ","") ->  | CH77: =IF(SUM(H11,J11,L11,N11,P11,R11,T11,V11)<SUM(F77,F84,F91,F98),"* La suma de Población Mujeres Menor de 12 meses según resultado de Evaluación no puede ser mayor que la Población Mujeres bajo control de la sección A. ","") ->  | CI77: =IF(AND(D77>0,OR(G77=""))," * No olvide digitar la variable Pueblos Originarios (Digite Cero si no tiene).",IF(G77>D77," * La variable Pueblos Originarios no puede ser Mayor al Total.","")) ->  | CJ77: =IF(AND(D77>0,OR(H77=""))," * No olvide digitar la variable Migrantes (Digite Cero si no tiene).",IF(H77>D77," * La variable Migrantes no puede ser Mayor al Total.","")) ->  | DE77: =IF(SUM(G11,I11,K11,M11,O11,Q11,S11,U11)<SUM(E77,E84,E91,E98),1,0) -> 0 | DF77: =IF(SUM(H11,J11,L11,N11,P11,R11,T11,V11)<SUM(F77,F84,F91,F98),1,0) -> 0 | DG77: =IF(G77>$D77,1,0) -> 0 | DH77: =IF(H77>$D77,1,0) -> 0 | DI77: =IF(AND($D77<>0,G77=""),1,0) -> 0 | DJ77: =IF(AND($D77<>0,H77=""),1,0) -> 0
A78: P2501803 | C78: 12 a 17 meses | D78: =SUM(E78:F78) -> 2207 | E78: =IFERROR(VLOOKUP($A78,Filtro!$A$5:$AW$651,3,FALSE),0) -> 1073 | F78: =IFERROR(VLOOKUP($A78,Filtro!$A$5:$AW$651,4,FALSE),0) -> 1134 | G78: =IFERROR(VLOOKUP($A78,Filtro!$A$5:$AW$651,5,FALSE),0) -> 10 | H78: =IFERROR(VLOOKUP($A78,Filtro!$A$5:$AW$651,6,FALSE),0) -> 9 | I78: =CG78&CH78&CI78&CJ78&CK78&CL78 ->  | CG78: =IF(SUM(W11)<SUM(E78,E85,E92,E99),"* La suma de Población Hombre de 12 a 17 meses según resultado de Evaluación no puede ser mayor que la Población Hombres bajo control de la sección A. ","") ->  | CH78: =IF(SUM(X11)<SUM(F78,F85,F92,F99),"* La suma de Población Mujer 12 a 17 meses según resultado de Evaluación no puede ser mayor que la Población Mujer bajo control de la sección A. ","") ->  | CI78: =IF(AND(D78>0,OR(G78=""))," * No olvide digitar la variable Pueblos Originarios (Digite Cero si no tiene).",IF(G78>D78," * La variable Pueblos Originarios no puede ser Mayor al Total.","")) ->  | CJ78: =IF(AND(D78>0,OR(H78=""))," * No olvide digitar la variable Migrantes (Digite Cero si no tiene).",IF(H78>D78," * La variable Migrantes no puede ser Mayor al Total.","")) ->  | DE78: =IF(W$11<SUM(E78,E85,E92,E99),1,0) -> 0 | DF78: =IF(X$11<SUM(F78,F85,F92,F99),1,0) -> 0 | DG78: =IF(G78>$D78,1,0) -> 0 | DH78: =IF(H78>$D78,1,0) -> 0 | DI78: =IF(AND($D78<>0,G78=""),1,0) -> 0 | DJ78: =IF(AND($D78<>0,H78=""),1,0) -> 0
A79: P2501804 | C79: 18 a 23 meses | D79: 4033 | E79: =IFERROR(VLOOKUP($A79,Filtro!$A$5:$AW$651,3,FALSE),0) -> 1966 | F79: =IFERROR(VLOOKUP($A79,Filtro!$A$5:$AW$651,4,FALSE),0) -> 2067 | G79: =IFERROR(VLOOKUP($A79,Filtro!$A$5:$AW$651,5,FALSE),0) -> 25 | H79: =IFERROR(VLOOKUP($A79,Filtro!$A$5:$AW$651,6,FALSE),0) -> 25 | CG79: =IF(SUM(Y11)<SUM(E79,E86,E93,E100),"* La suma de Población Hombre 18 a 23 meses según resultado de Evaluación no puede ser mayor que la Población Hombres bajo control de la sección A. ","") ->  | CH79: =IF(SUM(Z11)<SUM(F79,F86,F93,F100),"* La suma de Población Mujer de 18 a 23 meses según resultado de Evaluación no puede ser mayor que la Población Mujer bajo control de la sección A. ","") ->  | DE79: =IF(Y$11<SUM(E79,E86,E93,E100),1,0) -> 0 | DF79: =IF(Z$11<SUM(F79,F86,F93,F100),1,0) -> 0 | DG79: 0 | DH79: 0 | DI79: 0 | DJ79: 0
A80: P2501805 | C80: 24 a 35 meses | D80: 2212 | E80: =IFERROR(VLOOKUP($A80,Filtro!$A$5:$AW$651,3,FALSE),0) -> 1047 | F80: =IFERROR(VLOOKUP($A80,Filtro!$A$5:$AW$651,4,FALSE),0) -> 1165 | G80: =IFERROR(VLOOKUP($A80,Filtro!$A$5:$AW$651,5,FALSE),0) -> 19 | H80: =IFERROR(VLOOKUP($A80,Filtro!$A$5:$AW$651,6,FALSE),0) -> 12 | CG80: =IF(SUM(AA11)<SUM(E80,E87,E94,E101),"* La suma de Población Hombre 24 a 35 meses según resultado de Evaluación no puede ser mayor que la Población Hombres bajo control de la sección A. ","") ->  | CH80: =IF(SUM(AB11)<SUM(F80,F87,F94,F101),"* La suma de Población Hombre 24 a 35 meses según resultado de Evaluación no puede ser mayor que la Población Hombres bajo control de la sección A. ","") ->  | DE80: =IF(AA$11<SUM(E80,E87,E94,E101),1,0) -> 0 | DF80: =IF(AB$11<SUM(F80,F87,F94,F101),1,0) -> 0 | DG80: 0 | DH80: 0 | DI80: 0 | DJ80: 0
A81: P2501870 | C81: 36 a 41 meses | D81: =SUM(E81:F81) -> 1765 | E81: =IFERROR(VLOOKUP($A81,Filtro!$A$5:$AW$651,3,FALSE),0) -> 855 | F81: =IFERROR(VLOOKUP($A81,Filtro!$A$5:$AW$651,4,FALSE),0) -> 910 | G81: =IFERROR(VLOOKUP($A81,Filtro!$A$5:$AW$651,5,FALSE),0) -> 7 | H81: =IFERROR(VLOOKUP($A81,Filtro!$A$5:$AW$651,6,FALSE),0) -> 17 | CG81: =IF(SUM(AC11)<SUM(E81,E88,E95,E102),"* La suma de Población Hombre 36 a 41 meses según resultado de Evaluación no puede ser mayor que la Población Hombres bajo control de la sección A. ","") ->  | CH81: =IF(SUM(AD11)<SUM(F81,F88,F95,F102),"* La suma de Población Hombre 36 a 41 meses según resultado de Evaluación no puede ser mayor que la Población Hombres bajo control de la sección A. ","") ->  | DE81: =IF(AC$11<SUM(E81,E88,E95,E102),1,0) -> 0 | DF81: =IF(AD$11<SUM(F81,F88,F95,F102),1,0) -> 0 | DG81: 0 | DH81: 0 | DI81: 0 | DJ81: 0
A82: P2501871 | C82: 42 a 47 meses | D82: 589 | E82: =IFERROR(VLOOKUP($A82,Filtro!$A$5:$AW$651,3,FALSE),0) -> 270 | F82: =IFERROR(VLOOKUP($A82,Filtro!$A$5:$AW$651,4,FALSE),0) -> 319 | G82: =IFERROR(VLOOKUP($A82,Filtro!$A$5:$AW$651,5,FALSE),0) -> 15 | H82: =IFERROR(VLOOKUP($A82,Filtro!$A$5:$AW$651,6,FALSE),0) -> 10 | I82: =CG82&CH82&CI82&CJ82&CK82&CL82 ->  | CG82: =IF(SUM(AE11)<SUM(E82,E89,E96,E103),"* La suma de Población Hombre 42 a 47 meses según resultado de Evaluación no puede ser mayor que la Población Hombres bajo control de la sección A. ","") ->  | CH82: =IF(SUM(AF11)<SUM(F82,F89,F96,F103),"* La suma de Población Hombre 42 a 47 meses según resultado de Evaluación no puede ser mayor que la Población Hombres bajo control de la sección A. ","") ->  | DE82: =IF(AE$11<SUM(E82,E89,E96,E103),1,0) -> 0 | DF82: =IF(AF$11<SUM(F82,F89,F96,F103),1,0) -> 0 | DG82: =IF(G82>$D82,1,0) -> 0 | DH82: =IF(H82>$D82,1,0) -> 0 | DI82: =IF(AND($D82<>0,G82=""),1,0) -> 0 | DJ82: =IF(AND($D82<>0,H82=""),1,0) -> 0
A83: P2501807 | C83: 48 a 59 meses | D83: 1207 | E83: =IFERROR(VLOOKUP($A83,Filtro!$A$5:$AW$651,3,FALSE),0) -> 622 | F83: =IFERROR(VLOOKUP($A83,Filtro!$A$5:$AW$651,4,FALSE),0) -> 585 | G83: =IFERROR(VLOOKUP($A83,Filtro!$A$5:$AW$651,5,FALSE),0) -> 20 | H83: =IFERROR(VLOOKUP($A83,Filtro!$A$5:$AW$651,6,FALSE),0) -> 6 | CG83: =IF(SUM(AG11)<SUM(E83,E90,E97,E104),"* La suma de Población Hombre 48 a 59 meses según resultado de Evaluación no puede ser mayor que la Población Hombres bajo control de la sección A. ","") ->  | CH83: =IF(SUM(AH11)<SUM(F83,F90,F97,F104),"* La suma de Población Mujeres 48 a 59 meses según resultado de Evaluación no puede ser mayor que la Población Hombres bajo control de la sección A. ","") ->  | DE83: =IF(AG$11<SUM(E83,E90,E97,E104),1,0) -> 0 | DF83: =IF(AH$11<SUM(F83,F90,F97,F104),1,0) -> 0 | DG83: 0 | DH83: 0 | DI83: 0 | DJ83: 0
A84: P2501808 | B84: NORMAL CON REZAGO | C84: Menor de 12 meses | D84: =SUM(E84:F84) -> 159 | E84: =IFERROR(VLOOKUP($A84,Filtro!$A$5:$AW$651,3,FALSE),0) -> 85 | F84: =IFERROR(VLOOKUP($A84,Filtro!$A$5:$AW$651,4,FALSE),0) -> 74 | G84: =IFERROR(VLOOKUP($A84,Filtro!$A$5:$AW$651,5,FALSE),0) -> 1 | H84: =IFERROR(VLOOKUP($A84,Filtro!$A$5:$AW$651,6,FALSE),0) -> 0 | DG84: 0 | DH84: 0 | DI84: 0 | DJ84: 0
A85: P2501809 | C85: 12 a 17 meses | D85: =SUM(E85:F85) -> 102 | E85: =IFERROR(VLOOKUP($A85,Filtro!$A$5:$AW$651,3,FALSE),0) -> 52 | F85: =IFERROR(VLOOKUP($A85,Filtro!$A$5:$AW$651,4,FALSE),0) -> 50 | G85: =IFERROR(VLOOKUP($A85,Filtro!$A$5:$AW$651,5,FALSE),0) -> 3 | H85: =IFERROR(VLOOKUP($A85,Filtro!$A$5:$AW$651,6,FALSE),0) -> 2 | DG85: 0 | DH85: 0 | DI85: 0 | DJ85: 0
A86: P2501810 | C86: 18 a 23 meses | D86: 288 | E86: =IFERROR(VLOOKUP($A86,Filtro!$A$5:$AW$651,3,FALSE),0) -> 176 | F86: =IFERROR(VLOOKUP($A86,Filtro!$A$5:$AW$651,4,FALSE),0) -> 112 | G86: =IFERROR(VLOOKUP($A86,Filtro!$A$5:$AW$651,5,FALSE),0) -> 5 | H86: =IFERROR(VLOOKUP($A86,Filtro!$A$5:$AW$651,6,FALSE),0) -> 2 | DG86: 0 | DH86: 0 | DI86: 0 | DJ86: 0
A87: P2501811 | C87: 24 a 35 meses | D87: 202 | E87: =IFERROR(VLOOKUP($A87,Filtro!$A$5:$AW$651,3,FALSE),0) -> 138 | F87: =IFERROR(VLOOKUP($A87,Filtro!$A$5:$AW$651,4,FALSE),0) -> 64 | G87: =IFERROR(VLOOKUP($A87,Filtro!$A$5:$AW$651,5,FALSE),0) -> 2 | H87: =IFERROR(VLOOKUP($A87,Filtro!$A$5:$AW$651,6,FALSE),0) -> 4 | DG87: 0 | DH87: 0 | DI87: 0 | DJ87: 0
A88: P2501872 | C88: 36 a 41 meses | D88: 149 | E88: =IFERROR(VLOOKUP($A88,Filtro!$A$5:$AW$651,3,FALSE),0) -> 85 | F88: =IFERROR(VLOOKUP($A88,Filtro!$A$5:$AW$651,4,FALSE),0) -> 64 | G88: =IFERROR(VLOOKUP($A88,Filtro!$A$5:$AW$651,5,FALSE),0) -> 0 | H88: =IFERROR(VLOOKUP($A88,Filtro!$A$5:$AW$651,6,FALSE),0) -> 3 | DG88: 0 | DH88: 0 | DI88: 0 | DJ88: 0
A89: P2501873 | C89: 42 a 47 meses | D89: =SUM(E89:F89) -> 40 | E89: =IFERROR(VLOOKUP($A89,Filtro!$A$5:$AW$651,3,FALSE),0) -> 23 | F89: =IFERROR(VLOOKUP($A89,Filtro!$A$5:$AW$651,4,FALSE),0) -> 17 | G89: =IFERROR(VLOOKUP($A89,Filtro!$A$5:$AW$651,5,FALSE),0) -> 0 | H89: =IFERROR(VLOOKUP($A89,Filtro!$A$5:$AW$651,6,FALSE),0) -> 0 | DG89: =IF(G89>$D89,1,0) -> 0 | DH89: =IF(H89>$D89,1,0) -> 0 | DI89: =IF(AND($D89<>0,G89=""),1,0) -> 0 | DJ89: =IF(AND($D89<>0,H89=""),1,0) -> 0
A90: P2501813 | C90: 48 a 59 meses | D90: 35 | E90: =IFERROR(VLOOKUP($A90,Filtro!$A$5:$AW$651,3,FALSE),0) -> 26 | F90: =IFERROR(VLOOKUP($A90,Filtro!$A$5:$AW$651,4,FALSE),0) -> 9 | G90: =IFERROR(VLOOKUP($A90,Filtro!$A$5:$AW$651,5,FALSE),0) -> 0 | H90: =IFERROR(VLOOKUP($A90,Filtro!$A$5:$AW$651,6,FALSE),0) -> 1 | DG90: 0 | DH90: 0 | DI90: 0 | DJ90: 0
A91: P2100200 | B91: RIESGO | C91: Menor de 12 meses | D91: 261 | E91: =IFERROR(VLOOKUP($A91,Filtro!$A$5:$AW$651,3,FALSE),0) -> 136 | F91: =IFERROR(VLOOKUP($A91,Filtro!$A$5:$AW$651,4,FALSE),0) -> 125 | G91: =IFERROR(VLOOKUP($A91,Filtro!$A$5:$AW$651,5,FALSE),0) -> 5 | H91: =IFERROR(VLOOKUP($A91,Filtro!$A$5:$AW$651,6,FALSE),0) -> 2 | DG91: 0 | DH91: 0 | DI91: 0 | DJ91: 0
A92: P2300100 | C92: 12 a 17 meses | D92: 153 | E92: =IFERROR(VLOOKUP($A92,Filtro!$A$5:$AW$651,3,FALSE),0) -> 95 | F92: =IFERROR(VLOOKUP($A92,Filtro!$A$5:$AW$651,4,FALSE),0) -> 58 | G92: =IFERROR(VLOOKUP($A92,Filtro!$A$5:$AW$651,5,FALSE),0) -> 5 | H92: =IFERROR(VLOOKUP($A92,Filtro!$A$5:$AW$651,6,FALSE),0) -> 3 | DG92: 0 | DH92: 0 | DI92: 0 | DJ92: 0
A93: P2300200 | C93: 18 a 23 meses | D93: 548 | E93: =IFERROR(VLOOKUP($A93,Filtro!$A$5:$AW$651,3,FALSE),0) -> 327 | F93: =IFERROR(VLOOKUP($A93,Filtro!$A$5:$AW$651,4,FALSE),0) -> 221 | G93: =IFERROR(VLOOKUP($A93,Filtro!$A$5:$AW$651,5,FALSE),0) -> 7 | H93: =IFERROR(VLOOKUP($A93,Filtro!$A$5:$AW$651,6,FALSE),0) -> 6 | DG93: 0 | DH93: 0 | DI93: 0 | DJ93: 0
A94: P2501814 | C94: 24 a 35 meses | D94: 278 | E94: =IFERROR(VLOOKUP($A94,Filtro!$A$5:$AW$651,3,FALSE),0) -> 168 | F94: =IFERROR(VLOOKUP($A94,Filtro!$A$5:$AW$651,4,FALSE),0) -> 110 | G94: =IFERROR(VLOOKUP($A94,Filtro!$A$5:$AW$651,5,FALSE),0) -> 6 | H94: =IFERROR(VLOOKUP($A94,Filtro!$A$5:$AW$651,6,FALSE),0) -> 4 | DG94: 0 | DH94: 0 | DI94: 0 | DJ94: 0
A95: P2501874 | C95: 36 a 41 meses | D95: 181 | E95: =IFERROR(VLOOKUP($A95,Filtro!$A$5:$AW$651,3,FALSE),0) -> 117 | F95: =IFERROR(VLOOKUP($A95,Filtro!$A$5:$AW$651,4,FALSE),0) -> 64 | G95: =IFERROR(VLOOKUP($A95,Filtro!$A$5:$AW$651,5,FALSE),0) -> 3 | H95: =IFERROR(VLOOKUP($A95,Filtro!$A$5:$AW$651,6,FALSE),0) -> 1 | DG95: 0 | DH95: 0 | DI95: 0 | DJ95: 0
A96: P2501875 | C96: 42 a 47 meses | D96: 34 | E96: =IFERROR(VLOOKUP($A96,Filtro!$A$5:$AW$651,3,FALSE),0) -> 20 | F96: =IFERROR(VLOOKUP($A96,Filtro!$A$5:$AW$651,4,FALSE),0) -> 14 | G96: =IFERROR(VLOOKUP($A96,Filtro!$A$5:$AW$651,5,FALSE),0) -> 1 | H96: =IFERROR(VLOOKUP($A96,Filtro!$A$5:$AW$651,6,FALSE),0) -> 1 | DG96: =IF(G96>$D96,1,0) -> 0 | DH96: =IF(H96>$D96,1,0) -> 0 | DI96: =IF(AND($D96<>0,G96=""),1,0) -> 0 | DJ96: =IF(AND($D96<>0,H96=""),1,0) -> 0
A97: P2100500 | C97: 48 a 59 meses | D97: 57 | E97: =IFERROR(VLOOKUP($A97,Filtro!$A$5:$AW$651,3,FALSE),0) -> 36 | F97: =IFERROR(VLOOKUP($A97,Filtro!$A$5:$AW$651,4,FALSE),0) -> 21 | G97: =IFERROR(VLOOKUP($A97,Filtro!$A$5:$AW$651,5,FALSE),0) -> 2 | H97: =IFERROR(VLOOKUP($A97,Filtro!$A$5:$AW$651,6,FALSE),0) -> 1 | DG97: 0 | DH97: 0 | DI97: 0 | DJ97: 0
A98: P2100600 | B98: RETRASO | C98: Menor de 12 meses | D98: 90 | E98: =IFERROR(VLOOKUP($A98,Filtro!$A$5:$AW$651,3,FALSE),0) -> 45 | F98: =IFERROR(VLOOKUP($A98,Filtro!$A$5:$AW$651,4,FALSE),0) -> 45 | G98: =IFERROR(VLOOKUP($A98,Filtro!$A$5:$AW$651,5,FALSE),0) -> 3 | H98: =IFERROR(VLOOKUP($A98,Filtro!$A$5:$AW$651,6,FALSE),0) -> 2 | DG98: 0 | DH98: 0 | DI98: 0 | DJ98: 0
A99: P2300300 | C99: 12 a 17 meses | D99: 59 | E99: =IFERROR(VLOOKUP($A99,Filtro!$A$5:$AW$651,3,FALSE),0) -> 41 | F99: =IFERROR(VLOOKUP($A99,Filtro!$A$5:$AW$651,4,FALSE),0) -> 18 | G99: =IFERROR(VLOOKUP($A99,Filtro!$A$5:$AW$651,5,FALSE),0) -> 2 | H99: =IFERROR(VLOOKUP($A99,Filtro!$A$5:$AW$651,6,FALSE),0) -> 1 | DG99: 0 | DH99: 0 | DI99: 0 | DJ99: 0
A100: P2300400 | C100: 18 a 23 meses | D100: 253 | E100: =IFERROR(VLOOKUP($A100,Filtro!$A$5:$AW$651,3,FALSE),0) -> 171 | F100: =IFERROR(VLOOKUP($A100,Filtro!$A$5:$AW$651,4,FALSE),0) -> 82 | G100: =IFERROR(VLOOKUP($A100,Filtro!$A$5:$AW$651,5,FALSE),0) -> 3 | H100: =IFERROR(VLOOKUP($A100,Filtro!$A$5:$AW$651,6,FALSE),0) -> 2 | DG100: 0 | DH100: 0 | DI100: 0 | DJ100: 0
A101: P2501816 | C101: 24 a 35 meses | D101: 81 | E101: =IFERROR(VLOOKUP($A101,Filtro!$A$5:$AW$651,3,FALSE),0) -> 53 | F101: =IFERROR(VLOOKUP($A101,Filtro!$A$5:$AW$651,4,FALSE),0) -> 28 | G101: =IFERROR(VLOOKUP($A101,Filtro!$A$5:$AW$651,5,FALSE),0) -> 1 | H101: =IFERROR(VLOOKUP($A101,Filtro!$A$5:$AW$651,6,FALSE),0) -> 2 | DG101: 0 | DH101: 0 | DI101: 0 | DJ101: 0
A102: P2501876 | C102: 36 a 41 meses | D102: 47 | E102: =IFERROR(VLOOKUP($A102,Filtro!$A$5:$AW$651,3,FALSE),0) -> 39 | F102: =IFERROR(VLOOKUP($A102,Filtro!$A$5:$AW$651,4,FALSE),0) -> 8 | G102: =IFERROR(VLOOKUP($A102,Filtro!$A$5:$AW$651,5,FALSE),0) -> 1 | H102: =IFERROR(VLOOKUP($A102,Filtro!$A$5:$AW$651,6,FALSE),0) -> 1 | DG102: 0 | DH102: 0 | DI102: 0 | DJ102: 0
A103: P2501877 | C103: 42 a 47 meses | D103: =IFERROR(VLOOKUP($A103,Filtro!$A$5:$AW$651,2,FALSE),0) -> 17 | E103: =IFERROR(VLOOKUP($A103,Filtro!$A$5:$AW$651,3,FALSE),0) -> 13 | F103: =IFERROR(VLOOKUP($A103,Filtro!$A$5:$AW$651,4,FALSE),0) -> 4 | G103: =IFERROR(VLOOKUP($A103,Filtro!$A$5:$AW$651,5,FALSE),0) -> 0 | H103: =IFERROR(VLOOKUP($A103,Filtro!$A$5:$AW$651,6,FALSE),0) -> 0 | DG103: =IF(G103>$D103,1,0) -> 0 | DH103: =IF(H103>$D103,1,0) -> 0 | DI103: =IF(AND($D103<>0,G103=""),1,0) -> 0 | DJ103: =IF(AND($D103<>0,H103=""),1,0) -> 0
A104: P2300000 | C104: 48 a 59 meses | D104: =SUM(E104:F104) -> 34 | E104: =IFERROR(VLOOKUP($A104,Filtro!$A$5:$AW$651,3,FALSE),0) -> 28 | F104: =IFERROR(VLOOKUP($A104,Filtro!$A$5:$AW$651,4,FALSE),0) -> 6 | G104: =IFERROR(VLOOKUP($A104,Filtro!$A$5:$AW$651,5,FALSE),0) -> 1 | H104: =IFERROR(VLOOKUP($A104,Filtro!$A$5:$AW$651,6,FALSE),0) -> 1 | DG104: 0 | DH104: 0 | DI104: 0 | DJ104: 0
B105: SECCION C: POBLACIÓN MENOR DE 1 AÑO EN CONTROL, SEGÚN SCORE RIESGO EN IRA Y VISITA DOMICILIARIA INTEGRAL
B106: RESULTADO | D106: TOTAL | E106: Diada, menor de 10 días | F106: 1 mes | G106: 2 meses | H106: 3 meses | I106: 4 meses | J106: 5 meses | K106: 6 meses | L106: 7 a 12 meses | M106: Total de Niños y Niñas que han recibido VDI | N106: Pueblos Originarios | O106: Migrantes
A108: P2090300 | B108: SCORE DE RIESGO | C108: LEVE | D108: =SUM(E108:L108) -> 13828 | E108: =IFERROR(VLOOKUP($A108,Filtro!$A$5:$AW$651,3,FALSE),0) -> 671 | F108: =IFERROR(VLOOKUP($A108,Filtro!$A$5:$AW$651,4,FALSE),0) -> 1150 | G108: =IFERROR(VLOOKUP($A108,Filtro!$A$5:$AW$651,5,FALSE),0) -> 1481 | H108: =IFERROR(VLOOKUP($A108,Filtro!$A$5:$AW$651,6,FALSE),0) -> 1170 | I108: =IFERROR(VLOOKUP($A108,Filtro!$A$5:$AW$651,7,FALSE),0) -> 1481 | J108: =IFERROR(VLOOKUP($A108,Filtro!$A$5:$AW$651,8,FALSE),0) -> 1194 | K108: =IFERROR(VLOOKUP($A108,Filtro!$A$5:$AW$651,9,FALSE),0) -> 1599 | L108: =IFERROR(VLOOKUP($A108,Filtro!$A$5:$AW$651,10,FALSE),0) -> 5082 | M108: =IFERROR(VLOOKUP($A108,Filtro!$A$5:$AW$651,11,FALSE),0) -> 0 | N108: =IFERROR(VLOOKUP($A108,Filtro!$A$5:$AW$651,12,FALSE),0) -> 81 | O108: =IFERROR(VLOOKUP($A108,Filtro!$A$5:$AW$651,13,FALSE),0) -> 35 | P108: =CG108&CI108&CJ108&CK108&CL108 ->  | CI108: =IF(N108>$D108," * El Total de Pueblos Originarios no puede ser mayor que el Total. ","") ->  | CJ108: =IF(O108>$D108," * El Total según Población Migrante no puede ser mayor que el Total. ","") ->  | CK108: =IF(AND($D108<>0,N108=""),"* No olvide ingresar el total según Pueblos Originarios (Digite 0 si no tiene). ","") ->  | DG108: =IF(N108>$D108,1,0) -> 0 | DH108: 0 | DI108: =IF(AND($D108<>0,O108=""),1,0) -> 0 | DJ108: =IF(AND($D108<>0,O108=""),1,0) -> 0
A109: P2090400 | C109: MODERADO | D109: =SUM(E109:L109) -> 2354 | E109: =IFERROR(VLOOKUP($A109,Filtro!$A$5:$AW$651,3,FALSE),0) -> 43 | F109: =IFERROR(VLOOKUP($A109,Filtro!$A$5:$AW$651,4,FALSE),0) -> 154 | G109: =IFERROR(VLOOKUP($A109,Filtro!$A$5:$AW$651,5,FALSE),0) -> 226 | H109: =IFERROR(VLOOKUP($A109,Filtro!$A$5:$AW$651,6,FALSE),0) -> 173 | I109: =IFERROR(VLOOKUP($A109,Filtro!$A$5:$AW$651,7,FALSE),0) -> 245 | J109: =IFERROR(VLOOKUP($A109,Filtro!$A$5:$AW$651,8,FALSE),0) -> 192 | K109: =IFERROR(VLOOKUP($A109,Filtro!$A$5:$AW$651,9,FALSE),0) -> 320 | L109: =IFERROR(VLOOKUP($A109,Filtro!$A$5:$AW$651,10,FALSE),0) -> 1001 | M109: =IFERROR(VLOOKUP($A109,Filtro!$A$5:$AW$651,11,FALSE),0) -> 539 | N109: =IFERROR(VLOOKUP($A109,Filtro!$A$5:$AW$651,12,FALSE),0) -> 30 | O109: =IFERROR(VLOOKUP($A109,Filtro!$A$5:$AW$651,13,FALSE),0) -> 6 | P109: =CG109&CI109&CJ109&CK109&CL109 ->  | CG109: =IF($D109<$M109, "* Total de Niños y Niñas que han recibido VDI no puede ser mayor que el total Score Moderado. ","") ->  | CI109: =IF(N109>$D109," * El Total de Pueblos Originarios no puede ser mayor que el Total. ","") ->  | CJ109: =IF(O109>$D109," * El Total según Población Migrante no puede ser mayor que el Total. ","") ->  | DE109: =IF($D109<$M109, 1,0) -> 0 | DG109: 0 | DH109: 0 | DI109: =IF(AND($D109<>0,O109=""),1,0) -> 0 | DJ109: =IF(AND($D109<>0,O109=""),1,0) -> 0
A110: P2100100 | C110: GRAVE | D110: =SUM(E110:L110) -> 919 | E110: =IFERROR(VLOOKUP($A110,Filtro!$A$5:$AW$651,3,FALSE),0) -> 20 | F110: =IFERROR(VLOOKUP($A110,Filtro!$A$5:$AW$651,4,FALSE),0) -> 73 | G110: =IFERROR(VLOOKUP($A110,Filtro!$A$5:$AW$651,5,FALSE),0) -> 106 | H110: =IFERROR(VLOOKUP($A110,Filtro!$A$5:$AW$651,6,FALSE),0) -> 63 | I110: =IFERROR(VLOOKUP($A110,Filtro!$A$5:$AW$651,7,FALSE),0) -> 81 | J110: =IFERROR(VLOOKUP($A110,Filtro!$A$5:$AW$651,8,FALSE),0) -> 95 | K110: =IFERROR(VLOOKUP($A110,Filtro!$A$5:$AW$651,9,FALSE),0) -> 98 | L110: =IFERROR(VLOOKUP($A110,Filtro!$A$5:$AW$651,10,FALSE),0) -> 383 | M110: =IFERROR(VLOOKUP($A110,Filtro!$A$5:$AW$651,11,FALSE),0) -> 400 | N110: =IFERROR(VLOOKUP($A110,Filtro!$A$5:$AW$651,12,FALSE),0) -> 7 | O110: =IFERROR(VLOOKUP($A110,Filtro!$A$5:$AW$651,13,FALSE),0) -> 6 | P110: =CG110&CI110&CJ110&CK110&CL110 ->  | CG110: =IF($D110<$M110, "* Total de Niños y Niñas que han recibido VDI no puede ser mayor que el total Score Grave. ","") ->  | CI110: =IF(N110>$D110," * El Total de Pueblos Originarios no puede ser mayor que el Total. ","") ->  | CJ110: =IF(O110>$D110," * El Total según Población Migrante no puede ser mayor que el Total. ","") ->  | DE110: =IF($D110<$M110,1,0) -> 0 | DG110: 0 | DH110: 0 | DI110: =IF(AND($D110<>0,O110=""),1,0) -> 0 | DJ110: =IF(AND($D110<>0,O110=""),1,0) -> 0
C111: TOTAL | D111: =SUM(E111:L111) -> 17101 | E111: =SUM(E108:E110) -> 734 | F111: 1377 | G111: 1813 | H111: 1406 | I111: 1807 | J111: 1481 | K111: 2017 | L111: 6466 | M111: =SUM(M109:M110) -> 939 | N111: =SUM(N108:N110) -> 118 | O111: =SUM(O108:O110) -> 47
B112: SECCION D: POBLACIÓN EN CONTROL EN EL SEMESTRE CON CONSULTA NUTRICIONAL, SEGÚN ESTRATEGIA
B113: NIÑO/A CON CONSULTA NUTRICIONAL EN | D113: TOTAL
A115: P2200700 | B115: Del 5to mes | D115: =IFERROR(VLOOKUP($A115,Filtro!$A$5:$AW$651,2,FALSE),0) -> 5792
A116: P2200800 | B116: De los 3 años y 6 meses | D116: =IFERROR(VLOOKUP($A116,Filtro!$A$5:$AW$651,2,FALSE),0) -> 3492
B117: SECCION E: POBLACIÓN INASISTENTE A CONTROL DEL NIÑO SANO (AL CORTE)
B118: EDAD | D118: TOTAL
A120: P2501818 | B120: 0 - 11 meses | D120: =IFERROR(VLOOKUP($A120,Filtro!$A$5:$AW$651,2,FALSE),0) -> 1320
A121: P2501819 | B121: 12 - 24 meses | D121: =IFERROR(VLOOKUP($A121,Filtro!$A$5:$AW$651,2,FALSE),0) -> 2275
A122: P2501820 | B122: 25 - 35 meses | D122: =IFERROR(VLOOKUP($A122,Filtro!$A$5:$AW$651,2,FALSE),0) -> 2611
A123: P2501821 | B123: 36 - 59 meses | D123: =IFERROR(VLOOKUP($A123,Filtro!$A$5:$AW$651,2,FALSE),0) -> 6524
A124: P2501822 | B124: 60 meses - 9 años | D124: =IFERROR(VLOOKUP($A124,Filtro!$A$5:$AW$651,2,FALSE),0) -> 20450
B125: TOTAL | D125: =SUM(D120:D124) -> 33180
B126: SECCION F: POBLACIÓN INFANTIL SEGÚN DIAGNÓSTICO DE PRESIÓN ARTERIAL (Incluida en sección A y A1)
B127: CLASIFICACIÓN | D127: Total | G127: GRUPOS DE EDAD (en meses) | M127: Derivación Nivel Secundario
G128: 36 a 47 meses | I128: 48 a 71 meses | K128: 6-9 años
D129: Total | E129: Hombres | F129: Mujeres | G129: Hombres | H129: Mujeres | I129: Hombres | J129: Mujeres | K129: Hombres | L129: Mujeres
A130: P2300530 | B130: NORMAL (PA menor al percentil 90) | D130: =SUM(E130:F130) -> 25893 | E130: =+G130+I130+K130 -> 12573 | F130: =+H130+J130+L130 -> 13320 | G130: =IFERROR(VLOOKUP($A130,Filtro!$A$5:$AW$651,5,FALSE),0) -> 1321 | H130: =IFERROR(VLOOKUP($A130,Filtro!$A$5:$AW$651,6,FALSE),0) -> 1461 | I130: =IFERROR(VLOOKUP($A130,Filtro!$A$5:$AW$651,7,FALSE),0) -> 4263 | J130: =IFERROR(VLOOKUP($A130,Filtro!$A$5:$AW$651,8,FALSE),0) -> 4609 | K130: =IFERROR(VLOOKUP($A130,Filtro!$A$5:$AW$651,9,FALSE),0) -> 6989 | L130: =IFERROR(VLOOKUP($A130,Filtro!$A$5:$AW$651,10,FALSE),0) -> 7250 | M130: =IFERROR(VLOOKUP($A130,Filtro!$A$5:$AW$651,11,FALSE),0) -> 0 | N130: =CJ130&CK130&CL130 ->  | CJ130: =IF(SUM($G130:$H130)<=SUM($AC$11:$AF$11),"","* Niños(as) de 36 a 47 ms clasificados debe ser menor o igual al Total de la población de niños bajo control de en sección A misma edad. ") ->  | CK130: =IF(SUM($I130:$J130)<=SUM($AG$11:$AH$11,$G$44:$H$44),"","* Niños(as) de 48 a 71 meses clasificados debe ser menor o igual al Total de la población de niños bajo control de en sección A y A1 de la misma edad. ") ->  | CL130: =IF(SUM($K130:$L130)<=SUM($I$44:$P$44),"","* Niños(as) de 6 a 9 años clasificados debe ser menor o igual al Total de la población de niños bajo control de en sección A1 misma edad ") ->  | DE130: =IF(SUM($G130:$H130)<=SUM($AC$11:$AF$11),0,1) -> 0 | DF130: =IF(SUM($I130:$J130)<=SUM($AG$11:$AH$11,$G$44:$H$44),0,1) -> 0 | DG130: =IF(SUM($K130:$L130)<=SUM($I$44:$P$44),0,1) -> 0
A131: P2300540 | B131: PRESIÓN ARTERIAL ELEVADA | D131: =SUM(E131:F131) -> 1344 | E131: =+G131+I131+K131 -> 673 | F131: 671 | G131: =IFERROR(VLOOKUP($A131,Filtro!$A$5:$AW$651,5,FALSE),0) -> 61 | H131: =IFERROR(VLOOKUP($A131,Filtro!$A$5:$AW$651,6,FALSE),0) -> 52 | I131: =IFERROR(VLOOKUP($A131,Filtro!$A$5:$AW$651,7,FALSE),0) -> 201 | J131: =IFERROR(VLOOKUP($A131,Filtro!$A$5:$AW$651,8,FALSE),0) -> 207 | K131: =IFERROR(VLOOKUP($A131,Filtro!$A$5:$AW$651,9,FALSE),0) -> 411 | L131: =IFERROR(VLOOKUP($A131,Filtro!$A$5:$AW$651,10,FALSE),0) -> 412 | M131: =IFERROR(VLOOKUP($A131,Filtro!$A$5:$AW$651,11,FALSE),0) -> 6 | N131: =CJ131&CK131&CL131 ->  | CJ131: =IF(SUM($G131:$H131)<=SUM($AC$11:$AF$11),"","* Niños(as) de 36 a 47 ms clasificados debe ser menor o igual al Total de la población de niños bajo control de en sección A misma edad. ") ->  | CK131: =IF(SUM($I131:$J131)<=SUM($AG$11:$AH$11,$G$44:$H$44),"","* Niños(as) de 48 a 71 meses clasificados debe ser menor o igual al Total de la población de niños bajo control de en sección A y A1 de la misma edad. ") ->  | CL131: =IF(SUM($K131:$L131)<=SUM($I$44:$P$44),"","* Niños(as) de 6 a 9 años clasificados debe ser menor o igual al Total de la población de niños bajo control de en sección A1 misma edad ") ->  | DE131: =IF(SUM($G131:$H131)<=SUM($AC$11:$AF$11),0,1) -> 0 | DF131: =IF(SUM($I131:$J131)<=SUM($AG$11:$AH$11,$G$44:$H$44),0,1) -> 0 | DG131: =IF(SUM($K131:$L131)<=SUM($I$44:$P$44),0,1) -> 0
A132: P2300550 | B132: HTA ESTADIO I | D132: 437 | E132: =+G132+I132+K132 -> 214 | F132: 223 | G132: =IFERROR(VLOOKUP($A132,Filtro!$A$5:$AW$651,5,FALSE),0) -> 25 | H132: =IFERROR(VLOOKUP($A132,Filtro!$A$5:$AW$651,6,FALSE),0) -> 25 | I132: =IFERROR(VLOOKUP($A132,Filtro!$A$5:$AW$651,7,FALSE),0) -> 63 | J132: =IFERROR(VLOOKUP($A132,Filtro!$A$5:$AW$651,8,FALSE),0) -> 70 | K132: =IFERROR(VLOOKUP($A132,Filtro!$A$5:$AW$651,9,FALSE),0) -> 126 | L132: =IFERROR(VLOOKUP($A132,Filtro!$A$5:$AW$651,10,FALSE),0) -> 128 | M132: =IFERROR(VLOOKUP($A132,Filtro!$A$5:$AW$651,11,FALSE),0) -> 18 | N132: =CJ132&CK132&CL132 ->  | CJ132: =IF(SUM($G132:$H132)<=SUM($AC$11:$AF$11),"","* Niños(as) de 36 a 47 ms clasificados debe ser menor o igual al Total de la población de niños bajo control de en sección A misma edad. ") ->  | CK132: =IF(SUM($I132:$J132)<=SUM($AG$11:$AH$11,$G$44:$H$44),"","* Niños(as) de 48 a 71 meses clasificados debe ser menor o igual al Total de la población de niños bajo control de en sección A y A1 de la misma edad. ") ->  | CL132: =IF(SUM($K132:$L132)<=SUM($I$44:$P$44),"","* Niños(as) de 6 a 9 años clasificados debe ser menor o igual al Total de la población de niños bajo control de en sección A1 misma edad ") ->  | DE132: =IF(SUM($G132:$H132)<=SUM($AC$11:$AF$11),0,1) -> 0 | DF132: =IF(SUM($I132:$J132)<=SUM($AG$11:$AH$11,$G$44:$H$44),0,1) -> 0 | DG132: =IF(SUM($K132:$L132)<=SUM($I$44:$P$44),0,1) -> 0
A133: P2300560 | B133: HTA ESTADIO II | D133: 109 | E133: 53 | F133: 56 | G133: =IFERROR(VLOOKUP($A133,Filtro!$A$5:$AW$651,5,FALSE),0) -> 8 | H133: =IFERROR(VLOOKUP($A133,Filtro!$A$5:$AW$651,6,FALSE),0) -> 14 | I133: =IFERROR(VLOOKUP($A133,Filtro!$A$5:$AW$651,7,FALSE),0) -> 23 | J133: =IFERROR(VLOOKUP($A133,Filtro!$A$5:$AW$651,8,FALSE),0) -> 13 | K133: =IFERROR(VLOOKUP($A133,Filtro!$A$5:$AW$651,9,FALSE),0) -> 22 | L133: =IFERROR(VLOOKUP($A133,Filtro!$A$5:$AW$651,10,FALSE),0) -> 29 | M133: =IFERROR(VLOOKUP($A133,Filtro!$A$5:$AW$651,11,FALSE),0) -> 26 | N133: =CJ133&CK133&CL133 ->  | CJ133: =IF(SUM($G133:$H133)<=SUM($AC$11:$AF$11),"","* Niños(as) de 36 a 47 ms clasificados debe ser menor o igual al Total de la población de niños bajo control de en sección A misma edad. ") ->  | CK133: =IF(SUM($I133:$J133)<=SUM($AG$11:$AH$11,$G$44:$H$44),"","* Niños(as) de 48 a 71 meses clasificados debe ser menor o igual al Total de la población de niños bajo control de en sección A y A1 de la misma edad. ") ->  | CL133: =IF(SUM($K133:$L133)<=SUM($I$44:$P$44),"","* Niños(as) de 6 a 9 años clasificados debe ser menor o igual al Total de la población de niños bajo control de en sección A1 misma edad ") ->  | DE133: =IF(SUM($G133:$H133)<=SUM($AC$11:$AF$11),0,1) -> 0 | DF133: =IF(SUM($I133:$J133)<=SUM($AG$11:$AH$11,$G$44:$H$44),0,1) -> 0 | DG133: =IF(SUM($K133:$L133)<=SUM($I$44:$P$44),0,1) -> 0
B134: TOTAL | D134: =SUM(E134:F134) -> 27783 | E134: =+G134+I134+K134 -> 13513 | F134: =+H134+J134+L134 -> 14270 | G134: =SUM(G130:G133) -> 1415 | H134: =SUM(H130:H133) -> 1552 | I134: =SUM(I130:I133) -> 4550 | J134: 4899 | K134: 7548 | L134: =SUM(L130:L133) -> 7819 | M134: =SUM(M130:M133) -> 50
B135: SECCION G: POBLACIÓN INFANTIL EUTRÓFICA, SEGÚN RIESGO DE MALNUTRICIÓN POR EXCESO (Incluida en sección A y A1)
B136: RESULTADO | D136: TOTAL | E136: GRUPOS DE EDAD (en meses)
E137: 4 a 11 meses | F137: 12 a 23 meses | G137: 24 a 35 meses | H137: 36 a 47 meses | I137: 48 a 59 meses | J137: 60 a 71 meses
A138: P2300570 | B138: SIN RIESGO | D138: =SUM(E138:J138) -> 19051 | E138: =IFERROR(VLOOKUP($A138,Filtro!$A$5:$AW$651,3,FALSE),0) -> 2729 | F138: =IFERROR(VLOOKUP($A138,Filtro!$A$5:$AW$651,4,FALSE),0) -> 3767 | G138: =IFERROR(VLOOKUP($A138,Filtro!$A$5:$AW$651,5,FALSE),0) -> 3515 | H138: =IFERROR(VLOOKUP($A138,Filtro!$A$5:$AW$651,6,FALSE),0) -> 3073 | I138: =IFERROR(VLOOKUP($A138,Filtro!$A$5:$AW$651,7,FALSE),0) -> 3244 | J138: =IFERROR(VLOOKUP($A138,Filtro!$A$5:$AW$651,8,FALSE),0) -> 2723 | K138: =CG138 & CH138 & CI138 & CJ138 & CK138 & CL138 ->  | CG138: =IF($E138<=SUM($O$35:$V$35),"","* Niños(as) de 4 a 11 ms clasificados debe ser menor o igual al Total niños diagnostidos en NORMAL sección A misma edad. ") ->  | CH138: =IF($F138<=SUM($W$35:$Z$35),"","* Niños(as) de 12 a 23 ms clasificados debe ser menor o igual al Total niños diagnosticados en NORMAL en sección A misma edad. ") ->  | CI138: =IF($G138<=SUM($AA$35:$AB$35),"","* Niños(as) de 24 a 35 ms clasificados debe ser menor o igual al Total niños diagnosticados en NORMAL en sección A misma edad. ") ->  | CJ138: =IF($H138<=SUM($AC$35:$AD$35),"","* Niños(as) de 36 a 47 ms clasificados debe ser menor o igual al Total niños diagnosticos en NORMAL en sección A misma edad. ") ->  | CK138: =IF($I138<=SUM($AG$35:$AH$35),"","* Niños(as) de 48 a 59 ms clasificados debe ser menor o igual al Total niños diagnosticados en NORMAL en sección A misma edad. ") ->  | CL138: =IF($J138<=SUM($G$69:$H$69),"","* Niños(as) de 60 a 71 ms clasificados debe ser menor o igual al Total niños diagnosticados en NORMAL en sección A1 misma edad. ") ->  | DG138: =IF($E138<=SUM($O$35:$V$35),0,1) -> 0 | DH138: =IF($F138<=SUM($W$35:$Z$35),0,1) -> 0 | DI138: =IF($G138<=SUM($AA$35:$AB$35),0,1) -> 0 | DJ138: =IF($H138<=SUM($AC$35:$AD$35),0,1) -> 0 | DK138: =IF($I138<=SUM($AG$35:$AH$35),0,1) -> 0 | DL138: =IF($J138<=SUM($G$69:$H$69),0,1) -> 0
A139: P2300580 | B139: CON RIESGO | D139: =SUM(E139:J139) -> 8372 | E139: =IFERROR(VLOOKUP($A139,Filtro!$A$5:$AW$651,3,FALSE),0) -> 1334 | F139: =IFERROR(VLOOKUP($A139,Filtro!$A$5:$AW$651,4,FALSE),0) -> 1738 | G139: =IFERROR(VLOOKUP($A139,Filtro!$A$5:$AW$651,5,FALSE),0) -> 1497 | H139: =IFERROR(VLOOKUP($A139,Filtro!$A$5:$AW$651,6,FALSE),0) -> 1249 | I139: =IFERROR(VLOOKUP($A139,Filtro!$A$5:$AW$651,7,FALSE),0) -> 1330 | J139: =IFERROR(VLOOKUP($A139,Filtro!$A$5:$AW$651,8,FALSE),0) -> 1224 | K139: =CG139 & CH139 & CI139 & CJ139 & CK139 & CL139 ->  | CG139: =IF($E139<=SUM($O$35:$V$35),"","* Niños(as) de 4 a 11 ms clasificados debe ser menor o igual al Total niños diagnostidos en NORMAL sección A misma edad. ") ->  | CH139: =IF($F139<=SUM($W$35:$Z$35),"","* Niños(as) de 12 a 23 ms clasificados debe ser menor o igual al Total niños diagnosticados en NORMAL en sección A misma edad. ") ->  | CI139: =IF($G139<=SUM($AA$35:$AB$35),"","* Niños(as) de 24 a 35 ms clasificados debe ser menor o igual al Total niños diagnosticados en NORMAL en sección A misma edad. ") ->  | CJ139: =IF($H139<=SUM($AC$35:$AD$35),"","* Niños(as) de 36 a 47 ms clasificados debe ser menor o igual al Total niños diagnosticos en NORMAL en sección A misma edad. ") ->  | CK139: =IF($I139<=SUM($AG$35:$AH$35),"","* Niños(as) de 48 a 59 ms clasificados debe ser menor o igual al Total niños diagnosticados en NORMAL en sección A misma edad. ") ->  | CL139: =IF($J139<=SUM($G$69:$H$69),"","* Niños(as) de 60 a 71 ms clasificados debe ser menor o igual al Total niños diagnosticados en NORMAL en sección A1 misma edad. ") ->  | DG139: =IF($E139<=SUM($O$35:$V$35),0,1) -> 0 | DH139: =IF($F139<=SUM($W$35:$Z$35),0,1) -> 0 | DI139: =IF($G139<=SUM($AA$35:$AB$35),0,1) -> 0 | DJ139: =IF($H139<=SUM($AC$35:$AD$35),0,1) -> 0 | DK139: =IF($I139<=SUM($AG$35:$AH$35),0,1) -> 0 | DL139: =IF($J139<=SUM($G$69:$H$69),0,1) -> 0
B140: TOTAL | D140: =SUM(E140:J140) -> 27423 | E140: =SUM(E138:E139) -> 4063 | F140: 5505 | G140: 5012 | H140: 4322 | I140: 4574 | J140: 3947 | K140: =CG140 & CH140 & CI140 & CJ140 & CK140 & CL140 -> 
B141: SECCION H: POBLACIÓN SEGÚN DIAGNÓSTICO DE NIÑOS, NIÑAS Y ADOLESCENTES CON NECESIDADES ESPECIALES DE ATENCIÓN EN SALUD (NANEAS) (Incluida en sección A y A1)
B142: DIAGNOSTICOS | D142: TOTAL | G142: GRUPOS DE EDAD (en meses - años) Y SEXO | AS142: Pueblos Originarios | AU142: Población Migrantes
G143: Menor de 1 mes | I143: 1 mes | K143: 2 meses | M143: 3 meses | O143: 4 meses | Q143: 5 meses | S143: 6 meses | U143: 7 a 11 meses | W143: 12 a 17 meses | Y143: 18 a 23 meses | AA143: 24 a 35 meses | AC143: 36 a 41 meses | AE143: 42 a 47 meses | AG143: 48 a 59 meses | AI143: 60 a 71 meses | AK143: 6 a 7 años | AM143: 8 a 9 años | AO143: 10 a 14 años | AQ143: 15 a 19 años
D144: Ambos sexos | E144: Hombres | F144: Mujeres | G144: Hombres | H144: Mujeres | I144: Hombres | J144: Mujeres | K144: Hombres | L144: Mujeres | M144: Hombres | N144: Mujeres | O144: Hombres | P144: Mujeres | Q144: Hombres | R144: Mujeres | S144: Hombres | T144: Mujeres | U144: Hombres | V144: Mujeres | W144: Hombres | X144: Mujeres | Y144: Hombres | Z144: Mujeres | AA144: Hombres | AB144: Mujeres | AC144: Hombres | AD144: Mujeres | AE144: Hombres | AF144: Mujeres | AG144: Hombres | AH144: Mujeres | AI144: Hombres | AJ144: Mujeres | AK144: Hombres | AL144: Mujeres | AM144: Hombres | AN144: Mujeres | AO144: Hombres | AP144: Mujeres | AQ144: Hombres | AR144: Mujeres | AS144: Hombres | AT144: Mujeres | AU144: Hombres | AV144: Mujeres
A145: P2501878 | B145: TOTAL POBLACIÓN NANEAS BAJO CONTROL | D145: =SUM(E145:F145) -> 6225 | E145: =+G145+I145+K145+M145+O145+Q145+S145+U145+W145+Y145+AA145+AC145+AE145+AG145+AI145+AO145+AQ145+AK145+AM145 -> 3491 | F145: 2734 | G145: =IFERROR(VLOOKUP($A145,Filtro!$A$5:$AW$651,5,FALSE),0) -> 4 | H145: =IFERROR(VLOOKUP($A145,Filtro!$A$5:$AW$651,6,FALSE),0) -> 4 | I145: =IFERROR(VLOOKUP($A145,Filtro!$A$5:$AW$651,7,FALSE),0) -> 8 | J145: =IFERROR(VLOOKUP($A145,Filtro!$A$5:$AW$651,8,FALSE),0) -> 12 | K145: =IFERROR(VLOOKUP($A145,Filtro!$A$5:$AW$651,9,FALSE),0) -> 20 | L145: =IFERROR(VLOOKUP($A145,Filtro!$A$5:$AW$651,10,FALSE),0) -> 17 | M145: =IFERROR(VLOOKUP($A145,Filtro!$A$5:$AW$651,11,FALSE),0) -> 10 | N145: =IFERROR(VLOOKUP($A145,Filtro!$A$5:$AW$651,12,FALSE),0) -> 25 | O145: =IFERROR(VLOOKUP($A145,Filtro!$A$5:$AW$651,13,FALSE),0) -> 23 | P145: =IFERROR(VLOOKUP($A145,Filtro!$A$5:$AW$651,14,FALSE),0) -> 30 | Q145: =IFERROR(VLOOKUP($A145,Filtro!$A$5:$AW$651,15,FALSE),0) -> 13 | R145: =IFERROR(VLOOKUP($A145,Filtro!$A$5:$AW$651,16,FALSE),0) -> 19 | S145: =IFERROR(VLOOKUP($A145,Filtro!$A$5:$AW$651,17,FALSE),0) -> 30 | T145: =IFERROR(VLOOKUP($A145,Filtro!$A$5:$AW$651,18,FALSE),0) -> 32 | U145: =IFERROR(VLOOKUP($A145,Filtro!$A$5:$AW$651,19,FALSE),0) -> 118 | V145: =IFERROR(VLOOKUP($A145,Filtro!$A$5:$AW$651,20,FALSE),0) -> 98 | W145: =IFERROR(VLOOKUP($A145,Filtro!$A$5:$AW$651,21,FALSE),0) -> 190 | X145: =IFERROR(VLOOKUP($A145,Filtro!$A$5:$AW$651,22,FALSE),0) -> 162 | Y145: =IFERROR(VLOOKUP($A145,Filtro!$A$5:$AW$651,23,FALSE),0) -> 145 | Z145: =IFERROR(VLOOKUP($A145,Filtro!$A$5:$AW$651,24,FALSE),0) -> 103 | AA145: =IFERROR(VLOOKUP($A145,Filtro!$A$5:$AW$651,25,FALSE),0) -> 282 | AB145: =IFERROR(VLOOKUP($A145,Filtro!$A$5:$AW$651,26,FALSE),0) -> 230 | AC145: =IFERROR(VLOOKUP($A145,Filtro!$A$5:$AW$651,27,FALSE),0) -> 231 | AD145: =IFERROR(VLOOKUP($A145,Filtro!$A$5:$AW$651,28,FALSE),0) -> 161 | AE145: =IFERROR(VLOOKUP($A145,Filtro!$A$5:$AW$651,29,FALSE),0) -> 98 | AF145: =IFERROR(VLOOKUP($A145,Filtro!$A$5:$AW$651,30,FALSE),0) -> 64 | AG145: =IFERROR(VLOOKUP($A145,Filtro!$A$5:$AW$651,31,FALSE),0) -> 349 | AH145: =IFERROR(VLOOKUP($A145,Filtro!$A$5:$AW$651,32,FALSE),0) -> 259 | AI145: =IFERROR(VLOOKUP($A145,Filtro!$A$5:$AW$651,33,FALSE),0) -> 374 | AJ145: =IFERROR(VLOOKUP($A145,Filtro!$A$5:$AW$651,34,FALSE),0) -> 208 | AK145: =IFERROR(VLOOKUP($A145,Filtro!$A$5:$AW$651,35,FALSE),0) -> 558 | AL145: =IFERROR(VLOOKUP($A145,Filtro!$A$5:$AW$651,36,FALSE),0) -> 340 | AM145: =IFERROR(VLOOKUP($A145,Filtro!$A$5:$AW$651,37,FALSE),0) -> 367 | AN145: =IFERROR(VLOOKUP($A145,Filtro!$A$5:$AW$651,38,FALSE),0) -> 307 | AO145: =IFERROR(VLOOKUP($A145,Filtro!$A$5:$AW$651,39,FALSE),0) -> 430 | AP145: =IFERROR(VLOOKUP($A145,Filtro!$A$5:$AW$651,40,FALSE),0) -> 435 | AQ145: =IFERROR(VLOOKUP($A145,Filtro!$A$5:$AW$651,41,FALSE),0) -> 241 | AR145: =IFERROR(VLOOKUP($A145,Filtro!$A$5:$AW$651,42,FALSE),0) -> 228 | AS145: =IFERROR(VLOOKUP($A145,Filtro!$A$5:$AW$651,43,FALSE),0) -> 7 | AT145: =IFERROR(VLOOKUP($A145,Filtro!$A$5:$AW$651,44,FALSE),0) -> 5 | AU145: =IFERROR(VLOOKUP($A145,Filtro!$A$5:$AW$651,45,FALSE),0) -> 6 | AV145: =IFERROR(VLOOKUP($A145,Filtro!$A$5:$AW$651,46,FALSE),0) -> 6 | AW145: =CC145&CD145&CE145&CF145 ->  | CC145: =IF(AND(E145>0,AS145="")," * No olvide digitar la variable Pueblos Originarios / hombres (Digite Cero si no tiene).",IF(AS145>E145," * La variable Pueblos Originarios / hombres no debe ser mayor que el Total de Hombres.","")) ->  | CD145: =IF(AND(F145>0,AT145="")," * No olvide digitar la variable Pueblos Originarios / Mujeres (Digite Cero si no tiene). Digite Cero si no tiene.",IF(AT145>F145," * La variable Pueblos Originarios/ Mujeres no debe ser mayor que el Total de Mujeres","")) ->  | CE145: =IF(AND(E145>0,AU145="")," * No olvide digitar la variable Migrantes / hombres (Digite Cero si no tiene).",IF(AU145>E145," * La variable Migrantes / hombres no debe ser mayor que el Total de Hombres","")) ->  | CF145: =IF(AND(F145>0,AV145="")," * No olvide digitar la variable Migrantes / Mujeres (Digite Cero si no tiene).",IF(AV145>F145," * La variable Migrantes / Mujeres no debe ser mayor que el Total de Mujeres","")) ->  | DG145: =IF(AND(E145>0,AS145=""),1,IF(AS145>E145,1,0)) -> 0 | DH145: =IF(AND(F145>0,AT145=""),1,IF(AT145>F145,1,0)) -> 0 | DI145: =IF(AND(E145>0,AU145=""),1,IF(AU145>E145,1,0)) -> 0 | DJ145: =IF(AND(F145>0,AV145=""),1,IF(AV145>F145,1,0)) -> 0
A146: P2500400 | B146: Síndrome de Down | D146: 282 | E146: 134 | F146: 148 | G146: =IFERROR(VLOOKUP($A146,Filtro!$A$5:$AW$651,5,FALSE),0) -> 0 | H146: =IFERROR(VLOOKUP($A146,Filtro!$A$5:$AW$651,6,FALSE),0) -> 0 | I146: =IFERROR(VLOOKUP($A146,Filtro!$A$5:$AW$651,7,FALSE),0) -> 0 | J146: =IFERROR(VLOOKUP($A146,Filtro!$A$5:$AW$651,8,FALSE),0) -> 0 | K146: =IFERROR(VLOOKUP($A146,Filtro!$A$5:$AW$651,9,FALSE),0) -> 0 | L146: =IFERROR(VLOOKUP($A146,Filtro!$A$5:$AW$651,10,FALSE),0) -> 2 | M146: =IFERROR(VLOOKUP($A146,Filtro!$A$5:$AW$651,11,FALSE),0) -> 1 | N146: =IFERROR(VLOOKUP($A146,Filtro!$A$5:$AW$651,12,FALSE),0) -> 2 | O146: =IFERROR(VLOOKUP($A146,Filtro!$A$5:$AW$651,13,FALSE),0) -> 4 | P146: =IFERROR(VLOOKUP($A146,Filtro!$A$5:$AW$651,14,FALSE),0) -> 2 | Q146: =IFERROR(VLOOKUP($A146,Filtro!$A$5:$AW$651,15,FALSE),0) -> 1 | R146: =IFERROR(VLOOKUP($A146,Filtro!$A$5:$AW$651,16,FALSE),0) -> 0 | S146: =IFERROR(VLOOKUP($A146,Filtro!$A$5:$AW$651,17,FALSE),0) -> 1 | T146: =IFERROR(VLOOKUP($A146,Filtro!$A$5:$AW$651,18,FALSE),0) -> 0 | U146: =IFERROR(VLOOKUP($A146,Filtro!$A$5:$AW$651,19,FALSE),0) -> 4 | V146: =IFERROR(VLOOKUP($A146,Filtro!$A$5:$AW$651,20,FALSE),0) -> 8 | W146: =IFERROR(VLOOKUP($A146,Filtro!$A$5:$AW$651,21,FALSE),0) -> 5 | X146: =IFERROR(VLOOKUP($A146,Filtro!$A$5:$AW$651,22,FALSE),0) -> 9 | Y146: =IFERROR(VLOOKUP($A146,Filtro!$A$5:$AW$651,23,FALSE),0) -> 4 | Z146: =IFERROR(VLOOKUP($A146,Filtro!$A$5:$AW$651,24,FALSE),0) -> 8 | AA146: =IFERROR(VLOOKUP($A146,Filtro!$A$5:$AW$651,25,FALSE),0) -> 23 | AB146: =IFERROR(VLOOKUP($A146,Filtro!$A$5:$AW$651,26,FALSE),0) -> 17 | AC146: =IFERROR(VLOOKUP($A146,Filtro!$A$5:$AW$651,27,FALSE),0) -> 10 | AD146: =IFERROR(VLOOKUP($A146,Filtro!$A$5:$AW$651,28,FALSE),0) -> 12 | AE146: =IFERROR(VLOOKUP($A146,Filtro!$A$5:$AW$651,29,FALSE),0) -> 2 | AF146: =IFERROR(VLOOKUP($A146,Filtro!$A$5:$AW$651,30,FALSE),0) -> 0 | AG146: =IFERROR(VLOOKUP($A146,Filtro!$A$5:$AW$651,31,FALSE),0) -> 19 | AH146: =IFERROR(VLOOKUP($A146,Filtro!$A$5:$AW$651,32,FALSE),0) -> 15 | AI146: =IFERROR(VLOOKUP($A146,Filtro!$A$5:$AW$651,33,FALSE),0) -> 19 | AJ146: =IFERROR(VLOOKUP($A146,Filtro!$A$5:$AW$651,34,FALSE),0) -> 15 | AK146: =IFERROR(VLOOKUP($A146,Filtro!$A$5:$AW$651,35,FALSE),0) -> 17 | AL146: =IFERROR(VLOOKUP($A146,Filtro!$A$5:$AW$651,36,FALSE),0) -> 31 | AM146: =IFERROR(VLOOKUP($A146,Filtro!$A$5:$AW$651,37,FALSE),0) -> 14 | AN146: =IFERROR(VLOOKUP($A146,Filtro!$A$5:$AW$651,38,FALSE),0) -> 9 | AO146: =IFERROR(VLOOKUP($A146,Filtro!$A$5:$AW$651,39,FALSE),0) -> 10 | AP146: =IFERROR(VLOOKUP($A146,Filtro!$A$5:$AW$651,40,FALSE),0) -> 11 | AQ146: =IFERROR(VLOOKUP($A146,Filtro!$A$5:$AW$651,41,FALSE),0) -> 0 | AR146: =IFERROR(VLOOKUP($A146,Filtro!$A$5:$AW$651,42,FALSE),0) -> 7 | AS146: =IFERROR(VLOOKUP($A146,Filtro!$A$5:$AW$651,43,FALSE),0) -> 2 | AT146: =IFERROR(VLOOKUP($A146,Filtro!$A$5:$AW$651,44,FALSE),0) -> 2 | AU146: =IFERROR(VLOOKUP($A146,Filtro!$A$5:$AW$651,45,FALSE),0) -> 1 | AV146: =IFERROR(VLOOKUP($A146,Filtro!$A$5:$AW$651,46,FALSE),0) -> 2 | CC146: =IF(AND(E146>0,AS146="")," * No olvide digitar la variable Pueblos Originarios / hombres (Digite Cero si no tiene).",IF(AS146>E146," * La variable Pueblos Originarios / hombres no debe ser mayor que el Total de Hombres.","")) ->  | CD146: =IF(AND(F146>0,AT146="")," * No olvide digitar la variable Pueblos Originarios / Mujeres (Digite Cero si no tiene). Digite Cero si no tiene.",IF(AT146>F146," * La variable Pueblos Originarios/ Mujeres no debe ser mayor que el Total de Mujeres","")) ->  | CE146: =IF(AND(E146>0,AU146="")," * No olvide digitar la variable Migrantes / hombres (Digite Cero si no tiene).",IF(AU146>E146," * La variable Migrantes / hombres no debe ser mayor que el Total de Hombres","")) ->  | CF146: =IF(AND(F146>0,AV146="")," * No olvide digitar la variable Migrantes / Mujeres (Digite Cero si no tiene).",IF(AV146>F146," * La variable Migrantes / Mujeres no debe ser mayor que el Total de Mujeres","")) ->  | DG146: =IF(AND(E146>0,AS146=""),1,IF(AS146>E146,1,0)) -> 0 | DH146: =IF(AND(F146>0,AT146=""),1,IF(AT146>F146,1,0)) -> 0 | DI146: =IF(AND(E146>0,AU146=""),1,IF(AU146>E146,1,0)) -> 0 | DJ146: =IF(AND(F146>0,AV146=""),1,IF(AV146>F146,1,0)) -> 0
A147: P2500500 | B147: Trastorno del Espectro Autista | C147: Trastorno del Espectro Autista | D147: 1898 | E147: 1416 | F147: 482 | G147: =IFERROR(VLOOKUP($A147,Filtro!$A$5:$AW$651,5,FALSE),0) -> 0 | H147: =IFERROR(VLOOKUP($A147,Filtro!$A$5:$AW$651,6,FALSE),0) -> 0 | I147: =IFERROR(VLOOKUP($A147,Filtro!$A$5:$AW$651,7,FALSE),0) -> 0 | J147: =IFERROR(VLOOKUP($A147,Filtro!$A$5:$AW$651,8,FALSE),0) -> 0 | K147: =IFERROR(VLOOKUP($A147,Filtro!$A$5:$AW$651,9,FALSE),0) -> 0 | L147: =IFERROR(VLOOKUP($A147,Filtro!$A$5:$AW$651,10,FALSE),0) -> 0 | M147: =IFERROR(VLOOKUP($A147,Filtro!$A$5:$AW$651,11,FALSE),0) -> 0 | N147: =IFERROR(VLOOKUP($A147,Filtro!$A$5:$AW$651,12,FALSE),0) -> 0 | O147: =IFERROR(VLOOKUP($A147,Filtro!$A$5:$AW$651,13,FALSE),0) -> 0 | P147: =IFERROR(VLOOKUP($A147,Filtro!$A$5:$AW$651,14,FALSE),0) -> 0 | Q147: =IFERROR(VLOOKUP($A147,Filtro!$A$5:$AW$651,15,FALSE),0) -> 1 | R147: =IFERROR(VLOOKUP($A147,Filtro!$A$5:$AW$651,16,FALSE),0) -> 0 | S147: =IFERROR(VLOOKUP($A147,Filtro!$A$5:$AW$651,17,FALSE),0) -> 0 | T147: =IFERROR(VLOOKUP($A147,Filtro!$A$5:$AW$651,18,FALSE),0) -> 0 | U147: =IFERROR(VLOOKUP($A147,Filtro!$A$5:$AW$651,19,FALSE),0) -> 2 | V147: =IFERROR(VLOOKUP($A147,Filtro!$A$5:$AW$651,20,FALSE),0) -> 0 | W147: =IFERROR(VLOOKUP($A147,Filtro!$A$5:$AW$651,21,FALSE),0) -> 8 | X147: =IFERROR(VLOOKUP($A147,Filtro!$A$5:$AW$651,22,FALSE),0) -> 2 | Y147: =IFERROR(VLOOKUP($A147,Filtro!$A$5:$AW$651,23,FALSE),0) -> 9 | Z147: =IFERROR(VLOOKUP($A147,Filtro!$A$5:$AW$651,24,FALSE),0) -> 7 | AA147: =IFERROR(VLOOKUP($A147,Filtro!$A$5:$AW$651,25,FALSE),0) -> 74 | AB147: =IFERROR(VLOOKUP($A147,Filtro!$A$5:$AW$651,26,FALSE),0) -> 35 | AC147: =IFERROR(VLOOKUP($A147,Filtro!$A$5:$AW$651,27,FALSE),0) -> 160 | AD147: =IFERROR(VLOOKUP($A147,Filtro!$A$5:$AW$651,28,FALSE),0) -> 65 | AE147: =IFERROR(VLOOKUP($A147,Filtro!$A$5:$AW$651,29,FALSE),0) -> 88 | AF147: =IFERROR(VLOOKUP($A147,Filtro!$A$5:$AW$651,30,FALSE),0) -> 28 | AG147: =IFERROR(VLOOKUP($A147,Filtro!$A$5:$AW$651,31,FALSE),0) -> 292 | AH147: =IFERROR(VLOOKUP($A147,Filtro!$A$5:$AW$651,32,FALSE),0) -> 104 | AI147: =IFERROR(VLOOKUP($A147,Filtro!$A$5:$AW$651,33,FALSE),0) -> 248 | AJ147: =IFERROR(VLOOKUP($A147,Filtro!$A$5:$AW$651,34,FALSE),0) -> 88 | AK147: =IFERROR(VLOOKUP($A147,Filtro!$A$5:$AW$651,35,FALSE),0) -> 282 | AL147: =IFERROR(VLOOKUP($A147,Filtro!$A$5:$AW$651,36,FALSE),0) -> 84 | AM147: =IFERROR(VLOOKUP($A147,Filtro!$A$5:$AW$651,37,FALSE),0) -> 173 | AN147: =IFERROR(VLOOKUP($A147,Filtro!$A$5:$AW$651,38,FALSE),0) -> 33 | AO147: =IFERROR(VLOOKUP($A147,Filtro!$A$5:$AW$651,39,FALSE),0) -> 60 | AP147: =IFERROR(VLOOKUP($A147,Filtro!$A$5:$AW$651,40,FALSE),0) -> 23 | AQ147: =IFERROR(VLOOKUP($A147,Filtro!$A$5:$AW$651,41,FALSE),0) -> 19 | AR147: =IFERROR(VLOOKUP($A147,Filtro!$A$5:$AW$651,42,FALSE),0) -> 13 | AS147: =IFERROR(VLOOKUP($A147,Filtro!$A$5:$AW$651,43,FALSE),0) -> 4 | AT147: =IFERROR(VLOOKUP($A147,Filtro!$A$5:$AW$651,44,FALSE),0) -> 3 | AU147: =IFERROR(VLOOKUP($A147,Filtro!$A$5:$AW$651,45,FALSE),0) -> 6 | AV147: =IFERROR(VLOOKUP($A147,Filtro!$A$5:$AW$651,46,FALSE),0) -> 1 | DG147: 0 | DH147: 0 | DI147: 0 | DJ147: 0
A148: P2501823 | B148: Síndrome de Rett | C148: Síndrome de Rett | D148: 28 | E148: 13 | F148: 15 | G148: =IFERROR(VLOOKUP($A148,Filtro!$A$5:$AW$651,5,FALSE),0) -> 0 | H148: =IFERROR(VLOOKUP($A148,Filtro!$A$5:$AW$651,6,FALSE),0) -> 0 | I148: =IFERROR(VLOOKUP($A148,Filtro!$A$5:$AW$651,7,FALSE),0) -> 0 | J148: =IFERROR(VLOOKUP($A148,Filtro!$A$5:$AW$651,8,FALSE),0) -> 0 | K148: =IFERROR(VLOOKUP($A148,Filtro!$A$5:$AW$651,9,FALSE),0) -> 0 | L148: =IFERROR(VLOOKUP($A148,Filtro!$A$5:$AW$651,10,FALSE),0) -> 0 | M148: =IFERROR(VLOOKUP($A148,Filtro!$A$5:$AW$651,11,FALSE),0) -> 0 | N148: =IFERROR(VLOOKUP($A148,Filtro!$A$5:$AW$651,12,FALSE),0) -> 0 | O148: =IFERROR(VLOOKUP($A148,Filtro!$A$5:$AW$651,13,FALSE),0) -> 0 | P148: =IFERROR(VLOOKUP($A148,Filtro!$A$5:$AW$651,14,FALSE),0) -> 0 | Q148: =IFERROR(VLOOKUP($A148,Filtro!$A$5:$AW$651,15,FALSE),0) -> 0 | R148: =IFERROR(VLOOKUP($A148,Filtro!$A$5:$AW$651,16,FALSE),0) -> 0 | S148: =IFERROR(VLOOKUP($A148,Filtro!$A$5:$AW$651,17,FALSE),0) -> 0 | T148: =IFERROR(VLOOKUP($A148,Filtro!$A$5:$AW$651,18,FALSE),0) -> 2 | U148: =IFERROR(VLOOKUP($A148,Filtro!$A$5:$AW$651,19,FALSE),0) -> 0 | V148: =IFERROR(VLOOKUP($A148,Filtro!$A$5:$AW$651,20,FALSE),0) -> 0 | W148: =IFERROR(VLOOKUP($A148,Filtro!$A$5:$AW$651,21,FALSE),0) -> 1 | X148: =IFERROR(VLOOKUP($A148,Filtro!$A$5:$AW$651,22,FALSE),0) -> 0 | Y148: =IFERROR(VLOOKUP($A148,Filtro!$A$5:$AW$651,23,FALSE),0) -> 0 | Z148: =IFERROR(VLOOKUP($A148,Filtro!$A$5:$AW$651,24,FALSE),0) -> 0 | AA148: =IFERROR(VLOOKUP($A148,Filtro!$A$5:$AW$651,25,FALSE),0) -> 0 | AB148: =IFERROR(VLOOKUP($A148,Filtro!$A$5:$AW$651,26,FALSE),0) -> 0 | AC148: =IFERROR(VLOOKUP($A148,Filtro!$A$5:$AW$651,27,FALSE),0) -> 0 | AD148: =IFERROR(VLOOKUP($A148,Filtro!$A$5:$AW$651,28,FALSE),0) -> 0 | AE148: =IFERROR(VLOOKUP($A148,Filtro!$A$5:$AW$651,29,FALSE),0) -> 0 | AF148: =IFERROR(VLOOKUP($A148,Filtro!$A$5:$AW$651,30,FALSE),0) -> 0 | AG148: =IFERROR(VLOOKUP($A148,Filtro!$A$5:$AW$651,31,FALSE),0) -> 2 | AH148: =IFERROR(VLOOKUP($A148,Filtro!$A$5:$AW$651,32,FALSE),0) -> 0 | AI148: =IFERROR(VLOOKUP($A148,Filtro!$A$5:$AW$651,33,FALSE),0) -> 1 | AJ148: =IFERROR(VLOOKUP($A148,Filtro!$A$5:$AW$651,34,FALSE),0) -> 0 | AK148: =IFERROR(VLOOKUP($A148,Filtro!$A$5:$AW$651,35,FALSE),0) -> 3 | AL148: =IFERROR(VLOOKUP($A148,Filtro!$A$5:$AW$651,36,FALSE),0) -> 2 | AM148: =IFERROR(VLOOKUP($A148,Filtro!$A$5:$AW$651,37,FALSE),0) -> 0 | AN148: =IFERROR(VLOOKUP($A148,Filtro!$A$5:$AW$651,38,FALSE),0) -> 1 | AO148: =IFERROR(VLOOKUP($A148,Filtro!$A$5:$AW$651,39,FALSE),0) -> 4 | AP148: =IFERROR(VLOOKUP($A148,Filtro!$A$5:$AW$651,40,FALSE),0) -> 6 | AQ148: =IFERROR(VLOOKUP($A148,Filtro!$A$5:$AW$651,41,FALSE),0) -> 2 | AR148: =IFERROR(VLOOKUP($A148,Filtro!$A$5:$AW$651,42,FALSE),0) -> 4 | AS148: =IFERROR(VLOOKUP($A148,Filtro!$A$5:$AW$651,43,FALSE),0) -> 0 | AT148: =IFERROR(VLOOKUP($A148,Filtro!$A$5:$AW$651,44,FALSE),0) -> 0 | AU148: =IFERROR(VLOOKUP($A148,Filtro!$A$5:$AW$651,45,FALSE),0) -> 0 | AV148: =IFERROR(VLOOKUP($A148,Filtro!$A$5:$AW$651,46,FALSE),0) -> 0 | DG148: 0 | DH148: 0 | DI148: 0 | DJ148: 0
A149: P2500700 | B149: Parálisis Cerebral | C149: Parálisis Cerebral | D149: 179 | E149: 99 | F149: 80 | G149: =IFERROR(VLOOKUP($A149,Filtro!$A$5:$AW$651,5,FALSE),0) -> 0 | H149: =IFERROR(VLOOKUP($A149,Filtro!$A$5:$AW$651,6,FALSE),0) -> 0 | I149: =IFERROR(VLOOKUP($A149,Filtro!$A$5:$AW$651,7,FALSE),0) -> 0 | J149: =IFERROR(VLOOKUP($A149,Filtro!$A$5:$AW$651,8,FALSE),0) -> 0 | K149: =IFERROR(VLOOKUP($A149,Filtro!$A$5:$AW$651,9,FALSE),0) -> 0 | L149: =IFERROR(VLOOKUP($A149,Filtro!$A$5:$AW$651,10,FALSE),0) -> 0 | M149: =IFERROR(VLOOKUP($A149,Filtro!$A$5:$AW$651,11,FALSE),0) -> 0 | N149: =IFERROR(VLOOKUP($A149,Filtro!$A$5:$AW$651,12,FALSE),0) -> 0 | O149: =IFERROR(VLOOKUP($A149,Filtro!$A$5:$AW$651,13,FALSE),0) -> 0 | P149: =IFERROR(VLOOKUP($A149,Filtro!$A$5:$AW$651,14,FALSE),0) -> 0 | Q149: =IFERROR(VLOOKUP($A149,Filtro!$A$5:$AW$651,15,FALSE),0) -> 0 | R149: =IFERROR(VLOOKUP($A149,Filtro!$A$5:$AW$651,16,FALSE),0) -> 0 | S149: =IFERROR(VLOOKUP($A149,Filtro!$A$5:$AW$651,17,FALSE),0) -> 0 | T149: =IFERROR(VLOOKUP($A149,Filtro!$A$5:$AW$651,18,FALSE),0) -> 2 | U149: =IFERROR(VLOOKUP($A149,Filtro!$A$5:$AW$651,19,FALSE),0) -> 1 | V149: =IFERROR(VLOOKUP($A149,Filtro!$A$5:$AW$651,20,FALSE),0) -> 0 | W149: =IFERROR(VLOOKUP($A149,Filtro!$A$5:$AW$651,21,FALSE),0) -> 1 | X149: =IFERROR(VLOOKUP($A149,Filtro!$A$5:$AW$651,22,FALSE),0) -> 3 | Y149: =IFERROR(VLOOKUP($A149,Filtro!$A$5:$AW$651,23,FALSE),0) -> 2 | Z149: =IFERROR(VLOOKUP($A149,Filtro!$A$5:$AW$651,24,FALSE),0) -> 0 | AA149: =IFERROR(VLOOKUP($A149,Filtro!$A$5:$AW$651,25,FALSE),0) -> 7 | AB149: =IFERROR(VLOOKUP($A149,Filtro!$A$5:$AW$651,26,FALSE),0) -> 4 | AC149: =IFERROR(VLOOKUP($A149,Filtro!$A$5:$AW$651,27,FALSE),0) -> 3 | AD149: =IFERROR(VLOOKUP($A149,Filtro!$A$5:$AW$651,28,FALSE),0) -> 0 | AE149: =IFERROR(VLOOKUP($A149,Filtro!$A$5:$AW$651,29,FALSE),0) -> 1 | AF149: =IFERROR(VLOOKUP($A149,Filtro!$A$5:$AW$651,30,FALSE),0) -> 0 | AG149: =IFERROR(VLOOKUP($A149,Filtro!$A$5:$AW$651,31,FALSE),0) -> 6 | AH149: =IFERROR(VLOOKUP($A149,Filtro!$A$5:$AW$651,32,FALSE),0) -> 4 | AI149: =IFERROR(VLOOKUP($A149,Filtro!$A$5:$AW$651,33,FALSE),0) -> 7 | AJ149: =IFERROR(VLOOKUP($A149,Filtro!$A$5:$AW$651,34,FALSE),0) -> 4 | AK149: =IFERROR(VLOOKUP($A149,Filtro!$A$5:$AW$651,35,FALSE),0) -> 20 | AL149: =IFERROR(VLOOKUP($A149,Filtro!$A$5:$AW$651,36,FALSE),0) -> 15 | AM149: =IFERROR(VLOOKUP($A149,Filtro!$A$5:$AW$651,37,FALSE),0) -> 8 | AN149: =IFERROR(VLOOKUP($A149,Filtro!$A$5:$AW$651,38,FALSE),0) -> 5 | AO149: =IFERROR(VLOOKUP($A149,Filtro!$A$5:$AW$651,39,FALSE),0) -> 26 | AP149: =IFERROR(VLOOKUP($A149,Filtro!$A$5:$AW$651,40,FALSE),0) -> 30 | AQ149: =IFERROR(VLOOKUP($A149,Filtro!$A$5:$AW$651,41,FALSE),0) -> 17 | AR149: =IFERROR(VLOOKUP($A149,Filtro!$A$5:$AW$651,42,FALSE),0) -> 13 | AS149: =IFERROR(VLOOKUP($A149,Filtro!$A$5:$AW$651,43,FALSE),0) -> 0 | AT149: =IFERROR(VLOOKUP($A149,Filtro!$A$5:$AW$651,44,FALSE),0) -> 0 | AU149: =IFERROR(VLOOKUP($A149,Filtro!$A$5:$AW$651,45,FALSE),0) -> 1 | AV149: =IFERROR(VLOOKUP($A149,Filtro!$A$5:$AW$651,46,FALSE),0) -> 1 | DG149: 0 | DH149: 0 | DI149: 0 | DJ149: 0
A150: P2501824 | B150: Epilepsia | C150: Epilepsia | D150: 174 | E150: 89 | F150: 85 | G150: =IFERROR(VLOOKUP($A150,Filtro!$A$5:$AW$651,5,FALSE),0) -> 0 | H150: =IFERROR(VLOOKUP($A150,Filtro!$A$5:$AW$651,6,FALSE),0) -> 0 | I150: =IFERROR(VLOOKUP($A150,Filtro!$A$5:$AW$651,7,FALSE),0) -> 0 | J150: =IFERROR(VLOOKUP($A150,Filtro!$A$5:$AW$651,8,FALSE),0) -> 0 | K150: =IFERROR(VLOOKUP($A150,Filtro!$A$5:$AW$651,9,FALSE),0) -> 0 | L150: =IFERROR(VLOOKUP($A150,Filtro!$A$5:$AW$651,10,FALSE),0) -> 0 | M150: =IFERROR(VLOOKUP($A150,Filtro!$A$5:$AW$651,11,FALSE),0) -> 0 | N150: =IFERROR(VLOOKUP($A150,Filtro!$A$5:$AW$651,12,FALSE),0) -> 1 | O150: =IFERROR(VLOOKUP($A150,Filtro!$A$5:$AW$651,13,FALSE),0) -> 0 | P150: =IFERROR(VLOOKUP($A150,Filtro!$A$5:$AW$651,14,FALSE),0) -> 0 | Q150: =IFERROR(VLOOKUP($A150,Filtro!$A$5:$AW$651,15,FALSE),0) -> 2 | R150: =IFERROR(VLOOKUP($A150,Filtro!$A$5:$AW$651,16,FALSE),0) -> 0 | S150: =IFERROR(VLOOKUP($A150,Filtro!$A$5:$AW$651,17,FALSE),0) -> 0 | T150: =IFERROR(VLOOKUP($A150,Filtro!$A$5:$AW$651,18,FALSE),0) -> 1 | U150: =IFERROR(VLOOKUP($A150,Filtro!$A$5:$AW$651,19,FALSE),0) -> 1 | V150: =IFERROR(VLOOKUP($A150,Filtro!$A$5:$AW$651,20,FALSE),0) -> 1 | W150: =IFERROR(VLOOKUP($A150,Filtro!$A$5:$AW$651,21,FALSE),0) -> 4 | X150: =IFERROR(VLOOKUP($A150,Filtro!$A$5:$AW$651,22,FALSE),0) -> 4 | Y150: =IFERROR(VLOOKUP($A150,Filtro!$A$5:$AW$651,23,FALSE),0) -> 1 | Z150: =IFERROR(VLOOKUP($A150,Filtro!$A$5:$AW$651,24,FALSE),0) -> 1 | AA150: =IFERROR(VLOOKUP($A150,Filtro!$A$5:$AW$651,25,FALSE),0) -> 10 | AB150: =IFERROR(VLOOKUP($A150,Filtro!$A$5:$AW$651,26,FALSE),0) -> 8 | AC150: =IFERROR(VLOOKUP($A150,Filtro!$A$5:$AW$651,27,FALSE),0) -> 8 | AD150: =IFERROR(VLOOKUP($A150,Filtro!$A$5:$AW$651,28,FALSE),0) -> 4 | AE150: =IFERROR(VLOOKUP($A150,Filtro!$A$5:$AW$651,29,FALSE),0) -> 2 | AF150: =IFERROR(VLOOKUP($A150,Filtro!$A$5:$AW$651,30,FALSE),0) -> 1 | AG150: =IFERROR(VLOOKUP($A150,Filtro!$A$5:$AW$651,31,FALSE),0) -> 6 | AH150: =IFERROR(VLOOKUP($A150,Filtro!$A$5:$AW$651,32,FALSE),0) -> 9 | AI150: =IFERROR(VLOOKUP($A150,Filtro!$A$5:$AW$651,33,FALSE),0) -> 4 | AJ150: =IFERROR(VLOOKUP($A150,Filtro!$A$5:$AW$651,34,FALSE),0) -> 3 | AK150: =IFERROR(VLOOKUP($A150,Filtro!$A$5:$AW$651,35,FALSE),0) -> 18 | AL150: =IFERROR(VLOOKUP($A150,Filtro!$A$5:$AW$651,36,FALSE),0) -> 12 | AM150: =IFERROR(VLOOKUP($A150,Filtro!$A$5:$AW$651,37,FALSE),0) -> 8 | AN150: =IFERROR(VLOOKUP($A150,Filtro!$A$5:$AW$651,38,FALSE),0) -> 10 | AO150: =IFERROR(VLOOKUP($A150,Filtro!$A$5:$AW$651,39,FALSE),0) -> 13 | AP150: =IFERROR(VLOOKUP($A150,Filtro!$A$5:$AW$651,40,FALSE),0) -> 18 | AQ150: =IFERROR(VLOOKUP($A150,Filtro!$A$5:$AW$651,41,FALSE),0) -> 12 | AR150: =IFERROR(VLOOKUP($A150,Filtro!$A$5:$AW$651,42,FALSE),0) -> 12 | AS150: =IFERROR(VLOOKUP($A150,Filtro!$A$5:$AW$651,43,FALSE),0) -> 0 | AT150: =IFERROR(VLOOKUP($A150,Filtro!$A$5:$AW$651,44,FALSE),0) -> 0 | AU150: =IFERROR(VLOOKUP($A150,Filtro!$A$5:$AW$651,45,FALSE),0) -> 0 | AV150: =IFERROR(VLOOKUP($A150,Filtro!$A$5:$AW$651,46,FALSE),0) -> 0 | DG150: 0 | DH150: 0 | DI150: 0 | DJ150: 0
A151: P2501825 | B151: Otros trastornos del Neurodesarrollo (no incluye TEA) | C151: Otros trastornos del Neurodesarrollo ( no incluye TEA) | D151: 201 | E151: 116 | F151: 85 | G151: =IFERROR(VLOOKUP($A151,Filtro!$A$5:$AW$651,5,FALSE),0) -> 0 | H151: =IFERROR(VLOOKUP($A151,Filtro!$A$5:$AW$651,6,FALSE),0) -> 0 | I151: =IFERROR(VLOOKUP($A151,Filtro!$A$5:$AW$651,7,FALSE),0) -> 0 | J151: =IFERROR(VLOOKUP($A151,Filtro!$A$5:$AW$651,8,FALSE),0) -> 0 | K151: =IFERROR(VLOOKUP($A151,Filtro!$A$5:$AW$651,9,FALSE),0) -> 0 | L151: =IFERROR(VLOOKUP($A151,Filtro!$A$5:$AW$651,10,FALSE),0) -> 0 | M151: =IFERROR(VLOOKUP($A151,Filtro!$A$5:$AW$651,11,FALSE),0) -> 0 | N151: =IFERROR(VLOOKUP($A151,Filtro!$A$5:$AW$651,12,FALSE),0) -> 0 | O151: =IFERROR(VLOOKUP($A151,Filtro!$A$5:$AW$651,13,FALSE),0) -> 0 | P151: =IFERROR(VLOOKUP($A151,Filtro!$A$5:$AW$651,14,FALSE),0) -> 1 | Q151: =IFERROR(VLOOKUP($A151,Filtro!$A$5:$AW$651,15,FALSE),0) -> 0 | R151: =IFERROR(VLOOKUP($A151,Filtro!$A$5:$AW$651,16,FALSE),0) -> 0 | S151: =IFERROR(VLOOKUP($A151,Filtro!$A$5:$AW$651,17,FALSE),0) -> 0 | T151: =IFERROR(VLOOKUP($A151,Filtro!$A$5:$AW$651,18,FALSE),0) -> 0 | U151: =IFERROR(VLOOKUP($A151,Filtro!$A$5:$AW$651,19,FALSE),0) -> 4 | V151: =IFERROR(VLOOKUP($A151,Filtro!$A$5:$AW$651,20,FALSE),0) -> 0 | W151: =IFERROR(VLOOKUP($A151,Filtro!$A$5:$AW$651,21,FALSE),0) -> 4 | X151: =IFERROR(VLOOKUP($A151,Filtro!$A$5:$AW$651,22,FALSE),0) -> 2 | Y151: =IFERROR(VLOOKUP($A151,Filtro!$A$5:$AW$651,23,FALSE),0) -> 6 | Z151: =IFERROR(VLOOKUP($A151,Filtro!$A$5:$AW$651,24,FALSE),0) -> 2 | AA151: =IFERROR(VLOOKUP($A151,Filtro!$A$5:$AW$651,25,FALSE),0) -> 11 | AB151: =IFERROR(VLOOKUP($A151,Filtro!$A$5:$AW$651,26,FALSE),0) -> 7 | AC151: =IFERROR(VLOOKUP($A151,Filtro!$A$5:$AW$651,27,FALSE),0) -> 11 | AD151: =IFERROR(VLOOKUP($A151,Filtro!$A$5:$AW$651,28,FALSE),0) -> 5 | AE151: =IFERROR(VLOOKUP($A151,Filtro!$A$5:$AW$651,29,FALSE),0) -> 4 | AF151: =IFERROR(VLOOKUP($A151,Filtro!$A$5:$AW$651,30,FALSE),0) -> 0 | AG151: =IFERROR(VLOOKUP($A151,Filtro!$A$5:$AW$651,31,FALSE),0) -> 4 | AH151: =IFERROR(VLOOKUP($A151,Filtro!$A$5:$AW$651,32,FALSE),0) -> 7 | AI151: =IFERROR(VLOOKUP($A151,Filtro!$A$5:$AW$651,33,FALSE),0) -> 13 | AJ151: =IFERROR(VLOOKUP($A151,Filtro!$A$5:$AW$651,34,FALSE),0) -> 5 | AK151: =IFERROR(VLOOKUP($A151,Filtro!$A$5:$AW$651,35,FALSE),0) -> 20 | AL151: =IFERROR(VLOOKUP($A151,Filtro!$A$5:$AW$651,36,FALSE),0) -> 13 | AM151: =IFERROR(VLOOKUP($A151,Filtro!$A$5:$AW$651,37,FALSE),0) -> 12 | AN151: =IFERROR(VLOOKUP($A151,Filtro!$A$5:$AW$651,38,FALSE),0) -> 13 | AO151: =IFERROR(VLOOKUP($A151,Filtro!$A$5:$AW$651,39,FALSE),0) -> 14 | AP151: =IFERROR(VLOOKUP($A151,Filtro!$A$5:$AW$651,40,FALSE),0) -> 21 | AQ151: =IFERROR(VLOOKUP($A151,Filtro!$A$5:$AW$651,41,FALSE),0) -> 13 | AR151: =IFERROR(VLOOKUP($A151,Filtro!$A$5:$AW$651,42,FALSE),0) -> 9 | AS151: =IFERROR(VLOOKUP($A151,Filtro!$A$5:$AW$651,43,FALSE),0) -> 0 | AT151: =IFERROR(VLOOKUP($A151,Filtro!$A$5:$AW$651,44,FALSE),0) -> 0 | AU151: =IFERROR(VLOOKUP($A151,Filtro!$A$5:$AW$651,45,FALSE),0) -> 1 | AV151: =IFERROR(VLOOKUP($A151,Filtro!$A$5:$AW$651,46,FALSE),0) -> 0 | DG151: 0 | DH151: 0 | DI151: 0 | DJ151: 0
A152: P2501826 | B152: Hipertensión Arterial | C152: Hipertensión Arterial (En vez de Presión Arterial Elevada) | D152: 102 | E152: 60 | F152: 42 | G152: =IFERROR(VLOOKUP($A152,Filtro!$A$5:$AW$651,5,FALSE),0) -> 0 | H152: =IFERROR(VLOOKUP($A152,Filtro!$A$5:$AW$651,6,FALSE),0) -> 0 | I152: =IFERROR(VLOOKUP($A152,Filtro!$A$5:$AW$651,7,FALSE),0) -> 0 | J152: =IFERROR(VLOOKUP($A152,Filtro!$A$5:$AW$651,8,FALSE),0) -> 0 | K152: =IFERROR(VLOOKUP($A152,Filtro!$A$5:$AW$651,9,FALSE),0) -> 0 | L152: =IFERROR(VLOOKUP($A152,Filtro!$A$5:$AW$651,10,FALSE),0) -> 0 | M152: =IFERROR(VLOOKUP($A152,Filtro!$A$5:$AW$651,11,FALSE),0) -> 0 | N152: =IFERROR(VLOOKUP($A152,Filtro!$A$5:$AW$651,12,FALSE),0) -> 0 | O152: =IFERROR(VLOOKUP($A152,Filtro!$A$5:$AW$651,13,FALSE),0) -> 0 | P152: =IFERROR(VLOOKUP($A152,Filtro!$A$5:$AW$651,14,FALSE),0) -> 0 | Q152: =IFERROR(VLOOKUP($A152,Filtro!$A$5:$AW$651,15,FALSE),0) -> 0 | R152: =IFERROR(VLOOKUP($A152,Filtro!$A$5:$AW$651,16,FALSE),0) -> 0 | S152: =IFERROR(VLOOKUP($A152,Filtro!$A$5:$AW$651,17,FALSE),0) -> 0 | T152: =IFERROR(VLOOKUP($A152,Filtro!$A$5:$AW$651,18,FALSE),0) -> 0 | U152: =IFERROR(VLOOKUP($A152,Filtro!$A$5:$AW$651,19,FALSE),0) -> 0 | V152: =IFERROR(VLOOKUP($A152,Filtro!$A$5:$AW$651,20,FALSE),0) -> 0 | W152: =IFERROR(VLOOKUP($A152,Filtro!$A$5:$AW$651,21,FALSE),0) -> 0 | X152: =IFERROR(VLOOKUP($A152,Filtro!$A$5:$AW$651,22,FALSE),0) -> 0 | Y152: =IFERROR(VLOOKUP($A152,Filtro!$A$5:$AW$651,23,FALSE),0) -> 0 | Z152: =IFERROR(VLOOKUP($A152,Filtro!$A$5:$AW$651,24,FALSE),0) -> 0 | AA152: =IFERROR(VLOOKUP($A152,Filtro!$A$5:$AW$651,25,FALSE),0) -> 0 | AB152: =IFERROR(VLOOKUP($A152,Filtro!$A$5:$AW$651,26,FALSE),0) -> 0 | AC152: =IFERROR(VLOOKUP($A152,Filtro!$A$5:$AW$651,27,FALSE),0) -> 2 | AD152: =IFERROR(VLOOKUP($A152,Filtro!$A$5:$AW$651,28,FALSE),0) -> 5 | AE152: =IFERROR(VLOOKUP($A152,Filtro!$A$5:$AW$651,29,FALSE),0) -> 7 | AF152: =IFERROR(VLOOKUP($A152,Filtro!$A$5:$AW$651,30,FALSE),0) -> 1 | AG152: =IFERROR(VLOOKUP($A152,Filtro!$A$5:$AW$651,31,FALSE),0) -> 8 | AH152: =IFERROR(VLOOKUP($A152,Filtro!$A$5:$AW$651,32,FALSE),0) -> 8 | AI152: =IFERROR(VLOOKUP($A152,Filtro!$A$5:$AW$651,33,FALSE),0) -> 9 | AJ152: =IFERROR(VLOOKUP($A152,Filtro!$A$5:$AW$651,34,FALSE),0) -> 8 | AK152: =IFERROR(VLOOKUP($A152,Filtro!$A$5:$AW$651,35,FALSE),0) -> 17 | AL152: =IFERROR(VLOOKUP($A152,Filtro!$A$5:$AW$651,36,FALSE),0) -> 8 | AM152: =IFERROR(VLOOKUP($A152,Filtro!$A$5:$AW$651,37,FALSE),0) -> 10 | AN152: =IFERROR(VLOOKUP($A152,Filtro!$A$5:$AW$651,38,FALSE),0) -> 10 | AO152: =IFERROR(VLOOKUP($A152,Filtro!$A$5:$AW$651,39,FALSE),0) -> 2 | AP152: =IFERROR(VLOOKUP($A152,Filtro!$A$5:$AW$651,40,FALSE),0) -> 0 | AQ152: =IFERROR(VLOOKUP($A152,Filtro!$A$5:$AW$651,41,FALSE),0) -> 5 | AR152: =IFERROR(VLOOKUP($A152,Filtro!$A$5:$AW$651,42,FALSE),0) -> 2 | AS152: =IFERROR(VLOOKUP($A152,Filtro!$A$5:$AW$651,43,FALSE),0) -> 0 | AT152: =IFERROR(VLOOKUP($A152,Filtro!$A$5:$AW$651,44,FALSE),0) -> 0 | AU152: =IFERROR(VLOOKUP($A152,Filtro!$A$5:$AW$651,45,FALSE),0) -> 0 | AV152: =IFERROR(VLOOKUP($A152,Filtro!$A$5:$AW$651,46,FALSE),0) -> 0 | DG152: 0 | DH152: 0 | DI152: 0 | DJ152: 0
A153: P2501827 | B153: Enfermedad renal crónica | C153: Enfermedad renal crónica | D153: 50 | E153: 33 | F153: 17 | G153: =IFERROR(VLOOKUP($A153,Filtro!$A$5:$AW$651,5,FALSE),0) -> 0 | H153: =IFERROR(VLOOKUP($A153,Filtro!$A$5:$AW$651,6,FALSE),0) -> 0 | I153: =IFERROR(VLOOKUP($A153,Filtro!$A$5:$AW$651,7,FALSE),0) -> 0 | J153: =IFERROR(VLOOKUP($A153,Filtro!$A$5:$AW$651,8,FALSE),0) -> 0 | K153: =IFERROR(VLOOKUP($A153,Filtro!$A$5:$AW$651,9,FALSE),0) -> 0 | L153: =IFERROR(VLOOKUP($A153,Filtro!$A$5:$AW$651,10,FALSE),0) -> 0 | M153: =IFERROR(VLOOKUP($A153,Filtro!$A$5:$AW$651,11,FALSE),0) -> 0 | N153: =IFERROR(VLOOKUP($A153,Filtro!$A$5:$AW$651,12,FALSE),0) -> 0 | O153: =IFERROR(VLOOKUP($A153,Filtro!$A$5:$AW$651,13,FALSE),0) -> 1 | P153: =IFERROR(VLOOKUP($A153,Filtro!$A$5:$AW$651,14,FALSE),0) -> 0 | Q153: =IFERROR(VLOOKUP($A153,Filtro!$A$5:$AW$651,15,FALSE),0) -> 0 | R153: =IFERROR(VLOOKUP($A153,Filtro!$A$5:$AW$651,16,FALSE),0) -> 0 | S153: =IFERROR(VLOOKUP($A153,Filtro!$A$5:$AW$651,17,FALSE),0) -> 0 | T153: =IFERROR(VLOOKUP($A153,Filtro!$A$5:$AW$651,18,FALSE),0) -> 0 | U153: =IFERROR(VLOOKUP($A153,Filtro!$A$5:$AW$651,19,FALSE),0) -> 1 | V153: =IFERROR(VLOOKUP($A153,Filtro!$A$5:$AW$651,20,FALSE),0) -> 0 | W153: =IFERROR(VLOOKUP($A153,Filtro!$A$5:$AW$651,21,FALSE),0) -> 2 | X153: =IFERROR(VLOOKUP($A153,Filtro!$A$5:$AW$651,22,FALSE),0) -> 2 | Y153: =IFERROR(VLOOKUP($A153,Filtro!$A$5:$AW$651,23,FALSE),0) -> 3 | Z153: =IFERROR(VLOOKUP($A153,Filtro!$A$5:$AW$651,24,FALSE),0) -> 0 | AA153: =IFERROR(VLOOKUP($A153,Filtro!$A$5:$AW$651,25,FALSE),0) -> 6 | AB153: =IFERROR(VLOOKUP($A153,Filtro!$A$5:$AW$651,26,FALSE),0) -> 3 | AC153: =IFERROR(VLOOKUP($A153,Filtro!$A$5:$AW$651,27,FALSE),0) -> 3 | AD153: =IFERROR(VLOOKUP($A153,Filtro!$A$5:$AW$651,28,FALSE),0) -> 0 | AE153: =IFERROR(VLOOKUP($A153,Filtro!$A$5:$AW$651,29,FALSE),0) -> 0 | AF153: =IFERROR(VLOOKUP($A153,Filtro!$A$5:$AW$651,30,FALSE),0) -> 0 | AG153: =IFERROR(VLOOKUP($A153,Filtro!$A$5:$AW$651,31,FALSE),0) -> 2 | AH153: =IFERROR(VLOOKUP($A153,Filtro!$A$5:$AW$651,32,FALSE),0) -> 0 | AI153: =IFERROR(VLOOKUP($A153,Filtro!$A$5:$AW$651,33,FALSE),0) -> 2 | AJ153: =IFERROR(VLOOKUP($A153,Filtro!$A$5:$AW$651,34,FALSE),0) -> 1 | AK153: =IFERROR(VLOOKUP($A153,Filtro!$A$5:$AW$651,35,FALSE),0) -> 4 | AL153: =IFERROR(VLOOKUP($A153,Filtro!$A$5:$AW$651,36,FALSE),0) -> 1 | AM153: =IFERROR(VLOOKUP($A153,Filtro!$A$5:$AW$651,37,FALSE),0) -> 4 | AN153: =IFERROR(VLOOKUP($A153,Filtro!$A$5:$AW$651,38,FALSE),0) -> 1 | AO153: =IFERROR(VLOOKUP($A153,Filtro!$A$5:$AW$651,39,FALSE),0) -> 4 | AP153: =IFERROR(VLOOKUP($A153,Filtro!$A$5:$AW$651,40,FALSE),0) -> 6 | AQ153: =IFERROR(VLOOKUP($A153,Filtro!$A$5:$AW$651,41,FALSE),0) -> 1 | AR153: =IFERROR(VLOOKUP($A153,Filtro!$A$5:$AW$651,42,FALSE),0) -> 3 | AS153: =IFERROR(VLOOKUP($A153,Filtro!$A$5:$AW$651,43,FALSE),0) -> 0 | AT153: =IFERROR(VLOOKUP($A153,Filtro!$A$5:$AW$651,44,FALSE),0) -> 1 | AU153: =IFERROR(VLOOKUP($A153,Filtro!$A$5:$AW$651,45,FALSE),0) -> 0 | AV153: =IFERROR(VLOOKUP($A153,Filtro!$A$5:$AW$651,46,FALSE),0) -> 0 | DG153: 0 | DH153: 0 | DI153: 0 | DJ153: 0
A154: P2501828 | B154: Otras Enfermedades cardiovasculares crónicas (no incluye Hipertensión Arterial ni Cardiopatías Congénitas) | C154: Otras Enfermedades cardiovasculares crónicas (no incluye Hipertensión Arterial ni Cardiopatías Congénitas) | D154: 117 | E154: 51 | F154: 66 | G154: =IFERROR(VLOOKUP($A154,Filtro!$A$5:$AW$651,5,FALSE),0) -> 0 | H154: =IFERROR(VLOOKUP($A154,Filtro!$A$5:$AW$651,6,FALSE),0) -> 0 | I154: =IFERROR(VLOOKUP($A154,Filtro!$A$5:$AW$651,7,FALSE),0) -> 0 | J154: =IFERROR(VLOOKUP($A154,Filtro!$A$5:$AW$651,8,FALSE),0) -> 0 | K154: =IFERROR(VLOOKUP($A154,Filtro!$A$5:$AW$651,9,FALSE),0) -> 0 | L154: =IFERROR(VLOOKUP($A154,Filtro!$A$5:$AW$651,10,FALSE),0) -> 1 | M154: =IFERROR(VLOOKUP($A154,Filtro!$A$5:$AW$651,11,FALSE),0) -> 0 | N154: =IFERROR(VLOOKUP($A154,Filtro!$A$5:$AW$651,12,FALSE),0) -> 3 | O154: =IFERROR(VLOOKUP($A154,Filtro!$A$5:$AW$651,13,FALSE),0) -> 0 | P154: =IFERROR(VLOOKUP($A154,Filtro!$A$5:$AW$651,14,FALSE),0) -> 0 | Q154: =IFERROR(VLOOKUP($A154,Filtro!$A$5:$AW$651,15,FALSE),0) -> 0 | R154: =IFERROR(VLOOKUP($A154,Filtro!$A$5:$AW$651,16,FALSE),0) -> 0 | S154: =IFERROR(VLOOKUP($A154,Filtro!$A$5:$AW$651,17,FALSE),0) -> 0 | T154: =IFERROR(VLOOKUP($A154,Filtro!$A$5:$AW$651,18,FALSE),0) -> 1 | U154: =IFERROR(VLOOKUP($A154,Filtro!$A$5:$AW$651,19,FALSE),0) -> 2 | V154: =IFERROR(VLOOKUP($A154,Filtro!$A$5:$AW$651,20,FALSE),0) -> 3 | W154: =IFERROR(VLOOKUP($A154,Filtro!$A$5:$AW$651,21,FALSE),0) -> 3 | X154: =IFERROR(VLOOKUP($A154,Filtro!$A$5:$AW$651,22,FALSE),0) -> 3 | Y154: =IFERROR(VLOOKUP($A154,Filtro!$A$5:$AW$651,23,FALSE),0) -> 4 | Z154: =IFERROR(VLOOKUP($A154,Filtro!$A$5:$AW$651,24,FALSE),0) -> 0 | AA154: =IFERROR(VLOOKUP($A154,Filtro!$A$5:$AW$651,25,FALSE),0) -> 4 | AB154: =IFERROR(VLOOKUP($A154,Filtro!$A$5:$AW$651,26,FALSE),0) -> 6 | AC154: =IFERROR(VLOOKUP($A154,Filtro!$A$5:$AW$651,27,FALSE),0) -> 1 | AD154: =IFERROR(VLOOKUP($A154,Filtro!$A$5:$AW$651,28,FALSE),0) -> 3 | AE154: =IFERROR(VLOOKUP($A154,Filtro!$A$5:$AW$651,29,FALSE),0) -> 1 | AF154: =IFERROR(VLOOKUP($A154,Filtro!$A$5:$AW$651,30,FALSE),0) -> 0 | AG154: =IFERROR(VLOOKUP($A154,Filtro!$A$5:$AW$651,31,FALSE),0) -> 2 | AH154: =IFERROR(VLOOKUP($A154,Filtro!$A$5:$AW$651,32,FALSE),0) -> 2 | AI154: =IFERROR(VLOOKUP($A154,Filtro!$A$5:$AW$651,33,FALSE),0) -> 3 | AJ154: =IFERROR(VLOOKUP($A154,Filtro!$A$5:$AW$651,34,FALSE),0) -> 1 | AK154: =IFERROR(VLOOKUP($A154,Filtro!$A$5:$AW$651,35,FALSE),0) -> 2 | AL154: =IFERROR(VLOOKUP($A154,Filtro!$A$5:$AW$651,36,FALSE),0) -> 9 | AM154: =IFERROR(VLOOKUP($A154,Filtro!$A$5:$AW$651,37,FALSE),0) -> 9 | AN154: =IFERROR(VLOOKUP($A154,Filtro!$A$5:$AW$651,38,FALSE),0) -> 13 | AO154: =IFERROR(VLOOKUP($A154,Filtro!$A$5:$AW$651,39,FALSE),0) -> 13 | AP154: =IFERROR(VLOOKUP($A154,Filtro!$A$5:$AW$651,40,FALSE),0) -> 12 | AQ154: =IFERROR(VLOOKUP($A154,Filtro!$A$5:$AW$651,41,FALSE),0) -> 7 | AR154: =IFERROR(VLOOKUP($A154,Filtro!$A$5:$AW$651,42,FALSE),0) -> 9 | AS154: =IFERROR(VLOOKUP($A154,Filtro!$A$5:$AW$651,43,FALSE),0) -> 0 | AT154: =IFERROR(VLOOKUP($A154,Filtro!$A$5:$AW$651,44,FALSE),0) -> 0 | AU154: =IFERROR(VLOOKUP($A154,Filtro!$A$5:$AW$651,45,FALSE),0) -> 0 | AV154: =IFERROR(VLOOKUP($A154,Filtro!$A$5:$AW$651,46,FALSE),0) -> 0 | DG154: 0 | DH154: 0 | DI154: 0 | DJ154: 0
A155: P2501829 | B155: Enfermedades gastrointestinales crónicas (no incluye enfermedad celiaca) | C155: Enfermedades crónicas gastrointestinales (no incluye enfermedad celiaca) | D155: 192 | E155: 108 | F155: 84 | G155: =IFERROR(VLOOKUP($A155,Filtro!$A$5:$AW$651,5,FALSE),0) -> 0 | H155: =IFERROR(VLOOKUP($A155,Filtro!$A$5:$AW$651,6,FALSE),0) -> 0 | I155: =IFERROR(VLOOKUP($A155,Filtro!$A$5:$AW$651,7,FALSE),0) -> 0 | J155: =IFERROR(VLOOKUP($A155,Filtro!$A$5:$AW$651,8,FALSE),0) -> 1 | K155: =IFERROR(VLOOKUP($A155,Filtro!$A$5:$AW$651,9,FALSE),0) -> 1 | L155: =IFERROR(VLOOKUP($A155,Filtro!$A$5:$AW$651,10,FALSE),0) -> 1 | M155: =IFERROR(VLOOKUP($A155,Filtro!$A$5:$AW$651,11,FALSE),0) -> 1 | N155: =IFERROR(VLOOKUP($A155,Filtro!$A$5:$AW$651,12,FALSE),0) -> 0 | O155: =IFERROR(VLOOKUP($A155,Filtro!$A$5:$AW$651,13,FALSE),0) -> 2 | P155: =IFERROR(VLOOKUP($A155,Filtro!$A$5:$AW$651,14,FALSE),0) -> 1 | Q155: =IFERROR(VLOOKUP($A155,Filtro!$A$5:$AW$651,15,FALSE),0) -> 2 | R155: =IFERROR(VLOOKUP($A155,Filtro!$A$5:$AW$651,16,FALSE),0) -> 3 | S155: =IFERROR(VLOOKUP($A155,Filtro!$A$5:$AW$651,17,FALSE),0) -> 2 | T155: =IFERROR(VLOOKUP($A155,Filtro!$A$5:$AW$651,18,FALSE),0) -> 2 | U155: =IFERROR(VLOOKUP($A155,Filtro!$A$5:$AW$651,19,FALSE),0) -> 16 | V155: =IFERROR(VLOOKUP($A155,Filtro!$A$5:$AW$651,20,FALSE),0) -> 10 | W155: =IFERROR(VLOOKUP($A155,Filtro!$A$5:$AW$651,21,FALSE),0) -> 18 | X155: =IFERROR(VLOOKUP($A155,Filtro!$A$5:$AW$651,22,FALSE),0) -> 7 | Y155: =IFERROR(VLOOKUP($A155,Filtro!$A$5:$AW$651,23,FALSE),0) -> 7 | Z155: =IFERROR(VLOOKUP($A155,Filtro!$A$5:$AW$651,24,FALSE),0) -> 2 | AA155: =IFERROR(VLOOKUP($A155,Filtro!$A$5:$AW$651,25,FALSE),0) -> 8 | AB155: =IFERROR(VLOOKUP($A155,Filtro!$A$5:$AW$651,26,FALSE),0) -> 7 | AC155: =IFERROR(VLOOKUP($A155,Filtro!$A$5:$AW$651,27,FALSE),0) -> 4 | AD155: =IFERROR(VLOOKUP($A155,Filtro!$A$5:$AW$651,28,FALSE),0) -> 1 | AE155: =IFERROR(VLOOKUP($A155,Filtro!$A$5:$AW$651,29,FALSE),0) -> 0 | AF155: =IFERROR(VLOOKUP($A155,Filtro!$A$5:$AW$651,30,FALSE),0) -> 1 | AG155: =IFERROR(VLOOKUP($A155,Filtro!$A$5:$AW$651,31,FALSE),0) -> 1 | AH155: =IFERROR(VLOOKUP($A155,Filtro!$A$5:$AW$651,32,FALSE),0) -> 2 | AI155: =IFERROR(VLOOKUP($A155,Filtro!$A$5:$AW$651,33,FALSE),0) -> 7 | AJ155: =IFERROR(VLOOKUP($A155,Filtro!$A$5:$AW$651,34,FALSE),0) -> 5 | AK155: =IFERROR(VLOOKUP($A155,Filtro!$A$5:$AW$651,35,FALSE),0) -> 5 | AL155: =IFERROR(VLOOKUP($A155,Filtro!$A$5:$AW$651,36,FALSE),0) -> 7 | AM155: =IFERROR(VLOOKUP($A155,Filtro!$A$5:$AW$651,37,FALSE),0) -> 7 | AN155: =IFERROR(VLOOKUP($A155,Filtro!$A$5:$AW$651,38,FALSE),0) -> 8 | AO155: =IFERROR(VLOOKUP($A155,Filtro!$A$5:$AW$651,39,FALSE),0) -> 17 | AP155: =IFERROR(VLOOKUP($A155,Filtro!$A$5:$AW$651,40,FALSE),0) -> 17 | AQ155: =IFERROR(VLOOKUP($A155,Filtro!$A$5:$AW$651,41,FALSE),0) -> 10 | AR155: =IFERROR(VLOOKUP($A155,Filtro!$A$5:$AW$651,42,FALSE),0) -> 9 | AS155: =IFERROR(VLOOKUP($A155,Filtro!$A$5:$AW$651,43,FALSE),0) -> 0 | AT155: =IFERROR(VLOOKUP($A155,Filtro!$A$5:$AW$651,44,FALSE),0) -> 0 | AU155: =IFERROR(VLOOKUP($A155,Filtro!$A$5:$AW$651,45,FALSE),0) -> 0 | AV155: =IFERROR(VLOOKUP($A155,Filtro!$A$5:$AW$651,46,FALSE),0) -> 0 | DG155: 0 | DH155: 0 | DI155: 0 | DJ155: 0
A156: P2501830 | B156: Enfermedades crónicas del sistema visual (no incluye estrabismo ni errores de refracción) | C156: Enfermedades crónicas del sistema visual (no incluye Estabismo ni Errores de Refracción) | D156: 61 | E156: 37 | F156: 24 | G156: =IFERROR(VLOOKUP($A156,Filtro!$A$5:$AW$651,5,FALSE),0) -> 0 | H156: =IFERROR(VLOOKUP($A156,Filtro!$A$5:$AW$651,6,FALSE),0) -> 0 | I156: =IFERROR(VLOOKUP($A156,Filtro!$A$5:$AW$651,7,FALSE),0) -> 0 | J156: =IFERROR(VLOOKUP($A156,Filtro!$A$5:$AW$651,8,FALSE),0) -> 0 | K156: =IFERROR(VLOOKUP($A156,Filtro!$A$5:$AW$651,9,FALSE),0) -> 0 | L156: =IFERROR(VLOOKUP($A156,Filtro!$A$5:$AW$651,10,FALSE),0) -> 1 | M156: =IFERROR(VLOOKUP($A156,Filtro!$A$5:$AW$651,11,FALSE),0) -> 0 | N156: =IFERROR(VLOOKUP($A156,Filtro!$A$5:$AW$651,12,FALSE),0) -> 0 | O156: =IFERROR(VLOOKUP($A156,Filtro!$A$5:$AW$651,13,FALSE),0) -> 0 | P156: =IFERROR(VLOOKUP($A156,Filtro!$A$5:$AW$651,14,FALSE),0) -> 0 | Q156: =IFERROR(VLOOKUP($A156,Filtro!$A$5:$AW$651,15,FALSE),0) -> 0 | R156: =IFERROR(VLOOKUP($A156,Filtro!$A$5:$AW$651,16,FALSE),0) -> 0 | S156: =IFERROR(VLOOKUP($A156,Filtro!$A$5:$AW$651,17,FALSE),0) -> 0 | T156: =IFERROR(VLOOKUP($A156,Filtro!$A$5:$AW$651,18,FALSE),0) -> 0 | U156: =IFERROR(VLOOKUP($A156,Filtro!$A$5:$AW$651,19,FALSE),0) -> 1 | V156: =IFERROR(VLOOKUP($A156,Filtro!$A$5:$AW$651,20,FALSE),0) -> 0 | W156: =IFERROR(VLOOKUP($A156,Filtro!$A$5:$AW$651,21,FALSE),0) -> 2 | X156: =IFERROR(VLOOKUP($A156,Filtro!$A$5:$AW$651,22,FALSE),0) -> 0 | Y156: =IFERROR(VLOOKUP($A156,Filtro!$A$5:$AW$651,23,FALSE),0) -> 4 | Z156: =IFERROR(VLOOKUP($A156,Filtro!$A$5:$AW$651,24,FALSE),0) -> 0 | AA156: =IFERROR(VLOOKUP($A156,Filtro!$A$5:$AW$651,25,FALSE),0) -> 2 | AB156: =IFERROR(VLOOKUP($A156,Filtro!$A$5:$AW$651,26,FALSE),0) -> 2 | AC156: =IFERROR(VLOOKUP($A156,Filtro!$A$5:$AW$651,27,FALSE),0) -> 2 | AD156: =IFERROR(VLOOKUP($A156,Filtro!$A$5:$AW$651,28,FALSE),0) -> 0 | AE156: =IFERROR(VLOOKUP($A156,Filtro!$A$5:$AW$651,29,FALSE),0) -> 0 | AF156: =IFERROR(VLOOKUP($A156,Filtro!$A$5:$AW$651,30,FALSE),0) -> 0 | AG156: =IFERROR(VLOOKUP($A156,Filtro!$A$5:$AW$651,31,FALSE),0) -> 0 | AH156: =IFERROR(VLOOKUP($A156,Filtro!$A$5:$AW$651,32,FALSE),0) -> 3 | AI156: =IFERROR(VLOOKUP($A156,Filtro!$A$5:$AW$651,33,FALSE),0) -> 4 | AJ156: =IFERROR(VLOOKUP($A156,Filtro!$A$5:$AW$651,34,FALSE),0) -> 2 | AK156: =IFERROR(VLOOKUP($A156,Filtro!$A$5:$AW$651,35,FALSE),0) -> 4 | AL156: =IFERROR(VLOOKUP($A156,Filtro!$A$5:$AW$651,36,FALSE),0) -> 0 | AM156: =IFERROR(VLOOKUP($A156,Filtro!$A$5:$AW$651,37,FALSE),0) -> 4 | AN156: =IFERROR(VLOOKUP($A156,Filtro!$A$5:$AW$651,38,FALSE),0) -> 1 | AO156: =IFERROR(VLOOKUP($A156,Filtro!$A$5:$AW$651,39,FALSE),0) -> 6 | AP156: =IFERROR(VLOOKUP($A156,Filtro!$A$5:$AW$651,40,FALSE),0) -> 8 | AQ156: =IFERROR(VLOOKUP($A156,Filtro!$A$5:$AW$651,41,FALSE),0) -> 8 | AR156: =IFERROR(VLOOKUP($A156,Filtro!$A$5:$AW$651,42,FALSE),0) -> 7 | AS156: =IFERROR(VLOOKUP($A156,Filtro!$A$5:$AW$651,43,FALSE),0) -> 0 | AT156: =IFERROR(VLOOKUP($A156,Filtro!$A$5:$AW$651,44,FALSE),0) -> 0 | AU156: =IFERROR(VLOOKUP($A156,Filtro!$A$5:$AW$651,45,FALSE),0) -> 0 | AV156: =IFERROR(VLOOKUP($A156,Filtro!$A$5:$AW$651,46,FALSE),0) -> 0 | DG156: 0 | DH156: 0 | DI156: 0 | DJ156: 0
A157: P2501831 | B157: Enfermedades crónicas del oído | C157: Enfermedades crónicas del oído | D157: 112 | E157: 61 | F157: 51 | G157: =IFERROR(VLOOKUP($A157,Filtro!$A$5:$AW$651,5,FALSE),0) -> 0 | H157: =IFERROR(VLOOKUP($A157,Filtro!$A$5:$AW$651,6,FALSE),0) -> 0 | I157: =IFERROR(VLOOKUP($A157,Filtro!$A$5:$AW$651,7,FALSE),0) -> 0 | J157: =IFERROR(VLOOKUP($A157,Filtro!$A$5:$AW$651,8,FALSE),0) -> 0 | K157: =IFERROR(VLOOKUP($A157,Filtro!$A$5:$AW$651,9,FALSE),0) -> 0 | L157: =IFERROR(VLOOKUP($A157,Filtro!$A$5:$AW$651,10,FALSE),0) -> 0 | M157: =IFERROR(VLOOKUP($A157,Filtro!$A$5:$AW$651,11,FALSE),0) -> 0 | N157: =IFERROR(VLOOKUP($A157,Filtro!$A$5:$AW$651,12,FALSE),0) -> 0 | O157: =IFERROR(VLOOKUP($A157,Filtro!$A$5:$AW$651,13,FALSE),0) -> 0 | P157: =IFERROR(VLOOKUP($A157,Filtro!$A$5:$AW$651,14,FALSE),0) -> 1 | Q157: =IFERROR(VLOOKUP($A157,Filtro!$A$5:$AW$651,15,FALSE),0) -> 2 | R157: =IFERROR(VLOOKUP($A157,Filtro!$A$5:$AW$651,16,FALSE),0) -> 0 | S157: =IFERROR(VLOOKUP($A157,Filtro!$A$5:$AW$651,17,FALSE),0) -> 2 | T157: =IFERROR(VLOOKUP($A157,Filtro!$A$5:$AW$651,18,FALSE),0) -> 0 | U157: =IFERROR(VLOOKUP($A157,Filtro!$A$5:$AW$651,19,FALSE),0) -> 2 | V157: =IFERROR(VLOOKUP($A157,Filtro!$A$5:$AW$651,20,FALSE),0) -> 2 | W157: =IFERROR(VLOOKUP($A157,Filtro!$A$5:$AW$651,21,FALSE),0) -> 2 | X157: =IFERROR(VLOOKUP($A157,Filtro!$A$5:$AW$651,22,FALSE),0) -> 2 | Y157: =IFERROR(VLOOKUP($A157,Filtro!$A$5:$AW$651,23,FALSE),0) -> 3 | Z157: =IFERROR(VLOOKUP($A157,Filtro!$A$5:$AW$651,24,FALSE),0) -> 1 | AA157: =IFERROR(VLOOKUP($A157,Filtro!$A$5:$AW$651,25,FALSE),0) -> 7 | AB157: =IFERROR(VLOOKUP($A157,Filtro!$A$5:$AW$651,26,FALSE),0) -> 5 | AC157: =IFERROR(VLOOKUP($A157,Filtro!$A$5:$AW$651,27,FALSE),0) -> 2 | AD157: =IFERROR(VLOOKUP($A157,Filtro!$A$5:$AW$651,28,FALSE),0) -> 2 | AE157: =IFERROR(VLOOKUP($A157,Filtro!$A$5:$AW$651,29,FALSE),0) -> 1 | AF157: =IFERROR(VLOOKUP($A157,Filtro!$A$5:$AW$651,30,FALSE),0) -> 0 | AG157: =IFERROR(VLOOKUP($A157,Filtro!$A$5:$AW$651,31,FALSE),0) -> 4 | AH157: =IFERROR(VLOOKUP($A157,Filtro!$A$5:$AW$651,32,FALSE),0) -> 6 | AI157: =IFERROR(VLOOKUP($A157,Filtro!$A$5:$AW$651,33,FALSE),0) -> 4 | AJ157: =IFERROR(VLOOKUP($A157,Filtro!$A$5:$AW$651,34,FALSE),0) -> 3 | AK157: =IFERROR(VLOOKUP($A157,Filtro!$A$5:$AW$651,35,FALSE),0) -> 8 | AL157: =IFERROR(VLOOKUP($A157,Filtro!$A$5:$AW$651,36,FALSE),0) -> 6 | AM157: =IFERROR(VLOOKUP($A157,Filtro!$A$5:$AW$651,37,FALSE),0) -> 5 | AN157: =IFERROR(VLOOKUP($A157,Filtro!$A$5:$AW$651,38,FALSE),0) -> 5 | AO157: =IFERROR(VLOOKUP($A157,Filtro!$A$5:$AW$651,39,FALSE),0) -> 11 | AP157: =IFERROR(VLOOKUP($A157,Filtro!$A$5:$AW$651,40,FALSE),0) -> 10 | AQ157: =IFERROR(VLOOKUP($A157,Filtro!$A$5:$AW$651,41,FALSE),0) -> 8 | AR157: =IFERROR(VLOOKUP($A157,Filtro!$A$5:$AW$651,42,FALSE),0) -> 8 | AS157: =IFERROR(VLOOKUP($A157,Filtro!$A$5:$AW$651,43,FALSE),0) -> 0 | AT157: =IFERROR(VLOOKUP($A157,Filtro!$A$5:$AW$651,44,FALSE),0) -> 0 | AU157: =IFERROR(VLOOKUP($A157,Filtro!$A$5:$AW$651,45,FALSE),0) -> 0 | AV157: =IFERROR(VLOOKUP($A157,Filtro!$A$5:$AW$651,46,FALSE),0) -> 0 | DG157: 0 | DH157: 0 | DI157: 0 | DJ157: 0
A158: P2501832 | B158: Enfermedades crónicas de piel y mucosas | C158: Enfermedades crónicas de piel y mucosas | D158: 58 | E158: 29 | F158: 29 | G158: =IFERROR(VLOOKUP($A158,Filtro!$A$5:$AW$651,5,FALSE),0) -> 0 | H158: =IFERROR(VLOOKUP($A158,Filtro!$A$5:$AW$651,6,FALSE),0) -> 0 | I158: =IFERROR(VLOOKUP($A158,Filtro!$A$5:$AW$651,7,FALSE),0) -> 0 | J158: =IFERROR(VLOOKUP($A158,Filtro!$A$5:$AW$651,8,FALSE),0) -> 0 | K158: =IFERROR(VLOOKUP($A158,Filtro!$A$5:$AW$651,9,FALSE),0) -> 0 | L158: =IFERROR(VLOOKUP($A158,Filtro!$A$5:$AW$651,10,FALSE),0) -> 1 | M158: =IFERROR(VLOOKUP($A158,Filtro!$A$5:$AW$651,11,FALSE),0) -> 0 | N158: =IFERROR(VLOOKUP($A158,Filtro!$A$5:$AW$651,12,FALSE),0) -> 0 | O158: =IFERROR(VLOOKUP($A158,Filtro!$A$5:$AW$651,13,FALSE),0) -> 0 | P158: =IFERROR(VLOOKUP($A158,Filtro!$A$5:$AW$651,14,FALSE),0) -> 0 | Q158: =IFERROR(VLOOKUP($A158,Filtro!$A$5:$AW$651,15,FALSE),0) -> 0 | R158: =IFERROR(VLOOKUP($A158,Filtro!$A$5:$AW$651,16,FALSE),0) -> 0 | S158: =IFERROR(VLOOKUP($A158,Filtro!$A$5:$AW$651,17,FALSE),0) -> 0 | T158: =IFERROR(VLOOKUP($A158,Filtro!$A$5:$AW$651,18,FALSE),0) -> 0 | U158: =IFERROR(VLOOKUP($A158,Filtro!$A$5:$AW$651,19,FALSE),0) -> 0 | V158: =IFERROR(VLOOKUP($A158,Filtro!$A$5:$AW$651,20,FALSE),0) -> 2 | W158: =IFERROR(VLOOKUP($A158,Filtro!$A$5:$AW$651,21,FALSE),0) -> 1 | X158: =IFERROR(VLOOKUP($A158,Filtro!$A$5:$AW$651,22,FALSE),0) -> 1 | Y158: =IFERROR(VLOOKUP($A158,Filtro!$A$5:$AW$651,23,FALSE),0) -> 2 | Z158: =IFERROR(VLOOKUP($A158,Filtro!$A$5:$AW$651,24,FALSE),0) -> 0 | AA158: =IFERROR(VLOOKUP($A158,Filtro!$A$5:$AW$651,25,FALSE),0) -> 0 | AB158: =IFERROR(VLOOKUP($A158,Filtro!$A$5:$AW$651,26,FALSE),0) -> 0 | AC158: =IFERROR(VLOOKUP($A158,Filtro!$A$5:$AW$651,27,FALSE),0) -> 1 | AD158: =IFERROR(VLOOKUP($A158,Filtro!$A$5:$AW$651,28,FALSE),0) -> 2 | AE158: =IFERROR(VLOOKUP($A158,Filtro!$A$5:$AW$651,29,FALSE),0) -> 0 | AF158: =IFERROR(VLOOKUP($A158,Filtro!$A$5:$AW$651,30,FALSE),0) -> 0 | AG158: =IFERROR(VLOOKUP($A158,Filtro!$A$5:$AW$651,31,FALSE),0) -> 0 | AH158: =IFERROR(VLOOKUP($A158,Filtro!$A$5:$AW$651,32,FALSE),0) -> 3 | AI158: =IFERROR(VLOOKUP($A158,Filtro!$A$5:$AW$651,33,FALSE),0) -> 6 | AJ158: =IFERROR(VLOOKUP($A158,Filtro!$A$5:$AW$651,34,FALSE),0) -> 1 | AK158: =IFERROR(VLOOKUP($A158,Filtro!$A$5:$AW$651,35,FALSE),0) -> 7 | AL158: =IFERROR(VLOOKUP($A158,Filtro!$A$5:$AW$651,36,FALSE),0) -> 5 | AM158: =IFERROR(VLOOKUP($A158,Filtro!$A$5:$AW$651,37,FALSE),0) -> 5 | AN158: =IFERROR(VLOOKUP($A158,Filtro!$A$5:$AW$651,38,FALSE),0) -> 5 | AO158: =IFERROR(VLOOKUP($A158,Filtro!$A$5:$AW$651,39,FALSE),0) -> 2 | AP158: =IFERROR(VLOOKUP($A158,Filtro!$A$5:$AW$651,40,FALSE),0) -> 5 | AQ158: =IFERROR(VLOOKUP($A158,Filtro!$A$5:$AW$651,41,FALSE),0) -> 5 | AR158: =IFERROR(VLOOKUP($A158,Filtro!$A$5:$AW$651,42,FALSE),0) -> 4 | AS158: =IFERROR(VLOOKUP($A158,Filtro!$A$5:$AW$651,43,FALSE),0) -> 0 | AT158: =IFERROR(VLOOKUP($A158,Filtro!$A$5:$AW$651,44,FALSE),0) -> 0 | AU158: =IFERROR(VLOOKUP($A158,Filtro!$A$5:$AW$651,45,FALSE),0) -> 0 | AV158: =IFERROR(VLOOKUP($A158,Filtro!$A$5:$AW$651,46,FALSE),0) -> 0 | DG158: 0 | DH158: 0 | DI158: 0 | DJ158: 0
A159: P2501400 | B159: Neoplasias | C159: Neoplasias | D159: 35 | E159: 9 | F159: 26 | G159: =IFERROR(VLOOKUP($A159,Filtro!$A$5:$AW$651,5,FALSE),0) -> 0 | H159: =IFERROR(VLOOKUP($A159,Filtro!$A$5:$AW$651,6,FALSE),0) -> 0 | I159: =IFERROR(VLOOKUP($A159,Filtro!$A$5:$AW$651,7,FALSE),0) -> 0 | J159: =IFERROR(VLOOKUP($A159,Filtro!$A$5:$AW$651,8,FALSE),0) -> 0 | K159: =IFERROR(VLOOKUP($A159,Filtro!$A$5:$AW$651,9,FALSE),0) -> 0 | L159: =IFERROR(VLOOKUP($A159,Filtro!$A$5:$AW$651,10,FALSE),0) -> 0 | M159: =IFERROR(VLOOKUP($A159,Filtro!$A$5:$AW$651,11,FALSE),0) -> 0 | N159: =IFERROR(VLOOKUP($A159,Filtro!$A$5:$AW$651,12,FALSE),0) -> 0 | O159: =IFERROR(VLOOKUP($A159,Filtro!$A$5:$AW$651,13,FALSE),0) -> 0 | P159: =IFERROR(VLOOKUP($A159,Filtro!$A$5:$AW$651,14,FALSE),0) -> 0 | Q159: =IFERROR(VLOOKUP($A159,Filtro!$A$5:$AW$651,15,FALSE),0) -> 0 | R159: =IFERROR(VLOOKUP($A159,Filtro!$A$5:$AW$651,16,FALSE),0) -> 0 | S159: =IFERROR(VLOOKUP($A159,Filtro!$A$5:$AW$651,17,FALSE),0) -> 0 | T159: =IFERROR(VLOOKUP($A159,Filtro!$A$5:$AW$651,18,FALSE),0) -> 0 | U159: =IFERROR(VLOOKUP($A159,Filtro!$A$5:$AW$651,19,FALSE),0) -> 2 | V159: =IFERROR(VLOOKUP($A159,Filtro!$A$5:$AW$651,20,FALSE),0) -> 0 | W159: =IFERROR(VLOOKUP($A159,Filtro!$A$5:$AW$651,21,FALSE),0) -> 1 | X159: =IFERROR(VLOOKUP($A159,Filtro!$A$5:$AW$651,22,FALSE),0) -> 0 | Y159: =IFERROR(VLOOKUP($A159,Filtro!$A$5:$AW$651,23,FALSE),0) -> 1 | Z159: =IFERROR(VLOOKUP($A159,Filtro!$A$5:$AW$651,24,FALSE),0) -> 0 | AA159: =IFERROR(VLOOKUP($A159,Filtro!$A$5:$AW$651,25,FALSE),0) -> 0 | AB159: =IFERROR(VLOOKUP($A159,Filtro!$A$5:$AW$651,26,FALSE),0) -> 0 | AC159: =IFERROR(VLOOKUP($A159,Filtro!$A$5:$AW$651,27,FALSE),0) -> 1 | AD159: =IFERROR(VLOOKUP($A159,Filtro!$A$5:$AW$651,28,FALSE),0) -> 2 | AE159: =IFERROR(VLOOKUP($A159,Filtro!$A$5:$AW$651,29,FALSE),0) -> 0 | AF159: =IFERROR(VLOOKUP($A159,Filtro!$A$5:$AW$651,30,FALSE),0) -> 0 | AG159: =IFERROR(VLOOKUP($A159,Filtro!$A$5:$AW$651,31,FALSE),0) -> 0 | AH159: =IFERROR(VLOOKUP($A159,Filtro!$A$5:$AW$651,32,FALSE),0) -> 3 | AI159: =IFERROR(VLOOKUP($A159,Filtro!$A$5:$AW$651,33,FALSE),0) -> 0 | AJ159: =IFERROR(VLOOKUP($A159,Filtro!$A$5:$AW$651,34,FALSE),0) -> 0 | AK159: =IFERROR(VLOOKUP($A159,Filtro!$A$5:$AW$651,35,FALSE),0) -> 1 | AL159: =IFERROR(VLOOKUP($A159,Filtro!$A$5:$AW$651,36,FALSE),0) -> 4 | AM159: =IFERROR(VLOOKUP($A159,Filtro!$A$5:$AW$651,37,FALSE),0) -> 1 | AN159: =IFERROR(VLOOKUP($A159,Filtro!$A$5:$AW$651,38,FALSE),0) -> 10 | AO159: =IFERROR(VLOOKUP($A159,Filtro!$A$5:$AW$651,39,FALSE),0) -> 2 | AP159: =IFERROR(VLOOKUP($A159,Filtro!$A$5:$AW$651,40,FALSE),0) -> 5 | AQ159: =IFERROR(VLOOKUP($A159,Filtro!$A$5:$AW$651,41,FALSE),0) -> 0 | AR159: =IFERROR(VLOOKUP($A159,Filtro!$A$5:$AW$651,42,FALSE),0) -> 2 | AS159: =IFERROR(VLOOKUP($A159,Filtro!$A$5:$AW$651,43,FALSE),0) -> 0 | AT159: =IFERROR(VLOOKUP($A159,Filtro!$A$5:$AW$651,44,FALSE),0) -> 0 | AU159: =IFERROR(VLOOKUP($A159,Filtro!$A$5:$AW$651,45,FALSE),0) -> 0 | AV159: =IFERROR(VLOOKUP($A159,Filtro!$A$5:$AW$651,46,FALSE),0) -> 0 | DG159: 0 | DH159: 0 | DI159: 0 | DJ159: 0
A160: P2501833 | B160: Malformaciones congénitas y deformidades | C160: Malformaciones congénitas y deformidades | D160: 414 | E160: 215 | F160: 199 | G160: =IFERROR(VLOOKUP($A160,Filtro!$A$5:$AW$651,5,FALSE),0) -> 0 | H160: =IFERROR(VLOOKUP($A160,Filtro!$A$5:$AW$651,6,FALSE),0) -> 0 | I160: =IFERROR(VLOOKUP($A160,Filtro!$A$5:$AW$651,7,FALSE),0) -> 2 | J160: =IFERROR(VLOOKUP($A160,Filtro!$A$5:$AW$651,8,FALSE),0) -> 4 | K160: =IFERROR(VLOOKUP($A160,Filtro!$A$5:$AW$651,9,FALSE),0) -> 4 | L160: =IFERROR(VLOOKUP($A160,Filtro!$A$5:$AW$651,10,FALSE),0) -> 5 | M160: =IFERROR(VLOOKUP($A160,Filtro!$A$5:$AW$651,11,FALSE),0) -> 2 | N160: =IFERROR(VLOOKUP($A160,Filtro!$A$5:$AW$651,12,FALSE),0) -> 0 | O160: =IFERROR(VLOOKUP($A160,Filtro!$A$5:$AW$651,13,FALSE),0) -> 2 | P160: =IFERROR(VLOOKUP($A160,Filtro!$A$5:$AW$651,14,FALSE),0) -> 5 | Q160: =IFERROR(VLOOKUP($A160,Filtro!$A$5:$AW$651,15,FALSE),0) -> 4 | R160: =IFERROR(VLOOKUP($A160,Filtro!$A$5:$AW$651,16,FALSE),0) -> 3 | S160: =IFERROR(VLOOKUP($A160,Filtro!$A$5:$AW$651,17,FALSE),0) -> 3 | T160: =IFERROR(VLOOKUP($A160,Filtro!$A$5:$AW$651,18,FALSE),0) -> 7 | U160: =IFERROR(VLOOKUP($A160,Filtro!$A$5:$AW$651,19,FALSE),0) -> 19 | V160: =IFERROR(VLOOKUP($A160,Filtro!$A$5:$AW$651,20,FALSE),0) -> 6 | W160: =IFERROR(VLOOKUP($A160,Filtro!$A$5:$AW$651,21,FALSE),0) -> 24 | X160: =IFERROR(VLOOKUP($A160,Filtro!$A$5:$AW$651,22,FALSE),0) -> 16 | Y160: =IFERROR(VLOOKUP($A160,Filtro!$A$5:$AW$651,23,FALSE),0) -> 30 | Z160: =IFERROR(VLOOKUP($A160,Filtro!$A$5:$AW$651,24,FALSE),0) -> 18 | AA160: =IFERROR(VLOOKUP($A160,Filtro!$A$5:$AW$651,25,FALSE),0) -> 24 | AB160: =IFERROR(VLOOKUP($A160,Filtro!$A$5:$AW$651,26,FALSE),0) -> 11 | AC160: =IFERROR(VLOOKUP($A160,Filtro!$A$5:$AW$651,27,FALSE),0) -> 13 | AD160: =IFERROR(VLOOKUP($A160,Filtro!$A$5:$AW$651,28,FALSE),0) -> 10 | AE160: =IFERROR(VLOOKUP($A160,Filtro!$A$5:$AW$651,29,FALSE),0) -> 3 | AF160: =IFERROR(VLOOKUP($A160,Filtro!$A$5:$AW$651,30,FALSE),0) -> 3 | AG160: =IFERROR(VLOOKUP($A160,Filtro!$A$5:$AW$651,31,FALSE),0) -> 17 | AH160: =IFERROR(VLOOKUP($A160,Filtro!$A$5:$AW$651,32,FALSE),0) -> 24 | AI160: =IFERROR(VLOOKUP($A160,Filtro!$A$5:$AW$651,33,FALSE),0) -> 14 | AJ160: =IFERROR(VLOOKUP($A160,Filtro!$A$5:$AW$651,34,FALSE),0) -> 14 | AK160: =IFERROR(VLOOKUP($A160,Filtro!$A$5:$AW$651,35,FALSE),0) -> 18 | AL160: =IFERROR(VLOOKUP($A160,Filtro!$A$5:$AW$651,36,FALSE),0) -> 19 | AM160: =IFERROR(VLOOKUP($A160,Filtro!$A$5:$AW$651,37,FALSE),0) -> 15 | AN160: =IFERROR(VLOOKUP($A160,Filtro!$A$5:$AW$651,38,FALSE),0) -> 24 | AO160: =IFERROR(VLOOKUP($A160,Filtro!$A$5:$AW$651,39,FALSE),0) -> 15 | AP160: =IFERROR(VLOOKUP($A160,Filtro!$A$5:$AW$651,40,FALSE),0) -> 22 | AQ160: =IFERROR(VLOOKUP($A160,Filtro!$A$5:$AW$651,41,FALSE),0) -> 6 | AR160: =IFERROR(VLOOKUP($A160,Filtro!$A$5:$AW$651,42,FALSE),0) -> 8 | AS160: =IFERROR(VLOOKUP($A160,Filtro!$A$5:$AW$651,43,FALSE),0) -> 1 | AT160: =IFERROR(VLOOKUP($A160,Filtro!$A$5:$AW$651,44,FALSE),0) -> 0 | AU160: =IFERROR(VLOOKUP($A160,Filtro!$A$5:$AW$651,45,FALSE),0) -> 1 | AV160: =IFERROR(VLOOKUP($A160,Filtro!$A$5:$AW$651,46,FALSE),0) -> 0 | DG160: 0 | DH160: 0 | DI160: 0 | DJ160: 0
A161: P2501834 | B161: Trastornos genéticos | C161: Trastornos genéticos | D161: 157 | E161: 72 | F161: 85 | G161: =IFERROR(VLOOKUP($A161,Filtro!$A$5:$AW$651,5,FALSE),0) -> 0 | H161: =IFERROR(VLOOKUP($A161,Filtro!$A$5:$AW$651,6,FALSE),0) -> 0 | I161: =IFERROR(VLOOKUP($A161,Filtro!$A$5:$AW$651,7,FALSE),0) -> 0 | J161: =IFERROR(VLOOKUP($A161,Filtro!$A$5:$AW$651,8,FALSE),0) -> 0 | K161: =IFERROR(VLOOKUP($A161,Filtro!$A$5:$AW$651,9,FALSE),0) -> 0 | L161: =IFERROR(VLOOKUP($A161,Filtro!$A$5:$AW$651,10,FALSE),0) -> 0 | M161: =IFERROR(VLOOKUP($A161,Filtro!$A$5:$AW$651,11,FALSE),0) -> 0 | N161: =IFERROR(VLOOKUP($A161,Filtro!$A$5:$AW$651,12,FALSE),0) -> 0 | O161: =IFERROR(VLOOKUP($A161,Filtro!$A$5:$AW$651,13,FALSE),0) -> 1 | P161: =IFERROR(VLOOKUP($A161,Filtro!$A$5:$AW$651,14,FALSE),0) -> 1 | Q161: =IFERROR(VLOOKUP($A161,Filtro!$A$5:$AW$651,15,FALSE),0) -> 0 | R161: =IFERROR(VLOOKUP($A161,Filtro!$A$5:$AW$651,16,FALSE),0) -> 0 | S161: =IFERROR(VLOOKUP($A161,Filtro!$A$5:$AW$651,17,FALSE),0) -> 1 | T161: =IFERROR(VLOOKUP($A161,Filtro!$A$5:$AW$651,18,FALSE),0) -> 2 | U161: =IFERROR(VLOOKUP($A161,Filtro!$A$5:$AW$651,19,FALSE),0) -> 2 | V161: =IFERROR(VLOOKUP($A161,Filtro!$A$5:$AW$651,20,FALSE),0) -> 3 | W161: =IFERROR(VLOOKUP($A161,Filtro!$A$5:$AW$651,21,FALSE),0) -> 5 | X161: =IFERROR(VLOOKUP($A161,Filtro!$A$5:$AW$651,22,FALSE),0) -> 2 | Y161: =IFERROR(VLOOKUP($A161,Filtro!$A$5:$AW$651,23,FALSE),0) -> 7 | Z161: =IFERROR(VLOOKUP($A161,Filtro!$A$5:$AW$651,24,FALSE),0) -> 1 | AA161: =IFERROR(VLOOKUP($A161,Filtro!$A$5:$AW$651,25,FALSE),0) -> 4 | AB161: =IFERROR(VLOOKUP($A161,Filtro!$A$5:$AW$651,26,FALSE),0) -> 5 | AC161: =IFERROR(VLOOKUP($A161,Filtro!$A$5:$AW$651,27,FALSE),0) -> 4 | AD161: =IFERROR(VLOOKUP($A161,Filtro!$A$5:$AW$651,28,FALSE),0) -> 3 | AE161: =IFERROR(VLOOKUP($A161,Filtro!$A$5:$AW$651,29,FALSE),0) -> 1 | AF161: =IFERROR(VLOOKUP($A161,Filtro!$A$5:$AW$651,30,FALSE),0) -> 1 | AG161: =IFERROR(VLOOKUP($A161,Filtro!$A$5:$AW$651,31,FALSE),0) -> 6 | AH161: =IFERROR(VLOOKUP($A161,Filtro!$A$5:$AW$651,32,FALSE),0) -> 10 | AI161: =IFERROR(VLOOKUP($A161,Filtro!$A$5:$AW$651,33,FALSE),0) -> 8 | AJ161: =IFERROR(VLOOKUP($A161,Filtro!$A$5:$AW$651,34,FALSE),0) -> 5 | AK161: =IFERROR(VLOOKUP($A161,Filtro!$A$5:$AW$651,35,FALSE),0) -> 10 | AL161: =IFERROR(VLOOKUP($A161,Filtro!$A$5:$AW$651,36,FALSE),0) -> 17 | AM161: =IFERROR(VLOOKUP($A161,Filtro!$A$5:$AW$651,37,FALSE),0) -> 6 | AN161: =IFERROR(VLOOKUP($A161,Filtro!$A$5:$AW$651,38,FALSE),0) -> 12 | AO161: =IFERROR(VLOOKUP($A161,Filtro!$A$5:$AW$651,39,FALSE),0) -> 11 | AP161: =IFERROR(VLOOKUP($A161,Filtro!$A$5:$AW$651,40,FALSE),0) -> 16 | AQ161: =IFERROR(VLOOKUP($A161,Filtro!$A$5:$AW$651,41,FALSE),0) -> 6 | AR161: =IFERROR(VLOOKUP($A161,Filtro!$A$5:$AW$651,42,FALSE),0) -> 7 | AS161: =IFERROR(VLOOKUP($A161,Filtro!$A$5:$AW$651,43,FALSE),0) -> 0 | AT161: =IFERROR(VLOOKUP($A161,Filtro!$A$5:$AW$651,44,FALSE),0) -> 0 | AU161: =IFERROR(VLOOKUP($A161,Filtro!$A$5:$AW$651,45,FALSE),0) -> 0 | AV161: =IFERROR(VLOOKUP($A161,Filtro!$A$5:$AW$651,46,FALSE),0) -> 0 | DG161: 0 | DH161: 0 | DI161: 0 | DJ161: 0
A162: P2501600 | B162: Prematuros | D162: =SUM(E162:F162) -> 3357 | E162: =+G162+I162+K162+M162+O162+Q162+S162+U162+W162+Y162+AA162+AC162+AE162+AG162+AI162+AO162+AQ162+AK162+AM162 -> 1874 | F162: 1483 | G162: =IFERROR(VLOOKUP($A162,Filtro!$A$5:$AW$651,5,FALSE),0) -> 7 | H162: =IFERROR(VLOOKUP($A162,Filtro!$A$5:$AW$651,6,FALSE),0) -> 8 | I162: =IFERROR(VLOOKUP($A162,Filtro!$A$5:$AW$651,7,FALSE),0) -> 27 | J162: =IFERROR(VLOOKUP($A162,Filtro!$A$5:$AW$651,8,FALSE),0) -> 14 | K162: =IFERROR(VLOOKUP($A162,Filtro!$A$5:$AW$651,9,FALSE),0) -> 39 | L162: =IFERROR(VLOOKUP($A162,Filtro!$A$5:$AW$651,10,FALSE),0) -> 19 | M162: =IFERROR(VLOOKUP($A162,Filtro!$A$5:$AW$651,11,FALSE),0) -> 24 | N162: =IFERROR(VLOOKUP($A162,Filtro!$A$5:$AW$651,12,FALSE),0) -> 26 | O162: =IFERROR(VLOOKUP($A162,Filtro!$A$5:$AW$651,13,FALSE),0) -> 29 | P162: =IFERROR(VLOOKUP($A162,Filtro!$A$5:$AW$651,14,FALSE),0) -> 31 | Q162: =IFERROR(VLOOKUP($A162,Filtro!$A$5:$AW$651,15,FALSE),0) -> 19 | R162: =IFERROR(VLOOKUP($A162,Filtro!$A$5:$AW$651,16,FALSE),0) -> 20 | S162: =IFERROR(VLOOKUP($A162,Filtro!$A$5:$AW$651,17,FALSE),0) -> 42 | T162: =IFERROR(VLOOKUP($A162,Filtro!$A$5:$AW$651,18,FALSE),0) -> 31 | U162: =IFERROR(VLOOKUP($A162,Filtro!$A$5:$AW$651,19,FALSE),0) -> 142 | V162: =IFERROR(VLOOKUP($A162,Filtro!$A$5:$AW$651,20,FALSE),0) -> 105 | W162: =IFERROR(VLOOKUP($A162,Filtro!$A$5:$AW$651,21,FALSE),0) -> 228 | X162: =IFERROR(VLOOKUP($A162,Filtro!$A$5:$AW$651,22,FALSE),0) -> 176 | Y162: =IFERROR(VLOOKUP($A162,Filtro!$A$5:$AW$651,23,FALSE),0) -> 145 | Z162: =IFERROR(VLOOKUP($A162,Filtro!$A$5:$AW$651,24,FALSE),0) -> 115 | AA162: =IFERROR(VLOOKUP($A162,Filtro!$A$5:$AW$651,25,FALSE),0) -> 231 | AB162: =IFERROR(VLOOKUP($A162,Filtro!$A$5:$AW$651,26,FALSE),0) -> 230 | AC162: =IFERROR(VLOOKUP($A162,Filtro!$A$5:$AW$651,27,FALSE),0) -> 160 | AD162: =IFERROR(VLOOKUP($A162,Filtro!$A$5:$AW$651,28,FALSE),0) -> 111 | AE162: =IFERROR(VLOOKUP($A162,Filtro!$A$5:$AW$651,29,FALSE),0) -> 43 | AF162: =IFERROR(VLOOKUP($A162,Filtro!$A$5:$AW$651,30,FALSE),0) -> 37 | AG162: =IFERROR(VLOOKUP($A162,Filtro!$A$5:$AW$651,31,FALSE),0) -> 212 | AH162: =IFERROR(VLOOKUP($A162,Filtro!$A$5:$AW$651,32,FALSE),0) -> 161 | AI162: =IFERROR(VLOOKUP($A162,Filtro!$A$5:$AW$651,33,FALSE),0) -> 162 | AJ162: =IFERROR(VLOOKUP($A162,Filtro!$A$5:$AW$651,34,FALSE),0) -> 101 | AK162: =IFERROR(VLOOKUP($A162,Filtro!$A$5:$AW$651,35,FALSE),0) -> 233 | AL162: =IFERROR(VLOOKUP($A162,Filtro!$A$5:$AW$651,36,FALSE),0) -> 182 | AM162: =IFERROR(VLOOKUP($A162,Filtro!$A$5:$AW$651,37,FALSE),0) -> 113 | AN162: =IFERROR(VLOOKUP($A162,Filtro!$A$5:$AW$651,38,FALSE),0) -> 99 | AO162: =IFERROR(VLOOKUP($A162,Filtro!$A$5:$AW$651,39,FALSE),0) -> 18 | AP162: =IFERROR(VLOOKUP($A162,Filtro!$A$5:$AW$651,40,FALSE),0) -> 11 | AQ162: =IFERROR(VLOOKUP($A162,Filtro!$A$5:$AW$651,41,FALSE),0) -> 0 | AR162: =IFERROR(VLOOKUP($A162,Filtro!$A$5:$AW$651,42,FALSE),0) -> 6 | AS162: =IFERROR(VLOOKUP($A162,Filtro!$A$5:$AW$651,43,FALSE),0) -> 7 | AT162: =IFERROR(VLOOKUP($A162,Filtro!$A$5:$AW$651,44,FALSE),0) -> 7 | AU162: =IFERROR(VLOOKUP($A162,Filtro!$A$5:$AW$651,45,FALSE),0) -> 5 | AV162: =IFERROR(VLOOKUP($A162,Filtro!$A$5:$AW$651,46,FALSE),0) -> 5 | DG162: 0 | DH162: 0 | DI162: 0 | DJ162: 0
A163: P2501835 | B163: Enfermedades hematológicas crónicas | C163: Enfermedades hematológicas crónicas | D163: =SUM(E163:F163) -> 53 | E163: 23 | F163: 30 | G163: =IFERROR(VLOOKUP($A163,Filtro!$A$5:$AW$651,5,FALSE),0) -> 0 | H163: =IFERROR(VLOOKUP($A163,Filtro!$A$5:$AW$651,6,FALSE),0) -> 0 | I163: =IFERROR(VLOOKUP($A163,Filtro!$A$5:$AW$651,7,FALSE),0) -> 0 | J163: =IFERROR(VLOOKUP($A163,Filtro!$A$5:$AW$651,8,FALSE),0) -> 0 | K163: =IFERROR(VLOOKUP($A163,Filtro!$A$5:$AW$651,9,FALSE),0) -> 0 | L163: =IFERROR(VLOOKUP($A163,Filtro!$A$5:$AW$651,10,FALSE),0) -> 0 | M163: =IFERROR(VLOOKUP($A163,Filtro!$A$5:$AW$651,11,FALSE),0) -> 0 | N163: =IFERROR(VLOOKUP($A163,Filtro!$A$5:$AW$651,12,FALSE),0) -> 0 | O163: =IFERROR(VLOOKUP($A163,Filtro!$A$5:$AW$651,13,FALSE),0) -> 0 | P163: =IFERROR(VLOOKUP($A163,Filtro!$A$5:$AW$651,14,FALSE),0) -> 0 | Q163: =IFERROR(VLOOKUP($A163,Filtro!$A$5:$AW$651,15,FALSE),0) -> 0 | R163: =IFERROR(VLOOKUP($A163,Filtro!$A$5:$AW$651,16,FALSE),0) -> 0 | S163: =IFERROR(VLOOKUP($A163,Filtro!$A$5:$AW$651,17,FALSE),0) -> 0 | T163: =IFERROR(VLOOKUP($A163,Filtro!$A$5:$AW$651,18,FALSE),0) -> 0 | U163: =IFERROR(VLOOKUP($A163,Filtro!$A$5:$AW$651,19,FALSE),0) -> 2 | V163: =IFERROR(VLOOKUP($A163,Filtro!$A$5:$AW$651,20,FALSE),0) -> 0 | W163: =IFERROR(VLOOKUP($A163,Filtro!$A$5:$AW$651,21,FALSE),0) -> 3 | X163: =IFERROR(VLOOKUP($A163,Filtro!$A$5:$AW$651,22,FALSE),0) -> 0 | Y163: =IFERROR(VLOOKUP($A163,Filtro!$A$5:$AW$651,23,FALSE),0) -> 0 | Z163: =IFERROR(VLOOKUP($A163,Filtro!$A$5:$AW$651,24,FALSE),0) -> 0 | AA163: =IFERROR(VLOOKUP($A163,Filtro!$A$5:$AW$651,25,FALSE),0) -> 1 | AB163: =IFERROR(VLOOKUP($A163,Filtro!$A$5:$AW$651,26,FALSE),0) -> 3 | AC163: =IFERROR(VLOOKUP($A163,Filtro!$A$5:$AW$651,27,FALSE),0) -> 0 | AD163: =IFERROR(VLOOKUP($A163,Filtro!$A$5:$AW$651,28,FALSE),0) -> 3 | AE163: =IFERROR(VLOOKUP($A163,Filtro!$A$5:$AW$651,29,FALSE),0) -> 0 | AF163: =IFERROR(VLOOKUP($A163,Filtro!$A$5:$AW$651,30,FALSE),0) -> 0 | AG163: =IFERROR(VLOOKUP($A163,Filtro!$A$5:$AW$651,31,FALSE),0) -> 2 | AH163: =IFERROR(VLOOKUP($A163,Filtro!$A$5:$AW$651,32,FALSE),0) -> 2 | AI163: =IFERROR(VLOOKUP($A163,Filtro!$A$5:$AW$651,33,FALSE),0) -> 4 | AJ163: =IFERROR(VLOOKUP($A163,Filtro!$A$5:$AW$651,34,FALSE),0) -> 2 | AK163: =IFERROR(VLOOKUP($A163,Filtro!$A$5:$AW$651,35,FALSE),0) -> 2 | AL163: =IFERROR(VLOOKUP($A163,Filtro!$A$5:$AW$651,36,FALSE),0) -> 5 | AM163: =IFERROR(VLOOKUP($A163,Filtro!$A$5:$AW$651,37,FALSE),0) -> 1 | AN163: =IFERROR(VLOOKUP($A163,Filtro!$A$5:$AW$651,38,FALSE),0) -> 5 | AO163: =IFERROR(VLOOKUP($A163,Filtro!$A$5:$AW$651,39,FALSE),0) -> 6 | AP163: =IFERROR(VLOOKUP($A163,Filtro!$A$5:$AW$651,40,FALSE),0) -> 7 | AQ163: =IFERROR(VLOOKUP($A163,Filtro!$A$5:$AW$651,41,FALSE),0) -> 2 | AR163: =IFERROR(VLOOKUP($A163,Filtro!$A$5:$AW$651,42,FALSE),0) -> 3 | AS163: =IFERROR(VLOOKUP($A163,Filtro!$A$5:$AW$651,43,FALSE),0) -> 0 | AT163: =IFERROR(VLOOKUP($A163,Filtro!$A$5:$AW$651,44,FALSE),0) -> 0 | AU163: =IFERROR(VLOOKUP($A163,Filtro!$A$5:$AW$651,45,FALSE),0) -> 0 | AV163: =IFERROR(VLOOKUP($A163,Filtro!$A$5:$AW$651,46,FALSE),0) -> 0 | DG163: 0 | DH163: 0 | DI163: 0 | DJ163: 0
A164: P2501836 | B164: Enfermedades musculoesqueléticas crónicas | C164: Enfermedades musculoesqueléticas crónicas | D164: =SUM(E164:F164) -> 149 | E164: 82 | F164: 67 | G164: =IFERROR(VLOOKUP($A164,Filtro!$A$5:$AW$651,5,FALSE),0) -> 0 | H164: =IFERROR(VLOOKUP($A164,Filtro!$A$5:$AW$651,6,FALSE),0) -> 0 | I164: =IFERROR(VLOOKUP($A164,Filtro!$A$5:$AW$651,7,FALSE),0) -> 0 | J164: =IFERROR(VLOOKUP($A164,Filtro!$A$5:$AW$651,8,FALSE),0) -> 0 | K164: =IFERROR(VLOOKUP($A164,Filtro!$A$5:$AW$651,9,FALSE),0) -> 1 | L164: =IFERROR(VLOOKUP($A164,Filtro!$A$5:$AW$651,10,FALSE),0) -> 0 | M164: =IFERROR(VLOOKUP($A164,Filtro!$A$5:$AW$651,11,FALSE),0) -> 0 | N164: =IFERROR(VLOOKUP($A164,Filtro!$A$5:$AW$651,12,FALSE),0) -> 0 | O164: =IFERROR(VLOOKUP($A164,Filtro!$A$5:$AW$651,13,FALSE),0) -> 0 | P164: =IFERROR(VLOOKUP($A164,Filtro!$A$5:$AW$651,14,FALSE),0) -> 0 | Q164: =IFERROR(VLOOKUP($A164,Filtro!$A$5:$AW$651,15,FALSE),0) -> 0 | R164: =IFERROR(VLOOKUP($A164,Filtro!$A$5:$AW$651,16,FALSE),0) -> 0 | S164: =IFERROR(VLOOKUP($A164,Filtro!$A$5:$AW$651,17,FALSE),0) -> 0 | T164: =IFERROR(VLOOKUP($A164,Filtro!$A$5:$AW$651,18,FALSE),0) -> 0 | U164: =IFERROR(VLOOKUP($A164,Filtro!$A$5:$AW$651,19,FALSE),0) -> 3 | V164: =IFERROR(VLOOKUP($A164,Filtro!$A$5:$AW$651,20,FALSE),0) -> 0 | W164: =IFERROR(VLOOKUP($A164,Filtro!$A$5:$AW$651,21,FALSE),0) -> 7 | X164: =IFERROR(VLOOKUP($A164,Filtro!$A$5:$AW$651,22,FALSE),0) -> 3 | Y164: =IFERROR(VLOOKUP($A164,Filtro!$A$5:$AW$651,23,FALSE),0) -> 3 | Z164: =IFERROR(VLOOKUP($A164,Filtro!$A$5:$AW$651,24,FALSE),0) -> 0 | AA164: =IFERROR(VLOOKUP($A164,Filtro!$A$5:$AW$651,25,FALSE),0) -> 8 | AB164: =IFERROR(VLOOKUP($A164,Filtro!$A$5:$AW$651,26,FALSE),0) -> 10 | AC164: =IFERROR(VLOOKUP($A164,Filtro!$A$5:$AW$651,27,FALSE),0) -> 6 | AD164: =IFERROR(VLOOKUP($A164,Filtro!$A$5:$AW$651,28,FALSE),0) -> 2 | AE164: =IFERROR(VLOOKUP($A164,Filtro!$A$5:$AW$651,29,FALSE),0) -> 1 | AF164: =IFERROR(VLOOKUP($A164,Filtro!$A$5:$AW$651,30,FALSE),0) -> 1 | AG164: =IFERROR(VLOOKUP($A164,Filtro!$A$5:$AW$651,31,FALSE),0) -> 3 | AH164: =IFERROR(VLOOKUP($A164,Filtro!$A$5:$AW$651,32,FALSE),0) -> 5 | AI164: =IFERROR(VLOOKUP($A164,Filtro!$A$5:$AW$651,33,FALSE),0) -> 7 | AJ164: =IFERROR(VLOOKUP($A164,Filtro!$A$5:$AW$651,34,FALSE),0) -> 5 | AK164: =IFERROR(VLOOKUP($A164,Filtro!$A$5:$AW$651,35,FALSE),0) -> 8 | AL164: =IFERROR(VLOOKUP($A164,Filtro!$A$5:$AW$651,36,FALSE),0) -> 5 | AM164: =IFERROR(VLOOKUP($A164,Filtro!$A$5:$AW$651,37,FALSE),0) -> 4 | AN164: =IFERROR(VLOOKUP($A164,Filtro!$A$5:$AW$651,38,FALSE),0) -> 9 | AO164: =IFERROR(VLOOKUP($A164,Filtro!$A$5:$AW$651,39,FALSE),0) -> 19 | AP164: =IFERROR(VLOOKUP($A164,Filtro!$A$5:$AW$651,40,FALSE),0) -> 20 | AQ164: =IFERROR(VLOOKUP($A164,Filtro!$A$5:$AW$651,41,FALSE),0) -> 12 | AR164: =IFERROR(VLOOKUP($A164,Filtro!$A$5:$AW$651,42,FALSE),0) -> 7 | AS164: =IFERROR(VLOOKUP($A164,Filtro!$A$5:$AW$651,43,FALSE),0) -> 0 | AT164: =IFERROR(VLOOKUP($A164,Filtro!$A$5:$AW$651,44,FALSE),0) -> 0 | AU164: =IFERROR(VLOOKUP($A164,Filtro!$A$5:$AW$651,45,FALSE),0) -> 0 | AV164: =IFERROR(VLOOKUP($A164,Filtro!$A$5:$AW$651,46,FALSE),0) -> 0 | DG164: 0 | DH164: 0 | DI164: 0 | DJ164: 0
